Workbook

Sheet s1 (hidden)
A1: 0 | B1: 1 | C1: 2 | D1: 3 | E1: 4 | F1: 5 | G1: 6 | H1: 7 | I1: 8 | J1: 9 | K1: 10 | L1: 11 | M1: 12 | N1: 13 | O1: 14 | P1: 15 | Q1: 16 | R1: 17 | S1: 18 | T1: 19 | U1: 20 | V1: 21 | W1: 22 | X1: 23 | Y1: 24 | Z1: 25 | AA1: 26 | AB1: 27 | AC1: 28 | AD1: 29 | AE1: 30 | AF1: 31 | AG1: 32 | AH1: 33 | AI1: 34 | AJ1: 35 | AK1: 36 | AL1: 37 | AM1: 38 | AN1: 39 | AO1: 40 | AP1: 41 | AQ1: 42 | AR1: 43 | AS1: 44 | AT1: 45 | AU1: 46 | AV1: 47 | AW1: 48 | AX1: 49 | AY1: 50 | AZ1: 51 | BA1: 52 | BB1: 53 | BC1: 54 | BD1: 55 | BE1: 56 | BF1: 57 | BG1: 58 | BH1: 59 | BI1: 60 | BJ1: 61 | BK1: 62 | BL1: 63 | BM1: 64 | BN1: 65 | BO1: 66 | BP1: 67 | BQ1: 68 | BR1: 69 | BS1: 70 | BT1: 71 | BU1: 72 | BV1: 73 | BW1: 74 | BX1: 75 | BY1: 76 | BZ1: 77
A2: 0 | B2: ااااااا | C2: اليوم | D2: الشعبة | E2: القاعة | F2: الشعبة | G2: القاعة | H2: الشعبة | I2: القاعة | J2: الشعبة | K2: القاعة | L2: الشعبة | M2: القاعة | N2: الشعبة | O2: القاعة | P2: الشعبة | Q2: القاعة | S2: الشعبة | T2: القاعة | U2: الشعبة | V2: القاعة | W2: الشعبة | X2: القاعة | Y2: الشعبة | Z2: القاعة | AA2: الشعبة | AB2: القاعة | AC2: الشعبة | AD2: القاعة | AE2: الشعبة | AF2: القاعة | AH2: الشعبة | AI2: القاعة | AJ2: الشعبة | AK2: القاعة | AL2: الشعبة | AM2: القاعة | AN2: الشعبة | AO2: القاعة | AP2: الشعبة | AQ2: القاعة | AR2: الشعبة | AS2: القاعة | AT2: الشعبة | AU2: القاعة | AW2: الشعبة | AX2: القاعة | AY2: الشعبة | AZ2: القاعة | BA2: الشعبة | BB2: القاعة | BC2: الشعبة | BD2: القاعة | BE2: الشعبة | BF2: القاعة | BG2: الشعبة | BH2: القاعة | BI2: الشعبة | BJ2: القاعة | BL2: الشعبة | BM2: القاعة | BN2: الشعبة | BO2: القاعة | BP2: الشعبة | BQ2: القاعة | BR2: الشعبة | BS2: القاعة | BT2: الشعبة | BU2: القاعة | BV2: الشعبة | BW2: القاعة | BX2: الشعبة | BY2: القاعة | BZ2: =_ِAll[[#This Row],[0]] -> 0
A3: 39001 | B3: أحمد بن انور بن احمد العكش | C3: 1 | D3: رياضيات 3 الشعبة 1 | E3: موهبة 2 | F3: فيزياء 2 الشعبة 1 | G3: موهبة 2 | H3: عربي 3 الشعبة 1 | I3: موهبة 2 | J3: حديث 1 الشعبة 1 | K3: موهبة 1 | L3: إنجليزي 3 الشعبة 1 | M3: موهبة 2 | N3: مهنية الشعبة 1 | O3: موهبة 2 | P3: حاسب 2 الشعبة 1 | Q3: معمل حاسب | R3: 2 | S3: حاسب 2 الشعبة 1 | T3: معمل حاسب | U3: رياضيات 3 الشعبة 1 | V3: موهبة 2 | W3: فيزياء 2 الشعبة 1 | X3: موهبة 2 | Y3: عربي 3 الشعبة 1 | Z3: موهبة 2 | AA3: حديث 1 الشعبة 1 | AB3: موهبة 1 | AC3: إنجليزي 3 الشعبة 1 | AD3: موهبة 2 | AE3: مهنية الشعبة 1 | AF3: موهبة 2 | AG3: 3 | AH3: مهنية الشعبة 1 | AI3: موهبة 2 | AJ3: حاسب 2 الشعبة 1 | AK3: معمل حاسب | AL3: رياضيات 3 الشعبة 1 | AM3: موهبة 2 | AN3: فيزياء 2 الشعبة 1 | AO3: موهبة 2 | AP3: عربي 3 الشعبة 1 | AQ3: موهبة 2 | AR3: حديث 1 الشعبة 1 | AS3: موهبة 2 | AT3: إنجليزي 3 الشعبة 1 | AU3: موهبة 2 | AV3: 4 | AW3: إنجليزي 3 الشعبة 1 | AX3: موهبة 2 | AY3: مهنية الشعبة 1 | AZ3: موهبة 2 | BA3: حاسب 2 الشعبة 1 | BB3: معمل حاسب | BC3: رياضيات 3 الشعبة 1 | BD3: موهبة 2 | BE3: فيزياء 2 الشعبة 1 | BF3: موهبة 2 | BG3: عربي 3 الشعبة 1 | BH3: موهبة 2 | BI3: حديث 1 الشعبة 1 | BJ3: موهبة 2 | BK3: 5 | BL3: حديث 1 الشعبة 1 | BM3: موهبة 2 | BN3: إنجليزي 3 الشعبة 1 | BO3: موهبة 2 | BP3: حاسب 2 الشعبة 1 | BQ3: معمل حاسب | BR3: مهنية الشعبة 1 | BS3: موهبة 2 | BT3: رياضيات 3 الشعبة 1 | BU3: موهبة 2 | BV3: فيزياء 2 الشعبة 1 | BW3: موهبة 2 | BX3: عربي 3 الشعبة 1 | BY3: موهبة 2 | BZ3: =_ِAll[[#This Row],[0]] -> 39001
A4: 39002 | B4: أحمد بن هاشم بن رضي الفلفل | C4: 1 | D4: رياضيات 3 الشعبة 1 | E4: موهبة 2 | F4: فيزياء 2 الشعبة 1 | G4: موهبة 2 | H4: عربي 3 الشعبة 1 | I4: موهبة 2 | J4: حديث 1 الشعبة 1 | K4: موهبة 1 | L4: إنجليزي 3 الشعبة 1 | M4: موهبة 2 | N4: مهنية الشعبة 1 | O4: موهبة 2 | P4: حاسب 2 الشعبة 1 | Q4: معمل حاسب | R4: 2 | S4: حاسب 2 الشعبة 1 | T4: معمل حاسب | U4: رياضيات 3 الشعبة 1 | V4: موهبة 2 | W4: فيزياء 2 الشعبة 1 | X4: موهبة 2 | Y4: عربي 3 الشعبة 1 | Z4: موهبة 2 | AA4: حديث 1 الشعبة 1 | AB4: موهبة 1 | AC4: إنجليزي 3 الشعبة 1 | AD4: موهبة 2 | AE4: مهنية الشعبة 1 | AF4: موهبة 2 | AG4: 3 | AH4: مهنية الشعبة 1 | AI4: موهبة 2 | AJ4: حاسب 2 الشعبة 1 | AK4: معمل حاسب | AL4: رياضيات 3 الشعبة 1 | AM4: موهبة 2 | AN4: فيزياء 2 الشعبة 1 | AO4: موهبة 2 | AP4: عربي 3 الشعبة 1 | AQ4: موهبة 2 | AR4: حديث 1 الشعبة 1 | AS4: موهبة 2 | AT4: إنجليزي 3 الشعبة 1 | AU4: موهبة 2 | AV4: 4 | AW4: إنجليزي 3 الشعبة 1 | AX4: موهبة 2 | AY4: مهنية الشعبة 1 | AZ4: موهبة 2 | BA4: حاسب 2 الشعبة 1 | BB4: معمل حاسب | BC4: رياضيات 3 الشعبة 1 | BD4: موهبة 2 | BE4: فيزياء 2 الشعبة 1 | BF4: موهبة 2 | BG4: عربي 3 الشعبة 1 | BH4: موهبة 2 | BI4: حديث 1 الشعبة 1 | BJ4: موهبة 2 | BK4: 5 | BL4: حديث 1 الشعبة 1 | BM4: موهبة 2 | BN4: إنجليزي 3 الشعبة 1 | BO4: موهبة 2 | BP4: حاسب 2 الشعبة 1 | BQ4: معمل حاسب | BR4: مهنية الشعبة 1 | BS4: موهبة 2 | BT4: رياضيات 3 الشعبة 1 | BU4: موهبة 2 | BV4: فيزياء 2 الشعبة 1 | BW4: موهبة 2 | BX4: عربي 3 الشعبة 1 | BY4: موهبة 2 | BZ4: =_ِAll[[#This Row],[0]] -> 39002
A5: 39003 | B5: باسل بن عبدرب الرسول بن علي آل رمضان | C5: 1 | D5: رياضيات 3 الشعبة 1 | E5: موهبة 2 | F5: فيزياء 2 الشعبة 1 | G5: موهبة 2 | H5: عربي 3 الشعبة 1 | I5: موهبة 2 | J5: حديث 1 الشعبة 1 | K5: موهبة 1 | L5: إنجليزي 3 الشعبة 1 | M5: موهبة 2 | N5: مهنية الشعبة 1 | O5: موهبة 2 | P5: حاسب 2 الشعبة 1 | Q5: معمل حاسب | R5: 2 | S5: حاسب 2 الشعبة 1 | T5: معمل حاسب | U5: رياضيات 3 الشعبة 1 | V5: موهبة 2 | W5: فيزياء 2 الشعبة 1 | X5: موهبة 2 | Y5: عربي 3 الشعبة 1 | Z5: موهبة 2 | AA5: حديث 1 الشعبة 1 | AB5: موهبة 1 | AC5: إنجليزي 3 الشعبة 1 | AD5: موهبة 2 | AE5: مهنية الشعبة 1 | AF5: موهبة 2 | AG5: 3 | AH5: مهنية الشعبة 1 | AI5: موهبة 2 | AJ5: حاسب 2 الشعبة 1 | AK5: معمل حاسب | AL5: رياضيات 3 الشعبة 1 | AM5: موهبة 2 | AN5: فيزياء 2 الشعبة 1 | AO5: موهبة 2 | AP5: عربي 3 الشعبة 1 | AQ5: موهبة 2 | AR5: حديث 1 الشعبة 1 | AS5: موهبة 2 | AT5: إنجليزي 3 الشعبة 1 | AU5: موهبة 2 | AV5: 4 | AW5: إنجليزي 3 الشعبة 1 | AX5: موهبة 2 | AY5: مهنية الشعبة 1 | AZ5: موهبة 2 | BA5: حاسب 2 الشعبة 1 | BB5: معمل حاسب | BC5: رياضيات 3 الشعبة 1 | BD5: موهبة 2 | BE5: فيزياء 2 الشعبة 1 | BF5: موهبة 2 | BG5: عربي 3 الشعبة 1 | BH5: موهبة 2 | BI5: حديث 1 الشعبة 1 | BJ5: موهبة 2 | BK5: 5 | BL5: حديث 1 الشعبة 1 | BM5: موهبة 2 | BN5: إنجليزي 3 الشعبة 1 | BO5: موهبة 2 | BP5: حاسب 2 الشعبة 1 | BQ5: معمل حاسب | BR5: مهنية الشعبة 1 | BS5: موهبة 2 | BT5: رياضيات 3 الشعبة 1 | BU5: موهبة 2 | BV5: فيزياء 2 الشعبة 1 | BW5: موهبة 2 | BX5: عربي 3 الشعبة 1 | BY5: موهبة 2 | BZ5: =_ِAll[[#This Row],[0]] -> 39003
A6: 39004 | B6: تقي بن كاظم بن علي آل اسعيد | C6: 1 | D6: رياضيات 3 الشعبة 1 | E6: موهبة 2 | F6: فيزياء 2 الشعبة 1 | G6: موهبة 2 | H6: عربي 3 الشعبة 1 | I6: موهبة 2 | J6: حديث 1 الشعبة 1 | K6: موهبة 1 | L6: إنجليزي 3 الشعبة 1 | M6: موهبة 2 | N6: مهنية الشعبة 1 | O6: موهبة 2 | P6: حاسب 2 الشعبة 1 | Q6: معمل حاسب | R6: 2 | S6: حاسب 2 الشعبة 1 | T6: معمل حاسب | U6: رياضيات 3 الشعبة 1 | V6: موهبة 2 | W6: فيزياء 2 الشعبة 1 | X6: موهبة 2 | Y6: عربي 3 الشعبة 1 | Z6: موهبة 2 | AA6: حديث 1 الشعبة 1 | AB6: موهبة 1 | AC6: إنجليزي 3 الشعبة 1 | AD6: موهبة 2 | AE6: مهنية الشعبة 1 | AF6: موهبة 2 | AG6: 3 | AH6: مهنية الشعبة 1 | AI6: موهبة 2 | AJ6: حاسب 2 الشعبة 1 | AK6: معمل حاسب | AL6: رياضيات 3 الشعبة 1 | AM6: موهبة 2 | AN6: فيزياء 2 الشعبة 1 | AO6: موهبة 2 | AP6: عربي 3 الشعبة 1 | AQ6: موهبة 2 | AR6: حديث 1 الشعبة 1 | AS6: موهبة 2 | AT6: إنجليزي 3 الشعبة 1 | AU6: موهبة 2 | AV6: 4 | AW6: إنجليزي 3 الشعبة 1 | AX6: موهبة 2 | AY6: مهنية الشعبة 1 | AZ6: موهبة 2 | BA6: حاسب 2 الشعبة 1 | BB6: معمل حاسب | BC6: رياضيات 3 الشعبة 1 | BD6: موهبة 2 | BE6: فيزياء 2 الشعبة 1 | BF6: موهبة 2 | BG6: عربي 3 الشعبة 1 | BH6: موهبة 2 | BI6: حديث 1 الشعبة 1 | BJ6: موهبة 2 | BK6: 5 | BL6: حديث 1 الشعبة 1 | BM6: موهبة 2 | BN6: إنجليزي 3 الشعبة 1 | BO6: موهبة 2 | BP6: حاسب 2 الشعبة 1 | BQ6: معمل حاسب | BR6: مهنية الشعبة 1 | BS6: موهبة 2 | BT6: رياضيات 3 الشعبة 1 | BU6: موهبة 2 | BV6: فيزياء 2 الشعبة 1 | BW6: موهبة 2 | BX6: عربي 3 الشعبة 1 | BY6: موهبة 2 | BZ6: =_ِAll[[#This Row],[0]] -> 39004
A7: 39005 | B7: حسن بن حسين بن علي آل سلام | C7: 1 | D7: رياضيات 3 الشعبة 1 | E7: موهبة 2 | F7: فيزياء 2 الشعبة 1 | G7: موهبة 2 | H7: عربي 3 الشعبة 1 | I7: موهبة 2 | J7: حديث 1 الشعبة 1 | K7: موهبة 1 | L7: إنجليزي 3 الشعبة 1 | M7: موهبة 2 | N7: مهنية الشعبة 1 | O7: موهبة 2 | P7: حاسب 2 الشعبة 1 | Q7: معمل حاسب | R7: 2 | S7: حاسب 2 الشعبة 1 | T7: معمل حاسب | U7: رياضيات 3 الشعبة 1 | V7: موهبة 2 | W7: فيزياء 2 الشعبة 1 | X7: موهبة 2 | Y7: عربي 3 الشعبة 1 | Z7: موهبة 2 | AA7: حديث 1 الشعبة 1 | AB7: موهبة 1 | AC7: إنجليزي 3 الشعبة 1 | AD7: موهبة 2 | AE7: مهنية الشعبة 1 | AF7: موهبة 2 | AG7: 3 | AH7: مهنية الشعبة 1 | AI7: موهبة 2 | AJ7: حاسب 2 الشعبة 1 | AK7: معمل حاسب | AL7: رياضيات 3 الشعبة 1 | AM7: موهبة 2 | AN7: فيزياء 2 الشعبة 1 | AO7: موهبة 2 | AP7: عربي 3 الشعبة 1 | AQ7: موهبة 2 | AR7: حديث 1 الشعبة 1 | AS7: موهبة 2 | AT7: إنجليزي 3 الشعبة 1 | AU7: موهبة 2 | AV7: 4 | AW7: إنجليزي 3 الشعبة 1 | AX7: موهبة 2 | AY7: مهنية الشعبة 1 | AZ7: موهبة 2 | BA7: حاسب 2 الشعبة 1 | BB7: معمل حاسب | BC7: رياضيات 3 الشعبة 1 | BD7: موهبة 2 | BE7: فيزياء 2 الشعبة 1 | BF7: موهبة 2 | BG7: عربي 3 الشعبة 1 | BH7: موهبة 2 | BI7: حديث 1 الشعبة 1 | BJ7: موهبة 2 | BK7: 5 | BL7: حديث 1 الشعبة 1 | BM7: موهبة 2 | BN7: إنجليزي 3 الشعبة 1 | BO7: موهبة 2 | BP7: حاسب 2 الشعبة 1 | BQ7: معمل حاسب | BR7: مهنية الشعبة 1 | BS7: موهبة 2 | BT7: رياضيات 3 الشعبة 1 | BU7: موهبة 2 | BV7: فيزياء 2 الشعبة 1 | BW7: موهبة 2 | BX7: عربي 3 الشعبة 1 | BY7: موهبة 2 | BZ7: =_ِAll[[#This Row],[0]] -> 39005
A8: 39006 | B8: حسين بن علي بن حسن الغضبان | C8: 1 | D8: رياضيات 3 الشعبة 1 | E8: موهبة 2 | F8: فيزياء 2 الشعبة 1 | G8: موهبة 2 | H8: عربي 3 الشعبة 1 | I8: موهبة 2 | J8: حديث 1 الشعبة 1 | K8: موهبة 1 | L8: إنجليزي 3 الشعبة 1 | M8: موهبة 2 | N8: مهنية الشعبة 1 | O8: موهبة 2 | P8: حاسب 2 الشعبة 1 | Q8: معمل حاسب | R8: 2 | S8: حاسب 2 الشعبة 1 | T8: معمل حاسب | U8: رياضيات 3 الشعبة 1 | V8: موهبة 2 | W8: فيزياء 2 الشعبة 1 | X8: موهبة 2 | Y8: عربي 3 الشعبة 1 | Z8: موهبة 2 | AA8: حديث 1 الشعبة 1 | AB8: موهبة 1 | AC8: إنجليزي 3 الشعبة 1 | AD8: موهبة 2 | AE8: مهنية الشعبة 1 | AF8: موهبة 2 | AG8: 3 | AH8: مهنية الشعبة 1 | AI8: موهبة 2 | AJ8: حاسب 2 الشعبة 1 | AK8: معمل حاسب | AL8: رياضيات 3 الشعبة 1 | AM8: موهبة 2 | AN8: فيزياء 2 الشعبة 1 | AO8: موهبة 2 | AP8: عربي 3 الشعبة 1 | AQ8: موهبة 2 | AR8: حديث 1 الشعبة 1 | AS8: موهبة 2 | AT8: إنجليزي 3 الشعبة 1 | AU8: موهبة 2 | AV8: 4 | AW8: إنجليزي 3 الشعبة 1 | AX8: موهبة 2 | AY8: مهنية الشعبة 1 | AZ8: موهبة 2 | BA8: حاسب 2 الشعبة 1 | BB8: معمل حاسب | BC8: رياضيات 3 الشعبة 1 | BD8: موهبة 2 | BE8: فيزياء 2 الشعبة 1 | BF8: موهبة 2 | BG8: عربي 3 الشعبة 1 | BH8: موهبة 2 | BI8: حديث 1 الشعبة 1 | BJ8: موهبة 2 | BK8: 5 | BL8: حديث 1 الشعبة 1 | BM8: موهبة 2 | BN8: إنجليزي 3 الشعبة 1 | BO8: موهبة 2 | BP8: حاسب 2 الشعبة 1 | BQ8: معمل حاسب | BR8: مهنية الشعبة 1 | BS8: موهبة 2 | BT8: رياضيات 3 الشعبة 1 | BU8: موهبة 2 | BV8: فيزياء 2 الشعبة 1 | BW8: موهبة 2 | BX8: عربي 3 الشعبة 1 | BY8: موهبة 2 | BZ8: =_ِAll[[#This Row],[0]] -> 39006
A9: 39007 | B9: حيدر بن محمد بن شبيب الشبيب | C9: 1 | D9: رياضيات 3 الشعبة 1 | E9: موهبة 2 | F9: فيزياء 2 الشعبة 1 | G9: موهبة 2 | H9: عربي 3 الشعبة 1 | I9: موهبة 2 | J9: حديث 1 الشعبة 1 | K9: موهبة 1 | L9: إنجليزي 3 الشعبة 1 | M9: موهبة 2 | N9: مهنية الشعبة 1 | O9: موهبة 2 | P9: حاسب 2 الشعبة 1 | Q9: معمل حاسب | R9: 2 | S9: حاسب 2 الشعبة 1 | T9: معمل حاسب | U9: رياضيات 3 الشعبة 1 | V9: موهبة 2 | W9: فيزياء 2 الشعبة 1 | X9: موهبة 2 | Y9: عربي 3 الشعبة 1 | Z9: موهبة 2 | AA9: حديث 1 الشعبة 1 | AB9: موهبة 1 | AC9: إنجليزي 3 الشعبة 1 | AD9: موهبة 2 | AE9: مهنية الشعبة 1 | AF9: موهبة 2 | AG9: 3 | AH9: مهنية الشعبة 1 | AI9: موهبة 2 | AJ9: حاسب 2 الشعبة 1 | AK9: معمل حاسب | AL9: رياضيات 3 الشعبة 1 | AM9: موهبة 2 | AN9: فيزياء 2 الشعبة 1 | AO9: موهبة 2 | AP9: عربي 3 الشعبة 1 | AQ9: موهبة 2 | AR9: حديث 1 الشعبة 1 | AS9: موهبة 2 | AT9: إنجليزي 3 الشعبة 1 | AU9: موهبة 2 | AV9: 4 | AW9: إنجليزي 3 الشعبة 1 | AX9: موهبة 2 | AY9: مهنية الشعبة 1 | AZ9: موهبة 2 | BA9: حاسب 2 الشعبة 1 | BB9: معمل حاسب | BC9: رياضيات 3 الشعبة 1 | BD9: موهبة 2 | BE9: فيزياء 2 الشعبة 1 | BF9: موهبة 2 | BG9: عربي 3 الشعبة 1 | BH9: موهبة 2 | BI9: حديث 1 الشعبة 1 | BJ9: موهبة 2 | BK9: 5 | BL9: حديث 1 الشعبة 1 | BM9: موهبة 2 | BN9: إنجليزي 3 الشعبة 1 | BO9: موهبة 2 | BP9: حاسب 2 الشعبة 1 | BQ9: معمل حاسب | BR9: مهنية الشعبة 1 | BS9: موهبة 2 | BT9: رياضيات 3 الشعبة 1 | BU9: موهبة 2 | BV9: فيزياء 2 الشعبة 1 | BW9: موهبة 2 | BX9: عربي 3 الشعبة 1 | BY9: موهبة 2 | BZ9: =_ِAll[[#This Row],[0]] -> 39007
A10: 39008 | B10: خالد بن صالح بن سليمان القحطاني | C10: 1 | D10: رياضيات 3 الشعبة 1 | E10: موهبة 2 | F10: فيزياء 2 الشعبة 1 | G10: موهبة 2 | H10: عربي 3 الشعبة 1 | I10: موهبة 2 | J10: حديث 1 الشعبة 1 | K10: موهبة 1 | L10: إنجليزي 3 الشعبة 1 | M10: موهبة 2 | N10: مهنية الشعبة 1 | O10: موهبة 2 | P10: حاسب 2 الشعبة 1 | Q10: معمل حاسب | R10: 2 | S10: حاسب 2 الشعبة 1 | T10: معمل حاسب | U10: رياضيات 3 الشعبة 1 | V10: موهبة 2 | W10: فيزياء 2 الشعبة 1 | X10: موهبة 2 | Y10: عربي 3 الشعبة 1 | Z10: موهبة 2 | AA10: حديث 1 الشعبة 1 | AB10: موهبة 1 | AC10: إنجليزي 3 الشعبة 1 | AD10: موهبة 2 | AE10: مهنية الشعبة 1 | AF10: موهبة 2 | AG10: 3 | AH10: مهنية الشعبة 1 | AI10: موهبة 2 | AJ10: حاسب 2 الشعبة 1 | AK10: معمل حاسب | AL10: رياضيات 3 الشعبة 1 | AM10: موهبة 2 | AN10: فيزياء 2 الشعبة 1 | AO10: موهبة 2 | AP10: عربي 3 الشعبة 1 | AQ10: موهبة 2 | AR10: حديث 1 الشعبة 1 | AS10: موهبة 2 | AT10: إنجليزي 3 الشعبة 1 | AU10: موهبة 2 | AV10: 4 | AW10: إنجليزي 3 الشعبة 1 | AX10: موهبة 2 | AY10: مهنية الشعبة 1 | AZ10: موهبة 2 | BA10: حاسب 2 الشعبة 1 | BB10: معمل حاسب | BC10: رياضيات 3 الشعبة 1 | BD10: موهبة 2 | BE10: فيزياء 2 الشعبة 1 | BF10: موهبة 2 | BG10: عربي 3 الشعبة 1 | BH10: موهبة 2 | BI10: حديث 1 الشعبة 1 | BJ10: موهبة 2 | BK10: 5 | BL10: حديث 1 الشعبة 1 | BM10: موهبة 2 | BN10: إنجليزي 3 الشعبة 1 | BO10: موهبة 2 | BP10: حاسب 2 الشعبة 1 | BQ10: معمل حاسب | BR10: مهنية الشعبة 1 | BS10: موهبة 2 | BT10: رياضيات 3 الشعبة 1 | BU10: موهبة 2 | BV10: فيزياء 2 الشعبة 1 | BW10: موهبة 2 | BX10: عربي 3 الشعبة 1 | BY10: موهبة 2 | BZ10: =_ِAll[[#This Row],[0]] -> 39008
A11: 39009 | B11: رضا بن علي بن محمد آل غزوي | C11: 1 | D11: رياضيات 3 الشعبة 1 | E11: موهبة 2 | F11: فيزياء 2 الشعبة 1 | G11: موهبة 2 | H11: عربي 3 الشعبة 1 | I11: موهبة 2 | J11: حديث 1 الشعبة 1 | K11: موهبة 1 | L11: إنجليزي 3 الشعبة 1 | M11: موهبة 2 | N11: مهنية الشعبة 1 | O11: موهبة 2 | P11: حاسب 2 الشعبة 1 | Q11: معمل حاسب | R11: 2 | S11: حاسب 2 الشعبة 1 | T11: معمل حاسب | U11: رياضيات 3 الشعبة 1 | V11: موهبة 2 | W11: فيزياء 2 الشعبة 1 | X11: موهبة 2 | Y11: عربي 3 الشعبة 1 | Z11: موهبة 2 | AA11: حديث 1 الشعبة 1 | AB11: موهبة 1 | AC11: إنجليزي 3 الشعبة 1 | AD11: موهبة 2 | AE11: مهنية الشعبة 1 | AF11: موهبة 2 | AG11: 3 | AH11: مهنية الشعبة 1 | AI11: موهبة 2 | AJ11: حاسب 2 الشعبة 1 | AK11: معمل حاسب | AL11: رياضيات 3 الشعبة 1 | AM11: موهبة 2 | AN11: فيزياء 2 الشعبة 1 | AO11: موهبة 2 | AP11: عربي 3 الشعبة 1 | AQ11: موهبة 2 | AR11: حديث 1 الشعبة 1 | AS11: موهبة 2 | AT11: إنجليزي 3 الشعبة 1 | AU11: موهبة 2 | AV11: 4 | AW11: إنجليزي 3 الشعبة 1 | AX11: موهبة 2 | AY11: مهنية الشعبة 1 | AZ11: موهبة 2 | BA11: حاسب 2 الشعبة 1 | BB11: معمل حاسب | BC11: رياضيات 3 الشعبة 1 | BD11: موهبة 2 | BE11: فيزياء 2 الشعبة 1 | BF11: موهبة 2 | BG11: عربي 3 الشعبة 1 | BH11: موهبة 2 | BI11: حديث 1 الشعبة 1 | BJ11: موهبة 2 | BK11: 5 | BL11: حديث 1 الشعبة 1 | BM11: موهبة 2 | BN11: إنجليزي 3 الشعبة 1 | BO11: موهبة 2 | BP11: حاسب 2 الشعبة 1 | BQ11: معمل حاسب | BR11: مهنية الشعبة 1 | BS11: موهبة 2 | BT11: رياضيات 3 الشعبة 1 | BU11: موهبة 2 | BV11: فيزياء 2 الشعبة 1 | BW11: موهبة 2 | BX11: عربي 3 الشعبة 1 | BY11: موهبة 2 | BZ11: =_ِAll[[#This Row],[0]] -> 39009
A12: 39010 | B12: سلمان بن حسين بن سلمان السعيدي | C12: 1 | D12: رياضيات 3 الشعبة 1 | E12: موهبة 2 | F12: فيزياء 2 الشعبة 1 | G12: موهبة 2 | H12: عربي 3 الشعبة 1 | I12: موهبة 2 | J12: حديث 1 الشعبة 1 | K12: موهبة 1 | L12: إنجليزي 3 الشعبة 1 | M12: موهبة 2 | N12: مهنية الشعبة 1 | O12: موهبة 2 | P12: حاسب 2 الشعبة 1 | Q12: معمل حاسب | R12: 2 | S12: حاسب 2 الشعبة 1 | T12: معمل حاسب | U12: رياضيات 3 الشعبة 1 | V12: موهبة 2 | W12: فيزياء 2 الشعبة 1 | X12: موهبة 2 | Y12: عربي 3 الشعبة 1 | Z12: موهبة 2 | AA12: حديث 1 الشعبة 1 | AB12: موهبة 1 | AC12: إنجليزي 3 الشعبة 1 | AD12: موهبة 2 | AE12: مهنية الشعبة 1 | AF12: موهبة 2 | AG12: 3 | AH12: مهنية الشعبة 1 | AI12: موهبة 2 | AJ12: حاسب 2 الشعبة 1 | AK12: معمل حاسب | AL12: رياضيات 3 الشعبة 1 | AM12: موهبة 2 | AN12: فيزياء 2 الشعبة 1 | AO12: موهبة 2 | AP12: عربي 3 الشعبة 1 | AQ12: موهبة 2 | AR12: حديث 1 الشعبة 1 | AS12: موهبة 2 | AT12: إنجليزي 3 الشعبة 1 | AU12: موهبة 2 | AV12: 4 | AW12: إنجليزي 3 الشعبة 1 | AX12: موهبة 2 | AY12: مهنية الشعبة 1 | AZ12: موهبة 2 | BA12: حاسب 2 الشعبة 1 | BB12: معمل حاسب | BC12: رياضيات 3 الشعبة 1 | BD12: موهبة 2 | BE12: فيزياء 2 الشعبة 1 | BF12: موهبة 2 | BG12: عربي 3 الشعبة 1 | BH12: موهبة 2 | BI12: حديث 1 الشعبة 1 | BJ12: موهبة 2 | BK12: 5 | BL12: حديث 1 الشعبة 1 | BM12: موهبة 2 | BN12: إنجليزي 3 الشعبة 1 | BO12: موهبة 2 | BP12: حاسب 2 الشعبة 1 | BQ12: معمل حاسب | BR12: مهنية الشعبة 1 | BS12: موهبة 2 | BT12: رياضيات 3 الشعبة 1 | BU12: موهبة 2 | BV12: فيزياء 2 الشعبة 1 | BW12: موهبة 2 | BX12: عربي 3 الشعبة 1 | BY12: موهبة 2 | BZ12: =_ِAll[[#This Row],[0]] -> 39010
A13: 39011 | B13: علي بن محمد بن علي آل رضوان | C13: 1 | D13: رياضيات 3 الشعبة 1 | E13: موهبة 2 | F13: فيزياء 2 الشعبة 1 | G13: موهبة 2 | H13: عربي 3 الشعبة 1 | I13: موهبة 2 | J13: حديث 1 الشعبة 1 | K13: موهبة 1 | L13: إنجليزي 3 الشعبة 1 | M13: موهبة 2 | N13: مهنية الشعبة 1 | O13: موهبة 2 | P13: حاسب 2 الشعبة 1 | Q13: معمل حاسب | R13: 2 | S13: حاسب 2 الشعبة 1 | T13: معمل حاسب | U13: رياضيات 3 الشعبة 1 | V13: موهبة 2 | W13: فيزياء 2 الشعبة 1 | X13: موهبة 2 | Y13: عربي 3 الشعبة 1 | Z13: موهبة 2 | AA13: حديث 1 الشعبة 1 | AB13: موهبة 1 | AC13: إنجليزي 3 الشعبة 1 | AD13: موهبة 2 | AE13: مهنية الشعبة 1 | AF13: موهبة 2 | AG13: 3 | AH13: مهنية الشعبة 1 | AI13: موهبة 2 | AJ13: حاسب 2 الشعبة 1 | AK13: معمل حاسب | AL13: رياضيات 3 الشعبة 1 | AM13: موهبة 2 | AN13: فيزياء 2 الشعبة 1 | AO13: موهبة 2 | AP13: عربي 3 الشعبة 1 | AQ13: موهبة 2 | AR13: حديث 1 الشعبة 1 | AS13: موهبة 2 | AT13: إنجليزي 3 الشعبة 1 | AU13: موهبة 2 | AV13: 4 | AW13: إنجليزي 3 الشعبة 1 | AX13: موهبة 2 | AY13: مهنية الشعبة 1 | AZ13: موهبة 2 | BA13: حاسب 2 الشعبة 1 | BB13: معمل حاسب | BC13: رياضيات 3 الشعبة 1 | BD13: موهبة 2 | BE13: فيزياء 2 الشعبة 1 | BF13: موهبة 2 | BG13: عربي 3 الشعبة 1 | BH13: موهبة 2 | BI13: حديث 1 الشعبة 1 | BJ13: موهبة 2 | BK13: 5 | BL13: حديث 1 الشعبة 1 | BM13: موهبة 2 | BN13: إنجليزي 3 الشعبة 1 | BO13: موهبة 2 | BP13: حاسب 2 الشعبة 1 | BQ13: معمل حاسب | BR13: مهنية الشعبة 1 | BS13: موهبة 2 | BT13: رياضيات 3 الشعبة 1 | BU13: موهبة 2 | BV13: فيزياء 2 الشعبة 1 | BW13: موهبة 2 | BX13: عربي 3 الشعبة 1 | BY13: موهبة 2 | BZ13: =_ِAll[[#This Row],[0]] -> 39011
A14: 39012 | B14: فاضل بن احمد بن عبدالله اسقيط | C14: 1 | D14: رياضيات 3 الشعبة 1 | E14: موهبة 2 | F14: فيزياء 2 الشعبة 1 | G14: موهبة 2 | H14: عربي 3 الشعبة 1 | I14: موهبة 2 | J14: حديث 1 الشعبة 1 | K14: موهبة 1 | L14: إنجليزي 3 الشعبة 1 | M14: موهبة 2 | N14: مهنية الشعبة 1 | O14: موهبة 2 | P14: حاسب 2 الشعبة 1 | Q14: معمل حاسب | R14: 2 | S14: حاسب 2 الشعبة 1 | T14: معمل حاسب | U14: رياضيات 3 الشعبة 1 | V14: موهبة 2 | W14: فيزياء 2 الشعبة 1 | X14: موهبة 2 | Y14: عربي 3 الشعبة 1 | Z14: موهبة 2 | AA14: حديث 1 الشعبة 1 | AB14: موهبة 1 | AC14: إنجليزي 3 الشعبة 1 | AD14: موهبة 2 | AE14: مهنية الشعبة 1 | AF14: موهبة 2 | AG14: 3 | AH14: مهنية الشعبة 1 | AI14: موهبة 2 | AJ14: حاسب 2 الشعبة 1 | AK14: معمل حاسب | AL14: رياضيات 3 الشعبة 1 | AM14: موهبة 2 | AN14: فيزياء 2 الشعبة 1 | AO14: موهبة 2 | AP14: عربي 3 الشعبة 1 | AQ14: موهبة 2 | AR14: حديث 1 الشعبة 1 | AS14: موهبة 2 | AT14: إنجليزي 3 الشعبة 1 | AU14: موهبة 2 | AV14: 4 | AW14: إنجليزي 3 الشعبة 1 | AX14: موهبة 2 | AY14: مهنية الشعبة 1 | AZ14: موهبة 2 | BA14: حاسب 2 الشعبة 1 | BB14: معمل حاسب | BC14: رياضيات 3 الشعبة 1 | BD14: موهبة 2 | BE14: فيزياء 2 الشعبة 1 | BF14: موهبة 2 | BG14: عربي 3 الشعبة 1 | BH14: موهبة 2 | BI14: حديث 1 الشعبة 1 | BJ14: موهبة 2 | BK14: 5 | BL14: حديث 1 الشعبة 1 | BM14: موهبة 2 | BN14: إنجليزي 3 الشعبة 1 | BO14: موهبة 2 | BP14: حاسب 2 الشعبة 1 | BQ14: معمل حاسب | BR14: مهنية الشعبة 1 | BS14: موهبة 2 | BT14: رياضيات 3 الشعبة 1 | BU14: موهبة 2 | BV14: فيزياء 2 الشعبة 1 | BW14: موهبة 2 | BX14: عربي 3 الشعبة 1 | BY14: موهبة 2 | BZ14: =_ِAll[[#This Row],[0]] -> 39012
A15: 39013 | B15: فاضل عباس بن علي الصحاف | C15: 1 | D15: رياضيات 3 الشعبة 1 | E15: موهبة 2 | F15: فيزياء 2 الشعبة 1 | G15: موهبة 2 | H15: عربي 3 الشعبة 1 | I15: موهبة 2 | J15: حديث 1 الشعبة 1 | K15: موهبة 1 | L15: إنجليزي 3 الشعبة 1 | M15: موهبة 2 | N15: مهنية الشعبة 1 | O15: موهبة 2 | P15: حاسب 2 الشعبة 1 | Q15: معمل حاسب | R15: 2 | S15: حاسب 2 الشعبة 1 | T15: معمل حاسب | U15: رياضيات 3 الشعبة 1 | V15: موهبة 2 | W15: فيزياء 2 الشعبة 1 | X15: موهبة 2 | Y15: عربي 3 الشعبة 1 | Z15: موهبة 2 | AA15: حديث 1 الشعبة 1 | AB15: موهبة 1 | AC15: إنجليزي 3 الشعبة 1 | AD15: موهبة 2 | AE15: مهنية الشعبة 1 | AF15: موهبة 2 | AG15: 3 | AH15: مهنية الشعبة 1 | AI15: موهبة 2 | AJ15: حاسب 2 الشعبة 1 | AK15: معمل حاسب | AL15: رياضيات 3 الشعبة 1 | AM15: موهبة 2 | AN15: فيزياء 2 الشعبة 1 | AO15: موهبة 2 | AP15: عربي 3 الشعبة 1 | AQ15: موهبة 2 | AR15: حديث 1 الشعبة 1 | AS15: موهبة 2 | AT15: إنجليزي 3 الشعبة 1 | AU15: موهبة 2 | AV15: 4 | AW15: إنجليزي 3 الشعبة 1 | AX15: موهبة 2 | AY15: مهنية الشعبة 1 | AZ15: موهبة 2 | BA15: حاسب 2 الشعبة 1 | BB15: معمل حاسب | BC15: رياضيات 3 الشعبة 1 | BD15: موهبة 2 | BE15: فيزياء 2 الشعبة 1 | BF15: موهبة 2 | BG15: عربي 3 الشعبة 1 | BH15: موهبة 2 | BI15: حديث 1 الشعبة 1 | BJ15: موهبة 2 | BK15: 5 | BL15: حديث 1 الشعبة 1 | BM15: موهبة 2 | BN15: إنجليزي 3 الشعبة 1 | BO15: موهبة 2 | BP15: حاسب 2 الشعبة 1 | BQ15: معمل حاسب | BR15: مهنية الشعبة 1 | BS15: موهبة 2 | BT15: رياضيات 3 الشعبة 1 | BU15: موهبة 2 | BV15: فيزياء 2 الشعبة 1 | BW15: موهبة 2 | BX15: عربي 3 الشعبة 1 | BY15: موهبة 2 | BZ15: =_ِAll[[#This Row],[0]] -> 39013
A16: 39014 | B16: محمد بن توفيق بن سلمان المحفوظ | C16: 1 | D16: رياضيات 3 الشعبة 1 | E16: موهبة 2 | F16: فيزياء 2 الشعبة 1 | G16: موهبة 2 | H16: عربي 3 الشعبة 1 | I16: موهبة 2 | J16: حديث 1 الشعبة 1 | K16: موهبة 1 | L16: إنجليزي 3 الشعبة 1 | M16: موهبة 2 | N16: مهنية الشعبة 1 | O16: موهبة 2 | P16: حاسب 2 الشعبة 1 | Q16: معمل حاسب | R16: 2 | S16: حاسب 2 الشعبة 1 | T16: معمل حاسب | U16: رياضيات 3 الشعبة 1 | V16: موهبة 2 | W16: فيزياء 2 الشعبة 1 | X16: موهبة 2 | Y16: عربي 3 الشعبة 1 | Z16: موهبة 2 | AA16: حديث 1 الشعبة 1 | AB16: موهبة 1 | AC16: إنجليزي 3 الشعبة 1 | AD16: موهبة 2 | AE16: مهنية الشعبة 1 | AF16: موهبة 2 | AG16: 3 | AH16: مهنية الشعبة 1 | AI16: موهبة 2 | AJ16: حاسب 2 الشعبة 1 | AK16: معمل حاسب | AL16: رياضيات 3 الشعبة 1 | AM16: موهبة 2 | AN16: فيزياء 2 الشعبة 1 | AO16: موهبة 2 | AP16: عربي 3 الشعبة 1 | AQ16: موهبة 2 | AR16: حديث 1 الشعبة 1 | AS16: موهبة 2 | AT16: إنجليزي 3 الشعبة 1 | AU16: موهبة 2 | AV16: 4 | AW16: إنجليزي 3 الشعبة 1 | AX16: موهبة 2 | AY16: مهنية الشعبة 1 | AZ16: موهبة 2 | BA16: حاسب 2 الشعبة 1 | BB16: معمل حاسب | BC16: رياضيات 3 الشعبة 1 | BD16: موهبة 2 | BE16: فيزياء 2 الشعبة 1 | BF16: موهبة 2 | BG16: عربي 3 الشعبة 1 | BH16: موهبة 2 | BI16: حديث 1 الشعبة 1 | BJ16: موهبة 2 | BK16: 5 | BL16: حديث 1 الشعبة 1 | BM16: موهبة 2 | BN16: إنجليزي 3 الشعبة 1 | BO16: موهبة 2 | BP16: حاسب 2 الشعبة 1 | BQ16: معمل حاسب | BR16: مهنية الشعبة 1 | BS16: موهبة 2 | BT16: رياضيات 3 الشعبة 1 | BU16: موهبة 2 | BV16: فيزياء 2 الشعبة 1 | BW16: موهبة 2 | BX16: عربي 3 الشعبة 1 | BY16: موهبة 2 | BZ16: =_ِAll[[#This Row],[0]] -> 39014
A17: 39015 | B17: محمد بن جعفر بن حسن الشبيب | C17: 1 | D17: رياضيات 3 الشعبة 1 | E17: موهبة 2 | F17: فيزياء 2 الشعبة 1 | G17: موهبة 2 | H17: عربي 3 الشعبة 1 | I17: موهبة 2 | J17: حديث 1 الشعبة 1 | K17: موهبة 1 | L17: إنجليزي 3 الشعبة 1 | M17: موهبة 2 | N17: مهنية الشعبة 1 | O17: موهبة 2 | P17: حاسب 2 الشعبة 1 | Q17: معمل حاسب | R17: 2 | S17: حاسب 2 الشعبة 1 | T17: معمل حاسب | U17: رياضيات 3 الشعبة 1 | V17: موهبة 2 | W17: فيزياء 2 الشعبة 1 | X17: موهبة 2 | Y17: عربي 3 الشعبة 1 | Z17: موهبة 2 | AA17: حديث 1 الشعبة 1 | AB17: موهبة 1 | AC17: إنجليزي 3 الشعبة 1 | AD17: موهبة 2 | AE17: مهنية الشعبة 1 | AF17: موهبة 2 | AG17: 3 | AH17: مهنية الشعبة 1 | AI17: موهبة 2 | AJ17: حاسب 2 الشعبة 1 | AK17: معمل حاسب | AL17: رياضيات 3 الشعبة 1 | AM17: موهبة 2 | AN17: فيزياء 2 الشعبة 1 | AO17: موهبة 2 | AP17: عربي 3 الشعبة 1 | AQ17: موهبة 2 | AR17: حديث 1 الشعبة 1 | AS17: موهبة 2 | AT17: إنجليزي 3 الشعبة 1 | AU17: موهبة 2 | AV17: 4 | AW17: إنجليزي 3 الشعبة 1 | AX17: موهبة 2 | AY17: مهنية الشعبة 1 | AZ17: موهبة 2 | BA17: حاسب 2 الشعبة 1 | BB17: معمل حاسب | BC17: رياضيات 3 الشعبة 1 | BD17: موهبة 2 | BE17: فيزياء 2 الشعبة 1 | BF17: موهبة 2 | BG17: عربي 3 الشعبة 1 | BH17: موهبة 2 | BI17: حديث 1 الشعبة 1 | BJ17: موهبة 2 | BK17: 5 | BL17: حديث 1 الشعبة 1 | BM17: موهبة 2 | BN17: إنجليزي 3 الشعبة 1 | BO17: موهبة 2 | BP17: حاسب 2 الشعبة 1 | BQ17: معمل حاسب | BR17: مهنية الشعبة 1 | BS17: موهبة 2 | BT17: رياضيات 3 الشعبة 1 | BU17: موهبة 2 | BV17: فيزياء 2 الشعبة 1 | BW17: موهبة 2 | BX17: عربي 3 الشعبة 1 | BY17: موهبة 2 | BZ17: =_ِAll[[#This Row],[0]] -> 39015
A18: 39016 | B18: محمد بن رضا بن علوي آل عباس | C18: 1 | D18: رياضيات 3 الشعبة 1 | E18: موهبة 2 | F18: فيزياء 2 الشعبة 1 | G18: موهبة 2 | H18: عربي 3 الشعبة 1 | I18: موهبة 2 | J18: حديث 1 الشعبة 1 | K18: موهبة 1 | L18: إنجليزي 3 الشعبة 1 | M18: موهبة 2 | N18: مهنية الشعبة 1 | O18: موهبة 2 | P18: حاسب 2 الشعبة 1 | Q18: معمل حاسب | R18: 2 | S18: حاسب 2 الشعبة 1 | T18: معمل حاسب | U18: رياضيات 3 الشعبة 1 | V18: موهبة 2 | W18: فيزياء 2 الشعبة 1 | X18: موهبة 2 | Y18: عربي 3 الشعبة 1 | Z18: موهبة 2 | AA18: حديث 1 الشعبة 1 | AB18: موهبة 1 | AC18: إنجليزي 3 الشعبة 1 | AD18: موهبة 2 | AE18: مهنية الشعبة 1 | AF18: موهبة 2 | AG18: 3 | AH18: مهنية الشعبة 1 | AI18: موهبة 2 | AJ18: حاسب 2 الشعبة 1 | AK18: معمل حاسب | AL18: رياضيات 3 الشعبة 1 | AM18: موهبة 2 | AN18: فيزياء 2 الشعبة 1 | AO18: موهبة 2 | AP18: عربي 3 الشعبة 1 | AQ18: موهبة 2 | AR18: حديث 1 الشعبة 1 | AS18: موهبة 2 | AT18: إنجليزي 3 الشعبة 1 | AU18: موهبة 2 | AV18: 4 | AW18: إنجليزي 3 الشعبة 1 | AX18: موهبة 2 | AY18: مهنية الشعبة 1 | AZ18: موهبة 2 | BA18: حاسب 2 الشعبة 1 | BB18: معمل حاسب | BC18: رياضيات 3 الشعبة 1 | BD18: موهبة 2 | BE18: فيزياء 2 الشعبة 1 | BF18: موهبة 2 | BG18: عربي 3 الشعبة 1 | BH18: موهبة 2 | BI18: حديث 1 الشعبة 1 | BJ18: موهبة 2 | BK18: 5 | BL18: حديث 1 الشعبة 1 | BM18: موهبة 2 | BN18: إنجليزي 3 الشعبة 1 | BO18: موهبة 2 | BP18: حاسب 2 الشعبة 1 | BQ18: معمل حاسب | BR18: مهنية الشعبة 1 | BS18: موهبة 2 | BT18: رياضيات 3 الشعبة 1 | BU18: موهبة 2 | BV18: فيزياء 2 الشعبة 1 | BW18: موهبة 2 | BX18: عربي 3 الشعبة 1 | BY18: موهبة 2 | BZ18: =_ِAll[[#This Row],[0]] -> 39016
A19: 39017 | B19: محمد بن رمزي بن حسن آل يوسف | C19: 1 | D19: رياضيات 3 الشعبة 1 | E19: موهبة 2 | F19: فيزياء 2 الشعبة 1 | G19: موهبة 2 | H19: عربي 3 الشعبة 1 | I19: موهبة 2 | J19: حديث 1 الشعبة 1 | K19: موهبة 1 | L19: إنجليزي 3 الشعبة 1 | M19: موهبة 2 | N19: مهنية الشعبة 1 | O19: موهبة 2 | P19: حاسب 2 الشعبة 1 | Q19: معمل حاسب | R19: 2 | S19: حاسب 2 الشعبة 1 | T19: معمل حاسب | U19: رياضيات 3 الشعبة 1 | V19: موهبة 2 | W19: فيزياء 2 الشعبة 1 | X19: موهبة 2 | Y19: عربي 3 الشعبة 1 | Z19: موهبة 2 | AA19: حديث 1 الشعبة 1 | AB19: موهبة 1 | AC19: إنجليزي 3 الشعبة 1 | AD19: موهبة 2 | AE19: مهنية الشعبة 1 | AF19: موهبة 2 | AG19: 3 | AH19: مهنية الشعبة 1 | AI19: موهبة 2 | AJ19: حاسب 2 الشعبة 1 | AK19: معمل حاسب | AL19: رياضيات 3 الشعبة 1 | AM19: موهبة 2 | AN19: فيزياء 2 الشعبة 1 | AO19: موهبة 2 | AP19: عربي 3 الشعبة 1 | AQ19: موهبة 2 | AR19: حديث 1 الشعبة 1 | AS19: موهبة 2 | AT19: إنجليزي 3 الشعبة 1 | AU19: موهبة 2 | AV19: 4 | AW19: إنجليزي 3 الشعبة 1 | AX19: موهبة 2 | AY19: مهنية الشعبة 1 | AZ19: موهبة 2 | BA19: حاسب 2 الشعبة 1 | BB19: معمل حاسب | BC19: رياضيات 3 الشعبة 1 | BD19: موهبة 2 | BE19: فيزياء 2 الشعبة 1 | BF19: موهبة 2 | BG19: عربي 3 الشعبة 1 | BH19: موهبة 2 | BI19: حديث 1 الشعبة 1 | BJ19: موهبة 2 | BK19: 5 | BL19: حديث 1 الشعبة 1 | BM19: موهبة 2 | BN19: إنجليزي 3 الشعبة 1 | BO19: موهبة 2 | BP19: حاسب 2 الشعبة 1 | BQ19: معمل حاسب | BR19: مهنية الشعبة 1 | BS19: موهبة 2 | BT19: رياضيات 3 الشعبة 1 | BU19: موهبة 2 | BV19: فيزياء 2 الشعبة 1 | BW19: موهبة 2 | BX19: عربي 3 الشعبة 1 | BY19: موهبة 2 | BZ19: =_ِAll[[#This Row],[0]] -> 39017
A20: 39018 | B20: محمد بن زكي بن منصور المرهون | C20: 1 | D20: رياضيات 3 الشعبة 1 | E20: موهبة 2 | F20: فيزياء 2 الشعبة 1 | G20: موهبة 2 | H20: عربي 3 الشعبة 1 | I20: موهبة 2 | J20: حديث 1 الشعبة 1 | K20: موهبة 1 | L20: إنجليزي 3 الشعبة 1 | M20: موهبة 2 | N20: مهنية الشعبة 1 | O20: موهبة 2 | P20: حاسب 2 الشعبة 1 | Q20: معمل حاسب | R20: 2 | S20: حاسب 2 الشعبة 1 | T20: معمل حاسب | U20: رياضيات 3 الشعبة 1 | V20: موهبة 2 | W20: فيزياء 2 الشعبة 1 | X20: موهبة 2 | Y20: عربي 3 الشعبة 1 | Z20: موهبة 2 | AA20: حديث 1 الشعبة 1 | AB20: موهبة 1 | AC20: إنجليزي 3 الشعبة 1 | AD20: موهبة 2 | AE20: مهنية الشعبة 1 | AF20: موهبة 2 | AG20: 3 | AH20: مهنية الشعبة 1 | AI20: موهبة 2 | AJ20: حاسب 2 الشعبة 1 | AK20: معمل حاسب | AL20: رياضيات 3 الشعبة 1 | AM20: موهبة 2 | AN20: فيزياء 2 الشعبة 1 | AO20: موهبة 2 | AP20: عربي 3 الشعبة 1 | AQ20: موهبة 2 | AR20: حديث 1 الشعبة 1 | AS20: موهبة 2 | AT20: إنجليزي 3 الشعبة 1 | AU20: موهبة 2 | AV20: 4 | AW20: إنجليزي 3 الشعبة 1 | AX20: موهبة 2 | AY20: مهنية الشعبة 1 | AZ20: موهبة 2 | BA20: حاسب 2 الشعبة 1 | BB20: معمل حاسب | BC20: رياضيات 3 الشعبة 1 | BD20: موهبة 2 | BE20: فيزياء 2 الشعبة 1 | BF20: موهبة 2 | BG20: عربي 3 الشعبة 1 | BH20: موهبة 2 | BI20: حديث 1 الشعبة 1 | BJ20: موهبة 2 | BK20: 5 | BL20: حديث 1 الشعبة 1 | BM20: موهبة 2 | BN20: إنجليزي 3 الشعبة 1 | BO20: موهبة 2 | BP20: حاسب 2 الشعبة 1 | BQ20: معمل حاسب | BR20: مهنية الشعبة 1 | BS20: موهبة 2 | BT20: رياضيات 3 الشعبة 1 | BU20: موهبة 2 | BV20: فيزياء 2 الشعبة 1 | BW20: موهبة 2 | BX20: عربي 3 الشعبة 1 | BY20: موهبة 2 | BZ20: =_ِAll[[#This Row],[0]] -> 39018
A21: 39019 | B21: محمد بن منير بن علوي آل عباس | C21: 1 | D21: رياضيات 3 الشعبة 1 | E21: موهبة 2 | F21: فيزياء 2 الشعبة 1 | G21: موهبة 2 | H21: عربي 3 الشعبة 1 | I21: موهبة 2 | J21: حديث 1 الشعبة 1 | K21: موهبة 1 | L21: إنجليزي 3 الشعبة 1 | M21: موهبة 2 | N21: مهنية الشعبة 1 | O21: موهبة 2 | P21: حاسب 2 الشعبة 1 | Q21: معمل حاسب | R21: 2 | S21: حاسب 2 الشعبة 1 | T21: معمل حاسب | U21: رياضيات 3 الشعبة 1 | V21: موهبة 2 | W21: فيزياء 2 الشعبة 1 | X21: موهبة 2 | Y21: عربي 3 الشعبة 1 | Z21: موهبة 2 | AA21: حديث 1 الشعبة 1 | AB21: موهبة 1 | AC21: إنجليزي 3 الشعبة 1 | AD21: موهبة 2 | AE21: مهنية الشعبة 1 | AF21: موهبة 2 | AG21: 3 | AH21: مهنية الشعبة 1 | AI21: موهبة 2 | AJ21: حاسب 2 الشعبة 1 | AK21: معمل حاسب | AL21: رياضيات 3 الشعبة 1 | AM21: موهبة 2 | AN21: فيزياء 2 الشعبة 1 | AO21: موهبة 2 | AP21: عربي 3 الشعبة 1 | AQ21: موهبة 2 | AR21: حديث 1 الشعبة 1 | AS21: موهبة 2 | AT21: إنجليزي 3 الشعبة 1 | AU21: موهبة 2 | AV21: 4 | AW21: إنجليزي 3 الشعبة 1 | AX21: موهبة 2 | AY21: مهنية الشعبة 1 | AZ21: موهبة 2 | BA21: حاسب 2 الشعبة 1 | BB21: معمل حاسب | BC21: رياضيات 3 الشعبة 1 | BD21: موهبة 2 | BE21: فيزياء 2 الشعبة 1 | BF21: موهبة 2 | BG21: عربي 3 الشعبة 1 | BH21: موهبة 2 | BI21: حديث 1 الشعبة 1 | BJ21: موهبة 2 | BK21: 5 | BL21: حديث 1 الشعبة 1 | BM21: موهبة 2 | BN21: إنجليزي 3 الشعبة 1 | BO21: موهبة 2 | BP21: حاسب 2 الشعبة 1 | BQ21: معمل حاسب | BR21: مهنية الشعبة 1 | BS21: موهبة 2 | BT21: رياضيات 3 الشعبة 1 | BU21: موهبة 2 | BV21: فيزياء 2 الشعبة 1 | BW21: موهبة 2 | BX21: عربي 3 الشعبة 1 | BY21: موهبة 2 | BZ21: =_ِAll[[#This Row],[0]] -> 39019
A22: 39020 | B22: معاذ بن نصر بن علي العسيري | C22: 1 | D22: رياضيات 3 الشعبة 1 | E22: موهبة 2 | F22: فيزياء 2 الشعبة 1 | G22: موهبة 2 | H22: عربي 3 الشعبة 1 | I22: موهبة 2 | J22: حديث 1 الشعبة 1 | K22: موهبة 1 | L22: إنجليزي 3 الشعبة 1 | M22: موهبة 2 | N22: مهنية الشعبة 1 | O22: موهبة 2 | P22: حاسب 2 الشعبة 1 | Q22: معمل حاسب | R22: 2 | S22: حاسب 2 الشعبة 1 | T22: معمل حاسب | U22: رياضيات 3 الشعبة 1 | V22: موهبة 2 | W22: فيزياء 2 الشعبة 1 | X22: موهبة 2 | Y22: عربي 3 الشعبة 1 | Z22: موهبة 2 | AA22: حديث 1 الشعبة 1 | AB22: موهبة 1 | AC22: إنجليزي 3 الشعبة 1 | AD22: موهبة 2 | AE22: مهنية الشعبة 1 | AF22: موهبة 2 | AG22: 3 | AH22: مهنية الشعبة 1 | AI22: موهبة 2 | AJ22: حاسب 2 الشعبة 1 | AK22: معمل حاسب | AL22: رياضيات 3 الشعبة 1 | AM22: موهبة 2 | AN22: فيزياء 2 الشعبة 1 | AO22: موهبة 2 | AP22: عربي 3 الشعبة 1 | AQ22: موهبة 2 | AR22: حديث 1 الشعبة 1 | AS22: موهبة 2 | AT22: إنجليزي 3 الشعبة 1 | AU22: موهبة 2 | AV22: 4 | AW22: إنجليزي 3 الشعبة 1 | AX22: موهبة 2 | AY22: مهنية الشعبة 1 | AZ22: موهبة 2 | BA22: حاسب 2 الشعبة 1 | BB22: معمل حاسب | BC22: رياضيات 3 الشعبة 1 | BD22: موهبة 2 | BE22: فيزياء 2 الشعبة 1 | BF22: موهبة 2 | BG22: عربي 3 الشعبة 1 | BH22: موهبة 2 | BI22: حديث 1 الشعبة 1 | BJ22: موهبة 2 | BK22: 5 | BL22: حديث 1 الشعبة 1 | BM22: موهبة 2 | BN22: إنجليزي 3 الشعبة 1 | BO22: موهبة 2 | BP22: حاسب 2 الشعبة 1 | BQ22: معمل حاسب | BR22: مهنية الشعبة 1 | BS22: موهبة 2 | BT22: رياضيات 3 الشعبة 1 | BU22: موهبة 2 | BV22: فيزياء 2 الشعبة 1 | BW22: موهبة 2 | BX22: عربي 3 الشعبة 1 | BY22: موهبة 2 | BZ22: =_ِAll[[#This Row],[0]] -> 39020
A23: 39021 | B23: إبراهيم بن منصور بن عبدالله المغاسله | C23: 1 | D23: فيزياء 2 الشعبة 2 | E23: 207 - فيزياء | F23: مهنية الشعبة 2 | G23: 209 - علوم إدارية | H23: بدنية الشعبة 4 | I23: 401 - الصالة الرياضية | J23: توحيد 1 الشعبة 4 | K23: 202 - إسلامية | L23: عربي 3 الشعبة 4 | M23: 204 - عربي | N23: رياضيات 1 الشعبة 2 | O23: 310 - رياضيات | P23: إنجليزي 3 الشعبة 4 | Q23: 208 - إنجليزي | R23: 2 | S23: إنجليزي 3 الشعبة 4 | T23: 208 - إنجليزي | U23: فيزياء 2 الشعبة 2 | V23: 207 - فيزياء | W23: مهنية الشعبة 2 | X23: 209 - علوم إدارية | Y23: بدنية الشعبة 4 | Z23: 401 - الصالة الرياضية | AA23: توحيد 1 الشعبة 4 | AB23: 202 - إسلامية | AC23: عربي 3 الشعبة 4 | AD23: 204 - عربي | AE23: رياضيات 1 الشعبة 2 | AF23: 310 - رياضيات | AG23: 3 | AH23: رياضيات 1 الشعبة 2 | AI23: 310 - رياضيات | AJ23: إنجليزي 3 الشعبة 4 | AK23: 208 - إنجليزي | AL23: فيزياء 2 الشعبة 2 | AM23: 207 - فيزياء | AN23: مهنية الشعبة 2 | AO23: 209 - علوم إدارية | AP23: بدنية الشعبة 4 | AQ23: 401 - الصالة الرياضية | AR23: توحيد 1 الشعبة 4 | AS23: 202 - إسلامية | AT23: عربي 3 الشعبة 4 | AU23: 204 - عربي | AV23: 4 | AW23: عربي 3 الشعبة 4 | AX23: 204 - عربي | AY23: رياضيات 1 الشعبة 2 | AZ23: 310 - رياضيات | BA23: إنجليزي 3 الشعبة 4 | BB23: 208 - إنجليزي | BC23: فيزياء 2 الشعبة 2 | BD23: 207 - فيزياء | BE23: مهنية الشعبة 2 | BF23: 209 - علوم إدارية | BG23: بدنية الشعبة 4 | BH23: 401 - الصالة الرياضية | BI23: توحيد 1 الشعبة 4 | BJ23: 202 - إسلامية | BK23: 5 | BL23: توحيد 1 الشعبة 4 | BM23: 202 - إسلامية | BN23: عربي 3 الشعبة 4 | BO23: 204 - عربي | BP23: رياضيات 1 الشعبة 2 | BQ23: 310 - رياضيات | BR23: إنجليزي 3 الشعبة 4 | BS23: 208 - إنجليزي | BT23: فيزياء 2 الشعبة 2 | BU23: 207 - فيزياء | BV23: مهنية الشعبة 2 | BW23: 209 - علوم إدارية | BX23: بدنية الشعبة 4 | BY23: 401 - الصالة الرياضية | BZ23: =_ِAll[[#This Row],[0]] -> 39021
A24: 39022 | B24: أحمد بن سلمان بن أحمد آل سلام | C24: 1 | D24: كيمياء 2 الشعبة 4 | E24: 302 - كيمياء | F24: مهنية الشعبة 2 | G24: 209 - علوم إدارية | H24: بدنية الشعبة 4 | I24: 401 - الصالة الرياضية | J24: عربي 3 الشعبة 2 | K24: 209 - علوم إدارية | L24: توحيد 1 الشعبة 3 | M24: 310 - رياضيات | N24: رياضيات 3 الشعبة 4 | O24: 306 - مهارات نفسية | P24: إنجليزي 3 الشعبة 2 | Q24: 307 - إنجليزي | R24: 2 | S24: إنجليزي 3 الشعبة 2 | T24: 307 - إنجليزي | U24: كيمياء 2 الشعبة 4 | V24: 302 - كيمياء | W24: مهنية الشعبة 2 | X24: 209 - علوم إدارية | Y24: بدنية الشعبة 4 | Z24: 401 - الصالة الرياضية | AA24: عربي 3 الشعبة 2 | AB24: 209 - علوم إدارية | AC24: توحيد 1 الشعبة 3 | AD24: 310 - رياضيات | AE24: رياضيات 3 الشعبة 4 | AF24: 306 - مهارات نفسية | AG24: 3 | AH24: رياضيات 3 الشعبة 4 | AI24: 306 - مهارات نفسية | AJ24: إنجليزي 3 الشعبة 2 | AK24: 307 - إنجليزي | AL24: كيمياء 2 الشعبة 4 | AM24: 302 - كيمياء | AN24: مهنية الشعبة 2 | AO24: 209 - علوم إدارية | AP24: بدنية الشعبة 4 | AQ24: 401 - الصالة الرياضية | AR24: عربي 3 الشعبة 2 | AS24: 209 - علوم إدارية | AT24: توحيد 1 الشعبة 3 | AU24: 310 - رياضيات | AV24: 4 | AW24: توحيد 1 الشعبة 3 | AX24: 310 - رياضيات | AY24: رياضيات 3 الشعبة 4 | AZ24: 306 - مهارات نفسية | BA24: إنجليزي 3 الشعبة 2 | BB24: 307 - إنجليزي | BC24: كيمياء 2 الشعبة 4 | BD24: 302 - كيمياء | BE24: مهنية الشعبة 2 | BF24: 209 - علوم إدارية | BG24: بدنية الشعبة 4 | BH24: 401 - الصالة الرياضية | BI24: عربي 3 الشعبة 2 | BJ24: 209 - علوم إدارية | BK24: 5 | BL24: عربي 3 الشعبة 2 | BM24: 209 - علوم إدارية | BN24: توحيد 1 الشعبة 3 | BO24: 310 - رياضيات | BP24: رياضيات 3 الشعبة 4 | BQ24: 306 - مهارات نفسية | BR24: إنجليزي 3 الشعبة 2 | BS24: 307 - إنجليزي | BT24: كيمياء 2 الشعبة 4 | BU24: 302 - كيمياء | BV24: مهنية الشعبة 2 | BW24: 209 - علوم إدارية | BX24: بدنية الشعبة 4 | BY24: 401 - الصالة الرياضية | BZ24: =_ِAll[[#This Row],[0]] -> 39022
A25: 39023 | B25: تركي بن أحمد بن تركي المويس | C25: 1 | D25: فيزياء 2 الشعبة 2 | E25: 207 - فيزياء | F25: إنجليزي 3 الشعبة 3 | G25: 208 - إنجليزي | H25: رياضيات 3 الشعبة 3 | I25: 310 - رياضيات | J25: عربي 3 الشعبة 2 | K25: 209 - علوم إدارية | L25: توحيد 1 الشعبة 3 | M25: 310 - رياضيات | N25: أحياء 2 الشعبة 3 | O25: 214 - معمل أحياء | P25: بدنية الشعبة 3 | Q25: 401 - الصالة الرياضية | R25: 2 | S25: بدنية الشعبة 3 | T25: 401 - الصالة الرياضية | U25: فيزياء 2 الشعبة 2 | V25: 207 - فيزياء | W25: إنجليزي 3 الشعبة 3 | X25: 208 - إنجليزي | Y25: رياضيات 3 الشعبة 3 | Z25: 310 - رياضيات | AA25: عربي 3 الشعبة 2 | AB25: 209 - علوم إدارية | AC25: توحيد 1 الشعبة 3 | AD25: 310 - رياضيات | AE25: أحياء 2 الشعبة 3 | AF25: 214 - معمل أحياء | AG25: 3 | AH25: أحياء 2 الشعبة 3 | AI25: 214 - معمل أحياء | AJ25: بدنية الشعبة 3 | AK25: 401 - الصالة الرياضية | AL25: فيزياء 2 الشعبة 2 | AM25: 207 - فيزياء | AN25: إنجليزي 3 الشعبة 3 | AO25: 208 - إنجليزي | AP25: رياضيات 3 الشعبة 3 | AQ25: 310 - رياضيات | AR25: عربي 3 الشعبة 2 | AS25: 209 - علوم إدارية | AT25: توحيد 1 الشعبة 3 | AU25: 310 - رياضيات | AV25: 4 | AW25: توحيد 1 الشعبة 3 | AX25: 310 - رياضيات | AY25: أحياء 2 الشعبة 3 | AZ25: 214 - معمل أحياء | BA25: بدنية الشعبة 3 | BB25: 401 - الصالة الرياضية | BC25: فيزياء 2 الشعبة 2 | BD25: 207 - فيزياء | BE25: إنجليزي 3 الشعبة 3 | BF25: 208 - إنجليزي | BG25: رياضيات 3 الشعبة 3 | BH25: 310 - رياضيات | BI25: عربي 3 الشعبة 2 | BJ25: 209 - علوم إدارية | BK25: 5 | BL25: عربي 3 الشعبة 2 | BM25: 209 - علوم إدارية | BN25: توحيد 1 الشعبة 3 | BO25: 310 - رياضيات | BP25: أحياء 2 الشعبة 3 | BQ25: 214 - معمل أحياء | BR25: بدنية الشعبة 3 | BS25: 401 - الصالة الرياضية | BT25: فيزياء 2 الشعبة 2 | BU25: 207 - فيزياء | BV25: إنجليزي 3 الشعبة 3 | BW25: 208 - إنجليزي | BX25: رياضيات 3 الشعبة 3 | BY25: 310 - رياضيات | BZ25: =_ِAll[[#This Row],[0]] -> 39023
A26: 39024 | B26: جاسم بن محمد بن منصور آل ضاحي | C26: 1 | D26: فيزياء 2 الشعبة 2 | E26: 207 - فيزياء | F26: مهنية الشعبة 2 | G26: 209 - علوم إدارية | H26: بدنية الشعبة 4 | I26: 401 - الصالة الرياضية | J26: توحيد 1 الشعبة 4 | K26: 202 - إسلامية | L26: عربي 3 الشعبة 4 | M26: 204 - عربي | N26: رياضيات 3 الشعبة 2 | O26: 301 - فيزياء | R26: 2 | U26: فيزياء 2 الشعبة 2 | V26: 207 - فيزياء | W26: مهنية الشعبة 2 | X26: 209 - علوم إدارية | Y26: بدنية الشعبة 4 | Z26: 401 - الصالة الرياضية | AA26: توحيد 1 الشعبة 4 | AB26: 202 - إسلامية | AC26: عربي 3 الشعبة 4 | AD26: 204 - عربي | AE26: رياضيات 3 الشعبة 2 | AF26: 301 - فيزياء | AG26: 3 | AH26: رياضيات 3 الشعبة 2 | AI26: 301 - فيزياء | AL26: فيزياء 2 الشعبة 2 | AM26: 207 - فيزياء | AN26: مهنية الشعبة 2 | AO26: 209 - علوم إدارية | AP26: بدنية الشعبة 4 | AQ26: 401 - الصالة الرياضية | AR26: توحيد 1 الشعبة 4 | AS26: 202 - إسلامية | AT26: عربي 3 الشعبة 4 | AU26: 204 - عربي | AV26: 4 | AW26: عربي 3 الشعبة 4 | AX26: 204 - عربي | AY26: رياضيات 3 الشعبة 2 | AZ26: 301 - فيزياء | BC26: فيزياء 2 الشعبة 2 | BD26: 207 - فيزياء | BE26: مهنية الشعبة 2 | BF26: 209 - علوم إدارية | BG26: بدنية الشعبة 4 | BH26: 401 - الصالة الرياضية | BI26: توحيد 1 الشعبة 4 | BJ26: 202 - إسلامية | BK26: 5 | BL26: توحيد 1 الشعبة 4 | BM26: 202 - إسلامية | BN26: عربي 3 الشعبة 4 | BO26: 204 - عربي | BP26: رياضيات 3 الشعبة 2 | BQ26: 301 - فيزياء | BT26: فيزياء 2 الشعبة 2 | BU26: 207 - فيزياء | BV26: مهنية الشعبة 2 | BW26: 209 - علوم إدارية | BX26: بدنية الشعبة 4 | BY26: 401 - الصالة الرياضية | BZ26: =_ِAll[[#This Row],[0]] -> 39024
A27: 39025 | B27: جواد بن علي بن احمد آل خواهر | C27: 1 | D27: كيمياء 2 الشعبة 3 | E27: 314 - معمل كيمياء | F27: أحياء 2 الشعبة 4 | G27: 214 - معمل أحياء | H27: حاسب 2 الشعبة 2 | I27: معمل حاسب | J27: عربي 3 الشعبة 2 | K27: 209 - علوم إدارية | L27: حديث 1 الشعبة 2 | M27: 202 - إسلامية | N27: رياضيات 3 الشعبة 2 | O27: 301 - فيزياء | P27: إنجليزي 3 الشعبة 2 | Q27: 307 - إنجليزي | R27: 2 | S27: إنجليزي 3 الشعبة 2 | T27: 307 - إنجليزي | U27: كيمياء 2 الشعبة 3 | V27: 314 - معمل كيمياء | W27: أحياء 2 الشعبة 4 | X27: 214 - معمل أحياء | Y27: حاسب 2 الشعبة 2 | Z27: معمل حاسب | AA27: عربي 3 الشعبة 2 | AB27: 209 - علوم إدارية | AC27: حديث 1 الشعبة 2 | AD27: 202 - إسلامية | AE27: رياضيات 3 الشعبة 2 | AF27: 301 - فيزياء | AG27: 3 | AH27: رياضيات 3 الشعبة 2 | AI27: 301 - فيزياء | AJ27: إنجليزي 3 الشعبة 2 | AK27: 307 - إنجليزي | AL27: كيمياء 2 الشعبة 3 | AM27: 314 - معمل كيمياء | AN27: أحياء 2 الشعبة 4 | AO27: 214 - معمل أحياء | AP27: حاسب 2 الشعبة 2 | AQ27: معمل حاسب | AR27: عربي 3 الشعبة 2 | AS27: 209 - علوم إدارية | AT27: حديث 1 الشعبة 2 | AU27: 202 - إسلامية | AV27: 4 | AW27: حديث 1 الشعبة 2 | AX27: 202 - إسلامية | AY27: رياضيات 3 الشعبة 2 | AZ27: 301 - فيزياء | BA27: إنجليزي 3 الشعبة 2 | BB27: 307 - إنجليزي | BC27: كيمياء 2 الشعبة 3 | BD27: 314 - معمل كيمياء | BE27: أحياء 2 الشعبة 4 | BF27: 214 - معمل أحياء | BG27: حاسب 2 الشعبة 2 | BH27: معمل حاسب | BI27: عربي 3 الشعبة 2 | BJ27: 209 - علوم إدارية | BK27: 5 | BL27: عربي 3 الشعبة 2 | BM27: 209 - علوم إدارية | BN27: حديث 1 الشعبة 2 | BO27: 202 - إسلامية | BP27: رياضيات 3 الشعبة 2 | BQ27: 301 - فيزياء | BR27: إنجليزي 3 الشعبة 2 | BS27: 307 - إنجليزي | BT27: كيمياء 2 الشعبة 3 | BU27: 314 - معمل كيمياء | BV27: أحياء 2 الشعبة 4 | BW27: 214 - معمل أحياء | BX27: حاسب 2 الشعبة 2 | BY27: معمل حاسب | BZ27: =_ِAll[[#This Row],[0]] -> 39025
A28: 39026 | B28: حسن بن عماد بن عبدالله المحفوظ | C28: 1 | D28: كيمياء 2 الشعبة 4 | E28: 302 - كيمياء | F28: أحياء 2 الشعبة 4 | G28: 214 - معمل أحياء | H28: حاسب 2 الشعبة 2 | I28: معمل حاسب | J28: عربي 3 الشعبة 2 | K28: 209 - علوم إدارية | L28: حديث 1 الشعبة 2 | M28: 202 - إسلامية | N28: رياضيات 3 الشعبة 2 | O28: 301 - فيزياء | P28: إنجليزي 3 الشعبة 2 | Q28: 307 - إنجليزي | R28: 2 | S28: إنجليزي 3 الشعبة 2 | T28: 307 - إنجليزي | U28: كيمياء 2 الشعبة 4 | V28: 302 - كيمياء | W28: أحياء 2 الشعبة 4 | X28: 214 - معمل أحياء | Y28: حاسب 2 الشعبة 2 | Z28: معمل حاسب | AA28: عربي 3 الشعبة 2 | AB28: 209 - علوم إدارية | AC28: حديث 1 الشعبة 2 | AD28: 202 - إسلامية | AE28: رياضيات 3 الشعبة 2 | AF28: 301 - فيزياء | AG28: 3 | AH28: رياضيات 3 الشعبة 2 | AI28: 301 - فيزياء | AJ28: إنجليزي 3 الشعبة 2 | AK28: 307 - إنجليزي | AL28: كيمياء 2 الشعبة 4 | AM28: 302 - كيمياء | AN28: أحياء 2 الشعبة 4 | AO28: 214 - معمل أحياء | AP28: حاسب 2 الشعبة 2 | AQ28: معمل حاسب | AR28: عربي 3 الشعبة 2 | AS28: 209 - علوم إدارية | AT28: حديث 1 الشعبة 2 | AU28: 202 - إسلامية | AV28: 4 | AW28: حديث 1 الشعبة 2 | AX28: 202 - إسلامية | AY28: رياضيات 3 الشعبة 2 | AZ28: 301 - فيزياء | BA28: إنجليزي 3 الشعبة 2 | BB28: 307 - إنجليزي | BC28: كيمياء 2 الشعبة 4 | BD28: 302 - كيمياء | BE28: أحياء 2 الشعبة 4 | BF28: 214 - معمل أحياء | BG28: حاسب 2 الشعبة 2 | BH28: معمل حاسب | BI28: عربي 3 الشعبة 2 | BJ28: 209 - علوم إدارية | BK28: 5 | BL28: عربي 3 الشعبة 2 | BM28: 209 - علوم إدارية | BN28: حديث 1 الشعبة 2 | BO28: 202 - إسلامية | BP28: رياضيات 3 الشعبة 2 | BQ28: 301 - فيزياء | BR28: إنجليزي 3 الشعبة 2 | BS28: 307 - إنجليزي | BT28: كيمياء 2 الشعبة 4 | BU28: 302 - كيمياء | BV28: أحياء 2 الشعبة 4 | BW28: 214 - معمل أحياء | BX28: حاسب 2 الشعبة 2 | BY28: معمل حاسب | BZ28: =_ِAll[[#This Row],[0]] -> 39026
A29: 39027 | B29: حسين بن فتحي بن مكي آل عباس | C29: 1 | D29: كيمياء 2 الشعبة 4 | E29: 302 - كيمياء | F29: مهنية الشعبة 2 | G29: 209 - علوم إدارية | H29: بدنية الشعبة 4 | I29: 401 - الصالة الرياضية | J29: عربي 3 الشعبة 2 | K29: 209 - علوم إدارية | L29: توحيد 1 الشعبة 3 | M29: 310 - رياضيات | N29: رياضيات 3 الشعبة 2 | O29: 301 - فيزياء | P29: إنجليزي 3 الشعبة 4 | Q29: 208 - إنجليزي | R29: 2 | S29: إنجليزي 3 الشعبة 4 | T29: 208 - إنجليزي | U29: كيمياء 2 الشعبة 4 | V29: 302 - كيمياء | W29: مهنية الشعبة 2 | X29: 209 - علوم إدارية | Y29: بدنية الشعبة 4 | Z29: 401 - الصالة الرياضية | AA29: عربي 3 الشعبة 2 | AB29: 209 - علوم إدارية | AC29: توحيد 1 الشعبة 3 | AD29: 310 - رياضيات | AE29: رياضيات 3 الشعبة 2 | AF29: 301 - فيزياء | AG29: 3 | AH29: رياضيات 3 الشعبة 2 | AI29: 301 - فيزياء | AJ29: إنجليزي 3 الشعبة 4 | AK29: 208 - إنجليزي | AL29: كيمياء 2 الشعبة 4 | AM29: 302 - كيمياء | AN29: مهنية الشعبة 2 | AO29: 209 - علوم إدارية | AP29: بدنية الشعبة 4 | AQ29: 401 - الصالة الرياضية | AR29: عربي 3 الشعبة 2 | AS29: 209 - علوم إدارية | AT29: توحيد 1 الشعبة 3 | AU29: 310 - رياضيات | AV29: 4 | AW29: توحيد 1 الشعبة 3 | AX29: 310 - رياضيات | AY29: رياضيات 3 الشعبة 2 | AZ29: 301 - فيزياء | BA29: إنجليزي 3 الشعبة 4 | BB29: 208 - إنجليزي | BC29: كيمياء 2 الشعبة 4 | BD29: 302 - كيمياء | BE29: مهنية الشعبة 2 | BF29: 209 - علوم إدارية | BG29: بدنية الشعبة 4 | BH29: 401 - الصالة الرياضية | BI29: عربي 3 الشعبة 2 | BJ29: 209 - علوم إدارية | BK29: 5 | BL29: عربي 3 الشعبة 2 | BM29: 209 - علوم إدارية | BN29: توحيد 1 الشعبة 3 | BO29: 310 - رياضيات | BP29: رياضيات 3 الشعبة 2 | BQ29: 301 - فيزياء | BR29: إنجليزي 3 الشعبة 4 | BS29: 208 - إنجليزي | BT29: كيمياء 2 الشعبة 4 | BU29: 302 - كيمياء | BV29: مهنية الشعبة 2 | BW29: 209 - علوم إدارية | BX29: بدنية الشعبة 4 | BY29: 401 - الصالة الرياضية | BZ29: =_ِAll[[#This Row],[0]] -> 39027
A30: 39029 | B30: سجاد بن وليد بن ابراهيم الطفيف | C30: 1 | D30: فيزياء 2 الشعبة 2 | E30: 207 - فيزياء | F30: أحياء 2 الشعبة 4 | G30: 214 - معمل أحياء | H30: بدنية الشعبة 4 | I30: 401 - الصالة الرياضية | J30: عربي 3 الشعبة 2 | K30: 209 - علوم إدارية | L30: توحيد 1 الشعبة 3 | M30: 310 - رياضيات | N30: رياضيات 3 الشعبة 2 | O30: 301 - فيزياء | P30: إنجليزي 3 الشعبة 4 | Q30: 208 - إنجليزي | R30: 2 | S30: إنجليزي 3 الشعبة 4 | T30: 208 - إنجليزي | U30: فيزياء 2 الشعبة 2 | V30: 207 - فيزياء | W30: أحياء 2 الشعبة 4 | X30: 214 - معمل أحياء | Y30: بدنية الشعبة 4 | Z30: 401 - الصالة الرياضية | AA30: عربي 3 الشعبة 2 | AB30: 209 - علوم إدارية | AC30: توحيد 1 الشعبة 3 | AD30: 310 - رياضيات | AE30: رياضيات 3 الشعبة 2 | AF30: 301 - فيزياء | AG30: 3 | AH30: رياضيات 3 الشعبة 2 | AI30: 301 - فيزياء | AJ30: إنجليزي 3 الشعبة 4 | AK30: 208 - إنجليزي | AL30: فيزياء 2 الشعبة 2 | AM30: 207 - فيزياء | AN30: أحياء 2 الشعبة 4 | AO30: 214 - معمل أحياء | AP30: بدنية الشعبة 4 | AQ30: 401 - الصالة الرياضية | AR30: عربي 3 الشعبة 2 | AS30: 209 - علوم إدارية | AT30: توحيد 1 الشعبة 3 | AU30: 310 - رياضيات | AV30: 4 | AW30: توحيد 1 الشعبة 3 | AX30: 310 - رياضيات | AY30: رياضيات 3 الشعبة 2 | AZ30: 301 - فيزياء | BA30: إنجليزي 3 الشعبة 4 | BB30: 208 - إنجليزي | BC30: فيزياء 2 الشعبة 2 | BD30: 207 - فيزياء | BE30: أحياء 2 الشعبة 4 | BF30: 214 - معمل أحياء | BG30: بدنية الشعبة 4 | BH30: 401 - الصالة الرياضية | BI30: عربي 3 الشعبة 2 | BJ30: 209 - علوم إدارية | BK30: 5 | BL30: عربي 3 الشعبة 2 | BM30: 209 - علوم إدارية | BN30: توحيد 1 الشعبة 3 | BO30: 310 - رياضيات | BP30: رياضيات 3 الشعبة 2 | BQ30: 301 - فيزياء | BR30: إنجليزي 3 الشعبة 4 | BS30: 208 - إنجليزي | BT30: فيزياء 2 الشعبة 2 | BU30: 207 - فيزياء | BV30: أحياء 2 الشعبة 4 | BW30: 214 - معمل أحياء | BX30: بدنية الشعبة 4 | BY30: 401 - الصالة الرياضية | BZ30: =_ِAll[[#This Row],[0]] -> 39029
A31: 39030 | B31: عبدالله بن سعيد بن حسن آل عواد | C31: 1 | F31: أحياء 2 الشعبة 4 | G31: 214 - معمل أحياء | H31: حاسب 2 الشعبة 2 | I31: معمل حاسب | J31: عربي 3 الشعبة 3 | K31: 204 - عربي | L31: حديث 1 الشعبة 2 | M31: 202 - إسلامية | P31: إنجليزي 3 الشعبة 2 | Q31: 307 - إنجليزي | R31: 2 | S31: إنجليزي 3 الشعبة 2 | T31: 307 - إنجليزي | W31: أحياء 2 الشعبة 4 | X31: 214 - معمل أحياء | Y31: حاسب 2 الشعبة 2 | Z31: معمل حاسب | AA31: عربي 3 الشعبة 3 | AB31: 204 - عربي | AC31: حديث 1 الشعبة 2 | AD31: 202 - إسلامية | AG31: 3 | AJ31: إنجليزي 3 الشعبة 2 | AK31: 307 - إنجليزي | AN31: أحياء 2 الشعبة 4 | AO31: 214 - معمل أحياء | AP31: حاسب 2 الشعبة 2 | AQ31: معمل حاسب | AR31: عربي 3 الشعبة 3 | AS31: 204 - عربي | AT31: حديث 1 الشعبة 2 | AU31: 202 - إسلامية | AV31: 4 | AW31: حديث 1 الشعبة 2 | AX31: 202 - إسلامية | BA31: إنجليزي 3 الشعبة 2 | BB31: 307 - إنجليزي | BE31: أحياء 2 الشعبة 4 | BF31: 214 - معمل أحياء | BG31: حاسب 2 الشعبة 2 | BH31: معمل حاسب | BI31: عربي 3 الشعبة 3 | BJ31: 204 - عربي | BK31: 5 | BL31: عربي 3 الشعبة 3 | BM31: 204 - عربي | BN31: حديث 1 الشعبة 2 | BO31: 202 - إسلامية | BR31: إنجليزي 3 الشعبة 2 | BS31: 307 - إنجليزي | BV31: أحياء 2 الشعبة 4 | BW31: 214 - معمل أحياء | BX31: حاسب 2 الشعبة 2 | BY31: معمل حاسب | BZ31: =_ِAll[[#This Row],[0]] -> 39030
A32: 39031 | B32: عبدالله بن وديع بن حسن العوامي | C32: 1 | D32: فيزياء 2 الشعبة 2 | E32: 207 - فيزياء | F32: أحياء 2 الشعبة 4 | G32: 214 - معمل أحياء | H32: بدنية الشعبة 4 | I32: 401 - الصالة الرياضية | J32: عربي 3 الشعبة 2 | K32: 209 - علوم إدارية | L32: حديث 1 الشعبة 2 | M32: 202 - إسلامية | N32: رياضيات 3 الشعبة 2 | O32: 301 - فيزياء | P32: إنجليزي 3 الشعبة 2 | Q32: 307 - إنجليزي | R32: 2 | S32: إنجليزي 3 الشعبة 2 | T32: 307 - إنجليزي | U32: فيزياء 2 الشعبة 2 | V32: 207 - فيزياء | W32: أحياء 2 الشعبة 4 | X32: 214 - معمل أحياء | Y32: بدنية الشعبة 4 | Z32: 401 - الصالة الرياضية | AA32: عربي 3 الشعبة 2 | AB32: 209 - علوم إدارية | AC32: حديث 1 الشعبة 2 | AD32: 202 - إسلامية | AE32: رياضيات 3 الشعبة 2 | AF32: 301 - فيزياء | AG32: 3 | AH32: رياضيات 3 الشعبة 2 | AI32: 301 - فيزياء | AJ32: إنجليزي 3 الشعبة 2 | AK32: 307 - إنجليزي | AL32: فيزياء 2 الشعبة 2 | AM32: 207 - فيزياء | AN32: أحياء 2 الشعبة 4 | AO32: 214 - معمل أحياء | AP32: بدنية الشعبة 4 | AQ32: 401 - الصالة الرياضية | AR32: عربي 3 الشعبة 2 | AS32: 209 - علوم إدارية | AT32: حديث 1 الشعبة 2 | AU32: 202 - إسلامية | AV32: 4 | AW32: حديث 1 الشعبة 2 | AX32: 202 - إسلامية | AY32: رياضيات 3 الشعبة 2 | AZ32: 301 - فيزياء | BA32: إنجليزي 3 الشعبة 2 | BB32: 307 - إنجليزي | BC32: فيزياء 2 الشعبة 2 | BD32: 207 - فيزياء | BE32: أحياء 2 الشعبة 4 | BF32: 214 - معمل أحياء | BG32: بدنية الشعبة 4 | BH32: 401 - الصالة الرياضية | BI32: عربي 3 الشعبة 2 | BJ32: 209 - علوم إدارية | BK32: 5 | BL32: عربي 3 الشعبة 2 | BM32: 209 - علوم إدارية | BN32: حديث 1 الشعبة 2 | BO32: 202 - إسلامية | BP32: رياضيات 3 الشعبة 2 | BQ32: 301 - فيزياء | BR32: إنجليزي 3 الشعبة 2 | BS32: 307 - إنجليزي | BT32: فيزياء 2 الشعبة 2 | BU32: 207 - فيزياء | BV32: أحياء 2 الشعبة 4 | BW32: 214 - معمل أحياء | BX32: بدنية الشعبة 4 | BY32: 401 - الصالة الرياضية | BZ32: =_ِAll[[#This Row],[0]] -> 39031
A33: 39032 | B33: علي بن حسن بن عبدالعزيز الغمغام | C33: 1 | D33: فيزياء 2 الشعبة 2 | E33: 207 - فيزياء | F33: أحياء 2 الشعبة 4 | G33: 214 - معمل أحياء | H33: رياضيات 3 الشعبة 3 | I33: 310 - رياضيات | J33: عربي 3 الشعبة 2 | K33: 209 - علوم إدارية | L33: حديث 1 الشعبة 2 | M33: 202 - إسلامية | P33: إنجليزي 3 الشعبة 2 | Q33: 307 - إنجليزي | R33: 2 | S33: إنجليزي 3 الشعبة 2 | T33: 307 - إنجليزي | U33: فيزياء 2 الشعبة 2 | V33: 207 - فيزياء | W33: أحياء 2 الشعبة 4 | X33: 214 - معمل أحياء | Y33: رياضيات 3 الشعبة 3 | Z33: 310 - رياضيات | AA33: عربي 3 الشعبة 2 | AB33: 209 - علوم إدارية | AC33: حديث 1 الشعبة 2 | AD33: 202 - إسلامية | AG33: 3 | AJ33: إنجليزي 3 الشعبة 2 | AK33: 307 - إنجليزي | AL33: فيزياء 2 الشعبة 2 | AM33: 207 - فيزياء | AN33: أحياء 2 الشعبة 4 | AO33: 214 - معمل أحياء | AP33: رياضيات 3 الشعبة 3 | AQ33: 310 - رياضيات | AR33: عربي 3 الشعبة 2 | AS33: 209 - علوم إدارية | AT33: حديث 1 الشعبة 2 | AU33: 202 - إسلامية | AV33: 4 | AW33: حديث 1 الشعبة 2 | AX33: 202 - إسلامية | BA33: إنجليزي 3 الشعبة 2 | BB33: 307 - إنجليزي | BC33: فيزياء 2 الشعبة 2 | BD33: 207 - فيزياء | BE33: أحياء 2 الشعبة 4 | BF33: 214 - معمل أحياء | BG33: رياضيات 3 الشعبة 3 | BH33: 310 - رياضيات | BI33: عربي 3 الشعبة 2 | BJ33: 209 - علوم إدارية | BK33: 5 | BL33: عربي 3 الشعبة 2 | BM33: 209 - علوم إدارية | BN33: حديث 1 الشعبة 2 | BO33: 202 - إسلامية | BR33: إنجليزي 3 الشعبة 2 | BS33: 307 - إنجليزي | BT33: فيزياء 2 الشعبة 2 | BU33: 207 - فيزياء | BV33: أحياء 2 الشعبة 4 | BW33: 214 - معمل أحياء | BX33: رياضيات 3 الشعبة 3 | BY33: 310 - رياضيات | BZ33: =_ِAll[[#This Row],[0]] -> 39032
A34: 39033 | B34: علي بن حسين بن تركي الزائر | C34: 1 | D34: كيمياء 2 الشعبة 3 | E34: 314 - معمل كيمياء | F34: إنجليزي 3 الشعبة 3 | G34: 208 - إنجليزي | H34: رياضيات 3 الشعبة 3 | I34: 310 - رياضيات | J34: توحيد 1 الشعبة 4 | K34: 202 - إسلامية | L34: عربي 3 الشعبة 4 | M34: 204 - عربي | N34: أحياء 2 الشعبة 3 | O34: 214 - معمل أحياء | P34: بدنية الشعبة 3 | Q34: 401 - الصالة الرياضية | R34: 2 | S34: بدنية الشعبة 3 | T34: 401 - الصالة الرياضية | U34: كيمياء 2 الشعبة 3 | V34: 314 - معمل كيمياء | W34: إنجليزي 3 الشعبة 3 | X34: 208 - إنجليزي | Y34: رياضيات 3 الشعبة 3 | Z34: 310 - رياضيات | AA34: توحيد 1 الشعبة 4 | AB34: 202 - إسلامية | AC34: عربي 3 الشعبة 4 | AD34: 204 - عربي | AE34: أحياء 2 الشعبة 3 | AF34: 214 - معمل أحياء | AG34: 3 | AH34: أحياء 2 الشعبة 3 | AI34: 214 - معمل أحياء | AJ34: بدنية الشعبة 3 | AK34: 401 - الصالة الرياضية | AL34: كيمياء 2 الشعبة 3 | AM34: 314 - معمل كيمياء | AN34: إنجليزي 3 الشعبة 3 | AO34: 208 - إنجليزي | AP34: رياضيات 3 الشعبة 3 | AQ34: 310 - رياضيات | AR34: توحيد 1 الشعبة 4 | AS34: 202 - إسلامية | AT34: عربي 3 الشعبة 4 | AU34: 204 - عربي | AV34: 4 | AW34: عربي 3 الشعبة 4 | AX34: 204 - عربي | AY34: أحياء 2 الشعبة 3 | AZ34: 214 - معمل أحياء | BA34: بدنية الشعبة 3 | BB34: 401 - الصالة الرياضية | BC34: كيمياء 2 الشعبة 3 | BD34: 314 - معمل كيمياء | BE34: إنجليزي 3 الشعبة 3 | BF34: 208 - إنجليزي | BG34: رياضيات 3 الشعبة 3 | BH34: 310 - رياضيات | BI34: توحيد 1 الشعبة 4 | BJ34: 202 - إسلامية | BK34: 5 | BL34: توحيد 1 الشعبة 4 | BM34: 202 - إسلامية | BN34: عربي 3 الشعبة 4 | BO34: 204 - عربي | BP34: أحياء 2 الشعبة 3 | BQ34: 214 - معمل أحياء | BR34: بدنية الشعبة 3 | BS34: 401 - الصالة الرياضية | BT34: كيمياء 2 الشعبة 3 | BU34: 314 - معمل كيمياء | BV34: إنجليزي 3 الشعبة 3 | BW34: 208 - إنجليزي | BX34: رياضيات 3 الشعبة 3 | BY34: 310 - رياضيات | BZ34: =_ِAll[[#This Row],[0]] -> 39033
A35: 39034 | B35: علي بن مصلح بن مهدي آل عادي | C35: 1 | D35: فيزياء 2 الشعبة 2 | E35: 207 - فيزياء | F35: إنجليزي 3 الشعبة 3 | G35: 208 - إنجليزي | H35: رياضيات 3 الشعبة 3 | I35: 310 - رياضيات | J35: عربي 3 الشعبة 2 | K35: 209 - علوم إدارية | L35: توحيد 1 الشعبة 3 | M35: 310 - رياضيات | N35: أحياء 2 الشعبة 3 | O35: 214 - معمل أحياء | P35: بدنية الشعبة 3 | Q35: 401 - الصالة الرياضية | R35: 2 | S35: بدنية الشعبة 3 | T35: 401 - الصالة الرياضية | U35: فيزياء 2 الشعبة 2 | V35: 207 - فيزياء | W35: إنجليزي 3 الشعبة 3 | X35: 208 - إنجليزي | Y35: رياضيات 3 الشعبة 3 | Z35: 310 - رياضيات | AA35: عربي 3 الشعبة 2 | AB35: 209 - علوم إدارية | AC35: توحيد 1 الشعبة 3 | AD35: 310 - رياضيات | AE35: أحياء 2 الشعبة 3 | AF35: 214 - معمل أحياء | AG35: 3 | AH35: أحياء 2 الشعبة 3 | AI35: 214 - معمل أحياء | AJ35: بدنية الشعبة 3 | AK35: 401 - الصالة الرياضية | AL35: فيزياء 2 الشعبة 2 | AM35: 207 - فيزياء | AN35: إنجليزي 3 الشعبة 3 | AO35: 208 - إنجليزي | AP35: رياضيات 3 الشعبة 3 | AQ35: 310 - رياضيات | AR35: عربي 3 الشعبة 2 | AS35: 209 - علوم إدارية | AT35: توحيد 1 الشعبة 3 | AU35: 310 - رياضيات | AV35: 4 | AW35: توحيد 1 الشعبة 3 | AX35: 310 - رياضيات | AY35: أحياء 2 الشعبة 3 | AZ35: 214 - معمل أحياء | BA35: بدنية الشعبة 3 | BB35: 401 - الصالة الرياضية | BC35: فيزياء 2 الشعبة 2 | BD35: 207 - فيزياء | BE35: إنجليزي 3 الشعبة 3 | BF35: 208 - إنجليزي | BG35: رياضيات 3 الشعبة 3 | BH35: 310 - رياضيات | BI35: عربي 3 الشعبة 2 | BJ35: 209 - علوم إدارية | BK35: 5 | BL35: عربي 3 الشعبة 2 | BM35: 209 - علوم إدارية | BN35: توحيد 1 الشعبة 3 | BO35: 310 - رياضيات | BP35: أحياء 2 الشعبة 3 | BQ35: 214 - معمل أحياء | BR35: بدنية الشعبة 3 | BS35: 401 - الصالة الرياضية | BT35: فيزياء 2 الشعبة 2 | BU35: 207 - فيزياء | BV35: إنجليزي 3 الشعبة 3 | BW35: 208 - إنجليزي | BX35: رياضيات 3 الشعبة 3 | BY35: 310 - رياضيات | BZ35: =_ِAll[[#This Row],[0]] -> 39034
A36: 39035 | B36: عمران بن محمد بن علي الشوباني | C36: 1 | D36: كيمياء 2 الشعبة 3 | E36: 314 - معمل كيمياء | F36: مهنية الشعبة 2 | G36: 209 - علوم إدارية | H36: بدنية الشعبة 4 | I36: 401 - الصالة الرياضية | J36: توحيد 1 الشعبة 4 | K36: 202 - إسلامية | L36: عربي 3 الشعبة 4 | M36: 204 - عربي | P36: إنجليزي 3 الشعبة 4 | Q36: 208 - إنجليزي | R36: 2 | S36: إنجليزي 3 الشعبة 4 | T36: 208 - إنجليزي | U36: كيمياء 2 الشعبة 3 | V36: 314 - معمل كيمياء | W36: مهنية الشعبة 2 | X36: 209 - علوم إدارية | Y36: بدنية الشعبة 4 | Z36: 401 - الصالة الرياضية | AA36: توحيد 1 الشعبة 4 | AB36: 202 - إسلامية | AC36: عربي 3 الشعبة 4 | AD36: 204 - عربي | AG36: 3 | AJ36: إنجليزي 3 الشعبة 4 | AK36: 208 - إنجليزي | AL36: كيمياء 2 الشعبة 3 | AM36: 314 - معمل كيمياء | AN36: مهنية الشعبة 2 | AO36: 209 - علوم إدارية | AP36: بدنية الشعبة 4 | AQ36: 401 - الصالة الرياضية | AR36: توحيد 1 الشعبة 4 | AS36: 202 - إسلامية | AT36: عربي 3 الشعبة 4 | AU36: 204 - عربي | AV36: 4 | AW36: عربي 3 الشعبة 4 | AX36: 204 - عربي | BA36: إنجليزي 3 الشعبة 4 | BB36: 208 - إنجليزي | BC36: كيمياء 2 الشعبة 3 | BD36: 314 - معمل كيمياء | BE36: مهنية الشعبة 2 | BF36: 209 - علوم إدارية | BG36: بدنية الشعبة 4 | BH36: 401 - الصالة الرياضية | BI36: توحيد 1 الشعبة 4 | BJ36: 202 - إسلامية | BK36: 5 | BL36: توحيد 1 الشعبة 4 | BM36: 202 - إسلامية | BN36: عربي 3 الشعبة 4 | BO36: 204 - عربي | BR36: إنجليزي 3 الشعبة 4 | BS36: 208 - إنجليزي | BT36: كيمياء 2 الشعبة 3 | BU36: 314 - معمل كيمياء | BV36: مهنية الشعبة 2 | BW36: 209 - علوم إدارية | BX36: بدنية الشعبة 4 | BY36: 401 - الصالة الرياضية | BZ36: =_ِAll[[#This Row],[0]] -> 39035
A37: 39036 | B37: فاضل بن عباس بن عبدالله آل ذاهب | C37: 1 | D37: كيمياء 2 الشعبة 4 | E37: 302 - كيمياء | F37: أحياء 2 الشعبة 4 | G37: 214 - معمل أحياء | H37: بدنية الشعبة 4 | I37: 401 - الصالة الرياضية | J37: عربي 3 الشعبة 2 | K37: 209 - علوم إدارية | L37: توحيد 1 الشعبة 3 | M37: 310 - رياضيات | N37: رياضيات 3 الشعبة 4 | O37: 306 - مهارات نفسية | P37: إنجليزي 3 الشعبة 4 | Q37: 208 - إنجليزي | R37: 2 | S37: إنجليزي 3 الشعبة 4 | T37: 208 - إنجليزي | U37: كيمياء 2 الشعبة 4 | V37: 302 - كيمياء | W37: أحياء 2 الشعبة 4 | X37: 214 - معمل أحياء | Y37: بدنية الشعبة 4 | Z37: 401 - الصالة الرياضية | AA37: عربي 3 الشعبة 2 | AB37: 209 - علوم إدارية | AC37: توحيد 1 الشعبة 3 | AD37: 310 - رياضيات | AE37: رياضيات 3 الشعبة 4 | AF37: 306 - مهارات نفسية | AG37: 3 | AH37: رياضيات 3 الشعبة 4 | AI37: 306 - مهارات نفسية | AJ37: إنجليزي 3 الشعبة 4 | AK37: 208 - إنجليزي | AL37: كيمياء 2 الشعبة 4 | AM37: 302 - كيمياء | AN37: أحياء 2 الشعبة 4 | AO37: 214 - معمل أحياء | AP37: بدنية الشعبة 4 | AQ37: 401 - الصالة الرياضية | AR37: عربي 3 الشعبة 2 | AS37: 209 - علوم إدارية | AT37: توحيد 1 الشعبة 3 | AU37: 310 - رياضيات | AV37: 4 | AW37: توحيد 1 الشعبة 3 | AX37: 310 - رياضيات | AY37: رياضيات 3 الشعبة 4 | AZ37: 306 - مهارات نفسية | BA37: إنجليزي 3 الشعبة 4 | BB37: 208 - إنجليزي | BC37: كيمياء 2 الشعبة 4 | BD37: 302 - كيمياء | BE37: أحياء 2 الشعبة 4 | BF37: 214 - معمل أحياء | BG37: بدنية الشعبة 4 | BH37: 401 - الصالة الرياضية | BI37: عربي 3 الشعبة 2 | BJ37: 209 - علوم إدارية | BK37: 5 | BL37: عربي 3 الشعبة 2 | BM37: 209 - علوم إدارية | BN37: توحيد 1 الشعبة 3 | BO37: 310 - رياضيات | BP37: رياضيات 3 الشعبة 4 | BQ37: 306 - مهارات نفسية | BR37: إنجليزي 3 الشعبة 4 | BS37: 208 - إنجليزي | BT37: كيمياء 2 الشعبة 4 | BU37: 302 - كيمياء | BV37: أحياء 2 الشعبة 4 | BW37: 214 - معمل أحياء | BX37: بدنية الشعبة 4 | BY37: 401 - الصالة الرياضية | BZ37: =_ِAll[[#This Row],[0]] -> 39036
A38: 39037 | B38: قصي بن قيس بن عيسى ال مهنا | C38: 1 | D38: كيمياء 2 الشعبة 4 | E38: 302 - كيمياء | F38: مهنية الشعبة 2 | G38: 209 - علوم إدارية | H38: حاسب 2 الشعبة 2 | I38: معمل حاسب | J38: عربي 3 الشعبة 2 | K38: 209 - علوم إدارية | L38: توحيد 1 الشعبة 3 | M38: 310 - رياضيات | N38: رياضيات 3 الشعبة 4 | O38: 306 - مهارات نفسية | P38: إنجليزي 3 الشعبة 4 | Q38: 208 - إنجليزي | R38: 2 | S38: إنجليزي 3 الشعبة 4 | T38: 208 - إنجليزي | U38: كيمياء 2 الشعبة 4 | V38: 302 - كيمياء | W38: مهنية الشعبة 2 | X38: 209 - علوم إدارية | Y38: حاسب 2 الشعبة 2 | Z38: معمل حاسب | AA38: عربي 3 الشعبة 2 | AB38: 209 - علوم إدارية | AC38: توحيد 1 الشعبة 3 | AD38: 310 - رياضيات | AE38: رياضيات 3 الشعبة 4 | AF38: 306 - مهارات نفسية | AG38: 3 | AH38: رياضيات 3 الشعبة 4 | AI38: 306 - مهارات نفسية | AJ38: إنجليزي 3 الشعبة 4 | AK38: 208 - إنجليزي | AL38: كيمياء 2 الشعبة 4 | AM38: 302 - كيمياء | AN38: مهنية الشعبة 2 | AO38: 209 - علوم إدارية | AP38: حاسب 2 الشعبة 2 | AQ38: معمل حاسب | AR38: عربي 3 الشعبة 2 | AS38: 209 - علوم إدارية | AT38: توحيد 1 الشعبة 3 | AU38: 310 - رياضيات | AV38: 4 | AW38: توحيد 1 الشعبة 3 | AX38: 310 - رياضيات | AY38: رياضيات 3 الشعبة 4 | AZ38: 306 - مهارات نفسية | BA38: إنجليزي 3 الشعبة 4 | BB38: 208 - إنجليزي | BC38: كيمياء 2 الشعبة 4 | BD38: 302 - كيمياء | BE38: مهنية الشعبة 2 | BF38: 209 - علوم إدارية | BG38: حاسب 2 الشعبة 2 | BH38: معمل حاسب | BI38: عربي 3 الشعبة 2 | BJ38: 209 - علوم إدارية | BK38: 5 | BL38: عربي 3 الشعبة 2 | BM38: 209 - علوم إدارية | BN38: توحيد 1 الشعبة 3 | BO38: 310 - رياضيات | BP38: رياضيات 3 الشعبة 4 | BQ38: 306 - مهارات نفسية | BR38: إنجليزي 3 الشعبة 4 | BS38: 208 - إنجليزي | BT38: كيمياء 2 الشعبة 4 | BU38: 302 - كيمياء | BV38: مهنية الشعبة 2 | BW38: 209 - علوم إدارية | BX38: حاسب 2 الشعبة 2 | BY38: معمل حاسب | BZ38: =_ِAll[[#This Row],[0]] -> 39037
A39: 39038 | B39: محمد بن جاسم بن حسن آل عبدالوهاب | C39: 1 | D39: كيمياء 2 الشعبة 4 | E39: 302 - كيمياء | F39: مهنية الشعبة 2 | G39: 209 - علوم إدارية | H39: حاسب 2 الشعبة 2 | I39: معمل حاسب | J39: عربي 3 الشعبة 2 | K39: 209 - علوم إدارية | L39: حديث 1 الشعبة 2 | M39: 202 - إسلامية | N39: رياضيات 3 الشعبة 2 | O39: 301 - فيزياء | P39: إنجليزي 3 الشعبة 2 | Q39: 307 - إنجليزي | R39: 2 | S39: إنجليزي 3 الشعبة 2 | T39: 307 - إنجليزي | U39: كيمياء 2 الشعبة 4 | V39: 302 - كيمياء | W39: مهنية الشعبة 2 | X39: 209 - علوم إدارية | Y39: حاسب 2 الشعبة 2 | Z39: معمل حاسب | AA39: عربي 3 الشعبة 2 | AB39: 209 - علوم إدارية | AC39: حديث 1 الشعبة 2 | AD39: 202 - إسلامية | AE39: رياضيات 3 الشعبة 2 | AF39: 301 - فيزياء | AG39: 3 | AH39: رياضيات 3 الشعبة 2 | AI39: 301 - فيزياء | AJ39: إنجليزي 3 الشعبة 2 | AK39: 307 - إنجليزي | AL39: كيمياء 2 الشعبة 4 | AM39: 302 - كيمياء | AN39: مهنية الشعبة 2 | AO39: 209 - علوم إدارية | AP39: حاسب 2 الشعبة 2 | AQ39: معمل حاسب | AR39: عربي 3 الشعبة 2 | AS39: 209 - علوم إدارية | AT39: حديث 1 الشعبة 2 | AU39: 202 - إسلامية | AV39: 4 | AW39: حديث 1 الشعبة 2 | AX39: 202 - إسلامية | AY39: رياضيات 3 الشعبة 2 | AZ39: 301 - فيزياء | BA39: إنجليزي 3 الشعبة 2 | BB39: 307 - إنجليزي | BC39: كيمياء 2 الشعبة 4 | BD39: 302 - كيمياء | BE39: مهنية الشعبة 2 | BF39: 209 - علوم إدارية | BG39: حاسب 2 الشعبة 2 | BH39: معمل حاسب | BI39: عربي 3 الشعبة 2 | BJ39: 209 - علوم إدارية | BK39: 5 | BL39: عربي 3 الشعبة 2 | BM39: 209 - علوم إدارية | BN39: حديث 1 الشعبة 2 | BO39: 202 - إسلامية | BP39: رياضيات 3 الشعبة 2 | BQ39: 301 - فيزياء | BR39: إنجليزي 3 الشعبة 2 | BS39: 307 - إنجليزي | BT39: كيمياء 2 الشعبة 4 | BU39: 302 - كيمياء | BV39: مهنية الشعبة 2 | BW39: 209 - علوم إدارية | BX39: حاسب 2 الشعبة 2 | BY39: معمل حاسب | BZ39: =_ِAll[[#This Row],[0]] -> 39038
A40: 39039 | B40: محمد بن صالح بن حسين آل عطوة | C40: 1 | D40: كيمياء 2 الشعبة 3 | E40: 314 - معمل كيمياء | F40: إنجليزي 3 الشعبة 3 | G40: 208 - إنجليزي | H40: رياضيات 3 الشعبة 3 | I40: 310 - رياضيات | J40: توحيد 1 الشعبة 4 | K40: 202 - إسلامية | L40: عربي 3 الشعبة 4 | M40: 204 - عربي | N40: أحياء 2 الشعبة 3 | O40: 214 - معمل أحياء | P40: بدنية الشعبة 3 | Q40: 401 - الصالة الرياضية | R40: 2 | S40: بدنية الشعبة 3 | T40: 401 - الصالة الرياضية | U40: كيمياء 2 الشعبة 3 | V40: 314 - معمل كيمياء | W40: إنجليزي 3 الشعبة 3 | X40: 208 - إنجليزي | Y40: رياضيات 3 الشعبة 3 | Z40: 310 - رياضيات | AA40: توحيد 1 الشعبة 4 | AB40: 202 - إسلامية | AC40: عربي 3 الشعبة 4 | AD40: 204 - عربي | AE40: أحياء 2 الشعبة 3 | AF40: 214 - معمل أحياء | AG40: 3 | AH40: أحياء 2 الشعبة 3 | AI40: 214 - معمل أحياء | AJ40: بدنية الشعبة 3 | AK40: 401 - الصالة الرياضية | AL40: كيمياء 2 الشعبة 3 | AM40: 314 - معمل كيمياء | AN40: إنجليزي 3 الشعبة 3 | AO40: 208 - إنجليزي | AP40: رياضيات 3 الشعبة 3 | AQ40: 310 - رياضيات | AR40: توحيد 1 الشعبة 4 | AS40: 202 - إسلامية | AT40: عربي 3 الشعبة 4 | AU40: 204 - عربي | AV40: 4 | AW40: عربي 3 الشعبة 4 | AX40: 204 - عربي | AY40: أحياء 2 الشعبة 3 | AZ40: 214 - معمل أحياء | BA40: بدنية الشعبة 3 | BB40: 401 - الصالة الرياضية | BC40: كيمياء 2 الشعبة 3 | BD40: 314 - معمل كيمياء | BE40: إنجليزي 3 الشعبة 3 | BF40: 208 - إنجليزي | BG40: رياضيات 3 الشعبة 3 | BH40: 310 - رياضيات | BI40: توحيد 1 الشعبة 4 | BJ40: 202 - إسلامية | BK40: 5 | BL40: توحيد 1 الشعبة 4 | BM40: 202 - إسلامية | BN40: عربي 3 الشعبة 4 | BO40: 204 - عربي | BP40: أحياء 2 الشعبة 3 | BQ40: 214 - معمل أحياء | BR40: بدنية الشعبة 3 | BS40: 401 - الصالة الرياضية | BT40: كيمياء 2 الشعبة 3 | BU40: 314 - معمل كيمياء | BV40: إنجليزي 3 الشعبة 3 | BW40: 208 - إنجليزي | BX40: رياضيات 3 الشعبة 3 | BY40: 310 - رياضيات | BZ40: =_ِAll[[#This Row],[0]] -> 39039
A41: 39040 | B41: محمد بن عبدالرحيم بن صالح الشبيب | C41: 1 | D41: كيمياء 2 الشعبة 3 | E41: 314 - معمل كيمياء | F41: مهنية الشعبة 2 | G41: 209 - علوم إدارية | H41: بدنية الشعبة 4 | I41: 401 - الصالة الرياضية | J41: توحيد 1 الشعبة 4 | K41: 202 - إسلامية | L41: عربي 3 الشعبة 4 | M41: 204 - عربي | P41: إنجليزي 3 الشعبة 4 | Q41: 208 - إنجليزي | R41: 2 | S41: إنجليزي 3 الشعبة 4 | T41: 208 - إنجليزي | U41: كيمياء 2 الشعبة 3 | V41: 314 - معمل كيمياء | W41: مهنية الشعبة 2 | X41: 209 - علوم إدارية | Y41: بدنية الشعبة 4 | Z41: 401 - الصالة الرياضية | AA41: توحيد 1 الشعبة 4 | AB41: 202 - إسلامية | AC41: عربي 3 الشعبة 4 | AD41: 204 - عربي | AG41: 3 | AJ41: إنجليزي 3 الشعبة 4 | AK41: 208 - إنجليزي | AL41: كيمياء 2 الشعبة 3 | AM41: 314 - معمل كيمياء | AN41: مهنية الشعبة 2 | AO41: 209 - علوم إدارية | AP41: بدنية الشعبة 4 | AQ41: 401 - الصالة الرياضية | AR41: توحيد 1 الشعبة 4 | AS41: 202 - إسلامية | AT41: عربي 3 الشعبة 4 | AU41: 204 - عربي | AV41: 4 | AW41: عربي 3 الشعبة 4 | AX41: 204 - عربي | BA41: إنجليزي 3 الشعبة 4 | BB41: 208 - إنجليزي | BC41: كيمياء 2 الشعبة 3 | BD41: 314 - معمل كيمياء | BE41: مهنية الشعبة 2 | BF41: 209 - علوم إدارية | BG41: بدنية الشعبة 4 | BH41: 401 - الصالة الرياضية | BI41: توحيد 1 الشعبة 4 | BJ41: 202 - إسلامية | BK41: 5 | BL41: توحيد 1 الشعبة 4 | BM41: 202 - إسلامية | BN41: عربي 3 الشعبة 4 | BO41: 204 - عربي | BR41: إنجليزي 3 الشعبة 4 | BS41: 208 - إنجليزي | BT41: كيمياء 2 الشعبة 3 | BU41: 314 - معمل كيمياء | BV41: مهنية الشعبة 2 | BW41: 209 - علوم إدارية | BX41: بدنية الشعبة 4 | BY41: 401 - الصالة الرياضية | BZ41: =_ِAll[[#This Row],[0]] -> 39040
A42: 39041 | B42: محمد بن عبدالواحد بن سعيد آل ضاحي | C42: 1 | D42: فيزياء 2 الشعبة 2 | E42: 207 - فيزياء | F42: مهنية الشعبة 2 | G42: 209 - علوم إدارية | H42: بدنية الشعبة 4 | I42: 401 - الصالة الرياضية | J42: توحيد 1 الشعبة 4 | K42: 202 - إسلامية | L42: عربي 3 الشعبة 4 | M42: 204 - عربي | R42: 2 | U42: فيزياء 2 الشعبة 2 | V42: 207 - فيزياء | W42: مهنية الشعبة 2 | X42: 209 - علوم إدارية | Y42: بدنية الشعبة 4 | Z42: 401 - الصالة الرياضية | AA42: توحيد 1 الشعبة 4 | AB42: 202 - إسلامية | AC42: عربي 3 الشعبة 4 | AD42: 204 - عربي | AG42: 3 | AL42: فيزياء 2 الشعبة 2 | AM42: 207 - فيزياء | AN42: مهنية الشعبة 2 | AO42: 209 - علوم إدارية | AP42: بدنية الشعبة 4 | AQ42: 401 - الصالة الرياضية | AR42: توحيد 1 الشعبة 4 | AS42: 202 - إسلامية | AT42: عربي 3 الشعبة 4 | AU42: 204 - عربي | AV42: 4 | AW42: عربي 3 الشعبة 4 | AX42: 204 - عربي | BC42: فيزياء 2 الشعبة 2 | BD42: 207 - فيزياء | BE42: مهنية الشعبة 2 | BF42: 209 - علوم إدارية | BG42: بدنية الشعبة 4 | BH42: 401 - الصالة الرياضية | BI42: توحيد 1 الشعبة 4 | BJ42: 202 - إسلامية | BK42: 5 | BL42: توحيد 1 الشعبة 4 | BM42: 202 - إسلامية | BN42: عربي 3 الشعبة 4 | BO42: 204 - عربي | BT42: فيزياء 2 الشعبة 2 | BU42: 207 - فيزياء | BV42: مهنية الشعبة 2 | BW42: 209 - علوم إدارية | BX42: بدنية الشعبة 4 | BY42: 401 - الصالة الرياضية | BZ42: =_ِAll[[#This Row],[0]] -> 39041
A43: 39042 | B43: محمد بن علي بن حسن آل سالم | C43: 1 | D43: كيمياء 2 الشعبة 4 | E43: 302 - كيمياء | F43: أحياء 2 الشعبة 4 | G43: 214 - معمل أحياء | H43: بدنية الشعبة 4 | I43: 401 - الصالة الرياضية | J43: عربي 3 الشعبة 2 | K43: 209 - علوم إدارية | L43: توحيد 1 الشعبة 3 | M43: 310 - رياضيات | N43: رياضيات 3 الشعبة 2 | O43: 301 - فيزياء | P43: إنجليزي 3 الشعبة 2 | Q43: 307 - إنجليزي | R43: 2 | S43: إنجليزي 3 الشعبة 2 | T43: 307 - إنجليزي | U43: كيمياء 2 الشعبة 4 | V43: 302 - كيمياء | W43: أحياء 2 الشعبة 4 | X43: 214 - معمل أحياء | Y43: بدنية الشعبة 4 | Z43: 401 - الصالة الرياضية | AA43: عربي 3 الشعبة 2 | AB43: 209 - علوم إدارية | AC43: توحيد 1 الشعبة 3 | AD43: 310 - رياضيات | AE43: رياضيات 3 الشعبة 2 | AF43: 301 - فيزياء | AG43: 3 | AH43: رياضيات 3 الشعبة 2 | AI43: 301 - فيزياء | AJ43: إنجليزي 3 الشعبة 2 | AK43: 307 - إنجليزي | AL43: كيمياء 2 الشعبة 4 | AM43: 302 - كيمياء | AN43: أحياء 2 الشعبة 4 | AO43: 214 - معمل أحياء | AP43: بدنية الشعبة 4 | AQ43: 401 - الصالة الرياضية | AR43: عربي 3 الشعبة 2 | AS43: 209 - علوم إدارية | AT43: توحيد 1 الشعبة 3 | AU43: 310 - رياضيات | AV43: 4 | AW43: توحيد 1 الشعبة 3 | AX43: 310 - رياضيات | AY43: رياضيات 3 الشعبة 2 | AZ43: 301 - فيزياء | BA43: إنجليزي 3 الشعبة 2 | BB43: 307 - إنجليزي | BC43: كيمياء 2 الشعبة 4 | BD43: 302 - كيمياء | BE43: أحياء 2 الشعبة 4 | BF43: 214 - معمل أحياء | BG43: بدنية الشعبة 4 | BH43: 401 - الصالة الرياضية | BI43: عربي 3 الشعبة 2 | BJ43: 209 - علوم إدارية | BK43: 5 | BL43: عربي 3 الشعبة 2 | BM43: 209 - علوم إدارية | BN43: توحيد 1 الشعبة 3 | BO43: 310 - رياضيات | BP43: رياضيات 3 الشعبة 2 | BQ43: 301 - فيزياء | BR43: إنجليزي 3 الشعبة 2 | BS43: 307 - إنجليزي | BT43: كيمياء 2 الشعبة 4 | BU43: 302 - كيمياء | BV43: أحياء 2 الشعبة 4 | BW43: 214 - معمل أحياء | BX43: بدنية الشعبة 4 | BY43: 401 - الصالة الرياضية | BZ43: =_ِAll[[#This Row],[0]] -> 39042
A44: 39043 | B44: محمد بن عيسى بن حسين العبدالله | C44: 1 | D44: كيمياء 2 الشعبة 4 | E44: 302 - كيمياء | F44: أحياء 2 الشعبة 4 | G44: 214 - معمل أحياء | H44: حاسب 2 الشعبة 2 | I44: معمل حاسب | J44: عربي 3 الشعبة 2 | K44: 209 - علوم إدارية | L44: حديث 1 الشعبة 2 | M44: 202 - إسلامية | N44: رياضيات 3 الشعبة 2 | O44: 301 - فيزياء | P44: إنجليزي 3 الشعبة 4 | Q44: 208 - إنجليزي | R44: 2 | S44: إنجليزي 3 الشعبة 4 | T44: 208 - إنجليزي | U44: كيمياء 2 الشعبة 4 | V44: 302 - كيمياء | W44: أحياء 2 الشعبة 4 | X44: 214 - معمل أحياء | Y44: حاسب 2 الشعبة 2 | Z44: معمل حاسب | AA44: عربي 3 الشعبة 2 | AB44: 209 - علوم إدارية | AC44: حديث 1 الشعبة 2 | AD44: 202 - إسلامية | AE44: رياضيات 3 الشعبة 2 | AF44: 301 - فيزياء | AG44: 3 | AH44: رياضيات 3 الشعبة 2 | AI44: 301 - فيزياء | AJ44: إنجليزي 3 الشعبة 4 | AK44: 208 - إنجليزي | AL44: كيمياء 2 الشعبة 4 | AM44: 302 - كيمياء | AN44: أحياء 2 الشعبة 4 | AO44: 214 - معمل أحياء | AP44: حاسب 2 الشعبة 2 | AQ44: معمل حاسب | AR44: عربي 3 الشعبة 2 | AS44: 209 - علوم إدارية | AT44: حديث 1 الشعبة 2 | AU44: 202 - إسلامية | AV44: 4 | AW44: حديث 1 الشعبة 2 | AX44: 202 - إسلامية | AY44: رياضيات 3 الشعبة 2 | AZ44: 301 - فيزياء | BA44: إنجليزي 3 الشعبة 4 | BB44: 208 - إنجليزي | BC44: كيمياء 2 الشعبة 4 | BD44: 302 - كيمياء | BE44: أحياء 2 الشعبة 4 | BF44: 214 - معمل أحياء | BG44: حاسب 2 الشعبة 2 | BH44: معمل حاسب | BI44: عربي 3 الشعبة 2 | BJ44: 209 - علوم إدارية | BK44: 5 | BL44: عربي 3 الشعبة 2 | BM44: 209 - علوم إدارية | BN44: حديث 1 الشعبة 2 | BO44: 202 - إسلامية | BP44: رياضيات 3 الشعبة 2 | BQ44: 301 - فيزياء | BR44: إنجليزي 3 الشعبة 4 | BS44: 208 - إنجليزي | BT44: كيمياء 2 الشعبة 4 | BU44: 302 - كيمياء | BV44: أحياء 2 الشعبة 4 | BW44: 214 - معمل أحياء | BX44: حاسب 2 الشعبة 2 | BY44: معمل حاسب | BZ44: =_ِAll[[#This Row],[0]] -> 39043
A45: 39044 | B45: مصطفى بن إبراهيم بن اسماعيل آل منصور | C45: 1 | D45: كيمياء 2 الشعبة 4 | E45: 302 - كيمياء | F45: أحياء 2 الشعبة 4 | G45: 214 - معمل أحياء | H45: حاسب 2 الشعبة 2 | I45: معمل حاسب | J45: عربي 3 الشعبة 2 | K45: 209 - علوم إدارية | L45: حديث 1 الشعبة 2 | M45: 202 - إسلامية | N45: رياضيات 3 الشعبة 2 | O45: 301 - فيزياء | P45: إنجليزي 3 الشعبة 2 | Q45: 307 - إنجليزي | R45: 2 | S45: إنجليزي 3 الشعبة 2 | T45: 307 - إنجليزي | U45: كيمياء 2 الشعبة 4 | V45: 302 - كيمياء | W45: أحياء 2 الشعبة 4 | X45: 214 - معمل أحياء | Y45: حاسب 2 الشعبة 2 | Z45: معمل حاسب | AA45: عربي 3 الشعبة 2 | AB45: 209 - علوم إدارية | AC45: حديث 1 الشعبة 2 | AD45: 202 - إسلامية | AE45: رياضيات 3 الشعبة 2 | AF45: 301 - فيزياء | AG45: 3 | AH45: رياضيات 3 الشعبة 2 | AI45: 301 - فيزياء | AJ45: إنجليزي 3 الشعبة 2 | AK45: 307 - إنجليزي | AL45: كيمياء 2 الشعبة 4 | AM45: 302 - كيمياء | AN45: أحياء 2 الشعبة 4 | AO45: 214 - معمل أحياء | AP45: حاسب 2 الشعبة 2 | AQ45: معمل حاسب | AR45: عربي 3 الشعبة 2 | AS45: 209 - علوم إدارية | AT45: حديث 1 الشعبة 2 | AU45: 202 - إسلامية | AV45: 4 | AW45: حديث 1 الشعبة 2 | AX45: 202 - إسلامية | AY45: رياضيات 3 الشعبة 2 | AZ45: 301 - فيزياء | BA45: إنجليزي 3 الشعبة 2 | BB45: 307 - إنجليزي | BC45: كيمياء 2 الشعبة 4 | BD45: 302 - كيمياء | BE45: أحياء 2 الشعبة 4 | BF45: 214 - معمل أحياء | BG45: حاسب 2 الشعبة 2 | BH45: معمل حاسب | BI45: عربي 3 الشعبة 2 | BJ45: 209 - علوم إدارية | BK45: 5 | BL45: عربي 3 الشعبة 2 | BM45: 209 - علوم إدارية | BN45: حديث 1 الشعبة 2 | BO45: 202 - إسلامية | BP45: رياضيات 3 الشعبة 2 | BQ45: 301 - فيزياء | BR45: إنجليزي 3 الشعبة 2 | BS45: 307 - إنجليزي | BT45: كيمياء 2 الشعبة 4 | BU45: 302 - كيمياء | BV45: أحياء 2 الشعبة 4 | BW45: 214 - معمل أحياء | BX45: حاسب 2 الشعبة 2 | BY45: معمل حاسب | BZ45: =_ِAll[[#This Row],[0]] -> 39044
A46: 39045 | B46: موسى بن خالد بن موسى آل ضاحي | C46: 1 | D46: كيمياء 2 الشعبة 4 | E46: 302 - كيمياء | H46: بدنية الشعبة 4 | I46: 401 - الصالة الرياضية | J46: توحيد 1 الشعبة 4 | K46: 202 - إسلامية | L46: عربي 3 الشعبة 4 | M46: 204 - عربي | N46: أحياء 2 الشعبة 3 | O46: 214 - معمل أحياء | R46: 2 | U46: كيمياء 2 الشعبة 4 | V46: 302 - كيمياء | Y46: بدنية الشعبة 4 | Z46: 401 - الصالة الرياضية | AA46: توحيد 1 الشعبة 4 | AB46: 202 - إسلامية | AC46: عربي 3 الشعبة 4 | AD46: 204 - عربي | AE46: أحياء 2 الشعبة 3 | AF46: 214 - معمل أحياء | AG46: 3 | AH46: أحياء 2 الشعبة 3 | AI46: 214 - معمل أحياء | AL46: كيمياء 2 الشعبة 4 | AM46: 302 - كيمياء | AP46: بدنية الشعبة 4 | AQ46: 401 - الصالة الرياضية | AR46: توحيد 1 الشعبة 4 | AS46: 202 - إسلامية | AT46: عربي 3 الشعبة 4 | AU46: 204 - عربي | AV46: 4 | AW46: عربي 3 الشعبة 4 | AX46: 204 - عربي | AY46: أحياء 2 الشعبة 3 | AZ46: 214 - معمل أحياء | BC46: كيمياء 2 الشعبة 4 | BD46: 302 - كيمياء | BG46: بدنية الشعبة 4 | BH46: 401 - الصالة الرياضية | BI46: توحيد 1 الشعبة 4 | BJ46: 202 - إسلامية | BK46: 5 | BL46: توحيد 1 الشعبة 4 | BM46: 202 - إسلامية | BN46: عربي 3 الشعبة 4 | BO46: 204 - عربي | BP46: أحياء 2 الشعبة 3 | BQ46: 214 - معمل أحياء | BT46: كيمياء 2 الشعبة 4 | BU46: 302 - كيمياء | BX46: بدنية الشعبة 4 | BY46: 401 - الصالة الرياضية | BZ46: =_ِAll[[#This Row],[0]] -> 39045
A47: 39047 | B47: وافي بن رائد بن صالح العبدرب الرسول | C47: 1 | D47: كيمياء 2 الشعبة 3 | E47: 314 - معمل كيمياء | F47: مهنية الشعبة 2 | G47: 209 - علوم إدارية | H47: بدنية الشعبة 4 | I47: 401 - الصالة الرياضية | J47: توحيد 1 الشعبة 4 | K47: 202 - إسلامية | L47: عربي 3 الشعبة 4 | M47: 204 - عربي | N47: رياضيات 3 الشعبة 4 | O47: 306 - مهارات نفسية | P47: إنجليزي 3 الشعبة 4 | Q47: 208 - إنجليزي | R47: 2 | S47: إنجليزي 3 الشعبة 4 | T47: 208 - إنجليزي | U47: كيمياء 2 الشعبة 3 | V47: 314 - معمل كيمياء | W47: مهنية الشعبة 2 | X47: 209 - علوم إدارية | Y47: بدنية الشعبة 4 | Z47: 401 - الصالة الرياضية | AA47: توحيد 1 الشعبة 4 | AB47: 202 - إسلامية | AC47: عربي 3 الشعبة 4 | AD47: 204 - عربي | AE47: رياضيات 3 الشعبة 4 | AF47: 306 - مهارات نفسية | AG47: 3 | AH47: رياضيات 3 الشعبة 4 | AI47: 306 - مهارات نفسية | AJ47: إنجليزي 3 الشعبة 4 | AK47: 208 - إنجليزي | AL47: كيمياء 2 الشعبة 3 | AM47: 314 - معمل كيمياء | AN47: مهنية الشعبة 2 | AO47: 209 - علوم إدارية | AP47: بدنية الشعبة 4 | AQ47: 401 - الصالة الرياضية | AR47: توحيد 1 الشعبة 4 | AS47: 202 - إسلامية | AT47: عربي 3 الشعبة 4 | AU47: 204 - عربي | AV47: 4 | AW47: عربي 3 الشعبة 4 | AX47: 204 - عربي | AY47: رياضيات 3 الشعبة 4 | AZ47: 306 - مهارات نفسية | BA47: إنجليزي 3 الشعبة 4 | BB47: 208 - إنجليزي | BC47: كيمياء 2 الشعبة 3 | BD47: 314 - معمل كيمياء | BE47: مهنية الشعبة 2 | BF47: 209 - علوم إدارية | BG47: بدنية الشعبة 4 | BH47: 401 - الصالة الرياضية | BI47: توحيد 1 الشعبة 4 | BJ47: 202 - إسلامية | BK47: 5 | BL47: توحيد 1 الشعبة 4 | BM47: 202 - إسلامية | BN47: عربي 3 الشعبة 4 | BO47: 204 - عربي | BP47: رياضيات 3 الشعبة 4 | BQ47: 306 - مهارات نفسية | BR47: إنجليزي 3 الشعبة 4 | BS47: 208 - إنجليزي | BT47: كيمياء 2 الشعبة 3 | BU47: 314 - معمل كيمياء | BV47: مهنية الشعبة 2 | BW47: 209 - علوم إدارية | BX47: بدنية الشعبة 4 | BY47: 401 - الصالة الرياضية | BZ47: =_ِAll[[#This Row],[0]] -> 39047
A48: 39048 | B48: وليد بن يحي بن احمد عناب | C48: 1 | D48: كيمياء 2 الشعبة 3 | E48: 314 - معمل كيمياء | F48: إنجليزي 3 الشعبة 3 | G48: 208 - إنجليزي | H48: رياضيات 3 الشعبة 3 | I48: 310 - رياضيات | J48: توحيد 1 الشعبة 4 | K48: 202 - إسلامية | L48: عربي 3 الشعبة 4 | M48: 204 - عربي | N48: أحياء 2 الشعبة 3 | O48: 214 - معمل أحياء | P48: بدنية الشعبة 3 | Q48: 401 - الصالة الرياضية | R48: 2 | S48: بدنية الشعبة 3 | T48: 401 - الصالة الرياضية | U48: كيمياء 2 الشعبة 3 | V48: 314 - معمل كيمياء | W48: إنجليزي 3 الشعبة 3 | X48: 208 - إنجليزي | Y48: رياضيات 3 الشعبة 3 | Z48: 310 - رياضيات | AA48: توحيد 1 الشعبة 4 | AB48: 202 - إسلامية | AC48: عربي 3 الشعبة 4 | AD48: 204 - عربي | AE48: أحياء 2 الشعبة 3 | AF48: 214 - معمل أحياء | AG48: 3 | AH48: أحياء 2 الشعبة 3 | AI48: 214 - معمل أحياء | AJ48: بدنية الشعبة 3 | AK48: 401 - الصالة الرياضية | AL48: كيمياء 2 الشعبة 3 | AM48: 314 - معمل كيمياء | AN48: إنجليزي 3 الشعبة 3 | AO48: 208 - إنجليزي | AP48: رياضيات 3 الشعبة 3 | AQ48: 310 - رياضيات | AR48: توحيد 1 الشعبة 4 | AS48: 202 - إسلامية | AT48: عربي 3 الشعبة 4 | AU48: 204 - عربي | AV48: 4 | AW48: عربي 3 الشعبة 4 | AX48: 204 - عربي | AY48: أحياء 2 الشعبة 3 | AZ48: 214 - معمل أحياء | BA48: بدنية الشعبة 3 | BB48: 401 - الصالة الرياضية | BC48: كيمياء 2 الشعبة 3 | BD48: 314 - معمل كيمياء | BE48: إنجليزي 3 الشعبة 3 | BF48: 208 - إنجليزي | BG48: رياضيات 3 الشعبة 3 | BH48: 310 - رياضيات | BI48: توحيد 1 الشعبة 4 | BJ48: 202 - إسلامية | BK48: 5 | BL48: توحيد 1 الشعبة 4 | BM48: 202 - إسلامية | BN48: عربي 3 الشعبة 4 | BO48: 204 - عربي | BP48: أحياء 2 الشعبة 3 | BQ48: 214 - معمل أحياء | BR48: بدنية الشعبة 3 | BS48: 401 - الصالة الرياضية | BT48: كيمياء 2 الشعبة 3 | BU48: 314 - معمل كيمياء | BV48: إنجليزي 3 الشعبة 3 | BW48: 208 - إنجليزي | BX48: رياضيات 3 الشعبة 3 | BY48: 310 - رياضيات | BZ48: =_ِAll[[#This Row],[0]] -> 39048
A49: 39049 | B49: أحمد بن علوي بن احمد العلويات | C49: 1 | D49: فيزياء 2 الشعبة 2 | E49: 207 - فيزياء | F49: أحياء 2 الشعبة 4 | G49: 214 - معمل أحياء | H49: بدنية الشعبة 4 | I49: 401 - الصالة الرياضية | J49: عربي 3 الشعبة 2 | K49: 209 - علوم إدارية | L49: توحيد 1 الشعبة 3 | M49: 310 - رياضيات | N49: رياضيات 1 الشعبة 2 | O49: 310 - رياضيات | P49: إنجليزي 3 الشعبة 4 | Q49: 208 - إنجليزي | R49: 2 | S49: إنجليزي 3 الشعبة 4 | T49: 208 - إنجليزي | U49: فيزياء 2 الشعبة 2 | V49: 207 - فيزياء | W49: أحياء 2 الشعبة 4 | X49: 214 - معمل أحياء | Y49: بدنية الشعبة 4 | Z49: 401 - الصالة الرياضية | AA49: عربي 3 الشعبة 2 | AB49: 209 - علوم إدارية | AC49: توحيد 1 الشعبة 3 | AD49: 310 - رياضيات | AE49: رياضيات 1 الشعبة 2 | AF49: 310 - رياضيات | AG49: 3 | AH49: رياضيات 1 الشعبة 2 | AI49: 310 - رياضيات | AJ49: إنجليزي 3 الشعبة 4 | AK49: 208 - إنجليزي | AL49: فيزياء 2 الشعبة 2 | AM49: 207 - فيزياء | AN49: أحياء 2 الشعبة 4 | AO49: 214 - معمل أحياء | AP49: بدنية الشعبة 4 | AQ49: 401 - الصالة الرياضية | AR49: عربي 3 الشعبة 2 | AS49: 209 - علوم إدارية | AT49: توحيد 1 الشعبة 3 | AU49: 310 - رياضيات | AV49: 4 | AW49: توحيد 1 الشعبة 3 | AX49: 310 - رياضيات | AY49: رياضيات 1 الشعبة 2 | AZ49: 310 - رياضيات | BA49: إنجليزي 3 الشعبة 4 | BB49: 208 - إنجليزي | BC49: فيزياء 2 الشعبة 2 | BD49: 207 - فيزياء | BE49: أحياء 2 الشعبة 4 | BF49: 214 - معمل أحياء | BG49: بدنية الشعبة 4 | BH49: 401 - الصالة الرياضية | BI49: عربي 3 الشعبة 2 | BJ49: 209 - علوم إدارية | BK49: 5 | BL49: عربي 3 الشعبة 2 | BM49: 209 - علوم إدارية | BN49: توحيد 1 الشعبة 3 | BO49: 310 - رياضيات | BP49: رياضيات 1 الشعبة 2 | BQ49: 310 - رياضيات | BR49: إنجليزي 3 الشعبة 4 | BS49: 208 - إنجليزي | BT49: فيزياء 2 الشعبة 2 | BU49: 207 - فيزياء | BV49: أحياء 2 الشعبة 4 | BW49: 214 - معمل أحياء | BX49: بدنية الشعبة 4 | BY49: 401 - الصالة الرياضية | BZ49: =_ِAll[[#This Row],[0]] -> 39049
A50: 39051 | B50: جواد بن محمد بن سعيد آل اسماعيل | C50: 1 | F50: أحياء 2 الشعبة 4 | G50: 214 - معمل أحياء | H50: حاسب 2 الشعبة 2 | I50: معمل حاسب | J50: عربي 3 الشعبة 3 | K50: 204 - عربي | L50: حديث 1 الشعبة 2 | M50: 202 - إسلامية | P50: إنجليزي 3 الشعبة 2 | Q50: 307 - إنجليزي | R50: 2 | S50: إنجليزي 3 الشعبة 2 | T50: 307 - إنجليزي | W50: أحياء 2 الشعبة 4 | X50: 214 - معمل أحياء | Y50: حاسب 2 الشعبة 2 | Z50: معمل حاسب | AA50: عربي 3 الشعبة 3 | AB50: 204 - عربي | AC50: حديث 1 الشعبة 2 | AD50: 202 - إسلامية | AG50: 3 | AJ50: إنجليزي 3 الشعبة 2 | AK50: 307 - إنجليزي | AN50: أحياء 2 الشعبة 4 | AO50: 214 - معمل أحياء | AP50: حاسب 2 الشعبة 2 | AQ50: معمل حاسب | AR50: عربي 3 الشعبة 3 | AS50: 204 - عربي | AT50: حديث 1 الشعبة 2 | AU50: 202 - إسلامية | AV50: 4 | AW50: حديث 1 الشعبة 2 | AX50: 202 - إسلامية | BA50: إنجليزي 3 الشعبة 2 | BB50: 307 - إنجليزي | BE50: أحياء 2 الشعبة 4 | BF50: 214 - معمل أحياء | BG50: حاسب 2 الشعبة 2 | BH50: معمل حاسب | BI50: عربي 3 الشعبة 3 | BJ50: 204 - عربي | BK50: 5 | BL50: عربي 3 الشعبة 3 | BM50: 204 - عربي | BN50: حديث 1 الشعبة 2 | BO50: 202 - إسلامية | BR50: إنجليزي 3 الشعبة 2 | BS50: 307 - إنجليزي | BV50: أحياء 2 الشعبة 4 | BW50: 214 - معمل أحياء | BX50: حاسب 2 الشعبة 2 | BY50: معمل حاسب | BZ50: =_ِAll[[#This Row],[0]] -> 39051
A51: 39052 | B51: حسن بن إبراهيم بن سلمان المهنا | C51: 1 | D51: كيمياء 2 الشعبة 3 | E51: 314 - معمل كيمياء | F51: مهنية الشعبة 2 | G51: 209 - علوم إدارية | H51: بدنية الشعبة 4 | I51: 401 - الصالة الرياضية | J51: توحيد 1 الشعبة 4 | K51: 202 - إسلامية | L51: عربي 3 الشعبة 4 | M51: 204 - عربي | N51: رياضيات 1 الشعبة 2 | O51: 310 - رياضيات | P51: إنجليزي 3 الشعبة 4 | Q51: 208 - إنجليزي | R51: 2 | S51: إنجليزي 3 الشعبة 4 | T51: 208 - إنجليزي | U51: كيمياء 2 الشعبة 3 | V51: 314 - معمل كيمياء | W51: مهنية الشعبة 2 | X51: 209 - علوم إدارية | Y51: بدنية الشعبة 4 | Z51: 401 - الصالة الرياضية | AA51: توحيد 1 الشعبة 4 | AB51: 202 - إسلامية | AC51: عربي 3 الشعبة 4 | AD51: 204 - عربي | AE51: رياضيات 1 الشعبة 2 | AF51: 310 - رياضيات | AG51: 3 | AH51: رياضيات 1 الشعبة 2 | AI51: 310 - رياضيات | AJ51: إنجليزي 3 الشعبة 4 | AK51: 208 - إنجليزي | AL51: كيمياء 2 الشعبة 3 | AM51: 314 - معمل كيمياء | AN51: مهنية الشعبة 2 | AO51: 209 - علوم إدارية | AP51: بدنية الشعبة 4 | AQ51: 401 - الصالة الرياضية | AR51: توحيد 1 الشعبة 4 | AS51: 202 - إسلامية | AT51: عربي 3 الشعبة 4 | AU51: 204 - عربي | AV51: 4 | AW51: عربي 3 الشعبة 4 | AX51: 204 - عربي | AY51: رياضيات 1 الشعبة 2 | AZ51: 310 - رياضيات | BA51: إنجليزي 3 الشعبة 4 | BB51: 208 - إنجليزي | BC51: كيمياء 2 الشعبة 3 | BD51: 314 - معمل كيمياء | BE51: مهنية الشعبة 2 | BF51: 209 - علوم إدارية | BG51: بدنية الشعبة 4 | BH51: 401 - الصالة الرياضية | BI51: توحيد 1 الشعبة 4 | BJ51: 202 - إسلامية | BK51: 5 | BL51: توحيد 1 الشعبة 4 | BM51: 202 - إسلامية | BN51: عربي 3 الشعبة 4 | BO51: 204 - عربي | BP51: رياضيات 1 الشعبة 2 | BQ51: 310 - رياضيات | BR51: إنجليزي 3 الشعبة 4 | BS51: 208 - إنجليزي | BT51: كيمياء 2 الشعبة 3 | BU51: 314 - معمل كيمياء | BV51: مهنية الشعبة 2 | BW51: 209 - علوم إدارية | BX51: بدنية الشعبة 4 | BY51: 401 - الصالة الرياضية | BZ51: =_ِAll[[#This Row],[0]] -> 39052
A52: 39053 | B52: حسن بن جعفر بن حسن آل عواد | C52: 1 | D52: كيمياء 2 الشعبة 3 | E52: 314 - معمل كيمياء | F52: إنجليزي 3 الشعبة 3 | G52: 208 - إنجليزي | H52: رياضيات 3 الشعبة 3 | I52: 310 - رياضيات | J52: توحيد 1 الشعبة 4 | K52: 202 - إسلامية | L52: عربي 3 الشعبة 4 | M52: 204 - عربي | N52: أحياء 2 الشعبة 3 | O52: 214 - معمل أحياء | P52: بدنية الشعبة 3 | Q52: 401 - الصالة الرياضية | R52: 2 | S52: بدنية الشعبة 3 | T52: 401 - الصالة الرياضية | U52: كيمياء 2 الشعبة 3 | V52: 314 - معمل كيمياء | W52: إنجليزي 3 الشعبة 3 | X52: 208 - إنجليزي | Y52: رياضيات 3 الشعبة 3 | Z52: 310 - رياضيات | AA52: توحيد 1 الشعبة 4 | AB52: 202 - إسلامية | AC52: عربي 3 الشعبة 4 | AD52: 204 - عربي | AE52: أحياء 2 الشعبة 3 | AF52: 214 - معمل أحياء | AG52: 3 | AH52: أحياء 2 الشعبة 3 | AI52: 214 - معمل أحياء | AJ52: بدنية الشعبة 3 | AK52: 401 - الصالة الرياضية | AL52: كيمياء 2 الشعبة 3 | AM52: 314 - معمل كيمياء | AN52: إنجليزي 3 الشعبة 3 | AO52: 208 - إنجليزي | AP52: رياضيات 3 الشعبة 3 | AQ52: 310 - رياضيات | AR52: توحيد 1 الشعبة 4 | AS52: 202 - إسلامية | AT52: عربي 3 الشعبة 4 | AU52: 204 - عربي | AV52: 4 | AW52: عربي 3 الشعبة 4 | AX52: 204 - عربي | AY52: أحياء 2 الشعبة 3 | AZ52: 214 - معمل أحياء | BA52: بدنية الشعبة 3 | BB52: 401 - الصالة الرياضية | BC52: كيمياء 2 الشعبة 3 | BD52: 314 - معمل كيمياء | BE52: إنجليزي 3 الشعبة 3 | BF52: 208 - إنجليزي | BG52: رياضيات 3 الشعبة 3 | BH52: 310 - رياضيات | BI52: توحيد 1 الشعبة 4 | BJ52: 202 - إسلامية | BK52: 5 | BL52: توحيد 1 الشعبة 4 | BM52: 202 - إسلامية | BN52: عربي 3 الشعبة 4 | BO52: 204 - عربي | BP52: أحياء 2 الشعبة 3 | BQ52: 214 - معمل أحياء | BR52: بدنية الشعبة 3 | BS52: 401 - الصالة الرياضية | BT52: كيمياء 2 الشعبة 3 | BU52: 314 - معمل كيمياء | BV52: إنجليزي 3 الشعبة 3 | BW52: 208 - إنجليزي | BX52: رياضيات 3 الشعبة 3 | BY52: 310 - رياضيات | BZ52: =_ِAll[[#This Row],[0]] -> 39053
A53: 39054 | B53: حسن بن عباس بن علي آل اجزير | C53: 1 | D53: كيمياء 2 الشعبة 4 | E53: 302 - كيمياء | F53: أحياء 2 الشعبة 4 | G53: 214 - معمل أحياء | H53: بدنية الشعبة 4 | I53: 401 - الصالة الرياضية | J53: توحيد 1 الشعبة 4 | K53: 202 - إسلامية | L53: عربي 3 الشعبة 4 | M53: 204 - عربي | N53: رياضيات 3 الشعبة 4 | O53: 306 - مهارات نفسية | P53: إنجليزي 3 الشعبة 4 | Q53: 208 - إنجليزي | R53: 2 | S53: إنجليزي 3 الشعبة 4 | T53: 208 - إنجليزي | U53: كيمياء 2 الشعبة 4 | V53: 302 - كيمياء | W53: أحياء 2 الشعبة 4 | X53: 214 - معمل أحياء | Y53: بدنية الشعبة 4 | Z53: 401 - الصالة الرياضية | AA53: توحيد 1 الشعبة 4 | AB53: 202 - إسلامية | AC53: عربي 3 الشعبة 4 | AD53: 204 - عربي | AE53: رياضيات 3 الشعبة 4 | AF53: 306 - مهارات نفسية | AG53: 3 | AH53: رياضيات 3 الشعبة 4 | AI53: 306 - مهارات نفسية | AJ53: إنجليزي 3 الشعبة 4 | AK53: 208 - إنجليزي | AL53: كيمياء 2 الشعبة 4 | AM53: 302 - كيمياء | AN53: أحياء 2 الشعبة 4 | AO53: 214 - معمل أحياء | AP53: بدنية الشعبة 4 | AQ53: 401 - الصالة الرياضية | AR53: توحيد 1 الشعبة 4 | AS53: 202 - إسلامية | AT53: عربي 3 الشعبة 4 | AU53: 204 - عربي | AV53: 4 | AW53: عربي 3 الشعبة 4 | AX53: 204 - عربي | AY53: رياضيات 3 الشعبة 4 | AZ53: 306 - مهارات نفسية | BA53: إنجليزي 3 الشعبة 4 | BB53: 208 - إنجليزي | BC53: كيمياء 2 الشعبة 4 | BD53: 302 - كيمياء | BE53: أحياء 2 الشعبة 4 | BF53: 214 - معمل أحياء | BG53: بدنية الشعبة 4 | BH53: 401 - الصالة الرياضية | BI53: توحيد 1 الشعبة 4 | BJ53: 202 - إسلامية | BK53: 5 | BL53: توحيد 1 الشعبة 4 | BM53: 202 - إسلامية | BN53: عربي 3 الشعبة 4 | BO53: 204 - عربي | BP53: رياضيات 3 الشعبة 4 | BQ53: 306 - مهارات نفسية | BR53: إنجليزي 3 الشعبة 4 | BS53: 208 - إنجليزي | BT53: كيمياء 2 الشعبة 4 | BU53: 302 - كيمياء | BV53: أحياء 2 الشعبة 4 | BW53: 214 - معمل أحياء | BX53: بدنية الشعبة 4 | BY53: 401 - الصالة الرياضية | BZ53: =_ِAll[[#This Row],[0]] -> 39054
A54: 39055 | B54: حسين بن ممدوح بن علي القديحي | C54: 1 | D54: كيمياء 2 الشعبة 4 | E54: 302 - كيمياء | F54: إنجليزي 3 الشعبة 3 | G54: 208 - إنجليزي | H54: رياضيات 3 الشعبة 3 | I54: 310 - رياضيات | J54: عربي 3 الشعبة 3 | K54: 204 - عربي | L54: توحيد 1 الشعبة 3 | M54: 310 - رياضيات | N54: أحياء 2 الشعبة 3 | O54: 214 - معمل أحياء | P54: بدنية الشعبة 3 | Q54: 401 - الصالة الرياضية | R54: 2 | S54: بدنية الشعبة 3 | T54: 401 - الصالة الرياضية | U54: كيمياء 2 الشعبة 4 | V54: 302 - كيمياء | W54: إنجليزي 3 الشعبة 3 | X54: 208 - إنجليزي | Y54: رياضيات 3 الشعبة 3 | Z54: 310 - رياضيات | AA54: عربي 3 الشعبة 3 | AB54: 204 - عربي | AC54: توحيد 1 الشعبة 3 | AD54: 310 - رياضيات | AE54: أحياء 2 الشعبة 3 | AF54: 214 - معمل أحياء | AG54: 3 | AH54: أحياء 2 الشعبة 3 | AI54: 214 - معمل أحياء | AJ54: بدنية الشعبة 3 | AK54: 401 - الصالة الرياضية | AL54: كيمياء 2 الشعبة 4 | AM54: 302 - كيمياء | AN54: إنجليزي 3 الشعبة 3 | AO54: 208 - إنجليزي | AP54: رياضيات 3 الشعبة 3 | AQ54: 310 - رياضيات | AR54: عربي 3 الشعبة 3 | AS54: 204 - عربي | AT54: توحيد 1 الشعبة 3 | AU54: 310 - رياضيات | AV54: 4 | AW54: توحيد 1 الشعبة 3 | AX54: 310 - رياضيات | AY54: أحياء 2 الشعبة 3 | AZ54: 214 - معمل أحياء | BA54: بدنية الشعبة 3 | BB54: 401 - الصالة الرياضية | BC54: كيمياء 2 الشعبة 4 | BD54: 302 - كيمياء | BE54: إنجليزي 3 الشعبة 3 | BF54: 208 - إنجليزي | BG54: رياضيات 3 الشعبة 3 | BH54: 310 - رياضيات | BI54: عربي 3 الشعبة 3 | BJ54: 204 - عربي | BK54: 5 | BL54: عربي 3 الشعبة 3 | BM54: 204 - عربي | BN54: توحيد 1 الشعبة 3 | BO54: 310 - رياضيات | BP54: أحياء 2 الشعبة 3 | BQ54: 214 - معمل أحياء | BR54: بدنية الشعبة 3 | BS54: 401 - الصالة الرياضية | BT54: كيمياء 2 الشعبة 4 | BU54: 302 - كيمياء | BV54: إنجليزي 3 الشعبة 3 | BW54: 208 - إنجليزي | BX54: رياضيات 3 الشعبة 3 | BY54: 310 - رياضيات | BZ54: =_ِAll[[#This Row],[0]] -> 39055
A55: 39056 | B55: حيدر بن جعفر بن عبدالله الثواب | C55: 1 | F55: إنجليزي 3 الشعبة 3 | G55: 208 - إنجليزي | J55: عربي 3 الشعبة 3 | K55: 204 - عربي | L55: حديث 1 الشعبة 2 | M55: 202 - إسلامية | N55: أحياء 2 الشعبة 3 | O55: 214 - معمل أحياء | P55: بدنية الشعبة 3 | Q55: 401 - الصالة الرياضية | R55: 2 | S55: بدنية الشعبة 3 | T55: 401 - الصالة الرياضية | W55: إنجليزي 3 الشعبة 3 | X55: 208 - إنجليزي | AA55: عربي 3 الشعبة 3 | AB55: 204 - عربي | AC55: حديث 1 الشعبة 2 | AD55: 202 - إسلامية | AE55: أحياء 2 الشعبة 3 | AF55: 214 - معمل أحياء | AG55: 3 | AH55: أحياء 2 الشعبة 3 | AI55: 214 - معمل أحياء | AJ55: بدنية الشعبة 3 | AK55: 401 - الصالة الرياضية | AN55: إنجليزي 3 الشعبة 3 | AO55: 208 - إنجليزي | AR55: عربي 3 الشعبة 3 | AS55: 204 - عربي | AT55: حديث 1 الشعبة 2 | AU55: 202 - إسلامية | AV55: 4 | AW55: حديث 1 الشعبة 2 | AX55: 202 - إسلامية | AY55: أحياء 2 الشعبة 3 | AZ55: 214 - معمل أحياء | BA55: بدنية الشعبة 3 | BB55: 401 - الصالة الرياضية | BE55: إنجليزي 3 الشعبة 3 | BF55: 208 - إنجليزي | BI55: عربي 3 الشعبة 3 | BJ55: 204 - عربي | BK55: 5 | BL55: عربي 3 الشعبة 3 | BM55: 204 - عربي | BN55: حديث 1 الشعبة 2 | BO55: 202 - إسلامية | BP55: أحياء 2 الشعبة 3 | BQ55: 214 - معمل أحياء | BR55: بدنية الشعبة 3 | BS55: 401 - الصالة الرياضية | BV55: إنجليزي 3 الشعبة 3 | BW55: 208 - إنجليزي | BZ55: =_ِAll[[#This Row],[0]] -> 39056
A56: 39057 | B56: حيدر بن فايز بن علي الزاير | C56: 1 | D56: فيزياء 2 الشعبة 2 | E56: 207 - فيزياء | F56: أحياء 2 الشعبة 4 | G56: 214 - معمل أحياء | H56: حاسب 2 الشعبة 2 | I56: معمل حاسب | J56: عربي 3 الشعبة 3 | K56: 204 - عربي | L56: حديث 1 الشعبة 2 | M56: 202 - إسلامية | N56: رياضيات 3 الشعبة 4 | O56: 306 - مهارات نفسية | P56: إنجليزي 3 الشعبة 2 | Q56: 307 - إنجليزي | R56: 2 | S56: إنجليزي 3 الشعبة 2 | T56: 307 - إنجليزي | U56: فيزياء 2 الشعبة 2 | V56: 207 - فيزياء | W56: أحياء 2 الشعبة 4 | X56: 214 - معمل أحياء | Y56: حاسب 2 الشعبة 2 | Z56: معمل حاسب | AA56: عربي 3 الشعبة 3 | AB56: 204 - عربي | AC56: حديث 1 الشعبة 2 | AD56: 202 - إسلامية | AE56: رياضيات 3 الشعبة 4 | AF56: 306 - مهارات نفسية | AG56: 3 | AH56: رياضيات 3 الشعبة 4 | AI56: 306 - مهارات نفسية | AJ56: إنجليزي 3 الشعبة 2 | AK56: 307 - إنجليزي | AL56: فيزياء 2 الشعبة 2 | AM56: 207 - فيزياء | AN56: أحياء 2 الشعبة 4 | AO56: 214 - معمل أحياء | AP56: حاسب 2 الشعبة 2 | AQ56: معمل حاسب | AR56: عربي 3 الشعبة 3 | AS56: 204 - عربي | AT56: حديث 1 الشعبة 2 | AU56: 202 - إسلامية | AV56: 4 | AW56: حديث 1 الشعبة 2 | AX56: 202 - إسلامية | AY56: رياضيات 3 الشعبة 4 | AZ56: 306 - مهارات نفسية | BA56: إنجليزي 3 الشعبة 2 | BB56: 307 - إنجليزي | BC56: فيزياء 2 الشعبة 2 | BD56: 207 - فيزياء | BE56: أحياء 2 الشعبة 4 | BF56: 214 - معمل أحياء | BG56: حاسب 2 الشعبة 2 | BH56: معمل حاسب | BI56: عربي 3 الشعبة 3 | BJ56: 204 - عربي | BK56: 5 | BL56: عربي 3 الشعبة 3 | BM56: 204 - عربي | BN56: حديث 1 الشعبة 2 | BO56: 202 - إسلامية | BP56: رياضيات 3 الشعبة 4 | BQ56: 306 - مهارات نفسية | BR56: إنجليزي 3 الشعبة 2 | BS56: 307 - إنجليزي | BT56: فيزياء 2 الشعبة 2 | BU56: 207 - فيزياء | BV56: أحياء 2 الشعبة 4 | BW56: 214 - معمل أحياء | BX56: حاسب 2 الشعبة 2 | BY56: معمل حاسب | BZ56: =_ِAll[[#This Row],[0]] -> 39057
A57: 39058 | B57: صالح بن عبدالله بن صالح آل حمزه | C57: 1 | H57: بدنية الشعبة 4 | I57: 401 - الصالة الرياضية | J57: توحيد 1 الشعبة 4 | K57: 202 - إسلامية | L57: عربي 3 الشعبة 4 | M57: 204 - عربي | N57: أحياء 2 الشعبة 3 | O57: 214 - معمل أحياء | P57: إنجليزي 3 الشعبة 4 | Q57: 208 - إنجليزي | R57: 2 | S57: إنجليزي 3 الشعبة 4 | T57: 208 - إنجليزي | Y57: بدنية الشعبة 4 | Z57: 401 - الصالة الرياضية | AA57: توحيد 1 الشعبة 4 | AB57: 202 - إسلامية | AC57: عربي 3 الشعبة 4 | AD57: 204 - عربي | AE57: أحياء 2 الشعبة 3 | AF57: 214 - معمل أحياء | AG57: 3 | AH57: أحياء 2 الشعبة 3 | AI57: 214 - معمل أحياء | AJ57: إنجليزي 3 الشعبة 4 | AK57: 208 - إنجليزي | AP57: بدنية الشعبة 4 | AQ57: 401 - الصالة الرياضية | AR57: توحيد 1 الشعبة 4 | AS57: 202 - إسلامية | AT57: عربي 3 الشعبة 4 | AU57: 204 - عربي | AV57: 4 | AW57: عربي 3 الشعبة 4 | AX57: 204 - عربي | AY57: أحياء 2 الشعبة 3 | AZ57: 214 - معمل أحياء | BA57: إنجليزي 3 الشعبة 4 | BB57: 208 - إنجليزي | BG57: بدنية الشعبة 4 | BH57: 401 - الصالة الرياضية | BI57: توحيد 1 الشعبة 4 | BJ57: 202 - إسلامية | BK57: 5 | BL57: توحيد 1 الشعبة 4 | BM57: 202 - إسلامية | BN57: عربي 3 الشعبة 4 | BO57: 204 - عربي | BP57: أحياء 2 الشعبة 3 | BQ57: 214 - معمل أحياء | BR57: إنجليزي 3 الشعبة 4 | BS57: 208 - إنجليزي | BX57: بدنية الشعبة 4 | BY57: 401 - الصالة الرياضية | BZ57: =_ِAll[[#This Row],[0]] -> 39058
A58: 39059 | B58: عبدالله بن سعيد بن عبدالله الثواب | C58: 1 | F58: إنجليزي 3 الشعبة 3 | G58: 208 - إنجليزي | J58: عربي 3 الشعبة 3 | K58: 204 - عربي | L58: توحيد 1 الشعبة 3 | M58: 310 - رياضيات | N58: أحياء 2 الشعبة 3 | O58: 214 - معمل أحياء | P58: بدنية الشعبة 3 | Q58: 401 - الصالة الرياضية | R58: 2 | S58: بدنية الشعبة 3 | T58: 401 - الصالة الرياضية | W58: إنجليزي 3 الشعبة 3 | X58: 208 - إنجليزي | AA58: عربي 3 الشعبة 3 | AB58: 204 - عربي | AC58: توحيد 1 الشعبة 3 | AD58: 310 - رياضيات | AE58: أحياء 2 الشعبة 3 | AF58: 214 - معمل أحياء | AG58: 3 | AH58: أحياء 2 الشعبة 3 | AI58: 214 - معمل أحياء | AJ58: بدنية الشعبة 3 | AK58: 401 - الصالة الرياضية | AN58: إنجليزي 3 الشعبة 3 | AO58: 208 - إنجليزي | AR58: عربي 3 الشعبة 3 | AS58: 204 - عربي | AT58: توحيد 1 الشعبة 3 | AU58: 310 - رياضيات | AV58: 4 | AW58: توحيد 1 الشعبة 3 | AX58: 310 - رياضيات | AY58: أحياء 2 الشعبة 3 | AZ58: 214 - معمل أحياء | BA58: بدنية الشعبة 3 | BB58: 401 - الصالة الرياضية | BE58: إنجليزي 3 الشعبة 3 | BF58: 208 - إنجليزي | BI58: عربي 3 الشعبة 3 | BJ58: 204 - عربي | BK58: 5 | BL58: عربي 3 الشعبة 3 | BM58: 204 - عربي | BN58: توحيد 1 الشعبة 3 | BO58: 310 - رياضيات | BP58: أحياء 2 الشعبة 3 | BQ58: 214 - معمل أحياء | BR58: بدنية الشعبة 3 | BS58: 401 - الصالة الرياضية | BV58: إنجليزي 3 الشعبة 3 | BW58: 208 - إنجليزي | BZ58: =_ِAll[[#This Row],[0]] -> 39059
A59: 39060 | B59: عبدالله بن فيصل بن سعود حمود | C59: 1 | D59: فيزياء 2 الشعبة 2 | E59: 207 - فيزياء | F59: أحياء 2 الشعبة 4 | G59: 214 - معمل أحياء | H59: حاسب 2 الشعبة 2 | I59: معمل حاسب | J59: عربي 3 الشعبة 3 | K59: 204 - عربي | L59: حديث 1 الشعبة 2 | M59: 202 - إسلامية | N59: رياضيات 3 الشعبة 4 | O59: 306 - مهارات نفسية | P59: إنجليزي 3 الشعبة 2 | Q59: 307 - إنجليزي | R59: 2 | S59: إنجليزي 3 الشعبة 2 | T59: 307 - إنجليزي | U59: فيزياء 2 الشعبة 2 | V59: 207 - فيزياء | W59: أحياء 2 الشعبة 4 | X59: 214 - معمل أحياء | Y59: حاسب 2 الشعبة 2 | Z59: معمل حاسب | AA59: عربي 3 الشعبة 3 | AB59: 204 - عربي | AC59: حديث 1 الشعبة 2 | AD59: 202 - إسلامية | AE59: رياضيات 3 الشعبة 4 | AF59: 306 - مهارات نفسية | AG59: 3 | AH59: رياضيات 3 الشعبة 4 | AI59: 306 - مهارات نفسية | AJ59: إنجليزي 3 الشعبة 2 | AK59: 307 - إنجليزي | AL59: فيزياء 2 الشعبة 2 | AM59: 207 - فيزياء | AN59: أحياء 2 الشعبة 4 | AO59: 214 - معمل أحياء | AP59: حاسب 2 الشعبة 2 | AQ59: معمل حاسب | AR59: عربي 3 الشعبة 3 | AS59: 204 - عربي | AT59: حديث 1 الشعبة 2 | AU59: 202 - إسلامية | AV59: 4 | AW59: حديث 1 الشعبة 2 | AX59: 202 - إسلامية | AY59: رياضيات 3 الشعبة 4 | AZ59: 306 - مهارات نفسية | BA59: إنجليزي 3 الشعبة 2 | BB59: 307 - إنجليزي | BC59: فيزياء 2 الشعبة 2 | BD59: 207 - فيزياء | BE59: أحياء 2 الشعبة 4 | BF59: 214 - معمل أحياء | BG59: حاسب 2 الشعبة 2 | BH59: معمل حاسب | BI59: عربي 3 الشعبة 3 | BJ59: 204 - عربي | BK59: 5 | BL59: عربي 3 الشعبة 3 | BM59: 204 - عربي | BN59: حديث 1 الشعبة 2 | BO59: 202 - إسلامية | BP59: رياضيات 3 الشعبة 4 | BQ59: 306 - مهارات نفسية | BR59: إنجليزي 3 الشعبة 2 | BS59: 307 - إنجليزي | BT59: فيزياء 2 الشعبة 2 | BU59: 207 - فيزياء | BV59: أحياء 2 الشعبة 4 | BW59: 214 - معمل أحياء | BX59: حاسب 2 الشعبة 2 | BY59: معمل حاسب | BZ59: =_ِAll[[#This Row],[0]] -> 39060
A60: 39061 | B60: علي بن عون بن علي العويوي | C60: 1 | D60: فيزياء 2 الشعبة 2 | E60: 207 - فيزياء | F60: أحياء 2 الشعبة 4 | G60: 214 - معمل أحياء | H60: حاسب 2 الشعبة 2 | I60: معمل حاسب | J60: عربي 3 الشعبة 3 | K60: 204 - عربي | L60: حديث 1 الشعبة 2 | M60: 202 - إسلامية | N60: رياضيات 3 الشعبة 4 | O60: 306 - مهارات نفسية | P60: إنجليزي 3 الشعبة 2 | Q60: 307 - إنجليزي | R60: 2 | S60: إنجليزي 3 الشعبة 2 | T60: 307 - إنجليزي | U60: فيزياء 2 الشعبة 2 | V60: 207 - فيزياء | W60: أحياء 2 الشعبة 4 | X60: 214 - معمل أحياء | Y60: حاسب 2 الشعبة 2 | Z60: معمل حاسب | AA60: عربي 3 الشعبة 3 | AB60: 204 - عربي | AC60: حديث 1 الشعبة 2 | AD60: 202 - إسلامية | AE60: رياضيات 3 الشعبة 4 | AF60: 306 - مهارات نفسية | AG60: 3 | AH60: رياضيات 3 الشعبة 4 | AI60: 306 - مهارات نفسية | AJ60: إنجليزي 3 الشعبة 2 | AK60: 307 - إنجليزي | AL60: فيزياء 2 الشعبة 2 | AM60: 207 - فيزياء | AN60: أحياء 2 الشعبة 4 | AO60: 214 - معمل أحياء | AP60: حاسب 2 الشعبة 2 | AQ60: معمل حاسب | AR60: عربي 3 الشعبة 3 | AS60: 204 - عربي | AT60: حديث 1 الشعبة 2 | AU60: 202 - إسلامية | AV60: 4 | AW60: حديث 1 الشعبة 2 | AX60: 202 - إسلامية | AY60: رياضيات 3 الشعبة 4 | AZ60: 306 - مهارات نفسية | BA60: إنجليزي 3 الشعبة 2 | BB60: 307 - إنجليزي | BC60: فيزياء 2 الشعبة 2 | BD60: 207 - فيزياء | BE60: أحياء 2 الشعبة 4 | BF60: 214 - معمل أحياء | BG60: حاسب 2 الشعبة 2 | BH60: معمل حاسب | BI60: عربي 3 الشعبة 3 | BJ60: 204 - عربي | BK60: 5 | BL60: عربي 3 الشعبة 3 | BM60: 204 - عربي | BN60: حديث 1 الشعبة 2 | BO60: 202 - إسلامية | BP60: رياضيات 3 الشعبة 4 | BQ60: 306 - مهارات نفسية | BR60: إنجليزي 3 الشعبة 2 | BS60: 307 - إنجليزي | BT60: فيزياء 2 الشعبة 2 | BU60: 207 - فيزياء | BV60: أحياء 2 الشعبة 4 | BW60: 214 - معمل أحياء | BX60: حاسب 2 الشعبة 2 | BY60: معمل حاسب | BZ60: =_ِAll[[#This Row],[0]] -> 39061
A61: 39062 | B61: فاضل بن عباس بن علي الغريافي | C61: 1 | D61: فيزياء 2 الشعبة 2 | E61: 207 - فيزياء | F61: إنجليزي 3 الشعبة 3 | G61: 208 - إنجليزي | H61: رياضيات 3 الشعبة 3 | I61: 310 - رياضيات | J61: توحيد 1 الشعبة 4 | K61: 202 - إسلامية | L61: عربي 3 الشعبة 4 | M61: 204 - عربي | N61: أحياء 2 الشعبة 3 | O61: 214 - معمل أحياء | P61: بدنية الشعبة 3 | Q61: 401 - الصالة الرياضية | R61: 2 | S61: بدنية الشعبة 3 | T61: 401 - الصالة الرياضية | U61: فيزياء 2 الشعبة 2 | V61: 207 - فيزياء | W61: إنجليزي 3 الشعبة 3 | X61: 208 - إنجليزي | Y61: رياضيات 3 الشعبة 3 | Z61: 310 - رياضيات | AA61: توحيد 1 الشعبة 4 | AB61: 202 - إسلامية | AC61: عربي 3 الشعبة 4 | AD61: 204 - عربي | AE61: أحياء 2 الشعبة 3 | AF61: 214 - معمل أحياء | AG61: 3 | AH61: أحياء 2 الشعبة 3 | AI61: 214 - معمل أحياء | AJ61: بدنية الشعبة 3 | AK61: 401 - الصالة الرياضية | AL61: فيزياء 2 الشعبة 2 | AM61: 207 - فيزياء | AN61: إنجليزي 3 الشعبة 3 | AO61: 208 - إنجليزي | AP61: رياضيات 3 الشعبة 3 | AQ61: 310 - رياضيات | AR61: توحيد 1 الشعبة 4 | AS61: 202 - إسلامية | AT61: عربي 3 الشعبة 4 | AU61: 204 - عربي | AV61: 4 | AW61: عربي 3 الشعبة 4 | AX61: 204 - عربي | AY61: أحياء 2 الشعبة 3 | AZ61: 214 - معمل أحياء | BA61: بدنية الشعبة 3 | BB61: 401 - الصالة الرياضية | BC61: فيزياء 2 الشعبة 2 | BD61: 207 - فيزياء | BE61: إنجليزي 3 الشعبة 3 | BF61: 208 - إنجليزي | BG61: رياضيات 3 الشعبة 3 | BH61: 310 - رياضيات | BI61: توحيد 1 الشعبة 4 | BJ61: 202 - إسلامية | BK61: 5 | BL61: توحيد 1 الشعبة 4 | BM61: 202 - إسلامية | BN61: عربي 3 الشعبة 4 | BO61: 204 - عربي | BP61: أحياء 2 الشعبة 3 | BQ61: 214 - معمل أحياء | BR61: بدنية الشعبة 3 | BS61: 401 - الصالة الرياضية | BT61: فيزياء 2 الشعبة 2 | BU61: 207 - فيزياء | BV61: إنجليزي 3 الشعبة 3 | BW61: 208 - إنجليزي | BX61: رياضيات 3 الشعبة 3 | BY61: 310 - رياضيات | BZ61: =_ِAll[[#This Row],[0]] -> 39062
A62: 39063 | B62: محسن بن جعفر بن عبدالمحسن العبدالمحسن | C62: 1 | D62: فيزياء 2 الشعبة 2 | E62: 207 - فيزياء | F62: أحياء 2 الشعبة 4 | G62: 214 - معمل أحياء | H62: حاسب 2 الشعبة 2 | I62: معمل حاسب | J62: عربي 3 الشعبة 3 | K62: 204 - عربي | L62: حديث 1 الشعبة 2 | M62: 202 - إسلامية | N62: رياضيات 3 الشعبة 2 | O62: 301 - فيزياء | P62: إنجليزي 3 الشعبة 2 | Q62: 307 - إنجليزي | R62: 2 | S62: إنجليزي 3 الشعبة 2 | T62: 307 - إنجليزي | U62: فيزياء 2 الشعبة 2 | V62: 207 - فيزياء | W62: أحياء 2 الشعبة 4 | X62: 214 - معمل أحياء | Y62: حاسب 2 الشعبة 2 | Z62: معمل حاسب | AA62: عربي 3 الشعبة 3 | AB62: 204 - عربي | AC62: حديث 1 الشعبة 2 | AD62: 202 - إسلامية | AE62: رياضيات 3 الشعبة 2 | AF62: 301 - فيزياء | AG62: 3 | AH62: رياضيات 3 الشعبة 2 | AI62: 301 - فيزياء | AJ62: إنجليزي 3 الشعبة 2 | AK62: 307 - إنجليزي | AL62: فيزياء 2 الشعبة 2 | AM62: 207 - فيزياء | AN62: أحياء 2 الشعبة 4 | AO62: 214 - معمل أحياء | AP62: حاسب 2 الشعبة 2 | AQ62: معمل حاسب | AR62: عربي 3 الشعبة 3 | AS62: 204 - عربي | AT62: حديث 1 الشعبة 2 | AU62: 202 - إسلامية | AV62: 4 | AW62: حديث 1 الشعبة 2 | AX62: 202 - إسلامية | AY62: رياضيات 3 الشعبة 2 | AZ62: 301 - فيزياء | BA62: إنجليزي 3 الشعبة 2 | BB62: 307 - إنجليزي | BC62: فيزياء 2 الشعبة 2 | BD62: 207 - فيزياء | BE62: أحياء 2 الشعبة 4 | BF62: 214 - معمل أحياء | BG62: حاسب 2 الشعبة 2 | BH62: معمل حاسب | BI62: عربي 3 الشعبة 3 | BJ62: 204 - عربي | BK62: 5 | BL62: عربي 3 الشعبة 3 | BM62: 204 - عربي | BN62: حديث 1 الشعبة 2 | BO62: 202 - إسلامية | BP62: رياضيات 3 الشعبة 2 | BQ62: 301 - فيزياء | BR62: إنجليزي 3 الشعبة 2 | BS62: 307 - إنجليزي | BT62: فيزياء 2 الشعبة 2 | BU62: 207 - فيزياء | BV62: أحياء 2 الشعبة 4 | BW62: 214 - معمل أحياء | BX62: حاسب 2 الشعبة 2 | BY62: معمل حاسب | BZ62: =_ِAll[[#This Row],[0]] -> 39063
A63: 39064 | B63: محسن بن علي بن عبدالله آل نهاب | C63: 1 | D63: كيمياء 2 الشعبة 4 | E63: 302 - كيمياء | F63: إنجليزي 3 الشعبة 3 | G63: 208 - إنجليزي | H63: حاسب 2 الشعبة 2 | I63: معمل حاسب | J63: توحيد 1 الشعبة 4 | K63: 202 - إسلامية | L63: عربي 3 الشعبة 4 | M63: 204 - عربي | N63: رياضيات 3 الشعبة 4 | O63: 306 - مهارات نفسية | P63: بدنية الشعبة 3 | Q63: 401 - الصالة الرياضية | R63: 2 | S63: بدنية الشعبة 3 | T63: 401 - الصالة الرياضية | U63: كيمياء 2 الشعبة 4 | V63: 302 - كيمياء | W63: إنجليزي 3 الشعبة 3 | X63: 208 - إنجليزي | Y63: حاسب 2 الشعبة 2 | Z63: معمل حاسب | AA63: توحيد 1 الشعبة 4 | AB63: 202 - إسلامية | AC63: عربي 3 الشعبة 4 | AD63: 204 - عربي | AE63: رياضيات 3 الشعبة 4 | AF63: 306 - مهارات نفسية | AG63: 3 | AH63: رياضيات 3 الشعبة 4 | AI63: 306 - مهارات نفسية | AJ63: بدنية الشعبة 3 | AK63: 401 - الصالة الرياضية | AL63: كيمياء 2 الشعبة 4 | AM63: 302 - كيمياء | AN63: إنجليزي 3 الشعبة 3 | AO63: 208 - إنجليزي | AP63: حاسب 2 الشعبة 2 | AQ63: معمل حاسب | AR63: توحيد 1 الشعبة 4 | AS63: 202 - إسلامية | AT63: عربي 3 الشعبة 4 | AU63: 204 - عربي | AV63: 4 | AW63: عربي 3 الشعبة 4 | AX63: 204 - عربي | AY63: رياضيات 3 الشعبة 4 | AZ63: 306 - مهارات نفسية | BA63: بدنية الشعبة 3 | BB63: 401 - الصالة الرياضية | BC63: كيمياء 2 الشعبة 4 | BD63: 302 - كيمياء | BE63: إنجليزي 3 الشعبة 3 | BF63: 208 - إنجليزي | BG63: حاسب 2 الشعبة 2 | BH63: معمل حاسب | BI63: توحيد 1 الشعبة 4 | BJ63: 202 - إسلامية | BK63: 5 | BL63: توحيد 1 الشعبة 4 | BM63: 202 - إسلامية | BN63: عربي 3 الشعبة 4 | BO63: 204 - عربي | BP63: رياضيات 3 الشعبة 4 | BQ63: 306 - مهارات نفسية | BR63: بدنية الشعبة 3 | BS63: 401 - الصالة الرياضية | BT63: كيمياء 2 الشعبة 4 | BU63: 302 - كيمياء | BV63: إنجليزي 3 الشعبة 3 | BW63: 208 - إنجليزي | BX63: حاسب 2 الشعبة 2 | BY63: معمل حاسب | BZ63: =_ِAll[[#This Row],[0]] -> 39064
A64: 39065 | B64: محمد بن ابراهيم بن احمد الراشد | C64: 1 | D64: فيزياء 2 الشعبة 2 | E64: 207 - فيزياء | F64: مهنية الشعبة 2 | G64: 209 - علوم إدارية | H64: بدنية الشعبة 4 | I64: 401 - الصالة الرياضية | J64: توحيد 1 الشعبة 4 | K64: 202 - إسلامية | L64: عربي 3 الشعبة 4 | M64: 204 - عربي | N64: رياضيات 1 الشعبة 2 | O64: 310 - رياضيات | P64: إنجليزي 3 الشعبة 2 | Q64: 307 - إنجليزي | R64: 2 | S64: إنجليزي 3 الشعبة 2 | T64: 307 - إنجليزي | U64: فيزياء 2 الشعبة 2 | V64: 207 - فيزياء | W64: مهنية الشعبة 2 | X64: 209 - علوم إدارية | Y64: بدنية الشعبة 4 | Z64: 401 - الصالة الرياضية | AA64: توحيد 1 الشعبة 4 | AB64: 202 - إسلامية | AC64: عربي 3 الشعبة 4 | AD64: 204 - عربي | AE64: رياضيات 1 الشعبة 2 | AF64: 310 - رياضيات | AG64: 3 | AH64: رياضيات 1 الشعبة 2 | AI64: 310 - رياضيات | AJ64: إنجليزي 3 الشعبة 2 | AK64: 307 - إنجليزي | AL64: فيزياء 2 الشعبة 2 | AM64: 207 - فيزياء | AN64: مهنية الشعبة 2 | AO64: 209 - علوم إدارية | AP64: بدنية الشعبة 4 | AQ64: 401 - الصالة الرياضية | AR64: توحيد 1 الشعبة 4 | AS64: 202 - إسلامية | AT64: عربي 3 الشعبة 4 | AU64: 204 - عربي | AV64: 4 | AW64: عربي 3 الشعبة 4 | AX64: 204 - عربي | AY64: رياضيات 1 الشعبة 2 | AZ64: 310 - رياضيات | BA64: إنجليزي 3 الشعبة 2 | BB64: 307 - إنجليزي | BC64: فيزياء 2 الشعبة 2 | BD64: 207 - فيزياء | BE64: مهنية الشعبة 2 | BF64: 209 - علوم إدارية | BG64: بدنية الشعبة 4 | BH64: 401 - الصالة الرياضية | BI64: توحيد 1 الشعبة 4 | BJ64: 202 - إسلامية | BK64: 5 | BL64: توحيد 1 الشعبة 4 | BM64: 202 - إسلامية | BN64: عربي 3 الشعبة 4 | BO64: 204 - عربي | BP64: رياضيات 1 الشعبة 2 | BQ64: 310 - رياضيات | BR64: إنجليزي 3 الشعبة 2 | BS64: 307 - إنجليزي | BT64: فيزياء 2 الشعبة 2 | BU64: 207 - فيزياء | BV64: مهنية الشعبة 2 | BW64: 209 - علوم إدارية | BX64: بدنية الشعبة 4 | BY64: 401 - الصالة الرياضية | BZ64: =_ِAll[[#This Row],[0]] -> 39065
A65: 39066 | B65: محمد بن ابراهيم بن حسن الضيف | C65: 1 | H65: بدنية الشعبة 4 | I65: 401 - الصالة الرياضية | J65: عربي 3 الشعبة 3 | K65: 204 - عربي | L65: حديث 1 الشعبة 2 | M65: 202 - إسلامية | N65: أحياء 2 الشعبة 3 | O65: 214 - معمل أحياء | P65: إنجليزي 3 الشعبة 4 | Q65: 208 - إنجليزي | R65: 2 | S65: إنجليزي 3 الشعبة 4 | T65: 208 - إنجليزي | Y65: بدنية الشعبة 4 | Z65: 401 - الصالة الرياضية | AA65: عربي 3 الشعبة 3 | AB65: 204 - عربي | AC65: حديث 1 الشعبة 2 | AD65: 202 - إسلامية | AE65: أحياء 2 الشعبة 3 | AF65: 214 - معمل أحياء | AG65: 3 | AH65: أحياء 2 الشعبة 3 | AI65: 214 - معمل أحياء | AJ65: إنجليزي 3 الشعبة 4 | AK65: 208 - إنجليزي | AP65: بدنية الشعبة 4 | AQ65: 401 - الصالة الرياضية | AR65: عربي 3 الشعبة 3 | AS65: 204 - عربي | AT65: حديث 1 الشعبة 2 | AU65: 202 - إسلامية | AV65: 4 | AW65: حديث 1 الشعبة 2 | AX65: 202 - إسلامية | AY65: أحياء 2 الشعبة 3 | AZ65: 214 - معمل أحياء | BA65: إنجليزي 3 الشعبة 4 | BB65: 208 - إنجليزي | BG65: بدنية الشعبة 4 | BH65: 401 - الصالة الرياضية | BI65: عربي 3 الشعبة 3 | BJ65: 204 - عربي | BK65: 5 | BL65: عربي 3 الشعبة 3 | BM65: 204 - عربي | BN65: حديث 1 الشعبة 2 | BO65: 202 - إسلامية | BP65: أحياء 2 الشعبة 3 | BQ65: 214 - معمل أحياء | BR65: إنجليزي 3 الشعبة 4 | BS65: 208 - إنجليزي | BX65: بدنية الشعبة 4 | BY65: 401 - الصالة الرياضية | BZ65: =_ِAll[[#This Row],[0]] -> 39066
A66: 39067 | B66: محمد بن سعيد بن صالح المسبح | C66: 1 | D66: كيمياء 2 الشعبة 3 | E66: 314 - معمل كيمياء | F66: مهنية الشعبة 2 | G66: 209 - علوم إدارية | H66: بدنية الشعبة 4 | I66: 401 - الصالة الرياضية | J66: عربي 3 الشعبة 2 | K66: 209 - علوم إدارية | L66: توحيد 1 الشعبة 3 | M66: 310 - رياضيات | N66: رياضيات 3 الشعبة 4 | O66: 306 - مهارات نفسية | P66: إنجليزي 3 الشعبة 4 | Q66: 208 - إنجليزي | R66: 2 | S66: إنجليزي 3 الشعبة 4 | T66: 208 - إنجليزي | U66: كيمياء 2 الشعبة 3 | V66: 314 - معمل كيمياء | W66: مهنية الشعبة 2 | X66: 209 - علوم إدارية | Y66: بدنية الشعبة 4 | Z66: 401 - الصالة الرياضية | AA66: عربي 3 الشعبة 2 | AB66: 209 - علوم إدارية | AC66: توحيد 1 الشعبة 3 | AD66: 310 - رياضيات | AE66: رياضيات 3 الشعبة 4 | AF66: 306 - مهارات نفسية | AG66: 3 | AH66: رياضيات 3 الشعبة 4 | AI66: 306 - مهارات نفسية | AJ66: إنجليزي 3 الشعبة 4 | AK66: 208 - إنجليزي | AL66: كيمياء 2 الشعبة 3 | AM66: 314 - معمل كيمياء | AN66: مهنية الشعبة 2 | AO66: 209 - علوم إدارية | AP66: بدنية الشعبة 4 | AQ66: 401 - الصالة الرياضية | AR66: عربي 3 الشعبة 2 | AS66: 209 - علوم إدارية | AT66: توحيد 1 الشعبة 3 | AU66: 310 - رياضيات | AV66: 4 | AW66: توحيد 1 الشعبة 3 | AX66: 310 - رياضيات | AY66: رياضيات 3 الشعبة 4 | AZ66: 306 - مهارات نفسية | BA66: إنجليزي 3 الشعبة 4 | BB66: 208 - إنجليزي | BC66: كيمياء 2 الشعبة 3 | BD66: 314 - معمل كيمياء | BE66: مهنية الشعبة 2 | BF66: 209 - علوم إدارية | BG66: بدنية الشعبة 4 | BH66: 401 - الصالة الرياضية | BI66: عربي 3 الشعبة 2 | BJ66: 209 - علوم إدارية | BK66: 5 | BL66: عربي 3 الشعبة 2 | BM66: 209 - علوم إدارية | BN66: توحيد 1 الشعبة 3 | BO66: 310 - رياضيات | BP66: رياضيات 3 الشعبة 4 | BQ66: 306 - مهارات نفسية | BR66: إنجليزي 3 الشعبة 4 | BS66: 208 - إنجليزي | BT66: كيمياء 2 الشعبة 3 | BU66: 314 - معمل كيمياء | BV66: مهنية الشعبة 2 | BW66: 209 - علوم إدارية | BX66: بدنية الشعبة 4 | BY66: 401 - الصالة الرياضية | BZ66: =_ِAll[[#This Row],[0]] -> 39067
A67: 39068 | B67: محمد بن صالح بن كاظم القصاب | C67: 1 | D67: كيمياء 2 الشعبة 4 | E67: 302 - كيمياء | F67: أحياء 2 الشعبة 4 | G67: 214 - معمل أحياء | H67: بدنية الشعبة 4 | I67: 401 - الصالة الرياضية | J67: عربي 3 الشعبة 3 | K67: 204 - عربي | L67: توحيد 1 الشعبة 3 | M67: 310 - رياضيات | N67: رياضيات 3 الشعبة 4 | O67: 306 - مهارات نفسية | P67: إنجليزي 3 الشعبة 4 | Q67: 208 - إنجليزي | R67: 2 | S67: إنجليزي 3 الشعبة 4 | T67: 208 - إنجليزي | U67: كيمياء 2 الشعبة 4 | V67: 302 - كيمياء | W67: أحياء 2 الشعبة 4 | X67: 214 - معمل أحياء | Y67: بدنية الشعبة 4 | Z67: 401 - الصالة الرياضية | AA67: عربي 3 الشعبة 3 | AB67: 204 - عربي | AC67: توحيد 1 الشعبة 3 | AD67: 310 - رياضيات | AE67: رياضيات 3 الشعبة 4 | AF67: 306 - مهارات نفسية | AG67: 3 | AH67: رياضيات 3 الشعبة 4 | AI67: 306 - مهارات نفسية | AJ67: إنجليزي 3 الشعبة 4 | AK67: 208 - إنجليزي | AL67: كيمياء 2 الشعبة 4 | AM67: 302 - كيمياء | AN67: أحياء 2 الشعبة 4 | AO67: 214 - معمل أحياء | AP67: بدنية الشعبة 4 | AQ67: 401 - الصالة الرياضية | AR67: عربي 3 الشعبة 3 | AS67: 204 - عربي | AT67: توحيد 1 الشعبة 3 | AU67: 310 - رياضيات | AV67: 4 | AW67: توحيد 1 الشعبة 3 | AX67: 310 - رياضيات | AY67: رياضيات 3 الشعبة 4 | AZ67: 306 - مهارات نفسية | BA67: إنجليزي 3 الشعبة 4 | BB67: 208 - إنجليزي | BC67: كيمياء 2 الشعبة 4 | BD67: 302 - كيمياء | BE67: أحياء 2 الشعبة 4 | BF67: 214 - معمل أحياء | BG67: بدنية الشعبة 4 | BH67: 401 - الصالة الرياضية | BI67: عربي 3 الشعبة 3 | BJ67: 204 - عربي | BK67: 5 | BL67: عربي 3 الشعبة 3 | BM67: 204 - عربي | BN67: توحيد 1 الشعبة 3 | BO67: 310 - رياضيات | BP67: رياضيات 3 الشعبة 4 | BQ67: 306 - مهارات نفسية | BR67: إنجليزي 3 الشعبة 4 | BS67: 208 - إنجليزي | BT67: كيمياء 2 الشعبة 4 | BU67: 302 - كيمياء | BV67: أحياء 2 الشعبة 4 | BW67: 214 - معمل أحياء | BX67: بدنية الشعبة 4 | BY67: 401 - الصالة الرياضية | BZ67: =_ِAll[[#This Row],[0]] -> 39068
A68: 39070 | B68: محمد بن منير بن مكي آل رمضان | C68: 1 | D68: فيزياء 2 الشعبة 2 | E68: 207 - فيزياء | F68: مهنية الشعبة 2 | G68: 209 - علوم إدارية | H68: بدنية الشعبة 4 | I68: 401 - الصالة الرياضية | J68: عربي 3 الشعبة 2 | K68: 209 - علوم إدارية | L68: توحيد 1 الشعبة 3 | M68: 310 - رياضيات | N68: رياضيات 3 الشعبة 4 | O68: 306 - مهارات نفسية | P68: إنجليزي 3 الشعبة 4 | Q68: 208 - إنجليزي | R68: 2 | S68: إنجليزي 3 الشعبة 4 | T68: 208 - إنجليزي | U68: فيزياء 2 الشعبة 2 | V68: 207 - فيزياء | W68: مهنية الشعبة 2 | X68: 209 - علوم إدارية | Y68: بدنية الشعبة 4 | Z68: 401 - الصالة الرياضية | AA68: عربي 3 الشعبة 2 | AB68: 209 - علوم إدارية | AC68: توحيد 1 الشعبة 3 | AD68: 310 - رياضيات | AE68: رياضيات 3 الشعبة 4 | AF68: 306 - مهارات نفسية | AG68: 3 | AH68: رياضيات 3 الشعبة 4 | AI68: 306 - مهارات نفسية | AJ68: إنجليزي 3 الشعبة 4 | AK68: 208 - إنجليزي | AL68: فيزياء 2 الشعبة 2 | AM68: 207 - فيزياء | AN68: مهنية الشعبة 2 | AO68: 209 - علوم إدارية | AP68: بدنية الشعبة 4 | AQ68: 401 - الصالة الرياضية | AR68: عربي 3 الشعبة 2 | AS68: 209 - علوم إدارية | AT68: توحيد 1 الشعبة 3 | AU68: 310 - رياضيات | AV68: 4 | AW68: توحيد 1 الشعبة 3 | AX68: 310 - رياضيات | AY68: رياضيات 3 الشعبة 4 | AZ68: 306 - مهارات نفسية | BA68: إنجليزي 3 الشعبة 4 | BB68: 208 - إنجليزي | BC68: فيزياء 2 الشعبة 2 | BD68: 207 - فيزياء | BE68: مهنية الشعبة 2 | BF68: 209 - علوم إدارية | BG68: بدنية الشعبة 4 | BH68: 401 - الصالة الرياضية | BI68: عربي 3 الشعبة 2 | BJ68: 209 - علوم إدارية | BK68: 5 | BL68: عربي 3 الشعبة 2 | BM68: 209 - علوم إدارية | BN68: توحيد 1 الشعبة 3 | BO68: 310 - رياضيات | BP68: رياضيات 3 الشعبة 4 | BQ68: 306 - مهارات نفسية | BR68: إنجليزي 3 الشعبة 4 | BS68: 208 - إنجليزي | BT68: فيزياء 2 الشعبة 2 | BU68: 207 - فيزياء | BV68: مهنية الشعبة 2 | BW68: 209 - علوم إدارية | BX68: بدنية الشعبة 4 | BY68: 401 - الصالة الرياضية | BZ68: =_ِAll[[#This Row],[0]] -> 39070
A69: 39071 | B69: محمد نور صلاح الدين عثمان محمد | C69: 1 | D69: كيمياء 2 الشعبة 3 | E69: 314 - معمل كيمياء | F69: إنجليزي 3 الشعبة 3 | G69: 208 - إنجليزي | H69: رياضيات 3 الشعبة 3 | I69: 310 - رياضيات | J69: توحيد 1 الشعبة 4 | K69: 202 - إسلامية | L69: عربي 3 الشعبة 4 | M69: 204 - عربي | N69: أحياء 2 الشعبة 3 | O69: 214 - معمل أحياء | P69: بدنية الشعبة 3 | Q69: 401 - الصالة الرياضية | R69: 2 | S69: بدنية الشعبة 3 | T69: 401 - الصالة الرياضية | U69: كيمياء 2 الشعبة 3 | V69: 314 - معمل كيمياء | W69: إنجليزي 3 الشعبة 3 | X69: 208 - إنجليزي | Y69: رياضيات 3 الشعبة 3 | Z69: 310 - رياضيات | AA69: توحيد 1 الشعبة 4 | AB69: 202 - إسلامية | AC69: عربي 3 الشعبة 4 | AD69: 204 - عربي | AE69: أحياء 2 الشعبة 3 | AF69: 214 - معمل أحياء | AG69: 3 | AH69: أحياء 2 الشعبة 3 | AI69: 214 - معمل أحياء | AJ69: بدنية الشعبة 3 | AK69: 401 - الصالة الرياضية | AL69: كيمياء 2 الشعبة 3 | AM69: 314 - معمل كيمياء | AN69: إنجليزي 3 الشعبة 3 | AO69: 208 - إنجليزي | AP69: رياضيات 3 الشعبة 3 | AQ69: 310 - رياضيات | AR69: توحيد 1 الشعبة 4 | AS69: 202 - إسلامية | AT69: عربي 3 الشعبة 4 | AU69: 204 - عربي | AV69: 4 | AW69: عربي 3 الشعبة 4 | AX69: 204 - عربي | AY69: أحياء 2 الشعبة 3 | AZ69: 214 - معمل أحياء | BA69: بدنية الشعبة 3 | BB69: 401 - الصالة الرياضية | BC69: كيمياء 2 الشعبة 3 | BD69: 314 - معمل كيمياء | BE69: إنجليزي 3 الشعبة 3 | BF69: 208 - إنجليزي | BG69: رياضيات 3 الشعبة 3 | BH69: 310 - رياضيات | BI69: توحيد 1 الشعبة 4 | BJ69: 202 - إسلامية | BK69: 5 | BL69: توحيد 1 الشعبة 4 | BM69: 202 - إسلامية | BN69: عربي 3 الشعبة 4 | BO69: 204 - عربي | BP69: أحياء 2 الشعبة 3 | BQ69: 214 - معمل أحياء | BR69: بدنية الشعبة 3 | BS69: 401 - الصالة الرياضية | BT69: كيمياء 2 الشعبة 3 | BU69: 314 - معمل كيمياء | BV69: إنجليزي 3 الشعبة 3 | BW69: 208 - إنجليزي | BX69: رياضيات 3 الشعبة 3 | BY69: 310 - رياضيات | BZ69: =_ِAll[[#This Row],[0]] -> 39071
A70: 39072 | B70: منتظر بن عون بن علي آل ضاحي | C70: 1 | D70: كيمياء 2 الشعبة 4 | E70: 302 - كيمياء | F70: مهنية الشعبة 2 | G70: 209 - علوم إدارية | H70: حاسب 2 الشعبة 2 | I70: معمل حاسب | J70: عربي 3 الشعبة 3 | K70: 204 - عربي | L70: حديث 1 الشعبة 2 | M70: 202 - إسلامية | N70: رياضيات 3 الشعبة 4 | O70: 306 - مهارات نفسية | P70: إنجليزي 3 الشعبة 2 | Q70: 307 - إنجليزي | R70: 2 | S70: إنجليزي 3 الشعبة 2 | T70: 307 - إنجليزي | U70: كيمياء 2 الشعبة 4 | V70: 302 - كيمياء | W70: مهنية الشعبة 2 | X70: 209 - علوم إدارية | Y70: حاسب 2 الشعبة 2 | Z70: معمل حاسب | AA70: عربي 3 الشعبة 3 | AB70: 204 - عربي | AC70: حديث 1 الشعبة 2 | AD70: 202 - إسلامية | AE70: رياضيات 3 الشعبة 4 | AF70: 306 - مهارات نفسية | AG70: 3 | AH70: رياضيات 3 الشعبة 4 | AI70: 306 - مهارات نفسية | AJ70: إنجليزي 3 الشعبة 2 | AK70: 307 - إنجليزي | AL70: كيمياء 2 الشعبة 4 | AM70: 302 - كيمياء | AN70: مهنية الشعبة 2 | AO70: 209 - علوم إدارية | AP70: حاسب 2 الشعبة 2 | AQ70: معمل حاسب | AR70: عربي 3 الشعبة 3 | AS70: 204 - عربي | AT70: حديث 1 الشعبة 2 | AU70: 202 - إسلامية | AV70: 4 | AW70: حديث 1 الشعبة 2 | AX70: 202 - إسلامية | AY70: رياضيات 3 الشعبة 4 | AZ70: 306 - مهارات نفسية | BA70: إنجليزي 3 الشعبة 2 | BB70: 307 - إنجليزي | BC70: كيمياء 2 الشعبة 4 | BD70: 302 - كيمياء | BE70: مهنية الشعبة 2 | BF70: 209 - علوم إدارية | BG70: حاسب 2 الشعبة 2 | BH70: معمل حاسب | BI70: عربي 3 الشعبة 3 | BJ70: 204 - عربي | BK70: 5 | BL70: عربي 3 الشعبة 3 | BM70: 204 - عربي | BN70: حديث 1 الشعبة 2 | BO70: 202 - إسلامية | BP70: رياضيات 3 الشعبة 4 | BQ70: 306 - مهارات نفسية | BR70: إنجليزي 3 الشعبة 2 | BS70: 307 - إنجليزي | BT70: كيمياء 2 الشعبة 4 | BU70: 302 - كيمياء | BV70: مهنية الشعبة 2 | BW70: 209 - علوم إدارية | BX70: حاسب 2 الشعبة 2 | BY70: معمل حاسب | BZ70: =_ِAll[[#This Row],[0]] -> 39072
A71: 39073 | B71: هادي بن علي بن عبدالله آل حمد | C71: 1 | D71: كيمياء 2 الشعبة 3 | E71: 314 - معمل كيمياء | F71: مهنية الشعبة 2 | G71: 209 - علوم إدارية | H71: حاسب 2 الشعبة 2 | I71: معمل حاسب | J71: عربي 3 الشعبة 2 | K71: 209 - علوم إدارية | L71: حديث 1 الشعبة 2 | M71: 202 - إسلامية | N71: رياضيات 3 الشعبة 2 | O71: 301 - فيزياء | P71: إنجليزي 3 الشعبة 4 | Q71: 208 - إنجليزي | R71: 2 | S71: إنجليزي 3 الشعبة 4 | T71: 208 - إنجليزي | U71: كيمياء 2 الشعبة 3 | V71: 314 - معمل كيمياء | W71: مهنية الشعبة 2 | X71: 209 - علوم إدارية | Y71: حاسب 2 الشعبة 2 | Z71: معمل حاسب | AA71: عربي 3 الشعبة 2 | AB71: 209 - علوم إدارية | AC71: حديث 1 الشعبة 2 | AD71: 202 - إسلامية | AE71: رياضيات 3 الشعبة 2 | AF71: 301 - فيزياء | AG71: 3 | AH71: رياضيات 3 الشعبة 2 | AI71: 301 - فيزياء | AJ71: إنجليزي 3 الشعبة 4 | AK71: 208 - إنجليزي | AL71: كيمياء 2 الشعبة 3 | AM71: 314 - معمل كيمياء | AN71: مهنية الشعبة 2 | AO71: 209 - علوم إدارية | AP71: حاسب 2 الشعبة 2 | AQ71: معمل حاسب | AR71: عربي 3 الشعبة 2 | AS71: 209 - علوم إدارية | AT71: حديث 1 الشعبة 2 | AU71: 202 - إسلامية | AV71: 4 | AW71: حديث 1 الشعبة 2 | AX71: 202 - إسلامية | AY71: رياضيات 3 الشعبة 2 | AZ71: 301 - فيزياء | BA71: إنجليزي 3 الشعبة 4 | BB71: 208 - إنجليزي | BC71: كيمياء 2 الشعبة 3 | BD71: 314 - معمل كيمياء | BE71: مهنية الشعبة 2 | BF71: 209 - علوم إدارية | BG71: حاسب 2 الشعبة 2 | BH71: معمل حاسب | BI71: عربي 3 الشعبة 2 | BJ71: 209 - علوم إدارية | BK71: 5 | BL71: عربي 3 الشعبة 2 | BM71: 209 - علوم إدارية | BN71: حديث 1 الشعبة 2 | BO71: 202 - إسلامية | BP71: رياضيات 3 الشعبة 2 | BQ71: 301 - فيزياء | BR71: إنجليزي 3 الشعبة 4 | BS71: 208 - إنجليزي | BT71: كيمياء 2 الشعبة 3 | BU71: 314 - معمل كيمياء | BV71: مهنية الشعبة 2 | BW71: 209 - علوم إدارية | BX71: حاسب 2 الشعبة 2 | BY71: معمل حاسب | BZ71: =_ِAll[[#This Row],[0]] -> 39073
A72: 39074 | B72: إبراهيم بن جمال بن منصور الدهان | C72: 1 | D72: كيمياء 2 الشعبة 3 | E72: 314 - معمل كيمياء | F72: مهنية الشعبة 2 | G72: 209 - علوم إدارية | H72: حاسب 2 الشعبة 2 | I72: معمل حاسب | J72: عربي 3 الشعبة 3 | K72: 204 - عربي | L72: حديث 1 الشعبة 2 | M72: 202 - إسلامية | N72: رياضيات 3 الشعبة 4 | O72: 306 - مهارات نفسية | P72: إنجليزي 3 الشعبة 4 | Q72: 208 - إنجليزي | R72: 2 | S72: إنجليزي 3 الشعبة 4 | T72: 208 - إنجليزي | U72: كيمياء 2 الشعبة 3 | V72: 314 - معمل كيمياء | W72: مهنية الشعبة 2 | X72: 209 - علوم إدارية | Y72: حاسب 2 الشعبة 2 | Z72: معمل حاسب | AA72: عربي 3 الشعبة 3 | AB72: 204 - عربي | AC72: حديث 1 الشعبة 2 | AD72: 202 - إسلامية | AE72: رياضيات 3 الشعبة 4 | AF72: 306 - مهارات نفسية | AG72: 3 | AH72: رياضيات 3 الشعبة 4 | AI72: 306 - مهارات نفسية | AJ72: إنجليزي 3 الشعبة 4 | AK72: 208 - إنجليزي | AL72: كيمياء 2 الشعبة 3 | AM72: 314 - معمل كيمياء | AN72: مهنية الشعبة 2 | AO72: 209 - علوم إدارية | AP72: حاسب 2 الشعبة 2 | AQ72: معمل حاسب | AR72: عربي 3 الشعبة 3 | AS72: 204 - عربي | AT72: حديث 1 الشعبة 2 | AU72: 202 - إسلامية | AV72: 4 | AW72: حديث 1 الشعبة 2 | AX72: 202 - إسلامية | AY72: رياضيات 3 الشعبة 4 | AZ72: 306 - مهارات نفسية | BA72: إنجليزي 3 الشعبة 4 | BB72: 208 - إنجليزي | BC72: كيمياء 2 الشعبة 3 | BD72: 314 - معمل كيمياء | BE72: مهنية الشعبة 2 | BF72: 209 - علوم إدارية | BG72: حاسب 2 الشعبة 2 | BH72: معمل حاسب | BI72: عربي 3 الشعبة 3 | BJ72: 204 - عربي | BK72: 5 | BL72: عربي 3 الشعبة 3 | BM72: 204 - عربي | BN72: حديث 1 الشعبة 2 | BO72: 202 - إسلامية | BP72: رياضيات 3 الشعبة 4 | BQ72: 306 - مهارات نفسية | BR72: إنجليزي 3 الشعبة 4 | BS72: 208 - إنجليزي | BT72: كيمياء 2 الشعبة 3 | BU72: 314 - معمل كيمياء | BV72: مهنية الشعبة 2 | BW72: 209 - علوم إدارية | BX72: حاسب 2 الشعبة 2 | BY72: معمل حاسب | BZ72: =_ِAll[[#This Row],[0]] -> 39074
A73: 39076 | B73: أحمد بن علي بن عبدالله غزوي | C73: 1 | D73: كيمياء 2 الشعبة 3 | E73: 314 - معمل كيمياء | F73: أحياء 2 الشعبة 4 | G73: 214 - معمل أحياء | H73: حاسب 2 الشعبة 2 | I73: معمل حاسب | J73: عربي 3 الشعبة 2 | K73: 209 - علوم إدارية | L73: توحيد 1 الشعبة 3 | M73: 310 - رياضيات | N73: رياضيات 3 الشعبة 2 | O73: 301 - فيزياء | P73: إنجليزي 3 الشعبة 2 | Q73: 307 - إنجليزي | R73: 2 | S73: إنجليزي 3 الشعبة 2 | T73: 307 - إنجليزي | U73: كيمياء 2 الشعبة 3 | V73: 314 - معمل كيمياء | W73: أحياء 2 الشعبة 4 | X73: 214 - معمل أحياء | Y73: حاسب 2 الشعبة 2 | Z73: معمل حاسب | AA73: عربي 3 الشعبة 2 | AB73: 209 - علوم إدارية | AC73: توحيد 1 الشعبة 3 | AD73: 310 - رياضيات | AE73: رياضيات 3 الشعبة 2 | AF73: 301 - فيزياء | AG73: 3 | AH73: رياضيات 3 الشعبة 2 | AI73: 301 - فيزياء | AJ73: إنجليزي 3 الشعبة 2 | AK73: 307 - إنجليزي | AL73: كيمياء 2 الشعبة 3 | AM73: 314 - معمل كيمياء | AN73: أحياء 2 الشعبة 4 | AO73: 214 - معمل أحياء | AP73: حاسب 2 الشعبة 2 | AQ73: معمل حاسب | AR73: عربي 3 الشعبة 2 | AS73: 209 - علوم إدارية | AT73: توحيد 1 الشعبة 3 | AU73: 310 - رياضيات | AV73: 4 | AW73: توحيد 1 الشعبة 3 | AX73: 310 - رياضيات | AY73: رياضيات 3 الشعبة 2 | AZ73: 301 - فيزياء | BA73: إنجليزي 3 الشعبة 2 | BB73: 307 - إنجليزي | BC73: كيمياء 2 الشعبة 3 | BD73: 314 - معمل كيمياء | BE73: أحياء 2 الشعبة 4 | BF73: 214 - معمل أحياء | BG73: حاسب 2 الشعبة 2 | BH73: معمل حاسب | BI73: عربي 3 الشعبة 2 | BJ73: 209 - علوم إدارية | BK73: 5 | BL73: عربي 3 الشعبة 2 | BM73: 209 - علوم إدارية | BN73: توحيد 1 الشعبة 3 | BO73: 310 - رياضيات | BP73: رياضيات 3 الشعبة 2 | BQ73: 301 - فيزياء | BR73: إنجليزي 3 الشعبة 2 | BS73: 307 - إنجليزي | BT73: كيمياء 2 الشعبة 3 | BU73: 314 - معمل كيمياء | BV73: أحياء 2 الشعبة 4 | BW73: 214 - معمل أحياء | BX73: حاسب 2 الشعبة 2 | BY73: معمل حاسب | BZ73: =_ِAll[[#This Row],[0]] -> 39076
A74: 39077 | B74: جاسم بن محمد بن صالح 5 | C74: 1 | D74: فيزياء 2 الشعبة 2 | E74: 207 - فيزياء | F74: مهنية الشعبة 2 | G74: 209 - علوم إدارية | H74: بدنية الشعبة 4 | I74: 401 - الصالة الرياضية | J74: عربي 3 الشعبة 3 | K74: 204 - عربي | L74: توحيد 1 الشعبة 3 | M74: 310 - رياضيات | N74: رياضيات 3 الشعبة 4 | O74: 306 - مهارات نفسية | P74: إنجليزي 3 الشعبة 4 | Q74: 208 - إنجليزي | R74: 2 | S74: إنجليزي 3 الشعبة 4 | T74: 208 - إنجليزي | U74: فيزياء 2 الشعبة 2 | V74: 207 - فيزياء | W74: مهنية الشعبة 2 | X74: 209 - علوم إدارية | Y74: بدنية الشعبة 4 | Z74: 401 - الصالة الرياضية | AA74: عربي 3 الشعبة 3 | AB74: 204 - عربي | AC74: توحيد 1 الشعبة 3 | AD74: 310 - رياضيات | AE74: رياضيات 3 الشعبة 4 | AF74: 306 - مهارات نفسية | AG74: 3 | AH74: رياضيات 3 الشعبة 4 | AI74: 306 - مهارات نفسية | AJ74: إنجليزي 3 الشعبة 4 | AK74: 208 - إنجليزي | AL74: فيزياء 2 الشعبة 2 | AM74: 207 - فيزياء | AN74: مهنية الشعبة 2 | AO74: 209 - علوم إدارية | AP74: بدنية الشعبة 4 | AQ74: 401 - الصالة الرياضية | AR74: عربي 3 الشعبة 3 | AS74: 204 - عربي | AT74: توحيد 1 الشعبة 3 | AU74: 310 - رياضيات | AV74: 4 | AW74: توحيد 1 الشعبة 3 | AX74: 310 - رياضيات | AY74: رياضيات 3 الشعبة 4 | AZ74: 306 - مهارات نفسية | BA74: إنجليزي 3 الشعبة 4 | BB74: 208 - إنجليزي | BC74: فيزياء 2 الشعبة 2 | BD74: 207 - فيزياء | BE74: مهنية الشعبة 2 | BF74: 209 - علوم إدارية | BG74: بدنية الشعبة 4 | BH74: 401 - الصالة الرياضية | BI74: عربي 3 الشعبة 3 | BJ74: 204 - عربي | BK74: 5 | BL74: عربي 3 الشعبة 3 | BM74: 204 - عربي | BN74: توحيد 1 الشعبة 3 | BO74: 310 - رياضيات | BP74: رياضيات 3 الشعبة 4 | BQ74: 306 - مهارات نفسية | BR74: إنجليزي 3 الشعبة 4 | BS74: 208 - إنجليزي | BT74: فيزياء 2 الشعبة 2 | BU74: 207 - فيزياء | BV74: مهنية الشعبة 2 | BW74: 209 - علوم إدارية | BX74: بدنية الشعبة 4 | BY74: 401 - الصالة الرياضية | BZ74: =_ِAll[[#This Row],[0]] -> 39077
A75: 39079 | B75: حسن بن غسان بن حسن حماده | C75: 1 | D75: فيزياء 2 الشعبة 2 | E75: 207 - فيزياء | F75: أحياء 2 الشعبة 4 | G75: 214 - معمل أحياء | H75: بدنية الشعبة 4 | I75: 401 - الصالة الرياضية | J75: عربي 3 الشعبة 3 | K75: 204 - عربي | L75: حديث 1 الشعبة 2 | M75: 202 - إسلامية | P75: إنجليزي 3 الشعبة 4 | Q75: 208 - إنجليزي | R75: 2 | S75: إنجليزي 3 الشعبة 4 | T75: 208 - إنجليزي | U75: فيزياء 2 الشعبة 2 | V75: 207 - فيزياء | W75: أحياء 2 الشعبة 4 | X75: 214 - معمل أحياء | Y75: بدنية الشعبة 4 | Z75: 401 - الصالة الرياضية | AA75: عربي 3 الشعبة 3 | AB75: 204 - عربي | AC75: حديث 1 الشعبة 2 | AD75: 202 - إسلامية | AG75: 3 | AJ75: إنجليزي 3 الشعبة 4 | AK75: 208 - إنجليزي | AL75: فيزياء 2 الشعبة 2 | AM75: 207 - فيزياء | AN75: أحياء 2 الشعبة 4 | AO75: 214 - معمل أحياء | AP75: بدنية الشعبة 4 | AQ75: 401 - الصالة الرياضية | AR75: عربي 3 الشعبة 3 | AS75: 204 - عربي | AT75: حديث 1 الشعبة 2 | AU75: 202 - إسلامية | AV75: 4 | AW75: حديث 1 الشعبة 2 | AX75: 202 - إسلامية | BA75: إنجليزي 3 الشعبة 4 | BB75: 208 - إنجليزي | BC75: فيزياء 2 الشعبة 2 | BD75: 207 - فيزياء | BE75: أحياء 2 الشعبة 4 | BF75: 214 - معمل أحياء | BG75: بدنية الشعبة 4 | BH75: 401 - الصالة الرياضية | BI75: عربي 3 الشعبة 3 | BJ75: 204 - عربي | BK75: 5 | BL75: عربي 3 الشعبة 3 | BM75: 204 - عربي | BN75: حديث 1 الشعبة 2 | BO75: 202 - إسلامية | BR75: إنجليزي 3 الشعبة 4 | BS75: 208 - إنجليزي | BT75: فيزياء 2 الشعبة 2 | BU75: 207 - فيزياء | BV75: أحياء 2 الشعبة 4 | BW75: 214 - معمل أحياء | BX75: بدنية الشعبة 4 | BY75: 401 - الصالة الرياضية | BZ75: =_ِAll[[#This Row],[0]] -> 39079
A76: 39080 | B76: حسن بن مكي بن منصور آل ضاحي | C76: 1 | D76: كيمياء 2 الشعبة 3 | E76: 314 - معمل كيمياء | F76: مهنية الشعبة 2 | G76: 209 - علوم إدارية | H76: حاسب 2 الشعبة 2 | I76: معمل حاسب | J76: عربي 3 الشعبة 2 | K76: 209 - علوم إدارية | L76: توحيد 1 الشعبة 3 | M76: 310 - رياضيات | N76: رياضيات 3 الشعبة 2 | O76: 301 - فيزياء | P76: إنجليزي 3 الشعبة 2 | Q76: 307 - إنجليزي | R76: 2 | S76: إنجليزي 3 الشعبة 2 | T76: 307 - إنجليزي | U76: كيمياء 2 الشعبة 3 | V76: 314 - معمل كيمياء | W76: مهنية الشعبة 2 | X76: 209 - علوم إدارية | Y76: حاسب 2 الشعبة 2 | Z76: معمل حاسب | AA76: عربي 3 الشعبة 2 | AB76: 209 - علوم إدارية | AC76: توحيد 1 الشعبة 3 | AD76: 310 - رياضيات | AE76: رياضيات 3 الشعبة 2 | AF76: 301 - فيزياء | AG76: 3 | AH76: رياضيات 3 الشعبة 2 | AI76: 301 - فيزياء | AJ76: إنجليزي 3 الشعبة 2 | AK76: 307 - إنجليزي | AL76: كيمياء 2 الشعبة 3 | AM76: 314 - معمل كيمياء | AN76: مهنية الشعبة 2 | AO76: 209 - علوم إدارية | AP76: حاسب 2 الشعبة 2 | AQ76: معمل حاسب | AR76: عربي 3 الشعبة 2 | AS76: 209 - علوم إدارية | AT76: توحيد 1 الشعبة 3 | AU76: 310 - رياضيات | AV76: 4 | AW76: توحيد 1 الشعبة 3 | AX76: 310 - رياضيات | AY76: رياضيات 3 الشعبة 2 | AZ76: 301 - فيزياء | BA76: إنجليزي 3 الشعبة 2 | BB76: 307 - إنجليزي | BC76: كيمياء 2 الشعبة 3 | BD76: 314 - معمل كيمياء | BE76: مهنية الشعبة 2 | BF76: 209 - علوم إدارية | BG76: حاسب 2 الشعبة 2 | BH76: معمل حاسب | BI76: عربي 3 الشعبة 2 | BJ76: 209 - علوم إدارية | BK76: 5 | BL76: عربي 3 الشعبة 2 | BM76: 209 - علوم إدارية | BN76: توحيد 1 الشعبة 3 | BO76: 310 - رياضيات | BP76: رياضيات 3 الشعبة 2 | BQ76: 301 - فيزياء | BR76: إنجليزي 3 الشعبة 2 | BS76: 307 - إنجليزي | BT76: كيمياء 2 الشعبة 3 | BU76: 314 - معمل كيمياء | BV76: مهنية الشعبة 2 | BW76: 209 - علوم إدارية | BX76: حاسب 2 الشعبة 2 | BY76: معمل حاسب | BZ76: =_ِAll[[#This Row],[0]] -> 39080
A77: 39081 | B77: حسين بن مكي بن عيسى المزين | C77: 1 | D77: كيمياء 2 الشعبة 4 | E77: 302 - كيمياء | F77: أحياء 2 الشعبة 4 | G77: 214 - معمل أحياء | H77: حاسب 2 الشعبة 2 | I77: معمل حاسب | J77: عربي 3 الشعبة 2 | K77: 209 - علوم إدارية | L77: حديث 1 الشعبة 2 | M77: 202 - إسلامية | N77: رياضيات 3 الشعبة 2 | O77: 301 - فيزياء | P77: إنجليزي 3 الشعبة 4 | Q77: 208 - إنجليزي | R77: 2 | S77: إنجليزي 3 الشعبة 4 | T77: 208 - إنجليزي | U77: كيمياء 2 الشعبة 4 | V77: 302 - كيمياء | W77: أحياء 2 الشعبة 4 | X77: 214 - معمل أحياء | Y77: حاسب 2 الشعبة 2 | Z77: معمل حاسب | AA77: عربي 3 الشعبة 2 | AB77: 209 - علوم إدارية | AC77: حديث 1 الشعبة 2 | AD77: 202 - إسلامية | AE77: رياضيات 3 الشعبة 2 | AF77: 301 - فيزياء | AG77: 3 | AH77: رياضيات 3 الشعبة 2 | AI77: 301 - فيزياء | AJ77: إنجليزي 3 الشعبة 4 | AK77: 208 - إنجليزي | AL77: كيمياء 2 الشعبة 4 | AM77: 302 - كيمياء | AN77: أحياء 2 الشعبة 4 | AO77: 214 - معمل أحياء | AP77: حاسب 2 الشعبة 2 | AQ77: معمل حاسب | AR77: عربي 3 الشعبة 2 | AS77: 209 - علوم إدارية | AT77: حديث 1 الشعبة 2 | AU77: 202 - إسلامية | AV77: 4 | AW77: حديث 1 الشعبة 2 | AX77: 202 - إسلامية | AY77: رياضيات 3 الشعبة 2 | AZ77: 301 - فيزياء | BA77: إنجليزي 3 الشعبة 4 | BB77: 208 - إنجليزي | BC77: كيمياء 2 الشعبة 4 | BD77: 302 - كيمياء | BE77: أحياء 2 الشعبة 4 | BF77: 214 - معمل أحياء | BG77: حاسب 2 الشعبة 2 | BH77: معمل حاسب | BI77: عربي 3 الشعبة 2 | BJ77: 209 - علوم إدارية | BK77: 5 | BL77: عربي 3 الشعبة 2 | BM77: 209 - علوم إدارية | BN77: حديث 1 الشعبة 2 | BO77: 202 - إسلامية | BP77: رياضيات 3 الشعبة 2 | BQ77: 301 - فيزياء | BR77: إنجليزي 3 الشعبة 4 | BS77: 208 - إنجليزي | BT77: كيمياء 2 الشعبة 4 | BU77: 302 - كيمياء | BV77: أحياء 2 الشعبة 4 | BW77: 214 - معمل أحياء | BX77: حاسب 2 الشعبة 2 | BY77: معمل حاسب | BZ77: =_ِAll[[#This Row],[0]] -> 39081
A78: 39082 | B78: ساجد بن فاضل بن صالح آل حمزه | C78: 1 | D78: فيزياء 2 الشعبة 2 | E78: 207 - فيزياء | J78: توحيد 1 الشعبة 4 | K78: 202 - إسلامية | L78: عربي 3 الشعبة 4 | M78: 204 - عربي | N78: أحياء 2 الشعبة 3 | O78: 214 - معمل أحياء | P78: بدنية الشعبة 3 | Q78: 401 - الصالة الرياضية | R78: 2 | S78: بدنية الشعبة 3 | T78: 401 - الصالة الرياضية | U78: فيزياء 2 الشعبة 2 | V78: 207 - فيزياء | AA78: توحيد 1 الشعبة 4 | AB78: 202 - إسلامية | AC78: عربي 3 الشعبة 4 | AD78: 204 - عربي | AE78: أحياء 2 الشعبة 3 | AF78: 214 - معمل أحياء | AG78: 3 | AH78: أحياء 2 الشعبة 3 | AI78: 214 - معمل أحياء | AJ78: بدنية الشعبة 3 | AK78: 401 - الصالة الرياضية | AL78: فيزياء 2 الشعبة 2 | AM78: 207 - فيزياء | AR78: توحيد 1 الشعبة 4 | AS78: 202 - إسلامية | AT78: عربي 3 الشعبة 4 | AU78: 204 - عربي | AV78: 4 | AW78: عربي 3 الشعبة 4 | AX78: 204 - عربي | AY78: أحياء 2 الشعبة 3 | AZ78: 214 - معمل أحياء | BA78: بدنية الشعبة 3 | BB78: 401 - الصالة الرياضية | BC78: فيزياء 2 الشعبة 2 | BD78: 207 - فيزياء | BI78: توحيد 1 الشعبة 4 | BJ78: 202 - إسلامية | BK78: 5 | BL78: توحيد 1 الشعبة 4 | BM78: 202 - إسلامية | BN78: عربي 3 الشعبة 4 | BO78: 204 - عربي | BP78: أحياء 2 الشعبة 3 | BQ78: 214 - معمل أحياء | BR78: بدنية الشعبة 3 | BS78: 401 - الصالة الرياضية | BT78: فيزياء 2 الشعبة 2 | BU78: 207 - فيزياء | BZ78: =_ِAll[[#This Row],[0]] -> 39082
A79: 39083 | B79: سليمان بن عدنان بن سليمان العباد | C79: 1 | D79: كيمياء 2 الشعبة 4 | E79: 302 - كيمياء | F79: أحياء 2 الشعبة 4 | G79: 214 - معمل أحياء | H79: بدنية الشعبة 4 | I79: 401 - الصالة الرياضية | J79: توحيد 1 الشعبة 4 | K79: 202 - إسلامية | L79: عربي 3 الشعبة 4 | M79: 204 - عربي | N79: رياضيات 3 الشعبة 4 | O79: 306 - مهارات نفسية | P79: إنجليزي 3 الشعبة 4 | Q79: 208 - إنجليزي | R79: 2 | S79: إنجليزي 3 الشعبة 4 | T79: 208 - إنجليزي | U79: كيمياء 2 الشعبة 4 | V79: 302 - كيمياء | W79: أحياء 2 الشعبة 4 | X79: 214 - معمل أحياء | Y79: بدنية الشعبة 4 | Z79: 401 - الصالة الرياضية | AA79: توحيد 1 الشعبة 4 | AB79: 202 - إسلامية | AC79: عربي 3 الشعبة 4 | AD79: 204 - عربي | AE79: رياضيات 3 الشعبة 4 | AF79: 306 - مهارات نفسية | AG79: 3 | AH79: رياضيات 3 الشعبة 4 | AI79: 306 - مهارات نفسية | AJ79: إنجليزي 3 الشعبة 4 | AK79: 208 - إنجليزي | AL79: كيمياء 2 الشعبة 4 | AM79: 302 - كيمياء | AN79: أحياء 2 الشعبة 4 | AO79: 214 - معمل أحياء | AP79: بدنية الشعبة 4 | AQ79: 401 - الصالة الرياضية | AR79: توحيد 1 الشعبة 4 | AS79: 202 - إسلامية | AT79: عربي 3 الشعبة 4 | AU79: 204 - عربي | AV79: 4 | AW79: عربي 3 الشعبة 4 | AX79: 204 - عربي | AY79: رياضيات 3 الشعبة 4 | AZ79: 306 - مهارات نفسية | BA79: إنجليزي 3 الشعبة 4 | BB79: 208 - إنجليزي | BC79: كيمياء 2 الشعبة 4 | BD79: 302 - كيمياء | BE79: أحياء 2 الشعبة 4 | BF79: 214 - معمل أحياء | BG79: بدنية الشعبة 4 | BH79: 401 - الصالة الرياضية | BI79: توحيد 1 الشعبة 4 | BJ79: 202 - إسلامية | BK79: 5 | BL79: توحيد 1 الشعبة 4 | BM79: 202 - إسلامية | BN79: عربي 3 الشعبة 4 | BO79: 204 - عربي | BP79: رياضيات 3 الشعبة 4 | BQ79: 306 - مهارات نفسية | BR79: إنجليزي 3 الشعبة 4 | BS79: 208 - إنجليزي | BT79: كيمياء 2 الشعبة 4 | BU79: 302 - كيمياء | BV79: أحياء 2 الشعبة 4 | BW79: 214 - معمل أحياء | BX79: بدنية الشعبة 4 | BY79: 401 - الصالة الرياضية | BZ79: =_ِAll[[#This Row],[0]] -> 39083
A80: 39084 | B80: عباس بن مهدي بن علي القلاف | C80: 1 | D80: كيمياء 2 الشعبة 3 | E80: 314 - معمل كيمياء | F80: إنجليزي 3 الشعبة 3 | G80: 208 - إنجليزي | H80: رياضيات 3 الشعبة 3 | I80: 310 - رياضيات | J80: توحيد 1 الشعبة 4 | K80: 202 - إسلامية | L80: عربي 3 الشعبة 4 | M80: 204 - عربي | N80: أحياء 2 الشعبة 3 | O80: 214 - معمل أحياء | P80: بدنية الشعبة 3 | Q80: 401 - الصالة الرياضية | R80: 2 | S80: بدنية الشعبة 3 | T80: 401 - الصالة الرياضية | U80: كيمياء 2 الشعبة 3 | V80: 314 - معمل كيمياء | W80: إنجليزي 3 الشعبة 3 | X80: 208 - إنجليزي | Y80: رياضيات 3 الشعبة 3 | Z80: 310 - رياضيات | AA80: توحيد 1 الشعبة 4 | AB80: 202 - إسلامية | AC80: عربي 3 الشعبة 4 | AD80: 204 - عربي | AE80: أحياء 2 الشعبة 3 | AF80: 214 - معمل أحياء | AG80: 3 | AH80: أحياء 2 الشعبة 3 | AI80: 214 - معمل أحياء | AJ80: بدنية الشعبة 3 | AK80: 401 - الصالة الرياضية | AL80: كيمياء 2 الشعبة 3 | AM80: 314 - معمل كيمياء | AN80: إنجليزي 3 الشعبة 3 | AO80: 208 - إنجليزي | AP80: رياضيات 3 الشعبة 3 | AQ80: 310 - رياضيات | AR80: توحيد 1 الشعبة 4 | AS80: 202 - إسلامية | AT80: عربي 3 الشعبة 4 | AU80: 204 - عربي | AV80: 4 | AW80: عربي 3 الشعبة 4 | AX80: 204 - عربي | AY80: أحياء 2 الشعبة 3 | AZ80: 214 - معمل أحياء | BA80: بدنية الشعبة 3 | BB80: 401 - الصالة الرياضية | BC80: كيمياء 2 الشعبة 3 | BD80: 314 - معمل كيمياء | BE80: إنجليزي 3 الشعبة 3 | BF80: 208 - إنجليزي | BG80: رياضيات 3 الشعبة 3 | BH80: 310 - رياضيات | BI80: توحيد 1 الشعبة 4 | BJ80: 202 - إسلامية | BK80: 5 | BL80: توحيد 1 الشعبة 4 | BM80: 202 - إسلامية | BN80: عربي 3 الشعبة 4 | BO80: 204 - عربي | BP80: أحياء 2 الشعبة 3 | BQ80: 214 - معمل أحياء | BR80: بدنية الشعبة 3 | BS80: 401 - الصالة الرياضية | BT80: كيمياء 2 الشعبة 3 | BU80: 314 - معمل كيمياء | BV80: إنجليزي 3 الشعبة 3 | BW80: 208 - إنجليزي | BX80: رياضيات 3 الشعبة 3 | BY80: 310 - رياضيات | BZ80: =_ِAll[[#This Row],[0]] -> 39084
A81: 39085 | B81: عبدالحميد بن علي بن عبدالله غزوي | C81: 1 | D81: كيمياء 2 الشعبة 4 | E81: 302 - كيمياء | F81: أحياء 2 الشعبة 4 | G81: 214 - معمل أحياء | H81: حاسب 2 الشعبة 2 | I81: معمل حاسب | J81: عربي 3 الشعبة 2 | K81: 209 - علوم إدارية | L81: توحيد 1 الشعبة 3 | M81: 310 - رياضيات | N81: رياضيات 3 الشعبة 2 | O81: 301 - فيزياء | P81: إنجليزي 3 الشعبة 2 | Q81: 307 - إنجليزي | R81: 2 | S81: إنجليزي 3 الشعبة 2 | T81: 307 - إنجليزي | U81: كيمياء 2 الشعبة 4 | V81: 302 - كيمياء | W81: أحياء 2 الشعبة 4 | X81: 214 - معمل أحياء | Y81: حاسب 2 الشعبة 2 | Z81: معمل حاسب | AA81: عربي 3 الشعبة 2 | AB81: 209 - علوم إدارية | AC81: توحيد 1 الشعبة 3 | AD81: 310 - رياضيات | AE81: رياضيات 3 الشعبة 2 | AF81: 301 - فيزياء | AG81: 3 | AH81: رياضيات 3 الشعبة 2 | AI81: 301 - فيزياء | AJ81: إنجليزي 3 الشعبة 2 | AK81: 307 - إنجليزي | AL81: كيمياء 2 الشعبة 4 | AM81: 302 - كيمياء | AN81: أحياء 2 الشعبة 4 | AO81: 214 - معمل أحياء | AP81: حاسب 2 الشعبة 2 | AQ81: معمل حاسب | AR81: عربي 3 الشعبة 2 | AS81: 209 - علوم إدارية | AT81: توحيد 1 الشعبة 3 | AU81: 310 - رياضيات | AV81: 4 | AW81: توحيد 1 الشعبة 3 | AX81: 310 - رياضيات | AY81: رياضيات 3 الشعبة 2 | AZ81: 301 - فيزياء | BA81: إنجليزي 3 الشعبة 2 | BB81: 307 - إنجليزي | BC81: كيمياء 2 الشعبة 4 | BD81: 302 - كيمياء | BE81: أحياء 2 الشعبة 4 | BF81: 214 - معمل أحياء | BG81: حاسب 2 الشعبة 2 | BH81: معمل حاسب | BI81: عربي 3 الشعبة 2 | BJ81: 209 - علوم إدارية | BK81: 5 | BL81: عربي 3 الشعبة 2 | BM81: 209 - علوم إدارية | BN81: توحيد 1 الشعبة 3 | BO81: 310 - رياضيات | BP81: رياضيات 3 الشعبة 2 | BQ81: 301 - فيزياء | BR81: إنجليزي 3 الشعبة 2 | BS81: 307 - إنجليزي | BT81: كيمياء 2 الشعبة 4 | BU81: 302 - كيمياء | BV81: أحياء 2 الشعبة 4 | BW81: 214 - معمل أحياء | BX81: حاسب 2 الشعبة 2 | BY81: معمل حاسب | BZ81: =_ِAll[[#This Row],[0]] -> 39085
A82: 39086 | B82: علي بن حسن بن علي البحراني | C82: 1 | D82: فيزياء 2 الشعبة 2 | E82: 207 - فيزياء | F82: إنجليزي 3 الشعبة 3 | G82: 208 - إنجليزي | H82: رياضيات 3 الشعبة 3 | I82: 310 - رياضيات | J82: عربي 3 الشعبة 3 | K82: 204 - عربي | L82: حديث 1 الشعبة 2 | M82: 202 - إسلامية | N82: أحياء 2 الشعبة 3 | O82: 214 - معمل أحياء | P82: بدنية الشعبة 3 | Q82: 401 - الصالة الرياضية | R82: 2 | S82: بدنية الشعبة 3 | T82: 401 - الصالة الرياضية | U82: فيزياء 2 الشعبة 2 | V82: 207 - فيزياء | W82: إنجليزي 3 الشعبة 3 | X82: 208 - إنجليزي | Y82: رياضيات 3 الشعبة 3 | Z82: 310 - رياضيات | AA82: عربي 3 الشعبة 3 | AB82: 204 - عربي | AC82: حديث 1 الشعبة 2 | AD82: 202 - إسلامية | AE82: أحياء 2 الشعبة 3 | AF82: 214 - معمل أحياء | AG82: 3 | AH82: أحياء 2 الشعبة 3 | AI82: 214 - معمل أحياء | AJ82: بدنية الشعبة 3 | AK82: 401 - الصالة الرياضية | AL82: فيزياء 2 الشعبة 2 | AM82: 207 - فيزياء | AN82: إنجليزي 3 الشعبة 3 | AO82: 208 - إنجليزي | AP82: رياضيات 3 الشعبة 3 | AQ82: 310 - رياضيات | AR82: عربي 3 الشعبة 3 | AS82: 204 - عربي | AT82: حديث 1 الشعبة 2 | AU82: 202 - إسلامية | AV82: 4 | AW82: حديث 1 الشعبة 2 | AX82: 202 - إسلامية | AY82: أحياء 2 الشعبة 3 | AZ82: 214 - معمل أحياء | BA82: بدنية الشعبة 3 | BB82: 401 - الصالة الرياضية | BC82: فيزياء 2 الشعبة 2 | BD82: 207 - فيزياء | BE82: إنجليزي 3 الشعبة 3 | BF82: 208 - إنجليزي | BG82: رياضيات 3 الشعبة 3 | BH82: 310 - رياضيات | BI82: عربي 3 الشعبة 3 | BJ82: 204 - عربي | BK82: 5 | BL82: عربي 3 الشعبة 3 | BM82: 204 - عربي | BN82: حديث 1 الشعبة 2 | BO82: 202 - إسلامية | BP82: أحياء 2 الشعبة 3 | BQ82: 214 - معمل أحياء | BR82: بدنية الشعبة 3 | BS82: 401 - الصالة الرياضية | BT82: فيزياء 2 الشعبة 2 | BU82: 207 - فيزياء | BV82: إنجليزي 3 الشعبة 3 | BW82: 208 - إنجليزي | BX82: رياضيات 3 الشعبة 3 | BY82: 310 - رياضيات | BZ82: =_ِAll[[#This Row],[0]] -> 39086
A83: 39087 | B83: علي بن طالب بن علي الخضراوي | C83: 1 | F83: أحياء 2 الشعبة 4 | G83: 214 - معمل أحياء | H83: حاسب 2 الشعبة 2 | I83: معمل حاسب | J83: عربي 3 الشعبة 3 | K83: 204 - عربي | L83: حديث 1 الشعبة 2 | M83: 202 - إسلامية | P83: إنجليزي 3 الشعبة 2 | Q83: 307 - إنجليزي | R83: 2 | S83: إنجليزي 3 الشعبة 2 | T83: 307 - إنجليزي | W83: أحياء 2 الشعبة 4 | X83: 214 - معمل أحياء | Y83: حاسب 2 الشعبة 2 | Z83: معمل حاسب | AA83: عربي 3 الشعبة 3 | AB83: 204 - عربي | AC83: حديث 1 الشعبة 2 | AD83: 202 - إسلامية | AG83: 3 | AJ83: إنجليزي 3 الشعبة 2 | AK83: 307 - إنجليزي | AN83: أحياء 2 الشعبة 4 | AO83: 214 - معمل أحياء | AP83: حاسب 2 الشعبة 2 | AQ83: معمل حاسب | AR83: عربي 3 الشعبة 3 | AS83: 204 - عربي | AT83: حديث 1 الشعبة 2 | AU83: 202 - إسلامية | AV83: 4 | AW83: حديث 1 الشعبة 2 | AX83: 202 - إسلامية | BA83: إنجليزي 3 الشعبة 2 | BB83: 307 - إنجليزي | BE83: أحياء 2 الشعبة 4 | BF83: 214 - معمل أحياء | BG83: حاسب 2 الشعبة 2 | BH83: معمل حاسب | BI83: عربي 3 الشعبة 3 | BJ83: 204 - عربي | BK83: 5 | BL83: عربي 3 الشعبة 3 | BM83: 204 - عربي | BN83: حديث 1 الشعبة 2 | BO83: 202 - إسلامية | BR83: إنجليزي 3 الشعبة 2 | BS83: 307 - إنجليزي | BV83: أحياء 2 الشعبة 4 | BW83: 214 - معمل أحياء | BX83: حاسب 2 الشعبة 2 | BY83: معمل حاسب | BZ83: =_ِAll[[#This Row],[0]] -> 39087
A84: 39088 | B84: علي بن عبدالله بن أحمد المرزوق | C84: 1 | D84: كيمياء 2 الشعبة 4 | E84: 302 - كيمياء | F84: أحياء 2 الشعبة 4 | G84: 214 - معمل أحياء | H84: حاسب 2 الشعبة 2 | I84: معمل حاسب | J84: عربي 3 الشعبة 3 | K84: 204 - عربي | L84: حديث 1 الشعبة 2 | M84: 202 - إسلامية | N84: رياضيات 3 الشعبة 4 | O84: 306 - مهارات نفسية | P84: إنجليزي 3 الشعبة 2 | Q84: 307 - إنجليزي | R84: 2 | S84: إنجليزي 3 الشعبة 2 | T84: 307 - إنجليزي | U84: كيمياء 2 الشعبة 4 | V84: 302 - كيمياء | W84: أحياء 2 الشعبة 4 | X84: 214 - معمل أحياء | Y84: حاسب 2 الشعبة 2 | Z84: معمل حاسب | AA84: عربي 3 الشعبة 3 | AB84: 204 - عربي | AC84: حديث 1 الشعبة 2 | AD84: 202 - إسلامية | AE84: رياضيات 3 الشعبة 4 | AF84: 306 - مهارات نفسية | AG84: 3 | AH84: رياضيات 3 الشعبة 4 | AI84: 306 - مهارات نفسية | AJ84: إنجليزي 3 الشعبة 2 | AK84: 307 - إنجليزي | AL84: كيمياء 2 الشعبة 4 | AM84: 302 - كيمياء | AN84: أحياء 2 الشعبة 4 | AO84: 214 - معمل أحياء | AP84: حاسب 2 الشعبة 2 | AQ84: معمل حاسب | AR84: عربي 3 الشعبة 3 | AS84: 204 - عربي | AT84: حديث 1 الشعبة 2 | AU84: 202 - إسلامية | AV84: 4 | AW84: حديث 1 الشعبة 2 | AX84: 202 - إسلامية | AY84: رياضيات 3 الشعبة 4 | AZ84: 306 - مهارات نفسية | BA84: إنجليزي 3 الشعبة 2 | BB84: 307 - إنجليزي | BC84: كيمياء 2 الشعبة 4 | BD84: 302 - كيمياء | BE84: أحياء 2 الشعبة 4 | BF84: 214 - معمل أحياء | BG84: حاسب 2 الشعبة 2 | BH84: معمل حاسب | BI84: عربي 3 الشعبة 3 | BJ84: 204 - عربي | BK84: 5 | BL84: عربي 3 الشعبة 3 | BM84: 204 - عربي | BN84: حديث 1 الشعبة 2 | BO84: 202 - إسلامية | BP84: رياضيات 3 الشعبة 4 | BQ84: 306 - مهارات نفسية | BR84: إنجليزي 3 الشعبة 2 | BS84: 307 - إنجليزي | BT84: كيمياء 2 الشعبة 4 | BU84: 302 - كيمياء | BV84: أحياء 2 الشعبة 4 | BW84: 214 - معمل أحياء | BX84: حاسب 2 الشعبة 2 | BY84: معمل حاسب | BZ84: =_ِAll[[#This Row],[0]] -> 39088
A85: 39089 | B85: علي بن عبدالواحد بن علي البحراني | C85: 1 | D85: كيمياء 2 الشعبة 4 | E85: 302 - كيمياء | F85: إنجليزي 3 الشعبة 3 | G85: 208 - إنجليزي | H85: رياضيات 3 الشعبة 3 | I85: 310 - رياضيات | J85: عربي 3 الشعبة 3 | K85: 204 - عربي | L85: توحيد 1 الشعبة 3 | M85: 310 - رياضيات | N85: أحياء 2 الشعبة 3 | O85: 214 - معمل أحياء | P85: بدنية الشعبة 3 | Q85: 401 - الصالة الرياضية | R85: 2 | S85: بدنية الشعبة 3 | T85: 401 - الصالة الرياضية | U85: كيمياء 2 الشعبة 4 | V85: 302 - كيمياء | W85: إنجليزي 3 الشعبة 3 | X85: 208 - إنجليزي | Y85: رياضيات 3 الشعبة 3 | Z85: 310 - رياضيات | AA85: عربي 3 الشعبة 3 | AB85: 204 - عربي | AC85: توحيد 1 الشعبة 3 | AD85: 310 - رياضيات | AE85: أحياء 2 الشعبة 3 | AF85: 214 - معمل أحياء | AG85: 3 | AH85: أحياء 2 الشعبة 3 | AI85: 214 - معمل أحياء | AJ85: بدنية الشعبة 3 | AK85: 401 - الصالة الرياضية | AL85: كيمياء 2 الشعبة 4 | AM85: 302 - كيمياء | AN85: إنجليزي 3 الشعبة 3 | AO85: 208 - إنجليزي | AP85: رياضيات 3 الشعبة 3 | AQ85: 310 - رياضيات | AR85: عربي 3 الشعبة 3 | AS85: 204 - عربي | AT85: توحيد 1 الشعبة 3 | AU85: 310 - رياضيات | AV85: 4 | AW85: توحيد 1 الشعبة 3 | AX85: 310 - رياضيات | AY85: أحياء 2 الشعبة 3 | AZ85: 214 - معمل أحياء | BA85: بدنية الشعبة 3 | BB85: 401 - الصالة الرياضية | BC85: كيمياء 2 الشعبة 4 | BD85: 302 - كيمياء | BE85: إنجليزي 3 الشعبة 3 | BF85: 208 - إنجليزي | BG85: رياضيات 3 الشعبة 3 | BH85: 310 - رياضيات | BI85: عربي 3 الشعبة 3 | BJ85: 204 - عربي | BK85: 5 | BL85: عربي 3 الشعبة 3 | BM85: 204 - عربي | BN85: توحيد 1 الشعبة 3 | BO85: 310 - رياضيات | BP85: أحياء 2 الشعبة 3 | BQ85: 214 - معمل أحياء | BR85: بدنية الشعبة 3 | BS85: 401 - الصالة الرياضية | BT85: كيمياء 2 الشعبة 4 | BU85: 302 - كيمياء | BV85: إنجليزي 3 الشعبة 3 | BW85: 208 - إنجليزي | BX85: رياضيات 3 الشعبة 3 | BY85: 310 - رياضيات | BZ85: =_ِAll[[#This Row],[0]] -> 39089
A86: 39090 | B86: علي بن محمد بن عيسى آل اسماعيل | C86: 1 | D86: فيزياء 2 الشعبة 2 | E86: 207 - فيزياء | F86: مهنية الشعبة 2 | G86: 209 - علوم إدارية | H86: حاسب 2 الشعبة 2 | I86: معمل حاسب | J86: توحيد 1 الشعبة 4 | K86: 202 - إسلامية | L86: عربي 3 الشعبة 4 | M86: 204 - عربي | N86: رياضيات 3 الشعبة 2 | O86: 301 - فيزياء | P86: إنجليزي 3 الشعبة 2 | Q86: 307 - إنجليزي | R86: 2 | S86: إنجليزي 3 الشعبة 2 | T86: 307 - إنجليزي | U86: فيزياء 2 الشعبة 2 | V86: 207 - فيزياء | W86: مهنية الشعبة 2 | X86: 209 - علوم إدارية | Y86: حاسب 2 الشعبة 2 | Z86: معمل حاسب | AA86: توحيد 1 الشعبة 4 | AB86: 202 - إسلامية | AC86: عربي 3 الشعبة 4 | AD86: 204 - عربي | AE86: رياضيات 3 الشعبة 2 | AF86: 301 - فيزياء | AG86: 3 | AH86: رياضيات 3 الشعبة 2 | AI86: 301 - فيزياء | AJ86: إنجليزي 3 الشعبة 2 | AK86: 307 - إنجليزي | AL86: فيزياء 2 الشعبة 2 | AM86: 207 - فيزياء | AN86: مهنية الشعبة 2 | AO86: 209 - علوم إدارية | AP86: حاسب 2 الشعبة 2 | AQ86: معمل حاسب | AR86: توحيد 1 الشعبة 4 | AS86: 202 - إسلامية | AT86: عربي 3 الشعبة 4 | AU86: 204 - عربي | AV86: 4 | AW86: عربي 3 الشعبة 4 | AX86: 204 - عربي | AY86: رياضيات 3 الشعبة 2 | AZ86: 301 - فيزياء | BA86: إنجليزي 3 الشعبة 2 | BB86: 307 - إنجليزي | BC86: فيزياء 2 الشعبة 2 | BD86: 207 - فيزياء | BE86: مهنية الشعبة 2 | BF86: 209 - علوم إدارية | BG86: حاسب 2 الشعبة 2 | BH86: معمل حاسب | BI86: توحيد 1 الشعبة 4 | BJ86: 202 - إسلامية | BK86: 5 | BL86: توحيد 1 الشعبة 4 | BM86: 202 - إسلامية | BN86: عربي 3 الشعبة 4 | BO86: 204 - عربي | BP86: رياضيات 3 الشعبة 2 | BQ86: 301 - فيزياء | BR86: إنجليزي 3 الشعبة 2 | BS86: 307 - إنجليزي | BT86: فيزياء 2 الشعبة 2 | BU86: 207 - فيزياء | BV86: مهنية الشعبة 2 | BW86: 209 - علوم إدارية | BX86: حاسب 2 الشعبة 2 | BY86: معمل حاسب | BZ86: =_ِAll[[#This Row],[0]] -> 39090
A87: 39091 | B87: فارس بن مهدي بن علي آل ساري | C87: 1 | D87: كيمياء 2 الشعبة 3 | E87: 314 - معمل كيمياء | F87: إنجليزي 3 الشعبة 3 | G87: 208 - إنجليزي | H87: رياضيات 3 الشعبة 3 | I87: 310 - رياضيات | J87: عربي 3 الشعبة 3 | K87: 204 - عربي | L87: توحيد 1 الشعبة 3 | M87: 310 - رياضيات | N87: أحياء 2 الشعبة 3 | O87: 214 - معمل أحياء | P87: بدنية الشعبة 3 | Q87: 401 - الصالة الرياضية | R87: 2 | S87: بدنية الشعبة 3 | T87: 401 - الصالة الرياضية | U87: كيمياء 2 الشعبة 3 | V87: 314 - معمل كيمياء | W87: إنجليزي 3 الشعبة 3 | X87: 208 - إنجليزي | Y87: رياضيات 3 الشعبة 3 | Z87: 310 - رياضيات | AA87: عربي 3 الشعبة 3 | AB87: 204 - عربي | AC87: توحيد 1 الشعبة 3 | AD87: 310 - رياضيات | AE87: أحياء 2 الشعبة 3 | AF87: 214 - معمل أحياء | AG87: 3 | AH87: أحياء 2 الشعبة 3 | AI87: 214 - معمل أحياء | AJ87: بدنية الشعبة 3 | AK87: 401 - الصالة الرياضية | AL87: كيمياء 2 الشعبة 3 | AM87: 314 - معمل كيمياء | AN87: إنجليزي 3 الشعبة 3 | AO87: 208 - إنجليزي | AP87: رياضيات 3 الشعبة 3 | AQ87: 310 - رياضيات | AR87: عربي 3 الشعبة 3 | AS87: 204 - عربي | AT87: توحيد 1 الشعبة 3 | AU87: 310 - رياضيات | AV87: 4 | AW87: توحيد 1 الشعبة 3 | AX87: 310 - رياضيات | AY87: أحياء 2 الشعبة 3 | AZ87: 214 - معمل أحياء | BA87: بدنية الشعبة 3 | BB87: 401 - الصالة الرياضية | BC87: كيمياء 2 الشعبة 3 | BD87: 314 - معمل كيمياء | BE87: إنجليزي 3 الشعبة 3 | BF87: 208 - إنجليزي | BG87: رياضيات 3 الشعبة 3 | BH87: 310 - رياضيات | BI87: عربي 3 الشعبة 3 | BJ87: 204 - عربي | BK87: 5 | BL87: عربي 3 الشعبة 3 | BM87: 204 - عربي | BN87: توحيد 1 الشعبة 3 | BO87: 310 - رياضيات | BP87: أحياء 2 الشعبة 3 | BQ87: 214 - معمل أحياء | BR87: بدنية الشعبة 3 | BS87: 401 - الصالة الرياضية | BT87: كيمياء 2 الشعبة 3 | BU87: 314 - معمل كيمياء | BV87: إنجليزي 3 الشعبة 3 | BW87: 208 - إنجليزي | BX87: رياضيات 3 الشعبة 3 | BY87: 310 - رياضيات | BZ87: =_ِAll[[#This Row],[0]] -> 39091
A88: 39092 | B88: محسن بن علي بن منصور آل ضاحى | C88: 1 | D88: فيزياء 2 الشعبة 2 | E88: 207 - فيزياء | F88: مهنية الشعبة 2 | G88: 209 - علوم إدارية | H88: بدنية الشعبة 4 | I88: 401 - الصالة الرياضية | J88: توحيد 1 الشعبة 4 | K88: 202 - إسلامية | L88: عربي 3 الشعبة 4 | M88: 204 - عربي | N88: رياضيات 3 الشعبة 2 | O88: 301 - فيزياء | R88: 2 | U88: فيزياء 2 الشعبة 2 | V88: 207 - فيزياء | W88: مهنية الشعبة 2 | X88: 209 - علوم إدارية | Y88: بدنية الشعبة 4 | Z88: 401 - الصالة الرياضية | AA88: توحيد 1 الشعبة 4 | AB88: 202 - إسلامية | AC88: عربي 3 الشعبة 4 | AD88: 204 - عربي | AE88: رياضيات 3 الشعبة 2 | AF88: 301 - فيزياء | AG88: 3 | AH88: رياضيات 3 الشعبة 2 | AI88: 301 - فيزياء | AL88: فيزياء 2 الشعبة 2 | AM88: 207 - فيزياء | AN88: مهنية الشعبة 2 | AO88: 209 - علوم إدارية | AP88: بدنية الشعبة 4 | AQ88: 401 - الصالة الرياضية | AR88: توحيد 1 الشعبة 4 | AS88: 202 - إسلامية | AT88: عربي 3 الشعبة 4 | AU88: 204 - عربي | AV88: 4 | AW88: عربي 3 الشعبة 4 | AX88: 204 - عربي | AY88: رياضيات 3 الشعبة 2 | AZ88: 301 - فيزياء | BC88: فيزياء 2 الشعبة 2 | BD88: 207 - فيزياء | BE88: مهنية الشعبة 2 | BF88: 209 - علوم إدارية | BG88: بدنية الشعبة 4 | BH88: 401 - الصالة الرياضية | BI88: توحيد 1 الشعبة 4 | BJ88: 202 - إسلامية | BK88: 5 | BL88: توحيد 1 الشعبة 4 | BM88: 202 - إسلامية | BN88: عربي 3 الشعبة 4 | BO88: 204 - عربي | BP88: رياضيات 3 الشعبة 2 | BQ88: 301 - فيزياء | BT88: فيزياء 2 الشعبة 2 | BU88: 207 - فيزياء | BV88: مهنية الشعبة 2 | BW88: 209 - علوم إدارية | BX88: بدنية الشعبة 4 | BY88: 401 - الصالة الرياضية | BZ88: =_ِAll[[#This Row],[0]] -> 39092
A89: 39093 | B89: محمد بن جعفر بن منصور الدهان | C89: 1 | D89: كيمياء 2 الشعبة 3 | E89: 314 - معمل كيمياء | F89: مهنية الشعبة 2 | G89: 209 - علوم إدارية | H89: بدنية الشعبة 4 | I89: 401 - الصالة الرياضية | J89: عربي 3 الشعبة 3 | K89: 204 - عربي | L89: توحيد 1 الشعبة 3 | M89: 310 - رياضيات | N89: رياضيات 3 الشعبة 4 | O89: 306 - مهارات نفسية | P89: إنجليزي 3 الشعبة 4 | Q89: 208 - إنجليزي | R89: 2 | S89: إنجليزي 3 الشعبة 4 | T89: 208 - إنجليزي | U89: كيمياء 2 الشعبة 3 | V89: 314 - معمل كيمياء | W89: مهنية الشعبة 2 | X89: 209 - علوم إدارية | Y89: بدنية الشعبة 4 | Z89: 401 - الصالة الرياضية | AA89: عربي 3 الشعبة 3 | AB89: 204 - عربي | AC89: توحيد 1 الشعبة 3 | AD89: 310 - رياضيات | AE89: رياضيات 3 الشعبة 4 | AF89: 306 - مهارات نفسية | AG89: 3 | AH89: رياضيات 3 الشعبة 4 | AI89: 306 - مهارات نفسية | AJ89: إنجليزي 3 الشعبة 4 | AK89: 208 - إنجليزي | AL89: كيمياء 2 الشعبة 3 | AM89: 314 - معمل كيمياء | AN89: مهنية الشعبة 2 | AO89: 209 - علوم إدارية | AP89: بدنية الشعبة 4 | AQ89: 401 - الصالة الرياضية | AR89: عربي 3 الشعبة 3 | AS89: 204 - عربي | AT89: توحيد 1 الشعبة 3 | AU89: 310 - رياضيات | AV89: 4 | AW89: توحيد 1 الشعبة 3 | AX89: 310 - رياضيات | AY89: رياضيات 3 الشعبة 4 | AZ89: 306 - مهارات نفسية | BA89: إنجليزي 3 الشعبة 4 | BB89: 208 - إنجليزي | BC89: كيمياء 2 الشعبة 3 | BD89: 314 - معمل كيمياء | BE89: مهنية الشعبة 2 | BF89: 209 - علوم إدارية | BG89: بدنية الشعبة 4 | BH89: 401 - الصالة الرياضية | BI89: عربي 3 الشعبة 3 | BJ89: 204 - عربي | BK89: 5 | BL89: عربي 3 الشعبة 3 | BM89: 204 - عربي | BN89: توحيد 1 الشعبة 3 | BO89: 310 - رياضيات | BP89: رياضيات 3 الشعبة 4 | BQ89: 306 - مهارات نفسية | BR89: إنجليزي 3 الشعبة 4 | BS89: 208 - إنجليزي | BT89: كيمياء 2 الشعبة 3 | BU89: 314 - معمل كيمياء | BV89: مهنية الشعبة 2 | BW89: 209 - علوم إدارية | BX89: بدنية الشعبة 4 | BY89: 401 - الصالة الرياضية | BZ89: =_ِAll[[#This Row],[0]] -> 39093
A90: 39094 | B90: محمد بن سعيد بن منصور الدهان | C90: 1 | D90: فيزياء 2 الشعبة 2 | E90: 207 - فيزياء | F90: أحياء 2 الشعبة 4 | G90: 214 - معمل أحياء | H90: حاسب 2 الشعبة 2 | I90: معمل حاسب | J90: عربي 3 الشعبة 3 | K90: 204 - عربي | L90: حديث 1 الشعبة 2 | M90: 202 - إسلامية | N90: رياضيات 3 الشعبة 2 | O90: 301 - فيزياء | P90: إنجليزي 3 الشعبة 4 | Q90: 208 - إنجليزي | R90: 2 | S90: إنجليزي 3 الشعبة 4 | T90: 208 - إنجليزي | U90: فيزياء 2 الشعبة 2 | V90: 207 - فيزياء | W90: أحياء 2 الشعبة 4 | X90: 214 - معمل أحياء | Y90: حاسب 2 الشعبة 2 | Z90: معمل حاسب | AA90: عربي 3 الشعبة 3 | AB90: 204 - عربي | AC90: حديث 1 الشعبة 2 | AD90: 202 - إسلامية | AE90: رياضيات 3 الشعبة 2 | AF90: 301 - فيزياء | AG90: 3 | AH90: رياضيات 3 الشعبة 2 | AI90: 301 - فيزياء | AJ90: إنجليزي 3 الشعبة 4 | AK90: 208 - إنجليزي | AL90: فيزياء 2 الشعبة 2 | AM90: 207 - فيزياء | AN90: أحياء 2 الشعبة 4 | AO90: 214 - معمل أحياء | AP90: حاسب 2 الشعبة 2 | AQ90: معمل حاسب | AR90: عربي 3 الشعبة 3 | AS90: 204 - عربي | AT90: حديث 1 الشعبة 2 | AU90: 202 - إسلامية | AV90: 4 | AW90: حديث 1 الشعبة 2 | AX90: 202 - إسلامية | AY90: رياضيات 3 الشعبة 2 | AZ90: 301 - فيزياء | BA90: إنجليزي 3 الشعبة 4 | BB90: 208 - إنجليزي | BC90: فيزياء 2 الشعبة 2 | BD90: 207 - فيزياء | BE90: أحياء 2 الشعبة 4 | BF90: 214 - معمل أحياء | BG90: حاسب 2 الشعبة 2 | BH90: معمل حاسب | BI90: عربي 3 الشعبة 3 | BJ90: 204 - عربي | BK90: 5 | BL90: عربي 3 الشعبة 3 | BM90: 204 - عربي | BN90: حديث 1 الشعبة 2 | BO90: 202 - إسلامية | BP90: رياضيات 3 الشعبة 2 | BQ90: 301 - فيزياء | BR90: إنجليزي 3 الشعبة 4 | BS90: 208 - إنجليزي | BT90: فيزياء 2 الشعبة 2 | BU90: 207 - فيزياء | BV90: أحياء 2 الشعبة 4 | BW90: 214 - معمل أحياء | BX90: حاسب 2 الشعبة 2 | BY90: معمل حاسب | BZ90: =_ِAll[[#This Row],[0]] -> 39094
A91: 39095 | B91: محمد بن منصور بن عبدالله المغاسله | C91: 1 | D91: كيمياء 2 الشعبة 3 | E91: 314 - معمل كيمياء | F91: إنجليزي 3 الشعبة 3 | G91: 208 - إنجليزي | H91: رياضيات 3 الشعبة 3 | I91: 310 - رياضيات | J91: توحيد 1 الشعبة 4 | K91: 202 - إسلامية | L91: عربي 3 الشعبة 4 | M91: 204 - عربي | N91: أحياء 2 الشعبة 3 | O91: 214 - معمل أحياء | P91: بدنية الشعبة 3 | Q91: 401 - الصالة الرياضية | R91: 2 | S91: بدنية الشعبة 3 | T91: 401 - الصالة الرياضية | U91: كيمياء 2 الشعبة 3 | V91: 314 - معمل كيمياء | W91: إنجليزي 3 الشعبة 3 | X91: 208 - إنجليزي | Y91: رياضيات 3 الشعبة 3 | Z91: 310 - رياضيات | AA91: توحيد 1 الشعبة 4 | AB91: 202 - إسلامية | AC91: عربي 3 الشعبة 4 | AD91: 204 - عربي | AE91: أحياء 2 الشعبة 3 | AF91: 214 - معمل أحياء | AG91: 3 | AH91: أحياء 2 الشعبة 3 | AI91: 214 - معمل أحياء | AJ91: بدنية الشعبة 3 | AK91: 401 - الصالة الرياضية | AL91: كيمياء 2 الشعبة 3 | AM91: 314 - معمل كيمياء | AN91: إنجليزي 3 الشعبة 3 | AO91: 208 - إنجليزي | AP91: رياضيات 3 الشعبة 3 | AQ91: 310 - رياضيات | AR91: توحيد 1 الشعبة 4 | AS91: 202 - إسلامية | AT91: عربي 3 الشعبة 4 | AU91: 204 - عربي | AV91: 4 | AW91: عربي 3 الشعبة 4 | AX91: 204 - عربي | AY91: أحياء 2 الشعبة 3 | AZ91: 214 - معمل أحياء | BA91: بدنية الشعبة 3 | BB91: 401 - الصالة الرياضية | BC91: كيمياء 2 الشعبة 3 | BD91: 314 - معمل كيمياء | BE91: إنجليزي 3 الشعبة 3 | BF91: 208 - إنجليزي | BG91: رياضيات 3 الشعبة 3 | BH91: 310 - رياضيات | BI91: توحيد 1 الشعبة 4 | BJ91: 202 - إسلامية | BK91: 5 | BL91: توحيد 1 الشعبة 4 | BM91: 202 - إسلامية | BN91: عربي 3 الشعبة 4 | BO91: 204 - عربي | BP91: أحياء 2 الشعبة 3 | BQ91: 214 - معمل أحياء | BR91: بدنية الشعبة 3 | BS91: 401 - الصالة الرياضية | BT91: كيمياء 2 الشعبة 3 | BU91: 314 - معمل كيمياء | BV91: إنجليزي 3 الشعبة 3 | BW91: 208 - إنجليزي | BX91: رياضيات 3 الشعبة 3 | BY91: 310 - رياضيات | BZ91: =_ِAll[[#This Row],[0]] -> 39095
A92: 39096 | B92: محمد بن وليد بن مهدي عبدربه | C92: 1 | D92: كيمياء 2 الشعبة 4 | E92: 302 - كيمياء | F92: أحياء 2 الشعبة 4 | G92: 214 - معمل أحياء | H92: حاسب 2 الشعبة 2 | I92: معمل حاسب | J92: عربي 3 الشعبة 2 | K92: 209 - علوم إدارية | L92: حديث 1 الشعبة 2 | M92: 202 - إسلامية | N92: رياضيات 3 الشعبة 2 | O92: 301 - فيزياء | P92: إنجليزي 3 الشعبة 2 | Q92: 307 - إنجليزي | R92: 2 | S92: إنجليزي 3 الشعبة 2 | T92: 307 - إنجليزي | U92: كيمياء 2 الشعبة 4 | V92: 302 - كيمياء | W92: أحياء 2 الشعبة 4 | X92: 214 - معمل أحياء | Y92: حاسب 2 الشعبة 2 | Z92: معمل حاسب | AA92: عربي 3 الشعبة 2 | AB92: 209 - علوم إدارية | AC92: حديث 1 الشعبة 2 | AD92: 202 - إسلامية | AE92: رياضيات 3 الشعبة 2 | AF92: 301 - فيزياء | AG92: 3 | AH92: رياضيات 3 الشعبة 2 | AI92: 301 - فيزياء | AJ92: إنجليزي 3 الشعبة 2 | AK92: 307 - إنجليزي | AL92: كيمياء 2 الشعبة 4 | AM92: 302 - كيمياء | AN92: أحياء 2 الشعبة 4 | AO92: 214 - معمل أحياء | AP92: حاسب 2 الشعبة 2 | AQ92: معمل حاسب | AR92: عربي 3 الشعبة 2 | AS92: 209 - علوم إدارية | AT92: حديث 1 الشعبة 2 | AU92: 202 - إسلامية | AV92: 4 | AW92: حديث 1 الشعبة 2 | AX92: 202 - إسلامية | AY92: رياضيات 3 الشعبة 2 | AZ92: 301 - فيزياء | BA92: إنجليزي 3 الشعبة 2 | BB92: 307 - إنجليزي | BC92: كيمياء 2 الشعبة 4 | BD92: 302 - كيمياء | BE92: أحياء 2 الشعبة 4 | BF92: 214 - معمل أحياء | BG92: حاسب 2 الشعبة 2 | BH92: معمل حاسب | BI92: عربي 3 الشعبة 2 | BJ92: 209 - علوم إدارية | BK92: 5 | BL92: عربي 3 الشعبة 2 | BM92: 209 - علوم إدارية | BN92: حديث 1 الشعبة 2 | BO92: 202 - إسلامية | BP92: رياضيات 3 الشعبة 2 | BQ92: 301 - فيزياء | BR92: إنجليزي 3 الشعبة 2 | BS92: 307 - إنجليزي | BT92: كيمياء 2 الشعبة 4 | BU92: 302 - كيمياء | BV92: أحياء 2 الشعبة 4 | BW92: 214 - معمل أحياء | BX92: حاسب 2 الشعبة 2 | BY92: معمل حاسب | BZ92: =_ِAll[[#This Row],[0]] -> 39096
A93: 39097 | B93: مصطفى بن محمد بن عبدالعزيز العلي | C93: 1 | F93: مهنية الشعبة 2 | G93: 209 - علوم إدارية | H93: حاسب 2 الشعبة 2 | I93: معمل حاسب | J93: عربي 3 الشعبة 3 | K93: 204 - عربي | L93: حديث 1 الشعبة 2 | M93: 202 - إسلامية | P93: إنجليزي 3 الشعبة 2 | Q93: 307 - إنجليزي | R93: 2 | S93: إنجليزي 3 الشعبة 2 | T93: 307 - إنجليزي | W93: مهنية الشعبة 2 | X93: 209 - علوم إدارية | Y93: حاسب 2 الشعبة 2 | Z93: معمل حاسب | AA93: عربي 3 الشعبة 3 | AB93: 204 - عربي | AC93: حديث 1 الشعبة 2 | AD93: 202 - إسلامية | AG93: 3 | AJ93: إنجليزي 3 الشعبة 2 | AK93: 307 - إنجليزي | AN93: مهنية الشعبة 2 | AO93: 209 - علوم إدارية | AP93: حاسب 2 الشعبة 2 | AQ93: معمل حاسب | AR93: عربي 3 الشعبة 3 | AS93: 204 - عربي | AT93: حديث 1 الشعبة 2 | AU93: 202 - إسلامية | AV93: 4 | AW93: حديث 1 الشعبة 2 | AX93: 202 - إسلامية | BA93: إنجليزي 3 الشعبة 2 | BB93: 307 - إنجليزي | BE93: مهنية الشعبة 2 | BF93: 209 - علوم إدارية | BG93: حاسب 2 الشعبة 2 | BH93: معمل حاسب | BI93: عربي 3 الشعبة 3 | BJ93: 204 - عربي | BK93: 5 | BL93: عربي 3 الشعبة 3 | BM93: 204 - عربي | BN93: حديث 1 الشعبة 2 | BO93: 202 - إسلامية | BR93: إنجليزي 3 الشعبة 2 | BS93: 307 - إنجليزي | BV93: مهنية الشعبة 2 | BW93: 209 - علوم إدارية | BX93: حاسب 2 الشعبة 2 | BY93: معمل حاسب | BZ93: =_ِAll[[#This Row],[0]] -> 39097
A94: 39106 | B94: علي بن غسان بن علي البحراني | C94: 1 | D94: فيزياء 2 الشعبة 2 | E94: 207 - فيزياء | F94: مهنية الشعبة 2 | G94: 209 - علوم إدارية | H94: بدنية الشعبة 4 | I94: 401 - الصالة الرياضية | J94: عربي 3 الشعبة 2 | K94: 209 - علوم إدارية | L94: حديث 1 الشعبة 2 | M94: 202 - إسلامية | N94: رياضيات 3 الشعبة 2 | O94: 301 - فيزياء | P94: إنجليزي 3 الشعبة 2 | Q94: 307 - إنجليزي | R94: 2 | S94: إنجليزي 3 الشعبة 2 | T94: 307 - إنجليزي | U94: فيزياء 2 الشعبة 2 | V94: 207 - فيزياء | W94: مهنية الشعبة 2 | X94: 209 - علوم إدارية | Y94: بدنية الشعبة 4 | Z94: 401 - الصالة الرياضية | AA94: عربي 3 الشعبة 2 | AB94: 209 - علوم إدارية | AC94: حديث 1 الشعبة 2 | AD94: 202 - إسلامية | AE94: رياضيات 3 الشعبة 2 | AF94: 301 - فيزياء | AG94: 3 | AH94: رياضيات 3 الشعبة 2 | AI94: 301 - فيزياء | AJ94: إنجليزي 3 الشعبة 2 | AK94: 307 - إنجليزي | AL94: فيزياء 2 الشعبة 2 | AM94: 207 - فيزياء | AN94: مهنية الشعبة 2 | AO94: 209 - علوم إدارية | AP94: بدنية الشعبة 4 | AQ94: 401 - الصالة الرياضية | AR94: عربي 3 الشعبة 2 | AS94: 209 - علوم إدارية | AT94: حديث 1 الشعبة 2 | AU94: 202 - إسلامية | AV94: 4 | AW94: حديث 1 الشعبة 2 | AX94: 202 - إسلامية | AY94: رياضيات 3 الشعبة 2 | AZ94: 301 - فيزياء | BA94: إنجليزي 3 الشعبة 2 | BB94: 307 - إنجليزي | BC94: فيزياء 2 الشعبة 2 | BD94: 207 - فيزياء | BE94: مهنية الشعبة 2 | BF94: 209 - علوم إدارية | BG94: بدنية الشعبة 4 | BH94: 401 - الصالة الرياضية | BI94: عربي 3 الشعبة 2 | BJ94: 209 - علوم إدارية | BK94: 5 | BL94: عربي 3 الشعبة 2 | BM94: 209 - علوم إدارية | BN94: حديث 1 الشعبة 2 | BO94: 202 - إسلامية | BP94: رياضيات 3 الشعبة 2 | BQ94: 301 - فيزياء | BR94: إنجليزي 3 الشعبة 2 | BS94: 307 - إنجليزي | BT94: فيزياء 2 الشعبة 2 | BU94: 207 - فيزياء | BV94: مهنية الشعبة 2 | BW94: 209 - علوم إدارية | BX94: بدنية الشعبة 4 | BY94: 401 - الصالة الرياضية | BZ94: =_ِAll[[#This Row],[0]] -> 39106
A95: 39107 | B95: سلمان بن محمد بن سلمان آل غزوي | C95: 1 | D95: كيمياء 2 الشعبة 3 | E95: 314 - معمل كيمياء | F95: أحياء 2 الشعبة 4 | G95: 214 - معمل أحياء | H95: بدنية الشعبة 4 | I95: 401 - الصالة الرياضية | J95: عربي 3 الشعبة 3 | K95: 204 - عربي | L95: توحيد 1 الشعبة 3 | M95: 310 - رياضيات | N95: رياضيات 3 الشعبة 2 | O95: 301 - فيزياء | P95: إنجليزي 3 الشعبة 2 | Q95: 307 - إنجليزي | R95: 2 | S95: إنجليزي 3 الشعبة 2 | T95: 307 - إنجليزي | U95: كيمياء 2 الشعبة 3 | V95: 314 - معمل كيمياء | W95: أحياء 2 الشعبة 4 | X95: 214 - معمل أحياء | Y95: بدنية الشعبة 4 | Z95: 401 - الصالة الرياضية | AA95: عربي 3 الشعبة 3 | AB95: 204 - عربي | AC95: توحيد 1 الشعبة 3 | AD95: 310 - رياضيات | AE95: رياضيات 3 الشعبة 2 | AF95: 301 - فيزياء | AG95: 3 | AH95: رياضيات 3 الشعبة 2 | AI95: 301 - فيزياء | AJ95: إنجليزي 3 الشعبة 2 | AK95: 307 - إنجليزي | AL95: كيمياء 2 الشعبة 3 | AM95: 314 - معمل كيمياء | AN95: أحياء 2 الشعبة 4 | AO95: 214 - معمل أحياء | AP95: بدنية الشعبة 4 | AQ95: 401 - الصالة الرياضية | AR95: عربي 3 الشعبة 3 | AS95: 204 - عربي | AT95: توحيد 1 الشعبة 3 | AU95: 310 - رياضيات | AV95: 4 | AW95: توحيد 1 الشعبة 3 | AX95: 310 - رياضيات | AY95: رياضيات 3 الشعبة 2 | AZ95: 301 - فيزياء | BA95: إنجليزي 3 الشعبة 2 | BB95: 307 - إنجليزي | BC95: كيمياء 2 الشعبة 3 | BD95: 314 - معمل كيمياء | BE95: أحياء 2 الشعبة 4 | BF95: 214 - معمل أحياء | BG95: بدنية الشعبة 4 | BH95: 401 - الصالة الرياضية | BI95: عربي 3 الشعبة 3 | BJ95: 204 - عربي | BK95: 5 | BL95: عربي 3 الشعبة 3 | BM95: 204 - عربي | BN95: توحيد 1 الشعبة 3 | BO95: 310 - رياضيات | BP95: رياضيات 3 الشعبة 2 | BQ95: 301 - فيزياء | BR95: إنجليزي 3 الشعبة 2 | BS95: 307 - إنجليزي | BT95: كيمياء 2 الشعبة 3 | BU95: 314 - معمل كيمياء | BV95: أحياء 2 الشعبة 4 | BW95: 214 - معمل أحياء | BX95: بدنية الشعبة 4 | BY95: 401 - الصالة الرياضية | BZ95: =_ِAll[[#This Row],[0]] -> 39107
A96: 40001 | B96: محمد بن عيسى بن رضي الميلاد | C96: 1 | D96: رياضيات 1 الشعبة 3 | E96: 306 - مهارات نفسية | F96: إنجليزي 1 الشعبة 3 | G96: 307 - إنجليزي | H96: فيزياء 1 الشعبة 3 | I96: 301 - فيزياء | J96: اجتماعيات الشعبة 3 | K96: 308 - اجتماعيات | L96: عربي 1 الشعبة 3 | M96: 209 - علوم إدارية | N96: قرآن 1 الشعبة 3 | O96: 303 - إسلامية | P96: حياتية 1 الشعبة 3 | Q96: 306 - مهارات نفسية | R96: 2 | S96: حياتية 1 الشعبة 3 | T96: 306 - مهارات نفسية | U96: رياضيات 1 الشعبة 3 | V96: 306 - مهارات نفسية | W96: إنجليزي 1 الشعبة 3 | X96: 307 - إنجليزي | Y96: فيزياء 1 الشعبة 3 | Z96: 301 - فيزياء | AA96: اجتماعيات الشعبة 3 | AB96: 308 - اجتماعيات | AC96: عربي 1 الشعبة 3 | AD96: 209 - علوم إدارية | AE96: قرآن 1 الشعبة 3 | AF96: 303 - إسلامية | AG96: 3 | AH96: قرآن 1 الشعبة 3 | AI96: 303 - إسلامية | AJ96: حياتية 1 الشعبة 3 | AK96: 306 - مهارات نفسية | AL96: رياضيات 1 الشعبة 3 | AM96: 306 - مهارات نفسية | AN96: إنجليزي 1 الشعبة 3 | AO96: 307 - إنجليزي | AP96: فيزياء 1 الشعبة 3 | AQ96: 301 - فيزياء | AR96: اجتماعيات الشعبة 3 | AS96: 308 - اجتماعيات | AT96: عربي 1 الشعبة 3 | AU96: 209 - علوم إدارية | AV96: 4 | AW96: عربي 1 الشعبة 3 | AX96: 209 - علوم إدارية | AY96: قرآن 1 الشعبة 3 | AZ96: 303 - إسلامية | BA96: حياتية 1 الشعبة 3 | BB96: 306 - مهارات نفسية | BC96: رياضيات 1 الشعبة 3 | BD96: 306 - مهارات نفسية | BE96: إنجليزي 1 الشعبة 3 | BF96: 307 - إنجليزي | BG96: فيزياء 1 الشعبة 3 | BH96: 301 - فيزياء | BI96: اجتماعيات الشعبة 3 | BJ96: 308 - اجتماعيات | BK96: 5 | BL96: اجتماعيات الشعبة 3 | BM96: 308 - اجتماعيات | BN96: عربي 1 الشعبة 3 | BO96: 209 - علوم إدارية | BP96: قرآن 1 الشعبة 3 | BQ96: 303 - إسلامية | BR96: حياتية 1 الشعبة 3 | BS96: 306 - مهارات نفسية | BT96: رياضيات 1 الشعبة 3 | BU96: 306 - مهارات نفسية | BV96: إنجليزي 1 الشعبة 3 | BW96: 307 - إنجليزي | BX96: فيزياء 1 الشعبة 3 | BY96: 301 - فيزياء | BZ96: =_ِAll[[#This Row],[0]] -> 40001
A97: 40002 | B97: سعيد بن شوقي بن سعيد الصحاف | C97: 1 | D97: إنجليزي 1 الشعبة 2 | E97: 208 - إنجليزي | F97: حاسب 1 الشعبة 2 | G97: معمل حاسب | H97: أحياء 1 الشعبة 2 | I97: 212 - معمل أحياء | J97: كيمياء 1 الشعبة 2 | K97: 302 - كيمياء | L97: تفسير 1 الشعبة 2 | M97: 303 - إسلامية | N97: رياضيات 1 الشعبة 2 | O97: 310 - رياضيات | P97: عربي 1 الشعبة 2 | Q97: 204 - عربي | R97: 2 | S97: عربي 1 الشعبة 2 | T97: 204 - عربي | U97: إنجليزي 1 الشعبة 2 | V97: 208 - إنجليزي | W97: حاسب 1 الشعبة 2 | X97: معمل حاسب | Y97: أحياء 1 الشعبة 2 | Z97: 212 - معمل أحياء | AA97: كيمياء 1 الشعبة 2 | AB97: 302 - كيمياء | AC97: تفسير 1 الشعبة 2 | AD97: 303 - إسلامية | AE97: رياضيات 1 الشعبة 2 | AF97: 310 - رياضيات | AG97: 3 | AH97: رياضيات 1 الشعبة 2 | AI97: 310 - رياضيات | AJ97: عربي 1 الشعبة 2 | AK97: 204 - عربي | AL97: إنجليزي 1 الشعبة 2 | AM97: 208 - إنجليزي | AN97: حاسب 1 الشعبة 2 | AO97: معمل حاسب | AP97: كيمياء 1 الشعبة 2 | AQ97: 302 - كيمياء | AR97: أحياء 1 الشعبة 2 | AS97: 212 - معمل أحياء | AT97: تفسير 1 الشعبة 2 | AU97: 303 - إسلامية | AV97: 4 | AW97: تفسير 1 الشعبة 2 | AX97: 303 - إسلامية | AY97: رياضيات 1 الشعبة 2 | AZ97: 310 - رياضيات | BA97: عربي 1 الشعبة 2 | BB97: 204 - عربي | BC97: إنجليزي 1 الشعبة 2 | BD97: 208 - إنجليزي | BE97: حاسب 1 الشعبة 2 | BF97: معمل حاسب | BG97: أحياء 1 الشعبة 2 | BH97: 212 - معمل أحياء | BI97: كيمياء 1 الشعبة 2 | BJ97: 302 - كيمياء | BK97: 5 | BL97: كيمياء 1 الشعبة 2 | BM97: 302 - كيمياء | BN97: تفسير 1 الشعبة 2 | BO97: 303 - إسلامية | BP97: رياضيات 1 الشعبة 2 | BQ97: 310 - رياضيات | BR97: عربي 1 الشعبة 2 | BS97: 204 - عربي | BT97: إنجليزي 1 الشعبة 2 | BU97: 208 - إنجليزي | BV97: حاسب 1 الشعبة 2 | BW97: معمل حاسب | BX97: أحياء 1 الشعبة 2 | BY97: 212 - معمل أحياء | BZ97: =_ِAll[[#This Row],[0]] -> 40002
A98: 40003 | B98: محمد بن سعيد بن حسن آل عبيدوه | C98: 1 | D98: عربي 1 الشعبة 4 | E98: 209 - علوم إدارية | F98: اجتماعيات الشعبة 4 | G98: 308 - اجتماعيات | H98: إنجليزي 1 الشعبة 4 | I98: 307 - إنجليزي | J98: رياضيات 1 الشعبة 4 | K98: 306 - مهارات نفسية | L98: حياتية 1 الشعبة 4 | M98: 306 - مهارات نفسية | N98: فيزياء 1 الشعبة 4 | O98: 207 - فيزياء | P98: تفسير 1 الشعبة 4 | Q98: 202 - إسلامية | R98: 2 | S98: تفسير 1 الشعبة 4 | T98: 202 - إسلامية | U98: عربي 1 الشعبة 4 | V98: 209 - علوم إدارية | W98: اجتماعيات الشعبة 4 | X98: 308 - اجتماعيات | Y98: إنجليزي 1 الشعبة 4 | Z98: 307 - إنجليزي | AA98: رياضيات 1 الشعبة 4 | AB98: 306 - مهارات نفسية | AC98: حياتية 1 الشعبة 4 | AD98: 306 - مهارات نفسية | AE98: فيزياء 1 الشعبة 4 | AF98: 207 - فيزياء | AG98: 3 | AH98: فيزياء 1 الشعبة 4 | AI98: 207 - فيزياء | AJ98: تفسير 1 الشعبة 4 | AK98: 202 - إسلامية | AL98: عربي 1 الشعبة 4 | AM98: 209 - علوم إدارية | AN98: اجتماعيات الشعبة 4 | AO98: 308 - اجتماعيات | AP98: إنجليزي 1 الشعبة 4 | AQ98: 307 - إنجليزي | AR98: رياضيات 1 الشعبة 4 | AS98: 306 - مهارات نفسية | AT98: حياتية 1 الشعبة 4 | AU98: 306 - مهارات نفسية | AV98: 4 | AW98: حياتية 1 الشعبة 4 | AX98: 306 - مهارات نفسية | AY98: فيزياء 1 الشعبة 4 | AZ98: 207 - فيزياء | BA98: تفسير 1 الشعبة 4 | BB98: 202 - إسلامية | BC98: عربي 1 الشعبة 4 | BD98: 209 - علوم إدارية | BE98: اجتماعيات الشعبة 4 | BF98: 308 - اجتماعيات | BG98: إنجليزي 1 الشعبة 4 | BH98: 307 - إنجليزي | BI98: رياضيات 1 الشعبة 4 | BJ98: 306 - مهارات نفسية | BK98: 5 | BL98: إنجليزي 1 الشعبة 4 | BM98: 307 - إنجليزي | BN98: رياضيات 1 الشعبة 4 | BO98: 306 - مهارات نفسية | BP98: فيزياء 1 الشعبة 4 | BQ98: 207 - فيزياء | BR98: تفسير 1 الشعبة 4 | BS98: 202 - إسلامية | BT98: عربي 1 الشعبة 4 | BU98: 209 - علوم إدارية | BV98: حياتية 1 الشعبة 4 | BW98: 306 - مهارات نفسية | BX98: اجتماعيات الشعبة 4 | BY98: 308 - اجتماعيات | BZ98: =_ِAll[[#This Row],[0]] -> 40003
A99: 40004 | B99: منتظر بن رياض بن علي الحمادي | C99: 1 | D99: إنجليزي 1 الشعبة 2 | E99: 208 - إنجليزي | F99: حاسب 1 الشعبة 2 | G99: معمل حاسب | H99: أحياء 1 الشعبة 2 | I99: 212 - معمل أحياء | J99: كيمياء 1 الشعبة 2 | K99: 302 - كيمياء | L99: تفسير 1 الشعبة 2 | M99: 303 - إسلامية | N99: رياضيات 1 الشعبة 2 | O99: 310 - رياضيات | P99: عربي 1 الشعبة 2 | Q99: 204 - عربي | R99: 2 | S99: عربي 1 الشعبة 2 | T99: 204 - عربي | U99: إنجليزي 1 الشعبة 2 | V99: 208 - إنجليزي | W99: حاسب 1 الشعبة 2 | X99: معمل حاسب | Y99: أحياء 1 الشعبة 2 | Z99: 212 - معمل أحياء | AA99: كيمياء 1 الشعبة 2 | AB99: 302 - كيمياء | AC99: تفسير 1 الشعبة 2 | AD99: 303 - إسلامية | AE99: رياضيات 1 الشعبة 2 | AF99: 310 - رياضيات | AG99: 3 | AH99: رياضيات 1 الشعبة 2 | AI99: 310 - رياضيات | AJ99: عربي 1 الشعبة 2 | AK99: 204 - عربي | AL99: إنجليزي 1 الشعبة 2 | AM99: 208 - إنجليزي | AN99: حاسب 1 الشعبة 2 | AO99: معمل حاسب | AP99: كيمياء 1 الشعبة 2 | AQ99: 302 - كيمياء | AR99: أحياء 1 الشعبة 2 | AS99: 212 - معمل أحياء | AT99: تفسير 1 الشعبة 2 | AU99: 303 - إسلامية | AV99: 4 | AW99: تفسير 1 الشعبة 2 | AX99: 303 - إسلامية | AY99: رياضيات 1 الشعبة 2 | AZ99: 310 - رياضيات | BA99: عربي 1 الشعبة 2 | BB99: 204 - عربي | BC99: إنجليزي 1 الشعبة 2 | BD99: 208 - إنجليزي | BE99: حاسب 1 الشعبة 2 | BF99: معمل حاسب | BG99: أحياء 1 الشعبة 2 | BH99: 212 - معمل أحياء | BI99: كيمياء 1 الشعبة 2 | BJ99: 302 - كيمياء | BK99: 5 | BL99: كيمياء 1 الشعبة 2 | BM99: 302 - كيمياء | BN99: تفسير 1 الشعبة 2 | BO99: 303 - إسلامية | BP99: رياضيات 1 الشعبة 2 | BQ99: 310 - رياضيات | BR99: عربي 1 الشعبة 2 | BS99: 204 - عربي | BT99: إنجليزي 1 الشعبة 2 | BU99: 208 - إنجليزي | BV99: حاسب 1 الشعبة 2 | BW99: معمل حاسب | BX99: أحياء 1 الشعبة 2 | BY99: 212 - معمل أحياء | BZ99: =_ِAll[[#This Row],[0]] -> 40004
A100: 40005 | B100: حسين بن عبدالعظيم بن مسلم المعلم | C100: 1 | D100: عربي 1 الشعبة 4 | E100: 209 - علوم إدارية | F100: اجتماعيات الشعبة 4 | G100: 308 - اجتماعيات | H100: إنجليزي 1 الشعبة 4 | I100: 307 - إنجليزي | J100: رياضيات 1 الشعبة 4 | K100: 306 - مهارات نفسية | L100: حياتية 1 الشعبة 4 | M100: 306 - مهارات نفسية | N100: فيزياء 1 الشعبة 4 | O100: 207 - فيزياء | P100: تفسير 1 الشعبة 4 | Q100: 202 - إسلامية | R100: 2 | S100: تفسير 1 الشعبة 4 | T100: 202 - إسلامية | U100: عربي 1 الشعبة 4 | V100: 209 - علوم إدارية | W100: اجتماعيات الشعبة 4 | X100: 308 - اجتماعيات | Y100: إنجليزي 1 الشعبة 4 | Z100: 307 - إنجليزي | AA100: رياضيات 1 الشعبة 4 | AB100: 306 - مهارات نفسية | AC100: حياتية 1 الشعبة 4 | AD100: 306 - مهارات نفسية | AE100: فيزياء 1 الشعبة 4 | AF100: 207 - فيزياء | AG100: 3 | AH100: فيزياء 1 الشعبة 4 | AI100: 207 - فيزياء | AJ100: تفسير 1 الشعبة 4 | AK100: 202 - إسلامية | AL100: عربي 1 الشعبة 4 | AM100: 209 - علوم إدارية | AN100: اجتماعيات الشعبة 4 | AO100: 308 - اجتماعيات | AP100: إنجليزي 1 الشعبة 4 | AQ100: 307 - إنجليزي | AR100: رياضيات 1 الشعبة 4 | AS100: 306 - مهارات نفسية | AT100: حياتية 1 الشعبة 4 | AU100: 306 - مهارات نفسية | AV100: 4 | AW100: حياتية 1 الشعبة 4 | AX100: 306 - مهارات نفسية | AY100: فيزياء 1 الشعبة 4 | AZ100: 207 - فيزياء | BA100: تفسير 1 الشعبة 4 | BB100: 202 - إسلامية | BC100: عربي 1 الشعبة 4 | BD100: 209 - علوم إدارية | BE100: اجتماعيات الشعبة 4 | BF100: 308 - اجتماعيات | BG100: إنجليزي 1 الشعبة 4 | BH100: 307 - إنجليزي | BI100: رياضيات 1 الشعبة 4 | BJ100: 306 - مهارات نفسية | BK100: 5 | BL100: إنجليزي 1 الشعبة 4 | BM100: 307 - إنجليزي | BN100: رياضيات 1 الشعبة 4 | BO100: 306 - مهارات نفسية | BP100: فيزياء 1 الشعبة 4 | BQ100: 207 - فيزياء | BR100: تفسير 1 الشعبة 4 | BS100: 202 - إسلامية | BT100: عربي 1 الشعبة 4 | BU100: 209 - علوم إدارية | BV100: حياتية 1 الشعبة 4 | BW100: 306 - مهارات نفسية | BX100: اجتماعيات الشعبة 4 | BY100: 308 - اجتماعيات | BZ100: =_ِAll[[#This Row],[0]] -> 40005
A101: 40007 | B101: سجاد بن محمد بن صالح العباس | C101: 1 | D101: عربي 1 الشعبة 4 | E101: 209 - علوم إدارية | F101: اجتماعيات الشعبة 4 | G101: 308 - اجتماعيات | H101: إنجليزي 1 الشعبة 4 | I101: 307 - إنجليزي | J101: رياضيات 1 الشعبة 4 | K101: 306 - مهارات نفسية | L101: حياتية 1 الشعبة 4 | M101: 306 - مهارات نفسية | N101: فيزياء 1 الشعبة 4 | O101: 207 - فيزياء | P101: تفسير 1 الشعبة 4 | Q101: 202 - إسلامية | R101: 2 | S101: تفسير 1 الشعبة 4 | T101: 202 - إسلامية | U101: عربي 1 الشعبة 4 | V101: 209 - علوم إدارية | W101: اجتماعيات الشعبة 4 | X101: 308 - اجتماعيات | Y101: إنجليزي 1 الشعبة 4 | Z101: 307 - إنجليزي | AA101: رياضيات 1 الشعبة 4 | AB101: 306 - مهارات نفسية | AC101: حياتية 1 الشعبة 4 | AD101: 306 - مهارات نفسية | AE101: فيزياء 1 الشعبة 4 | AF101: 207 - فيزياء | AG101: 3 | AH101: فيزياء 1 الشعبة 4 | AI101: 207 - فيزياء | AJ101: تفسير 1 الشعبة 4 | AK101: 202 - إسلامية | AL101: عربي 1 الشعبة 4 | AM101: 209 - علوم إدارية | AN101: اجتماعيات الشعبة 4 | AO101: 308 - اجتماعيات | AP101: إنجليزي 1 الشعبة 4 | AQ101: 307 - إنجليزي | AR101: رياضيات 1 الشعبة 4 | AS101: 306 - مهارات نفسية | AT101: حياتية 1 الشعبة 4 | AU101: 306 - مهارات نفسية | AV101: 4 | AW101: حياتية 1 الشعبة 4 | AX101: 306 - مهارات نفسية | AY101: فيزياء 1 الشعبة 4 | AZ101: 207 - فيزياء | BA101: تفسير 1 الشعبة 4 | BB101: 202 - إسلامية | BC101: عربي 1 الشعبة 4 | BD101: 209 - علوم إدارية | BE101: اجتماعيات الشعبة 4 | BF101: 308 - اجتماعيات | BG101: إنجليزي 1 الشعبة 4 | BH101: 307 - إنجليزي | BI101: رياضيات 1 الشعبة 4 | BJ101: 306 - مهارات نفسية | BK101: 5 | BL101: إنجليزي 1 الشعبة 4 | BM101: 307 - إنجليزي | BN101: رياضيات 1 الشعبة 4 | BO101: 306 - مهارات نفسية | BP101: فيزياء 1 الشعبة 4 | BQ101: 207 - فيزياء | BR101: تفسير 1 الشعبة 4 | BS101: 202 - إسلامية | BT101: عربي 1 الشعبة 4 | BU101: 209 - علوم إدارية | BV101: حياتية 1 الشعبة 4 | BW101: 306 - مهارات نفسية | BX101: اجتماعيات الشعبة 4 | BY101: 308 - اجتماعيات | BZ101: =_ِAll[[#This Row],[0]] -> 40007
A102: 40008 | B102: احمد بن حسين بن جعفر الفلفل | C102: 1 | D102: رياضيات 1 الشعبة 3 | E102: 306 - مهارات نفسية | F102: إنجليزي 1 الشعبة 3 | G102: 307 - إنجليزي | H102: فيزياء 1 الشعبة 3 | I102: 301 - فيزياء | J102: اجتماعيات الشعبة 3 | K102: 308 - اجتماعيات | L102: عربي 1 الشعبة 3 | M102: 209 - علوم إدارية | N102: قرآن 1 الشعبة 3 | O102: 303 - إسلامية | P102: حياتية 1 الشعبة 3 | Q102: 306 - مهارات نفسية | R102: 2 | S102: حياتية 1 الشعبة 3 | T102: 306 - مهارات نفسية | U102: رياضيات 1 الشعبة 3 | V102: 306 - مهارات نفسية | W102: إنجليزي 1 الشعبة 3 | X102: 307 - إنجليزي | Y102: فيزياء 1 الشعبة 3 | Z102: 301 - فيزياء | AA102: اجتماعيات الشعبة 3 | AB102: 308 - اجتماعيات | AC102: عربي 1 الشعبة 3 | AD102: 209 - علوم إدارية | AE102: قرآن 1 الشعبة 3 | AF102: 303 - إسلامية | AG102: 3 | AH102: قرآن 1 الشعبة 3 | AI102: 303 - إسلامية | AJ102: حياتية 1 الشعبة 3 | AK102: 306 - مهارات نفسية | AL102: رياضيات 1 الشعبة 3 | AM102: 306 - مهارات نفسية | AN102: إنجليزي 1 الشعبة 3 | AO102: 307 - إنجليزي | AP102: فيزياء 1 الشعبة 3 | AQ102: 301 - فيزياء | AR102: اجتماعيات الشعبة 3 | AS102: 308 - اجتماعيات | AT102: عربي 1 الشعبة 3 | AU102: 209 - علوم إدارية | AV102: 4 | AW102: عربي 1 الشعبة 3 | AX102: 209 - علوم إدارية | AY102: قرآن 1 الشعبة 3 | AZ102: 303 - إسلامية | BA102: حياتية 1 الشعبة 3 | BB102: 306 - مهارات نفسية | BC102: رياضيات 1 الشعبة 3 | BD102: 306 - مهارات نفسية | BE102: إنجليزي 1 الشعبة 3 | BF102: 307 - إنجليزي | BG102: فيزياء 1 الشعبة 3 | BH102: 301 - فيزياء | BI102: اجتماعيات الشعبة 3 | BJ102: 308 - اجتماعيات | BK102: 5 | BL102: اجتماعيات الشعبة 3 | BM102: 308 - اجتماعيات | BN102: عربي 1 الشعبة 3 | BO102: 209 - علوم إدارية | BP102: قرآن 1 الشعبة 3 | BQ102: 303 - إسلامية | BR102: حياتية 1 الشعبة 3 | BS102: 306 - مهارات نفسية | BT102: رياضيات 1 الشعبة 3 | BU102: 306 - مهارات نفسية | BV102: إنجليزي 1 الشعبة 3 | BW102: 307 - إنجليزي | BX102: فيزياء 1 الشعبة 3 | BY102: 301 - فيزياء | BZ102: =_ِAll[[#This Row],[0]] -> 40008
A103: 40009 | B103: محمد بن هلال بن عبدالله النخلي | C103: 1 | D103: إنجليزي 1 الشعبة 2 | E103: 208 - إنجليزي | F103: حاسب 1 الشعبة 2 | G103: معمل حاسب | H103: أحياء 1 الشعبة 2 | I103: 212 - معمل أحياء | J103: كيمياء 1 الشعبة 2 | K103: 302 - كيمياء | L103: تفسير 1 الشعبة 2 | M103: 303 - إسلامية | N103: رياضيات 1 الشعبة 2 | O103: 310 - رياضيات | P103: عربي 1 الشعبة 2 | Q103: 204 - عربي | R103: 2 | S103: عربي 1 الشعبة 2 | T103: 204 - عربي | U103: إنجليزي 1 الشعبة 2 | V103: 208 - إنجليزي | W103: حاسب 1 الشعبة 2 | X103: معمل حاسب | Y103: أحياء 1 الشعبة 2 | Z103: 212 - معمل أحياء | AA103: كيمياء 1 الشعبة 2 | AB103: 302 - كيمياء | AC103: تفسير 1 الشعبة 2 | AD103: 303 - إسلامية | AE103: رياضيات 1 الشعبة 2 | AF103: 310 - رياضيات | AG103: 3 | AH103: رياضيات 1 الشعبة 2 | AI103: 310 - رياضيات | AJ103: عربي 1 الشعبة 2 | AK103: 204 - عربي | AL103: إنجليزي 1 الشعبة 2 | AM103: 208 - إنجليزي | AN103: حاسب 1 الشعبة 2 | AO103: معمل حاسب | AP103: كيمياء 1 الشعبة 2 | AQ103: 302 - كيمياء | AR103: أحياء 1 الشعبة 2 | AS103: 212 - معمل أحياء | AT103: تفسير 1 الشعبة 2 | AU103: 303 - إسلامية | AV103: 4 | AW103: تفسير 1 الشعبة 2 | AX103: 303 - إسلامية | AY103: رياضيات 1 الشعبة 2 | AZ103: 310 - رياضيات | BA103: عربي 1 الشعبة 2 | BB103: 204 - عربي | BC103: إنجليزي 1 الشعبة 2 | BD103: 208 - إنجليزي | BE103: حاسب 1 الشعبة 2 | BF103: معمل حاسب | BG103: أحياء 1 الشعبة 2 | BH103: 212 - معمل أحياء | BI103: كيمياء 1 الشعبة 2 | BJ103: 302 - كيمياء | BK103: 5 | BL103: كيمياء 1 الشعبة 2 | BM103: 302 - كيمياء | BN103: تفسير 1 الشعبة 2 | BO103: 303 - إسلامية | BP103: رياضيات 1 الشعبة 2 | BQ103: 310 - رياضيات | BR103: عربي 1 الشعبة 2 | BS103: 204 - عربي | BT103: إنجليزي 1 الشعبة 2 | BU103: 208 - إنجليزي | BV103: حاسب 1 الشعبة 2 | BW103: معمل حاسب | BX103: أحياء 1 الشعبة 2 | BY103: 212 - معمل أحياء | BZ103: =_ِAll[[#This Row],[0]] -> 40009
A104: 40010 | B104: حسن بن سعيد بن حسن المسقلب | C104: 1 | D104: إنجليزي 1 الشعبة 2 | E104: 208 - إنجليزي | F104: حاسب 1 الشعبة 2 | G104: معمل حاسب | H104: أحياء 1 الشعبة 2 | I104: 212 - معمل أحياء | J104: كيمياء 1 الشعبة 2 | K104: 302 - كيمياء | L104: تفسير 1 الشعبة 2 | M104: 303 - إسلامية | N104: رياضيات 1 الشعبة 2 | O104: 310 - رياضيات | P104: عربي 1 الشعبة 2 | Q104: 204 - عربي | R104: 2 | S104: عربي 1 الشعبة 2 | T104: 204 - عربي | U104: إنجليزي 1 الشعبة 2 | V104: 208 - إنجليزي | W104: حاسب 1 الشعبة 2 | X104: معمل حاسب | Y104: أحياء 1 الشعبة 2 | Z104: 212 - معمل أحياء | AA104: كيمياء 1 الشعبة 2 | AB104: 302 - كيمياء | AC104: تفسير 1 الشعبة 2 | AD104: 303 - إسلامية | AE104: رياضيات 1 الشعبة 2 | AF104: 310 - رياضيات | AG104: 3 | AH104: رياضيات 1 الشعبة 2 | AI104: 310 - رياضيات | AJ104: عربي 1 الشعبة 2 | AK104: 204 - عربي | AL104: إنجليزي 1 الشعبة 2 | AM104: 208 - إنجليزي | AN104: حاسب 1 الشعبة 2 | AO104: معمل حاسب | AP104: كيمياء 1 الشعبة 2 | AQ104: 302 - كيمياء | AR104: أحياء 1 الشعبة 2 | AS104: 212 - معمل أحياء | AT104: تفسير 1 الشعبة 2 | AU104: 303 - إسلامية | AV104: 4 | AW104: تفسير 1 الشعبة 2 | AX104: 303 - إسلامية | AY104: رياضيات 1 الشعبة 2 | AZ104: 310 - رياضيات | BA104: عربي 1 الشعبة 2 | BB104: 204 - عربي | BC104: إنجليزي 1 الشعبة 2 | BD104: 208 - إنجليزي | BE104: حاسب 1 الشعبة 2 | BF104: معمل حاسب | BG104: أحياء 1 الشعبة 2 | BH104: 212 - معمل أحياء | BI104: كيمياء 1 الشعبة 2 | BJ104: 302 - كيمياء | BK104: 5 | BL104: كيمياء 1 الشعبة 2 | BM104: 302 - كيمياء | BN104: تفسير 1 الشعبة 2 | BO104: 303 - إسلامية | BP104: رياضيات 1 الشعبة 2 | BQ104: 310 - رياضيات | BR104: عربي 1 الشعبة 2 | BS104: 204 - عربي | BT104: إنجليزي 1 الشعبة 2 | BU104: 208 - إنجليزي | BV104: حاسب 1 الشعبة 2 | BW104: معمل حاسب | BX104: أحياء 1 الشعبة 2 | BY104: 212 - معمل أحياء | BZ104: =_ِAll[[#This Row],[0]] -> 40010
A105: 40011 | B105: حيدر بن جواد بن أحمد الصبي | C105: 1 | D105: عربي 1 الشعبة 4 | E105: 209 - علوم إدارية | F105: اجتماعيات الشعبة 4 | G105: 308 - اجتماعيات | H105: إنجليزي 1 الشعبة 4 | I105: 307 - إنجليزي | J105: رياضيات 1 الشعبة 4 | K105: 306 - مهارات نفسية | L105: حياتية 1 الشعبة 4 | M105: 306 - مهارات نفسية | N105: فيزياء 1 الشعبة 4 | O105: 207 - فيزياء | P105: تفسير 1 الشعبة 4 | Q105: 202 - إسلامية | R105: 2 | S105: تفسير 1 الشعبة 4 | T105: 202 - إسلامية | U105: عربي 1 الشعبة 4 | V105: 209 - علوم إدارية | W105: اجتماعيات الشعبة 4 | X105: 308 - اجتماعيات | Y105: إنجليزي 1 الشعبة 4 | Z105: 307 - إنجليزي | AA105: رياضيات 1 الشعبة 4 | AB105: 306 - مهارات نفسية | AC105: حياتية 1 الشعبة 4 | AD105: 306 - مهارات نفسية | AE105: فيزياء 1 الشعبة 4 | AF105: 207 - فيزياء | AG105: 3 | AH105: فيزياء 1 الشعبة 4 | AI105: 207 - فيزياء | AJ105: تفسير 1 الشعبة 4 | AK105: 202 - إسلامية | AL105: عربي 1 الشعبة 4 | AM105: 209 - علوم إدارية | AN105: اجتماعيات الشعبة 4 | AO105: 308 - اجتماعيات | AP105: إنجليزي 1 الشعبة 4 | AQ105: 307 - إنجليزي | AR105: رياضيات 1 الشعبة 4 | AS105: 306 - مهارات نفسية | AT105: حياتية 1 الشعبة 4 | AU105: 306 - مهارات نفسية | AV105: 4 | AW105: حياتية 1 الشعبة 4 | AX105: 306 - مهارات نفسية | AY105: فيزياء 1 الشعبة 4 | AZ105: 207 - فيزياء | BA105: تفسير 1 الشعبة 4 | BB105: 202 - إسلامية | BC105: عربي 1 الشعبة 4 | BD105: 209 - علوم إدارية | BE105: اجتماعيات الشعبة 4 | BF105: 308 - اجتماعيات | BG105: إنجليزي 1 الشعبة 4 | BH105: 307 - إنجليزي | BI105: رياضيات 1 الشعبة 4 | BJ105: 306 - مهارات نفسية | BK105: 5 | BL105: إنجليزي 1 الشعبة 4 | BM105: 307 - إنجليزي | BN105: رياضيات 1 الشعبة 4 | BO105: 306 - مهارات نفسية | BP105: فيزياء 1 الشعبة 4 | BQ105: 207 - فيزياء | BR105: تفسير 1 الشعبة 4 | BS105: 202 - إسلامية | BT105: عربي 1 الشعبة 4 | BU105: 209 - علوم إدارية | BV105: حياتية 1 الشعبة 4 | BW105: 306 - مهارات نفسية | BX105: اجتماعيات الشعبة 4 | BY105: 308 - اجتماعيات | BZ105: =_ِAll[[#This Row],[0]] -> 40011
A106: 40012 | B106: حيدر بن مكي بن احمد آل رمضان | C106: 1 | D106: رياضيات 1 الشعبة 3 | E106: 306 - مهارات نفسية | F106: إنجليزي 1 الشعبة 3 | G106: 307 - إنجليزي | H106: فيزياء 1 الشعبة 3 | I106: 301 - فيزياء | J106: اجتماعيات الشعبة 3 | K106: 308 - اجتماعيات | L106: عربي 1 الشعبة 3 | M106: 209 - علوم إدارية | N106: قرآن 1 الشعبة 3 | O106: 303 - إسلامية | P106: حياتية 1 الشعبة 3 | Q106: 306 - مهارات نفسية | R106: 2 | S106: حياتية 1 الشعبة 3 | T106: 306 - مهارات نفسية | U106: رياضيات 1 الشعبة 3 | V106: 306 - مهارات نفسية | W106: إنجليزي 1 الشعبة 3 | X106: 307 - إنجليزي | Y106: فيزياء 1 الشعبة 3 | Z106: 301 - فيزياء | AA106: اجتماعيات الشعبة 3 | AB106: 308 - اجتماعيات | AC106: عربي 1 الشعبة 3 | AD106: 209 - علوم إدارية | AE106: قرآن 1 الشعبة 3 | AF106: 303 - إسلامية | AG106: 3 | AH106: قرآن 1 الشعبة 3 | AI106: 303 - إسلامية | AJ106: حياتية 1 الشعبة 3 | AK106: 306 - مهارات نفسية | AL106: رياضيات 1 الشعبة 3 | AM106: 306 - مهارات نفسية | AN106: إنجليزي 1 الشعبة 3 | AO106: 307 - إنجليزي | AP106: فيزياء 1 الشعبة 3 | AQ106: 301 - فيزياء | AR106: اجتماعيات الشعبة 3 | AS106: 308 - اجتماعيات | AT106: عربي 1 الشعبة 3 | AU106: 209 - علوم إدارية | AV106: 4 | AW106: عربي 1 الشعبة 3 | AX106: 209 - علوم إدارية | AY106: قرآن 1 الشعبة 3 | AZ106: 303 - إسلامية | BA106: حياتية 1 الشعبة 3 | BB106: 306 - مهارات نفسية | BC106: رياضيات 1 الشعبة 3 | BD106: 306 - مهارات نفسية | BE106: إنجليزي 1 الشعبة 3 | BF106: 307 - إنجليزي | BG106: فيزياء 1 الشعبة 3 | BH106: 301 - فيزياء | BI106: اجتماعيات الشعبة 3 | BJ106: 308 - اجتماعيات | BK106: 5 | BL106: اجتماعيات الشعبة 3 | BM106: 308 - اجتماعيات | BN106: عربي 1 الشعبة 3 | BO106: 209 - علوم إدارية | BP106: قرآن 1 الشعبة 3 | BQ106: 303 - إسلامية | BR106: حياتية 1 الشعبة 3 | BS106: 306 - مهارات نفسية | BT106: رياضيات 1 الشعبة 3 | BU106: 306 - مهارات نفسية | BV106: إنجليزي 1 الشعبة 3 | BW106: 307 - إنجليزي | BX106: فيزياء 1 الشعبة 3 | BY106: 301 - فيزياء | BZ106: =_ِAll[[#This Row],[0]] -> 40012
A107: 40013 | B107: محمد بن حسين بن جعفر الصقر | C107: 1 | D107: عربي 1 الشعبة 4 | E107: 209 - علوم إدارية | F107: اجتماعيات الشعبة 4 | G107: 308 - اجتماعيات | H107: إنجليزي 1 الشعبة 4 | I107: 307 - إنجليزي | J107: رياضيات 1 الشعبة 4 | K107: 306 - مهارات نفسية | L107: حياتية 1 الشعبة 4 | M107: 306 - مهارات نفسية | N107: فيزياء 1 الشعبة 4 | O107: 207 - فيزياء | P107: تفسير 1 الشعبة 4 | Q107: 202 - إسلامية | R107: 2 | S107: تفسير 1 الشعبة 4 | T107: 202 - إسلامية | U107: عربي 1 الشعبة 4 | V107: 209 - علوم إدارية | W107: اجتماعيات الشعبة 4 | X107: 308 - اجتماعيات | Y107: إنجليزي 1 الشعبة 4 | Z107: 307 - إنجليزي | AA107: رياضيات 1 الشعبة 4 | AB107: 306 - مهارات نفسية | AC107: حياتية 1 الشعبة 4 | AD107: 306 - مهارات نفسية | AE107: فيزياء 1 الشعبة 4 | AF107: 207 - فيزياء | AG107: 3 | AH107: فيزياء 1 الشعبة 4 | AI107: 207 - فيزياء | AJ107: تفسير 1 الشعبة 4 | AK107: 202 - إسلامية | AL107: عربي 1 الشعبة 4 | AM107: 209 - علوم إدارية | AN107: اجتماعيات الشعبة 4 | AO107: 308 - اجتماعيات | AP107: إنجليزي 1 الشعبة 4 | AQ107: 307 - إنجليزي | AR107: رياضيات 1 الشعبة 4 | AS107: 306 - مهارات نفسية | AT107: حياتية 1 الشعبة 4 | AU107: 306 - مهارات نفسية | AV107: 4 | AW107: حياتية 1 الشعبة 4 | AX107: 306 - مهارات نفسية | AY107: فيزياء 1 الشعبة 4 | AZ107: 207 - فيزياء | BA107: تفسير 1 الشعبة 4 | BB107: 202 - إسلامية | BC107: عربي 1 الشعبة 4 | BD107: 209 - علوم إدارية | BE107: اجتماعيات الشعبة 4 | BF107: 308 - اجتماعيات | BG107: إنجليزي 1 الشعبة 4 | BH107: 307 - إنجليزي | BI107: رياضيات 1 الشعبة 4 | BJ107: 306 - مهارات نفسية | BK107: 5 | BL107: إنجليزي 1 الشعبة 4 | BM107: 307 - إنجليزي | BN107: رياضيات 1 الشعبة 4 | BO107: 306 - مهارات نفسية | BP107: فيزياء 1 الشعبة 4 | BQ107: 207 - فيزياء | BR107: تفسير 1 الشعبة 4 | BS107: 202 - إسلامية | BT107: عربي 1 الشعبة 4 | BU107: 209 - علوم إدارية | BV107: حياتية 1 الشعبة 4 | BW107: 306 - مهارات نفسية | BX107: اجتماعيات الشعبة 4 | BY107: 308 - اجتماعيات | BZ107: =_ِAll[[#This Row],[0]] -> 40013
A108: 40014 | B108: علي بن انور بن حسن آل رضوان | C108: 1 | D108: عربي 1 الشعبة 4 | E108: 209 - علوم إدارية | F108: اجتماعيات الشعبة 4 | G108: 308 - اجتماعيات | H108: إنجليزي 1 الشعبة 4 | I108: 307 - إنجليزي | J108: رياضيات 1 الشعبة 4 | K108: 306 - مهارات نفسية | L108: حياتية 1 الشعبة 4 | M108: 306 - مهارات نفسية | N108: فيزياء 1 الشعبة 4 | O108: 207 - فيزياء | P108: تفسير 1 الشعبة 4 | Q108: 202 - إسلامية | R108: 2 | S108: تفسير 1 الشعبة 4 | T108: 202 - إسلامية | U108: عربي 1 الشعبة 4 | V108: 209 - علوم إدارية | W108: اجتماعيات الشعبة 4 | X108: 308 - اجتماعيات | Y108: إنجليزي 1 الشعبة 4 | Z108: 307 - إنجليزي | AA108: رياضيات 1 الشعبة 4 | AB108: 306 - مهارات نفسية | AC108: حياتية 1 الشعبة 4 | AD108: 306 - مهارات نفسية | AE108: فيزياء 1 الشعبة 4 | AF108: 207 - فيزياء | AG108: 3 | AH108: فيزياء 1 الشعبة 4 | AI108: 207 - فيزياء | AJ108: تفسير 1 الشعبة 4 | AK108: 202 - إسلامية | AL108: عربي 1 الشعبة 4 | AM108: 209 - علوم إدارية | AN108: اجتماعيات الشعبة 4 | AO108: 308 - اجتماعيات | AP108: إنجليزي 1 الشعبة 4 | AQ108: 307 - إنجليزي | AR108: رياضيات 1 الشعبة 4 | AS108: 306 - مهارات نفسية | AT108: حياتية 1 الشعبة 4 | AU108: 306 - مهارات نفسية | AV108: 4 | AW108: حياتية 1 الشعبة 4 | AX108: 306 - مهارات نفسية | AY108: فيزياء 1 الشعبة 4 | AZ108: 207 - فيزياء | BA108: تفسير 1 الشعبة 4 | BB108: 202 - إسلامية | BC108: عربي 1 الشعبة 4 | BD108: 209 - علوم إدارية | BE108: اجتماعيات الشعبة 4 | BF108: 308 - اجتماعيات | BG108: إنجليزي 1 الشعبة 4 | BH108: 307 - إنجليزي | BI108: رياضيات 1 الشعبة 4 | BJ108: 306 - مهارات نفسية | BK108: 5 | BL108: إنجليزي 1 الشعبة 4 | BM108: 307 - إنجليزي | BN108: رياضيات 1 الشعبة 4 | BO108: 306 - مهارات نفسية | BP108: فيزياء 1 الشعبة 4 | BQ108: 207 - فيزياء | BR108: تفسير 1 الشعبة 4 | BS108: 202 - إسلامية | BT108: عربي 1 الشعبة 4 | BU108: 209 - علوم إدارية | BV108: حياتية 1 الشعبة 4 | BW108: 306 - مهارات نفسية | BX108: اجتماعيات الشعبة 4 | BY108: 308 - اجتماعيات | BZ108: =_ِAll[[#This Row],[0]] -> 40014
A109: 40016 | B109: حسن بن علي بن حسن آل غزوي | C109: 1 | D109: إنجليزي 1 الشعبة 2 | E109: 208 - إنجليزي | F109: حاسب 1 الشعبة 2 | G109: معمل حاسب | H109: أحياء 1 الشعبة 2 | I109: 212 - معمل أحياء | J109: كيمياء 1 الشعبة 2 | K109: 302 - كيمياء | L109: تفسير 1 الشعبة 2 | M109: 303 - إسلامية | N109: رياضيات 1 الشعبة 2 | O109: 310 - رياضيات | P109: عربي 1 الشعبة 2 | Q109: 204 - عربي | R109: 2 | S109: عربي 1 الشعبة 2 | T109: 204 - عربي | U109: إنجليزي 1 الشعبة 2 | V109: 208 - إنجليزي | W109: حاسب 1 الشعبة 2 | X109: معمل حاسب | Y109: أحياء 1 الشعبة 2 | Z109: 212 - معمل أحياء | AA109: كيمياء 1 الشعبة 2 | AB109: 302 - كيمياء | AC109: تفسير 1 الشعبة 2 | AD109: 303 - إسلامية | AE109: رياضيات 1 الشعبة 2 | AF109: 310 - رياضيات | AG109: 3 | AH109: رياضيات 1 الشعبة 2 | AI109: 310 - رياضيات | AJ109: عربي 1 الشعبة 2 | AK109: 204 - عربي | AL109: إنجليزي 1 الشعبة 2 | AM109: 208 - إنجليزي | AN109: حاسب 1 الشعبة 2 | AO109: معمل حاسب | AP109: كيمياء 1 الشعبة 2 | AQ109: 302 - كيمياء | AR109: أحياء 1 الشعبة 2 | AS109: 212 - معمل أحياء | AT109: تفسير 1 الشعبة 2 | AU109: 303 - إسلامية | AV109: 4 | AW109: تفسير 1 الشعبة 2 | AX109: 303 - إسلامية | AY109: رياضيات 1 الشعبة 2 | AZ109: 310 - رياضيات | BA109: عربي 1 الشعبة 2 | BB109: 204 - عربي | BC109: إنجليزي 1 الشعبة 2 | BD109: 208 - إنجليزي | BE109: حاسب 1 الشعبة 2 | BF109: معمل حاسب | BG109: أحياء 1 الشعبة 2 | BH109: 212 - معمل أحياء | BI109: كيمياء 1 الشعبة 2 | BJ109: 302 - كيمياء | BK109: 5 | BL109: كيمياء 1 الشعبة 2 | BM109: 302 - كيمياء | BN109: تفسير 1 الشعبة 2 | BO109: 303 - إسلامية | BP109: رياضيات 1 الشعبة 2 | BQ109: 310 - رياضيات | BR109: عربي 1 الشعبة 2 | BS109: 204 - عربي | BT109: إنجليزي 1 الشعبة 2 | BU109: 208 - إنجليزي | BV109: حاسب 1 الشعبة 2 | BW109: معمل حاسب | BX109: أحياء 1 الشعبة 2 | BY109: 212 - معمل أحياء | BZ109: =_ِAll[[#This Row],[0]] -> 40016
A110: 40017 | B110: هادي بن عادل بن حبيب آل خميس | C110: 1 | D110: إنجليزي 1 الشعبة 2 | E110: 208 - إنجليزي | F110: حاسب 1 الشعبة 2 | G110: معمل حاسب | H110: أحياء 1 الشعبة 2 | I110: 212 - معمل أحياء | J110: كيمياء 1 الشعبة 2 | K110: 302 - كيمياء | L110: تفسير 1 الشعبة 2 | M110: 303 - إسلامية | N110: رياضيات 1 الشعبة 2 | O110: 310 - رياضيات | P110: عربي 1 الشعبة 2 | Q110: 204 - عربي | R110: 2 | S110: عربي 1 الشعبة 2 | T110: 204 - عربي | U110: إنجليزي 1 الشعبة 2 | V110: 208 - إنجليزي | W110: حاسب 1 الشعبة 2 | X110: معمل حاسب | Y110: أحياء 1 الشعبة 2 | Z110: 212 - معمل أحياء | AA110: كيمياء 1 الشعبة 2 | AB110: 302 - كيمياء | AC110: تفسير 1 الشعبة 2 | AD110: 303 - إسلامية | AE110: رياضيات 1 الشعبة 2 | AF110: 310 - رياضيات | AG110: 3 | AH110: رياضيات 1 الشعبة 2 | AI110: 310 - رياضيات | AJ110: عربي 1 الشعبة 2 | AK110: 204 - عربي | AL110: إنجليزي 1 الشعبة 2 | AM110: 208 - إنجليزي | AN110: حاسب 1 الشعبة 2 | AO110: معمل حاسب | AP110: كيمياء 1 الشعبة 2 | AQ110: 302 - كيمياء | AR110: أحياء 1 الشعبة 2 | AS110: 212 - معمل أحياء | AT110: تفسير 1 الشعبة 2 | AU110: 303 - إسلامية | AV110: 4 | AW110: تفسير 1 الشعبة 2 | AX110: 303 - إسلامية | AY110: رياضيات 1 الشعبة 2 | AZ110: 310 - رياضيات | BA110: عربي 1 الشعبة 2 | BB110: 204 - عربي | BC110: إنجليزي 1 الشعبة 2 | BD110: 208 - إنجليزي | BE110: حاسب 1 الشعبة 2 | BF110: معمل حاسب | BG110: أحياء 1 الشعبة 2 | BH110: 212 - معمل أحياء | BI110: كيمياء 1 الشعبة 2 | BJ110: 302 - كيمياء | BK110: 5 | BL110: كيمياء 1 الشعبة 2 | BM110: 302 - كيمياء | BN110: تفسير 1 الشعبة 2 | BO110: 303 - إسلامية | BP110: رياضيات 1 الشعبة 2 | BQ110: 310 - رياضيات | BR110: عربي 1 الشعبة 2 | BS110: 204 - عربي | BT110: إنجليزي 1 الشعبة 2 | BU110: 208 - إنجليزي | BV110: حاسب 1 الشعبة 2 | BW110: معمل حاسب | BX110: أحياء 1 الشعبة 2 | BY110: 212 - معمل أحياء | BZ110: =_ِAll[[#This Row],[0]] -> 40017
A111: 40020 | B111: علي بن عبدالرحمن بن صالح امويس | C111: 1 | D111: عربي 1 الشعبة 4 | E111: 209 - علوم إدارية | F111: اجتماعيات الشعبة 4 | G111: 308 - اجتماعيات | H111: إنجليزي 1 الشعبة 4 | I111: 307 - إنجليزي | J111: رياضيات 1 الشعبة 4 | K111: 306 - مهارات نفسية | L111: حياتية 1 الشعبة 4 | M111: 306 - مهارات نفسية | N111: فيزياء 1 الشعبة 4 | O111: 207 - فيزياء | P111: تفسير 1 الشعبة 4 | Q111: 202 - إسلامية | R111: 2 | S111: تفسير 1 الشعبة 4 | T111: 202 - إسلامية | U111: عربي 1 الشعبة 4 | V111: 209 - علوم إدارية | W111: اجتماعيات الشعبة 4 | X111: 308 - اجتماعيات | Y111: إنجليزي 1 الشعبة 4 | Z111: 307 - إنجليزي | AA111: رياضيات 1 الشعبة 4 | AB111: 306 - مهارات نفسية | AC111: حياتية 1 الشعبة 4 | AD111: 306 - مهارات نفسية | AE111: فيزياء 1 الشعبة 4 | AF111: 207 - فيزياء | AG111: 3 | AH111: فيزياء 1 الشعبة 4 | AI111: 207 - فيزياء | AJ111: تفسير 1 الشعبة 4 | AK111: 202 - إسلامية | AL111: عربي 1 الشعبة 4 | AM111: 209 - علوم إدارية | AN111: اجتماعيات الشعبة 4 | AO111: 308 - اجتماعيات | AP111: إنجليزي 1 الشعبة 4 | AQ111: 307 - إنجليزي | AR111: رياضيات 1 الشعبة 4 | AS111: 306 - مهارات نفسية | AT111: حياتية 1 الشعبة 4 | AU111: 306 - مهارات نفسية | AV111: 4 | AW111: حياتية 1 الشعبة 4 | AX111: 306 - مهارات نفسية | AY111: فيزياء 1 الشعبة 4 | AZ111: 207 - فيزياء | BA111: تفسير 1 الشعبة 4 | BB111: 202 - إسلامية | BC111: عربي 1 الشعبة 4 | BD111: 209 - علوم إدارية | BE111: اجتماعيات الشعبة 4 | BF111: 308 - اجتماعيات | BG111: إنجليزي 1 الشعبة 4 | BH111: 307 - إنجليزي | BI111: رياضيات 1 الشعبة 4 | BJ111: 306 - مهارات نفسية | BK111: 5 | BL111: إنجليزي 1 الشعبة 4 | BM111: 307 - إنجليزي | BN111: رياضيات 1 الشعبة 4 | BO111: 306 - مهارات نفسية | BP111: فيزياء 1 الشعبة 4 | BQ111: 207 - فيزياء | BR111: تفسير 1 الشعبة 4 | BS111: 202 - إسلامية | BT111: عربي 1 الشعبة 4 | BU111: 209 - علوم إدارية | BV111: حياتية 1 الشعبة 4 | BW111: 306 - مهارات نفسية | BX111: اجتماعيات الشعبة 4 | BY111: 308 - اجتماعيات | BZ111: =_ِAll[[#This Row],[0]] -> 40020
A112: 40022 | B112: أحمد بن هاني بن رضي القصاب | C112: 1 | D112: رياضيات 1 الشعبة 3 | E112: 306 - مهارات نفسية | F112: إنجليزي 1 الشعبة 3 | G112: 307 - إنجليزي | H112: فيزياء 1 الشعبة 3 | I112: 301 - فيزياء | J112: اجتماعيات الشعبة 3 | K112: 308 - اجتماعيات | L112: عربي 1 الشعبة 3 | M112: 209 - علوم إدارية | N112: قرآن 1 الشعبة 3 | O112: 303 - إسلامية | P112: حياتية 1 الشعبة 3 | Q112: 306 - مهارات نفسية | R112: 2 | S112: حياتية 1 الشعبة 3 | T112: 306 - مهارات نفسية | U112: رياضيات 1 الشعبة 3 | V112: 306 - مهارات نفسية | W112: إنجليزي 1 الشعبة 3 | X112: 307 - إنجليزي | Y112: فيزياء 1 الشعبة 3 | Z112: 301 - فيزياء | AA112: اجتماعيات الشعبة 3 | AB112: 308 - اجتماعيات | AC112: عربي 1 الشعبة 3 | AD112: 209 - علوم إدارية | AE112: قرآن 1 الشعبة 3 | AF112: 303 - إسلامية | AG112: 3 | AH112: قرآن 1 الشعبة 3 | AI112: 303 - إسلامية | AJ112: حياتية 1 الشعبة 3 | AK112: 306 - مهارات نفسية | AL112: رياضيات 1 الشعبة 3 | AM112: 306 - مهارات نفسية | AN112: إنجليزي 1 الشعبة 3 | AO112: 307 - إنجليزي | AP112: فيزياء 1 الشعبة 3 | AQ112: 301 - فيزياء | AR112: اجتماعيات الشعبة 3 | AS112: 308 - اجتماعيات | AT112: عربي 1 الشعبة 3 | AU112: 209 - علوم إدارية | AV112: 4 | AW112: عربي 1 الشعبة 3 | AX112: 209 - علوم إدارية | AY112: قرآن 1 الشعبة 3 | AZ112: 303 - إسلامية | BA112: حياتية 1 الشعبة 3 | BB112: 306 - مهارات نفسية | BC112: رياضيات 1 الشعبة 3 | BD112: 306 - مهارات نفسية | BE112: إنجليزي 1 الشعبة 3 | BF112: 307 - إنجليزي | BG112: فيزياء 1 الشعبة 3 | BH112: 301 - فيزياء | BI112: اجتماعيات الشعبة 3 | BJ112: 308 - اجتماعيات | BK112: 5 | BL112: اجتماعيات الشعبة 3 | BM112: 308 - اجتماعيات | BN112: عربي 1 الشعبة 3 | BO112: 209 - علوم إدارية | BP112: قرآن 1 الشعبة 3 | BQ112: 303 - إسلامية | BR112: حياتية 1 الشعبة 3 | BS112: 306 - مهارات نفسية | BT112: رياضيات 1 الشعبة 3 | BU112: 306 - مهارات نفسية | BV112: إنجليزي 1 الشعبة 3 | BW112: 307 - إنجليزي | BX112: فيزياء 1 الشعبة 3 | BY112: 301 - فيزياء | BZ112: =_ِAll[[#This Row],[0]] -> 40022
A113: 40023 | B113: عبدالله بن جعفر بن محمد آل سلام | C113: 1 | D113: إنجليزي 1 الشعبة 2 | E113: 208 - إنجليزي | F113: حاسب 1 الشعبة 2 | G113: معمل حاسب | H113: أحياء 1 الشعبة 2 | I113: 212 - معمل أحياء | J113: كيمياء 1 الشعبة 2 | K113: 302 - كيمياء | L113: تفسير 1 الشعبة 2 | M113: 303 - إسلامية | N113: رياضيات 1 الشعبة 2 | O113: 310 - رياضيات | P113: عربي 1 الشعبة 2 | Q113: 204 - عربي | R113: 2 | S113: عربي 1 الشعبة 2 | T113: 204 - عربي | U113: إنجليزي 1 الشعبة 2 | V113: 208 - إنجليزي | W113: حاسب 1 الشعبة 2 | X113: معمل حاسب | Y113: أحياء 1 الشعبة 2 | Z113: 212 - معمل أحياء | AA113: كيمياء 1 الشعبة 2 | AB113: 302 - كيمياء | AC113: تفسير 1 الشعبة 2 | AD113: 303 - إسلامية | AE113: رياضيات 1 الشعبة 2 | AF113: 310 - رياضيات | AG113: 3 | AH113: رياضيات 1 الشعبة 2 | AI113: 310 - رياضيات | AJ113: عربي 1 الشعبة 2 | AK113: 204 - عربي | AL113: إنجليزي 1 الشعبة 2 | AM113: 208 - إنجليزي | AN113: حاسب 1 الشعبة 2 | AO113: معمل حاسب | AP113: كيمياء 1 الشعبة 2 | AQ113: 302 - كيمياء | AR113: أحياء 1 الشعبة 2 | AS113: 212 - معمل أحياء | AT113: تفسير 1 الشعبة 2 | AU113: 303 - إسلامية | AV113: 4 | AW113: تفسير 1 الشعبة 2 | AX113: 303 - إسلامية | AY113: رياضيات 1 الشعبة 2 | AZ113: 310 - رياضيات | BA113: عربي 1 الشعبة 2 | BB113: 204 - عربي | BC113: إنجليزي 1 الشعبة 2 | BD113: 208 - إنجليزي | BE113: حاسب 1 الشعبة 2 | BF113: معمل حاسب | BG113: أحياء 1 الشعبة 2 | BH113: 212 - معمل أحياء | BI113: كيمياء 1 الشعبة 2 | BJ113: 302 - كيمياء | BK113: 5 | BL113: كيمياء 1 الشعبة 2 | BM113: 302 - كيمياء | BN113: تفسير 1 الشعبة 2 | BO113: 303 - إسلامية | BP113: رياضيات 1 الشعبة 2 | BQ113: 310 - رياضيات | BR113: عربي 1 الشعبة 2 | BS113: 204 - عربي | BT113: إنجليزي 1 الشعبة 2 | BU113: 208 - إنجليزي | BV113: حاسب 1 الشعبة 2 | BW113: معمل حاسب | BX113: أحياء 1 الشعبة 2 | BY113: 212 - معمل أحياء | BZ113: =_ِAll[[#This Row],[0]] -> 40023
A114: 40024 | B114: محمد بن صالح بن عبدالله الناصر | C114: 1 | D114: عربي 1 الشعبة 4 | E114: 209 - علوم إدارية | F114: اجتماعيات الشعبة 4 | G114: 308 - اجتماعيات | H114: إنجليزي 1 الشعبة 4 | I114: 307 - إنجليزي | J114: رياضيات 1 الشعبة 4 | K114: 306 - مهارات نفسية | L114: حياتية 1 الشعبة 4 | M114: 306 - مهارات نفسية | N114: فيزياء 1 الشعبة 4 | O114: 207 - فيزياء | P114: تفسير 1 الشعبة 4 | Q114: 202 - إسلامية | R114: 2 | S114: تفسير 1 الشعبة 4 | T114: 202 - إسلامية | U114: عربي 1 الشعبة 4 | V114: 209 - علوم إدارية | W114: اجتماعيات الشعبة 4 | X114: 308 - اجتماعيات | Y114: إنجليزي 1 الشعبة 4 | Z114: 307 - إنجليزي | AA114: رياضيات 1 الشعبة 4 | AB114: 306 - مهارات نفسية | AC114: حياتية 1 الشعبة 4 | AD114: 306 - مهارات نفسية | AE114: فيزياء 1 الشعبة 4 | AF114: 207 - فيزياء | AG114: 3 | AH114: فيزياء 1 الشعبة 4 | AI114: 207 - فيزياء | AJ114: تفسير 1 الشعبة 4 | AK114: 202 - إسلامية | AL114: عربي 1 الشعبة 4 | AM114: 209 - علوم إدارية | AN114: اجتماعيات الشعبة 4 | AO114: 308 - اجتماعيات | AP114: إنجليزي 1 الشعبة 4 | AQ114: 307 - إنجليزي | AR114: رياضيات 1 الشعبة 4 | AS114: 306 - مهارات نفسية | AT114: حياتية 1 الشعبة 4 | AU114: 306 - مهارات نفسية | AV114: 4 | AW114: حياتية 1 الشعبة 4 | AX114: 306 - مهارات نفسية | AY114: فيزياء 1 الشعبة 4 | AZ114: 207 - فيزياء | BA114: تفسير 1 الشعبة 4 | BB114: 202 - إسلامية | BC114: عربي 1 الشعبة 4 | BD114: 209 - علوم إدارية | BE114: اجتماعيات الشعبة 4 | BF114: 308 - اجتماعيات | BG114: إنجليزي 1 الشعبة 4 | BH114: 307 - إنجليزي | BI114: رياضيات 1 الشعبة 4 | BJ114: 306 - مهارات نفسية | BK114: 5 | BL114: إنجليزي 1 الشعبة 4 | BM114: 307 - إنجليزي | BN114: رياضيات 1 الشعبة 4 | BO114: 306 - مهارات نفسية | BP114: فيزياء 1 الشعبة 4 | BQ114: 207 - فيزياء | BR114: تفسير 1 الشعبة 4 | BS114: 202 - إسلامية | BT114: عربي 1 الشعبة 4 | BU114: 209 - علوم إدارية | BV114: حياتية 1 الشعبة 4 | BW114: 306 - مهارات نفسية | BX114: اجتماعيات الشعبة 4 | BY114: 308 - اجتماعيات | BZ114: =_ِAll[[#This Row],[0]] -> 40024
A115: 40025 | B115: أحمد بن حسن بن عبدالله سلام | C115: 1 | D115: عربي 1 الشعبة 4 | E115: 209 - علوم إدارية | F115: اجتماعيات الشعبة 4 | G115: 308 - اجتماعيات | H115: إنجليزي 1 الشعبة 4 | I115: 307 - إنجليزي | J115: رياضيات 1 الشعبة 4 | K115: 306 - مهارات نفسية | L115: حياتية 1 الشعبة 4 | M115: 306 - مهارات نفسية | N115: فيزياء 1 الشعبة 4 | O115: 207 - فيزياء | P115: تفسير 1 الشعبة 4 | Q115: 202 - إسلامية | R115: 2 | S115: تفسير 1 الشعبة 4 | T115: 202 - إسلامية | U115: عربي 1 الشعبة 4 | V115: 209 - علوم إدارية | W115: اجتماعيات الشعبة 4 | X115: 308 - اجتماعيات | Y115: إنجليزي 1 الشعبة 4 | Z115: 307 - إنجليزي | AA115: رياضيات 1 الشعبة 4 | AB115: 306 - مهارات نفسية | AC115: حياتية 1 الشعبة 4 | AD115: 306 - مهارات نفسية | AE115: فيزياء 1 الشعبة 4 | AF115: 207 - فيزياء | AG115: 3 | AH115: فيزياء 1 الشعبة 4 | AI115: 207 - فيزياء | AJ115: تفسير 1 الشعبة 4 | AK115: 202 - إسلامية | AL115: عربي 1 الشعبة 4 | AM115: 209 - علوم إدارية | AN115: اجتماعيات الشعبة 4 | AO115: 308 - اجتماعيات | AP115: إنجليزي 1 الشعبة 4 | AQ115: 307 - إنجليزي | AR115: رياضيات 1 الشعبة 4 | AS115: 306 - مهارات نفسية | AT115: حياتية 1 الشعبة 4 | AU115: 306 - مهارات نفسية | AV115: 4 | AW115: حياتية 1 الشعبة 4 | AX115: 306 - مهارات نفسية | AY115: فيزياء 1 الشعبة 4 | AZ115: 207 - فيزياء | BA115: تفسير 1 الشعبة 4 | BB115: 202 - إسلامية | BC115: عربي 1 الشعبة 4 | BD115: 209 - علوم إدارية | BE115: اجتماعيات الشعبة 4 | BF115: 308 - اجتماعيات | BG115: إنجليزي 1 الشعبة 4 | BH115: 307 - إنجليزي | BI115: رياضيات 1 الشعبة 4 | BJ115: 306 - مهارات نفسية | BK115: 5 | BL115: إنجليزي 1 الشعبة 4 | BM115: 307 - إنجليزي | BN115: رياضيات 1 الشعبة 4 | BO115: 306 - مهارات نفسية | BP115: فيزياء 1 الشعبة 4 | BQ115: 207 - فيزياء | BR115: تفسير 1 الشعبة 4 | BS115: 202 - إسلامية | BT115: عربي 1 الشعبة 4 | BU115: 209 - علوم إدارية | BV115: حياتية 1 الشعبة 4 | BW115: 306 - مهارات نفسية | BX115: اجتماعيات الشعبة 4 | BY115: 308 - اجتماعيات | BZ115: =_ِAll[[#This Row],[0]] -> 40025
A116: 40026 | B116: علي بن كاظم بن علي آل ضاحي | C116: 1 | D116: عربي 1 الشعبة 4 | E116: 209 - علوم إدارية | F116: اجتماعيات الشعبة 4 | G116: 308 - اجتماعيات | H116: إنجليزي 1 الشعبة 4 | I116: 307 - إنجليزي | J116: رياضيات 1 الشعبة 4 | K116: 306 - مهارات نفسية | L116: حياتية 1 الشعبة 4 | M116: 306 - مهارات نفسية | N116: فيزياء 1 الشعبة 4 | O116: 207 - فيزياء | P116: تفسير 1 الشعبة 4 | Q116: 202 - إسلامية | R116: 2 | S116: تفسير 1 الشعبة 4 | T116: 202 - إسلامية | U116: عربي 1 الشعبة 4 | V116: 209 - علوم إدارية | W116: اجتماعيات الشعبة 4 | X116: 308 - اجتماعيات | Y116: إنجليزي 1 الشعبة 4 | Z116: 307 - إنجليزي | AA116: رياضيات 1 الشعبة 4 | AB116: 306 - مهارات نفسية | AC116: حياتية 1 الشعبة 4 | AD116: 306 - مهارات نفسية | AE116: فيزياء 1 الشعبة 4 | AF116: 207 - فيزياء | AG116: 3 | AH116: فيزياء 1 الشعبة 4 | AI116: 207 - فيزياء | AJ116: تفسير 1 الشعبة 4 | AK116: 202 - إسلامية | AL116: عربي 1 الشعبة 4 | AM116: 209 - علوم إدارية | AN116: اجتماعيات الشعبة 4 | AO116: 308 - اجتماعيات | AP116: إنجليزي 1 الشعبة 4 | AQ116: 307 - إنجليزي | AR116: رياضيات 1 الشعبة 4 | AS116: 306 - مهارات نفسية | AT116: حياتية 1 الشعبة 4 | AU116: 306 - مهارات نفسية | AV116: 4 | AW116: حياتية 1 الشعبة 4 | AX116: 306 - مهارات نفسية | AY116: فيزياء 1 الشعبة 4 | AZ116: 207 - فيزياء | BA116: تفسير 1 الشعبة 4 | BB116: 202 - إسلامية | BC116: عربي 1 الشعبة 4 | BD116: 209 - علوم إدارية | BE116: اجتماعيات الشعبة 4 | BF116: 308 - اجتماعيات | BG116: إنجليزي 1 الشعبة 4 | BH116: 307 - إنجليزي | BI116: رياضيات 1 الشعبة 4 | BJ116: 306 - مهارات نفسية | BK116: 5 | BL116: إنجليزي 1 الشعبة 4 | BM116: 307 - إنجليزي | BN116: رياضيات 1 الشعبة 4 | BO116: 306 - مهارات نفسية | BP116: فيزياء 1 الشعبة 4 | BQ116: 207 - فيزياء | BR116: تفسير 1 الشعبة 4 | BS116: 202 - إسلامية | BT116: عربي 1 الشعبة 4 | BU116: 209 - علوم إدارية | BV116: حياتية 1 الشعبة 4 | BW116: 306 - مهارات نفسية | BX116: اجتماعيات الشعبة 4 | BY116: 308 - اجتماعيات | BZ116: =_ِAll[[#This Row],[0]] -> 40026
A117: 40027 | B117: أحمد بن إبراهيم بن حسن آل انصيف | C117: 1 | D117: عربي 1 الشعبة 4 | E117: 209 - علوم إدارية | F117: اجتماعيات الشعبة 4 | G117: 308 - اجتماعيات | H117: إنجليزي 1 الشعبة 4 | I117: 307 - إنجليزي | J117: رياضيات 1 الشعبة 4 | K117: 306 - مهارات نفسية | L117: حياتية 1 الشعبة 4 | M117: 306 - مهارات نفسية | N117: فيزياء 1 الشعبة 4 | O117: 207 - فيزياء | P117: تفسير 1 الشعبة 4 | Q117: 202 - إسلامية | R117: 2 | S117: تفسير 1 الشعبة 4 | T117: 202 - إسلامية | U117: عربي 1 الشعبة 4 | V117: 209 - علوم إدارية | W117: اجتماعيات الشعبة 4 | X117: 308 - اجتماعيات | Y117: إنجليزي 1 الشعبة 4 | Z117: 307 - إنجليزي | AA117: رياضيات 1 الشعبة 4 | AB117: 306 - مهارات نفسية | AC117: حياتية 1 الشعبة 4 | AD117: 306 - مهارات نفسية | AE117: فيزياء 1 الشعبة 4 | AF117: 207 - فيزياء | AG117: 3 | AH117: فيزياء 1 الشعبة 4 | AI117: 207 - فيزياء | AJ117: تفسير 1 الشعبة 4 | AK117: 202 - إسلامية | AL117: عربي 1 الشعبة 4 | AM117: 209 - علوم إدارية | AN117: اجتماعيات الشعبة 4 | AO117: 308 - اجتماعيات | AP117: إنجليزي 1 الشعبة 4 | AQ117: 307 - إنجليزي | AR117: رياضيات 1 الشعبة 4 | AS117: 306 - مهارات نفسية | AT117: حياتية 1 الشعبة 4 | AU117: 306 - مهارات نفسية | AV117: 4 | AW117: حياتية 1 الشعبة 4 | AX117: 306 - مهارات نفسية | AY117: فيزياء 1 الشعبة 4 | AZ117: 207 - فيزياء | BA117: تفسير 1 الشعبة 4 | BB117: 202 - إسلامية | BC117: عربي 1 الشعبة 4 | BD117: 209 - علوم إدارية | BE117: اجتماعيات الشعبة 4 | BF117: 308 - اجتماعيات | BG117: إنجليزي 1 الشعبة 4 | BH117: 307 - إنجليزي | BI117: رياضيات 1 الشعبة 4 | BJ117: 306 - مهارات نفسية | BK117: 5 | BL117: إنجليزي 1 الشعبة 4 | BM117: 307 - إنجليزي | BN117: رياضيات 1 الشعبة 4 | BO117: 306 - مهارات نفسية | BP117: فيزياء 1 الشعبة 4 | BQ117: 207 - فيزياء | BR117: تفسير 1 الشعبة 4 | BS117: 202 - إسلامية | BT117: عربي 1 الشعبة 4 | BU117: 209 - علوم إدارية | BV117: حياتية 1 الشعبة 4 | BW117: 306 - مهارات نفسية | BX117: اجتماعيات الشعبة 4 | BY117: 308 - اجتماعيات | BZ117: =_ِAll[[#This Row],[0]] -> 40027
A118: 40028 | B118: حسين بن موسى بن تركي المويس | C118: 1 | D118: إنجليزي 1 الشعبة 2 | E118: 208 - إنجليزي | F118: حاسب 1 الشعبة 2 | G118: معمل حاسب | H118: أحياء 1 الشعبة 2 | I118: 212 - معمل أحياء | J118: كيمياء 1 الشعبة 2 | K118: 302 - كيمياء | L118: تفسير 1 الشعبة 2 | M118: 303 - إسلامية | N118: رياضيات 1 الشعبة 2 | O118: 310 - رياضيات | P118: عربي 1 الشعبة 2 | Q118: 204 - عربي | R118: 2 | S118: عربي 1 الشعبة 2 | T118: 204 - عربي | U118: إنجليزي 1 الشعبة 2 | V118: 208 - إنجليزي | W118: حاسب 1 الشعبة 2 | X118: معمل حاسب | Y118: أحياء 1 الشعبة 2 | Z118: 212 - معمل أحياء | AA118: كيمياء 1 الشعبة 2 | AB118: 302 - كيمياء | AC118: تفسير 1 الشعبة 2 | AD118: 303 - إسلامية | AE118: رياضيات 1 الشعبة 2 | AF118: 310 - رياضيات | AG118: 3 | AH118: رياضيات 1 الشعبة 2 | AI118: 310 - رياضيات | AJ118: عربي 1 الشعبة 2 | AK118: 204 - عربي | AL118: إنجليزي 1 الشعبة 2 | AM118: 208 - إنجليزي | AN118: حاسب 1 الشعبة 2 | AO118: معمل حاسب | AP118: كيمياء 1 الشعبة 2 | AQ118: 302 - كيمياء | AR118: أحياء 1 الشعبة 2 | AS118: 212 - معمل أحياء | AT118: تفسير 1 الشعبة 2 | AU118: 303 - إسلامية | AV118: 4 | AW118: تفسير 1 الشعبة 2 | AX118: 303 - إسلامية | AY118: رياضيات 1 الشعبة 2 | AZ118: 310 - رياضيات | BA118: عربي 1 الشعبة 2 | BB118: 204 - عربي | BC118: إنجليزي 1 الشعبة 2 | BD118: 208 - إنجليزي | BE118: حاسب 1 الشعبة 2 | BF118: معمل حاسب | BG118: أحياء 1 الشعبة 2 | BH118: 212 - معمل أحياء | BI118: كيمياء 1 الشعبة 2 | BJ118: 302 - كيمياء | BK118: 5 | BL118: كيمياء 1 الشعبة 2 | BM118: 302 - كيمياء | BN118: تفسير 1 الشعبة 2 | BO118: 303 - إسلامية | BP118: رياضيات 1 الشعبة 2 | BQ118: 310 - رياضيات | BR118: عربي 1 الشعبة 2 | BS118: 204 - عربي | BT118: إنجليزي 1 الشعبة 2 | BU118: 208 - إنجليزي | BV118: حاسب 1 الشعبة 2 | BW118: معمل حاسب | BX118: أحياء 1 الشعبة 2 | BY118: 212 - معمل أحياء | BZ118: =_ِAll[[#This Row],[0]] -> 40028
A119: 40029 | B119: مؤيد بن عبدالله بن صالح آل كردوس | C119: 1 | D119: إنجليزي 1 الشعبة 2 | E119: 208 - إنجليزي | F119: حاسب 1 الشعبة 2 | G119: معمل حاسب | H119: أحياء 1 الشعبة 2 | I119: 212 - معمل أحياء | J119: كيمياء 1 الشعبة 2 | K119: 302 - كيمياء | L119: تفسير 1 الشعبة 2 | M119: 303 - إسلامية | N119: رياضيات 1 الشعبة 2 | O119: 310 - رياضيات | P119: عربي 1 الشعبة 2 | Q119: 204 - عربي | R119: 2 | S119: عربي 1 الشعبة 2 | T119: 204 - عربي | U119: إنجليزي 1 الشعبة 2 | V119: 208 - إنجليزي | W119: حاسب 1 الشعبة 2 | X119: معمل حاسب | Y119: أحياء 1 الشعبة 2 | Z119: 212 - معمل أحياء | AA119: كيمياء 1 الشعبة 2 | AB119: 302 - كيمياء | AC119: تفسير 1 الشعبة 2 | AD119: 303 - إسلامية | AE119: رياضيات 1 الشعبة 2 | AF119: 310 - رياضيات | AG119: 3 | AH119: رياضيات 1 الشعبة 2 | AI119: 310 - رياضيات | AJ119: عربي 1 الشعبة 2 | AK119: 204 - عربي | AL119: إنجليزي 1 الشعبة 2 | AM119: 208 - إنجليزي | AN119: حاسب 1 الشعبة 2 | AO119: معمل حاسب | AP119: كيمياء 1 الشعبة 2 | AQ119: 302 - كيمياء | AR119: أحياء 1 الشعبة 2 | AS119: 212 - معمل أحياء | AT119: تفسير 1 الشعبة 2 | AU119: 303 - إسلامية | AV119: 4 | AW119: تفسير 1 الشعبة 2 | AX119: 303 - إسلامية | AY119: رياضيات 1 الشعبة 2 | AZ119: 310 - رياضيات | BA119: عربي 1 الشعبة 2 | BB119: 204 - عربي | BC119: إنجليزي 1 الشعبة 2 | BD119: 208 - إنجليزي | BE119: حاسب 1 الشعبة 2 | BF119: معمل حاسب | BG119: أحياء 1 الشعبة 2 | BH119: 212 - معمل أحياء | BI119: كيمياء 1 الشعبة 2 | BJ119: 302 - كيمياء | BK119: 5 | BL119: كيمياء 1 الشعبة 2 | BM119: 302 - كيمياء | BN119: تفسير 1 الشعبة 2 | BO119: 303 - إسلامية | BP119: رياضيات 1 الشعبة 2 | BQ119: 310 - رياضيات | BR119: عربي 1 الشعبة 2 | BS119: 204 - عربي | BT119: إنجليزي 1 الشعبة 2 | BU119: 208 - إنجليزي | BV119: حاسب 1 الشعبة 2 | BW119: معمل حاسب | BX119: أحياء 1 الشعبة 2 | BY119: 212 - معمل أحياء | BZ119: =_ِAll[[#This Row],[0]] -> 40029
A120: 40031 | B120: محمد بن عبدالواحد بن عبدالله الزراع | C120: 1 | D120: عربي 1 الشعبة 4 | E120: 209 - علوم إدارية | F120: اجتماعيات الشعبة 4 | G120: 308 - اجتماعيات | H120: إنجليزي 1 الشعبة 4 | I120: 307 - إنجليزي | J120: رياضيات 1 الشعبة 4 | K120: 306 - مهارات نفسية | L120: حياتية 1 الشعبة 4 | M120: 306 - مهارات نفسية | N120: فيزياء 1 الشعبة 4 | O120: 207 - فيزياء | P120: تفسير 1 الشعبة 4 | Q120: 202 - إسلامية | R120: 2 | S120: تفسير 1 الشعبة 4 | T120: 202 - إسلامية | U120: عربي 1 الشعبة 4 | V120: 209 - علوم إدارية | W120: اجتماعيات الشعبة 4 | X120: 308 - اجتماعيات | Y120: إنجليزي 1 الشعبة 4 | Z120: 307 - إنجليزي | AA120: رياضيات 1 الشعبة 4 | AB120: 306 - مهارات نفسية | AC120: حياتية 1 الشعبة 4 | AD120: 306 - مهارات نفسية | AE120: فيزياء 1 الشعبة 4 | AF120: 207 - فيزياء | AG120: 3 | AH120: فيزياء 1 الشعبة 4 | AI120: 207 - فيزياء | AJ120: تفسير 1 الشعبة 4 | AK120: 202 - إسلامية | AL120: عربي 1 الشعبة 4 | AM120: 209 - علوم إدارية | AN120: اجتماعيات الشعبة 4 | AO120: 308 - اجتماعيات | AP120: إنجليزي 1 الشعبة 4 | AQ120: 307 - إنجليزي | AR120: رياضيات 1 الشعبة 4 | AS120: 306 - مهارات نفسية | AT120: حياتية 1 الشعبة 4 | AU120: 306 - مهارات نفسية | AV120: 4 | AW120: حياتية 1 الشعبة 4 | AX120: 306 - مهارات نفسية | AY120: فيزياء 1 الشعبة 4 | AZ120: 207 - فيزياء | BA120: تفسير 1 الشعبة 4 | BB120: 202 - إسلامية | BC120: عربي 1 الشعبة 4 | BD120: 209 - علوم إدارية | BE120: اجتماعيات الشعبة 4 | BF120: 308 - اجتماعيات | BG120: إنجليزي 1 الشعبة 4 | BH120: 307 - إنجليزي | BI120: رياضيات 1 الشعبة 4 | BJ120: 306 - مهارات نفسية | BK120: 5 | BL120: إنجليزي 1 الشعبة 4 | BM120: 307 - إنجليزي | BN120: رياضيات 1 الشعبة 4 | BO120: 306 - مهارات نفسية | BP120: فيزياء 1 الشعبة 4 | BQ120: 207 - فيزياء | BR120: تفسير 1 الشعبة 4 | BS120: 202 - إسلامية | BT120: عربي 1 الشعبة 4 | BU120: 209 - علوم إدارية | BV120: حياتية 1 الشعبة 4 | BW120: 306 - مهارات نفسية | BX120: اجتماعيات الشعبة 4 | BY120: 308 - اجتماعيات | BZ120: =_ِAll[[#This Row],[0]] -> 40031
A121: 40032 | B121: مجتبى بن منصور بن علي المويس | C121: 1 | D121: إنجليزي 1 الشعبة 2 | E121: 208 - إنجليزي | F121: حاسب 1 الشعبة 2 | G121: معمل حاسب | H121: أحياء 1 الشعبة 2 | I121: 212 - معمل أحياء | J121: كيمياء 1 الشعبة 2 | K121: 302 - كيمياء | L121: تفسير 1 الشعبة 2 | M121: 303 - إسلامية | N121: رياضيات 1 الشعبة 2 | O121: 310 - رياضيات | P121: عربي 1 الشعبة 2 | Q121: 204 - عربي | R121: 2 | S121: عربي 1 الشعبة 2 | T121: 204 - عربي | U121: إنجليزي 1 الشعبة 2 | V121: 208 - إنجليزي | W121: حاسب 1 الشعبة 2 | X121: معمل حاسب | Y121: أحياء 1 الشعبة 2 | Z121: 212 - معمل أحياء | AA121: كيمياء 1 الشعبة 2 | AB121: 302 - كيمياء | AC121: تفسير 1 الشعبة 2 | AD121: 303 - إسلامية | AE121: رياضيات 1 الشعبة 2 | AF121: 310 - رياضيات | AG121: 3 | AH121: رياضيات 1 الشعبة 2 | AI121: 310 - رياضيات | AJ121: عربي 1 الشعبة 2 | AK121: 204 - عربي | AL121: إنجليزي 1 الشعبة 2 | AM121: 208 - إنجليزي | AN121: حاسب 1 الشعبة 2 | AO121: معمل حاسب | AP121: كيمياء 1 الشعبة 2 | AQ121: 302 - كيمياء | AR121: أحياء 1 الشعبة 2 | AS121: 212 - معمل أحياء | AT121: تفسير 1 الشعبة 2 | AU121: 303 - إسلامية | AV121: 4 | AW121: تفسير 1 الشعبة 2 | AX121: 303 - إسلامية | AY121: رياضيات 1 الشعبة 2 | AZ121: 310 - رياضيات | BA121: عربي 1 الشعبة 2 | BB121: 204 - عربي | BC121: إنجليزي 1 الشعبة 2 | BD121: 208 - إنجليزي | BE121: حاسب 1 الشعبة 2 | BF121: معمل حاسب | BG121: أحياء 1 الشعبة 2 | BH121: 212 - معمل أحياء | BI121: كيمياء 1 الشعبة 2 | BJ121: 302 - كيمياء | BK121: 5 | BL121: كيمياء 1 الشعبة 2 | BM121: 302 - كيمياء | BN121: تفسير 1 الشعبة 2 | BO121: 303 - إسلامية | BP121: رياضيات 1 الشعبة 2 | BQ121: 310 - رياضيات | BR121: عربي 1 الشعبة 2 | BS121: 204 - عربي | BT121: إنجليزي 1 الشعبة 2 | BU121: 208 - إنجليزي | BV121: حاسب 1 الشعبة 2 | BW121: معمل حاسب | BX121: أحياء 1 الشعبة 2 | BY121: 212 - معمل أحياء | BZ121: =_ِAll[[#This Row],[0]] -> 40032
A122: 40033 | B122: محمد بن جعفر بن عبدالله آل زاير | C122: 1 | D122: رياضيات 1 الشعبة 3 | E122: 306 - مهارات نفسية | F122: إنجليزي 1 الشعبة 3 | G122: 307 - إنجليزي | H122: فيزياء 1 الشعبة 3 | I122: 301 - فيزياء | J122: اجتماعيات الشعبة 3 | K122: 308 - اجتماعيات | L122: عربي 1 الشعبة 3 | M122: 209 - علوم إدارية | N122: قرآن 1 الشعبة 3 | O122: 303 - إسلامية | P122: حياتية 1 الشعبة 3 | Q122: 306 - مهارات نفسية | R122: 2 | S122: حياتية 1 الشعبة 3 | T122: 306 - مهارات نفسية | U122: رياضيات 1 الشعبة 3 | V122: 306 - مهارات نفسية | W122: إنجليزي 1 الشعبة 3 | X122: 307 - إنجليزي | Y122: فيزياء 1 الشعبة 3 | Z122: 301 - فيزياء | AA122: اجتماعيات الشعبة 3 | AB122: 308 - اجتماعيات | AC122: عربي 1 الشعبة 3 | AD122: 209 - علوم إدارية | AE122: قرآن 1 الشعبة 3 | AF122: 303 - إسلامية | AG122: 3 | AH122: قرآن 1 الشعبة 3 | AI122: 303 - إسلامية | AJ122: حياتية 1 الشعبة 3 | AK122: 306 - مهارات نفسية | AL122: رياضيات 1 الشعبة 3 | AM122: 306 - مهارات نفسية | AN122: إنجليزي 1 الشعبة 3 | AO122: 307 - إنجليزي | AP122: فيزياء 1 الشعبة 3 | AQ122: 301 - فيزياء | AR122: اجتماعيات الشعبة 3 | AS122: 308 - اجتماعيات | AT122: عربي 1 الشعبة 3 | AU122: 209 - علوم إدارية | AV122: 4 | AW122: عربي 1 الشعبة 3 | AX122: 209 - علوم إدارية | AY122: قرآن 1 الشعبة 3 | AZ122: 303 - إسلامية | BA122: حياتية 1 الشعبة 3 | BB122: 306 - مهارات نفسية | BC122: رياضيات 1 الشعبة 3 | BD122: 306 - مهارات نفسية | BE122: إنجليزي 1 الشعبة 3 | BF122: 307 - إنجليزي | BG122: فيزياء 1 الشعبة 3 | BH122: 301 - فيزياء | BI122: اجتماعيات الشعبة 3 | BJ122: 308 - اجتماعيات | BK122: 5 | BL122: اجتماعيات الشعبة 3 | BM122: 308 - اجتماعيات | BN122: عربي 1 الشعبة 3 | BO122: 209 - علوم إدارية | BP122: قرآن 1 الشعبة 3 | BQ122: 303 - إسلامية | BR122: حياتية 1 الشعبة 3 | BS122: 306 - مهارات نفسية | BT122: رياضيات 1 الشعبة 3 | BU122: 306 - مهارات نفسية | BV122: إنجليزي 1 الشعبة 3 | BW122: 307 - إنجليزي | BX122: فيزياء 1 الشعبة 3 | BY122: 301 - فيزياء | BZ122: =_ِAll[[#This Row],[0]] -> 40033
A123: 40034 | B123: يونس بن مهدي بن صالح آل ضاحي | C123: 1 | D123: إنجليزي 1 الشعبة 2 | E123: 208 - إنجليزي | F123: حاسب 1 الشعبة 2 | G123: معمل حاسب | H123: أحياء 1 الشعبة 2 | I123: 212 - معمل أحياء | J123: كيمياء 1 الشعبة 2 | K123: 302 - كيمياء | L123: تفسير 1 الشعبة 2 | M123: 303 - إسلامية | N123: رياضيات 1 الشعبة 2 | O123: 310 - رياضيات | P123: عربي 1 الشعبة 2 | Q123: 204 - عربي | R123: 2 | S123: عربي 1 الشعبة 2 | T123: 204 - عربي | U123: إنجليزي 1 الشعبة 2 | V123: 208 - إنجليزي | W123: حاسب 1 الشعبة 2 | X123: معمل حاسب | Y123: أحياء 1 الشعبة 2 | Z123: 212 - معمل أحياء | AA123: كيمياء 1 الشعبة 2 | AB123: 302 - كيمياء | AC123: تفسير 1 الشعبة 2 | AD123: 303 - إسلامية | AE123: رياضيات 1 الشعبة 2 | AF123: 310 - رياضيات | AG123: 3 | AH123: رياضيات 1 الشعبة 2 | AI123: 310 - رياضيات | AJ123: عربي 1 الشعبة 2 | AK123: 204 - عربي | AL123: إنجليزي 1 الشعبة 2 | AM123: 208 - إنجليزي | AN123: حاسب 1 الشعبة 2 | AO123: معمل حاسب | AP123: كيمياء 1 الشعبة 2 | AQ123: 302 - كيمياء | AR123: أحياء 1 الشعبة 2 | AS123: 212 - معمل أحياء | AT123: تفسير 1 الشعبة 2 | AU123: 303 - إسلامية | AV123: 4 | AW123: تفسير 1 الشعبة 2 | AX123: 303 - إسلامية | AY123: رياضيات 1 الشعبة 2 | AZ123: 310 - رياضيات | BA123: عربي 1 الشعبة 2 | BB123: 204 - عربي | BC123: إنجليزي 1 الشعبة 2 | BD123: 208 - إنجليزي | BE123: حاسب 1 الشعبة 2 | BF123: معمل حاسب | BG123: أحياء 1 الشعبة 2 | BH123: 212 - معمل أحياء | BI123: كيمياء 1 الشعبة 2 | BJ123: 302 - كيمياء | BK123: 5 | BL123: كيمياء 1 الشعبة 2 | BM123: 302 - كيمياء | BN123: تفسير 1 الشعبة 2 | BO123: 303 - إسلامية | BP123: رياضيات 1 الشعبة 2 | BQ123: 310 - رياضيات | BR123: عربي 1 الشعبة 2 | BS123: 204 - عربي | BT123: إنجليزي 1 الشعبة 2 | BU123: 208 - إنجليزي | BV123: حاسب 1 الشعبة 2 | BW123: معمل حاسب | BX123: أحياء 1 الشعبة 2 | BY123: 212 - معمل أحياء | BZ123: =_ِAll[[#This Row],[0]] -> 40034
A124: 40035 | B124: علي بن جعفر بن حسن آل انصيف | C124: 1 | D124: إنجليزي 1 الشعبة 2 | E124: 208 - إنجليزي | F124: حاسب 1 الشعبة 2 | G124: معمل حاسب | H124: أحياء 1 الشعبة 2 | I124: 212 - معمل أحياء | J124: كيمياء 1 الشعبة 2 | K124: 302 - كيمياء | L124: تفسير 1 الشعبة 2 | M124: 303 - إسلامية | N124: رياضيات 1 الشعبة 2 | O124: 310 - رياضيات | P124: عربي 1 الشعبة 2 | Q124: 204 - عربي | R124: 2 | S124: عربي 1 الشعبة 2 | T124: 204 - عربي | U124: إنجليزي 1 الشعبة 2 | V124: 208 - إنجليزي | W124: حاسب 1 الشعبة 2 | X124: معمل حاسب | Y124: أحياء 1 الشعبة 2 | Z124: 212 - معمل أحياء | AA124: كيمياء 1 الشعبة 2 | AB124: 302 - كيمياء | AC124: تفسير 1 الشعبة 2 | AD124: 303 - إسلامية | AE124: رياضيات 1 الشعبة 2 | AF124: 310 - رياضيات | AG124: 3 | AH124: رياضيات 1 الشعبة 2 | AI124: 310 - رياضيات | AJ124: عربي 1 الشعبة 2 | AK124: 204 - عربي | AL124: إنجليزي 1 الشعبة 2 | AM124: 208 - إنجليزي | AN124: حاسب 1 الشعبة 2 | AO124: معمل حاسب | AP124: كيمياء 1 الشعبة 2 | AQ124: 302 - كيمياء | AR124: أحياء 1 الشعبة 2 | AS124: 212 - معمل أحياء | AT124: تفسير 1 الشعبة 2 | AU124: 303 - إسلامية | AV124: 4 | AW124: تفسير 1 الشعبة 2 | AX124: 303 - إسلامية | AY124: رياضيات 1 الشعبة 2 | AZ124: 310 - رياضيات | BA124: عربي 1 الشعبة 2 | BB124: 204 - عربي | BC124: إنجليزي 1 الشعبة 2 | BD124: 208 - إنجليزي | BE124: حاسب 1 الشعبة 2 | BF124: معمل حاسب | BG124: أحياء 1 الشعبة 2 | BH124: 212 - معمل أحياء | BI124: كيمياء 1 الشعبة 2 | BJ124: 302 - كيمياء | BK124: 5 | BL124: كيمياء 1 الشعبة 2 | BM124: 302 - كيمياء | BN124: تفسير 1 الشعبة 2 | BO124: 303 - إسلامية | BP124: رياضيات 1 الشعبة 2 | BQ124: 310 - رياضيات | BR124: عربي 1 الشعبة 2 | BS124: 204 - عربي | BT124: إنجليزي 1 الشعبة 2 | BU124: 208 - إنجليزي | BV124: حاسب 1 الشعبة 2 | BW124: معمل حاسب | BX124: أحياء 1 الشعبة 2 | BY124: 212 - معمل أحياء | BZ124: =_ِAll[[#This Row],[0]] -> 40035
A125: 40036 | B125: علي بن مصطفى بن منصور آل حمزه | C125: 1 | D125: عربي 1 الشعبة 4 | E125: 209 - علوم إدارية | F125: اجتماعيات الشعبة 4 | G125: 308 - اجتماعيات | H125: إنجليزي 1 الشعبة 4 | I125: 307 - إنجليزي | J125: رياضيات 1 الشعبة 4 | K125: 306 - مهارات نفسية | L125: حياتية 1 الشعبة 4 | M125: 306 - مهارات نفسية | N125: فيزياء 1 الشعبة 4 | O125: 207 - فيزياء | P125: تفسير 1 الشعبة 4 | Q125: 202 - إسلامية | R125: 2 | S125: تفسير 1 الشعبة 4 | T125: 202 - إسلامية | U125: عربي 1 الشعبة 4 | V125: 209 - علوم إدارية | W125: اجتماعيات الشعبة 4 | X125: 308 - اجتماعيات | Y125: إنجليزي 1 الشعبة 4 | Z125: 307 - إنجليزي | AA125: رياضيات 1 الشعبة 4 | AB125: 306 - مهارات نفسية | AC125: حياتية 1 الشعبة 4 | AD125: 306 - مهارات نفسية | AE125: فيزياء 1 الشعبة 4 | AF125: 207 - فيزياء | AG125: 3 | AH125: فيزياء 1 الشعبة 4 | AI125: 207 - فيزياء | AJ125: تفسير 1 الشعبة 4 | AK125: 202 - إسلامية | AL125: عربي 1 الشعبة 4 | AM125: 209 - علوم إدارية | AN125: اجتماعيات الشعبة 4 | AO125: 308 - اجتماعيات | AP125: إنجليزي 1 الشعبة 4 | AQ125: 307 - إنجليزي | AR125: رياضيات 1 الشعبة 4 | AS125: 306 - مهارات نفسية | AT125: حياتية 1 الشعبة 4 | AU125: 306 - مهارات نفسية | AV125: 4 | AW125: حياتية 1 الشعبة 4 | AX125: 306 - مهارات نفسية | AY125: فيزياء 1 الشعبة 4 | AZ125: 207 - فيزياء | BA125: تفسير 1 الشعبة 4 | BB125: 202 - إسلامية | BC125: عربي 1 الشعبة 4 | BD125: 209 - علوم إدارية | BE125: اجتماعيات الشعبة 4 | BF125: 308 - اجتماعيات | BG125: إنجليزي 1 الشعبة 4 | BH125: 307 - إنجليزي | BI125: رياضيات 1 الشعبة 4 | BJ125: 306 - مهارات نفسية | BK125: 5 | BL125: إنجليزي 1 الشعبة 4 | BM125: 307 - إنجليزي | BN125: رياضيات 1 الشعبة 4 | BO125: 306 - مهارات نفسية | BP125: فيزياء 1 الشعبة 4 | BQ125: 207 - فيزياء | BR125: تفسير 1 الشعبة 4 | BS125: 202 - إسلامية | BT125: عربي 1 الشعبة 4 | BU125: 209 - علوم إدارية | BV125: حياتية 1 الشعبة 4 | BW125: 306 - مهارات نفسية | BX125: اجتماعيات الشعبة 4 | BY125: 308 - اجتماعيات | BZ125: =_ِAll[[#This Row],[0]] -> 40036
A126: 40038 | B126: عبدالله بن فارس بن أحمد آل موسى | C126: 1 | D126: رياضيات 1 الشعبة 3 | E126: 306 - مهارات نفسية | F126: إنجليزي 1 الشعبة 3 | G126: 307 - إنجليزي | H126: فيزياء 1 الشعبة 3 | I126: 301 - فيزياء | J126: اجتماعيات الشعبة 3 | K126: 308 - اجتماعيات | L126: عربي 1 الشعبة 3 | M126: 209 - علوم إدارية | N126: قرآن 1 الشعبة 3 | O126: 303 - إسلامية | P126: حياتية 1 الشعبة 3 | Q126: 306 - مهارات نفسية | R126: 2 | S126: حياتية 1 الشعبة 3 | T126: 306 - مهارات نفسية | U126: رياضيات 1 الشعبة 3 | V126: 306 - مهارات نفسية | W126: إنجليزي 1 الشعبة 3 | X126: 307 - إنجليزي | Y126: فيزياء 1 الشعبة 3 | Z126: 301 - فيزياء | AA126: اجتماعيات الشعبة 3 | AB126: 308 - اجتماعيات | AC126: عربي 1 الشعبة 3 | AD126: 209 - علوم إدارية | AE126: قرآن 1 الشعبة 3 | AF126: 303 - إسلامية | AG126: 3 | AH126: قرآن 1 الشعبة 3 | AI126: 303 - إسلامية | AJ126: حياتية 1 الشعبة 3 | AK126: 306 - مهارات نفسية | AL126: رياضيات 1 الشعبة 3 | AM126: 306 - مهارات نفسية | AN126: إنجليزي 1 الشعبة 3 | AO126: 307 - إنجليزي | AP126: فيزياء 1 الشعبة 3 | AQ126: 301 - فيزياء | AR126: اجتماعيات الشعبة 3 | AS126: 308 - اجتماعيات | AT126: عربي 1 الشعبة 3 | AU126: 209 - علوم إدارية | AV126: 4 | AW126: عربي 1 الشعبة 3 | AX126: 209 - علوم إدارية | AY126: قرآن 1 الشعبة 3 | AZ126: 303 - إسلامية | BA126: حياتية 1 الشعبة 3 | BB126: 306 - مهارات نفسية | BC126: رياضيات 1 الشعبة 3 | BD126: 306 - مهارات نفسية | BE126: إنجليزي 1 الشعبة 3 | BF126: 307 - إنجليزي | BG126: فيزياء 1 الشعبة 3 | BH126: 301 - فيزياء | BI126: اجتماعيات الشعبة 3 | BJ126: 308 - اجتماعيات | BK126: 5 | BL126: اجتماعيات الشعبة 3 | BM126: 308 - اجتماعيات | BN126: عربي 1 الشعبة 3 | BO126: 209 - علوم إدارية | BP126: قرآن 1 الشعبة 3 | BQ126: 303 - إسلامية | BR126: حياتية 1 الشعبة 3 | BS126: 306 - مهارات نفسية | BT126: رياضيات 1 الشعبة 3 | BU126: 306 - مهارات نفسية | BV126: إنجليزي 1 الشعبة 3 | BW126: 307 - إنجليزي | BX126: فيزياء 1 الشعبة 3 | BY126: 301 - فيزياء | BZ126: =_ِAll[[#This Row],[0]] -> 40038
A127: 40039 | B127: عبدالله بن فيصل بن عبدالله آل سلام | C127: 1 | D127: عربي 1 الشعبة 4 | E127: 209 - علوم إدارية | F127: اجتماعيات الشعبة 4 | G127: 308 - اجتماعيات | H127: إنجليزي 1 الشعبة 4 | I127: 307 - إنجليزي | J127: رياضيات 1 الشعبة 4 | K127: 306 - مهارات نفسية | L127: حياتية 1 الشعبة 4 | M127: 306 - مهارات نفسية | N127: فيزياء 1 الشعبة 4 | O127: 207 - فيزياء | P127: تفسير 1 الشعبة 4 | Q127: 202 - إسلامية | R127: 2 | S127: تفسير 1 الشعبة 4 | T127: 202 - إسلامية | U127: عربي 1 الشعبة 4 | V127: 209 - علوم إدارية | W127: اجتماعيات الشعبة 4 | X127: 308 - اجتماعيات | Y127: إنجليزي 1 الشعبة 4 | Z127: 307 - إنجليزي | AA127: رياضيات 1 الشعبة 4 | AB127: 306 - مهارات نفسية | AC127: حياتية 1 الشعبة 4 | AD127: 306 - مهارات نفسية | AE127: فيزياء 1 الشعبة 4 | AF127: 207 - فيزياء | AG127: 3 | AH127: فيزياء 1 الشعبة 4 | AI127: 207 - فيزياء | AJ127: تفسير 1 الشعبة 4 | AK127: 202 - إسلامية | AL127: عربي 1 الشعبة 4 | AM127: 209 - علوم إدارية | AN127: اجتماعيات الشعبة 4 | AO127: 308 - اجتماعيات | AP127: إنجليزي 1 الشعبة 4 | AQ127: 307 - إنجليزي | AR127: رياضيات 1 الشعبة 4 | AS127: 306 - مهارات نفسية | AT127: حياتية 1 الشعبة 4 | AU127: 306 - مهارات نفسية | AV127: 4 | AW127: حياتية 1 الشعبة 4 | AX127: 306 - مهارات نفسية | AY127: فيزياء 1 الشعبة 4 | AZ127: 207 - فيزياء | BA127: تفسير 1 الشعبة 4 | BB127: 202 - إسلامية | BC127: عربي 1 الشعبة 4 | BD127: 209 - علوم إدارية | BE127: اجتماعيات الشعبة 4 | BF127: 308 - اجتماعيات | BG127: إنجليزي 1 الشعبة 4 | BH127: 307 - إنجليزي | BI127: رياضيات 1 الشعبة 4 | BJ127: 306 - مهارات نفسية | BK127: 5 | BL127: إنجليزي 1 الشعبة 4 | BM127: 307 - إنجليزي | BN127: رياضيات 1 الشعبة 4 | BO127: 306 - مهارات نفسية | BP127: فيزياء 1 الشعبة 4 | BQ127: 207 - فيزياء | BR127: تفسير 1 الشعبة 4 | BS127: 202 - إسلامية | BT127: عربي 1 الشعبة 4 | BU127: 209 - علوم إدارية | BV127: حياتية 1 الشعبة 4 | BW127: 306 - مهارات نفسية | BX127: اجتماعيات الشعبة 4 | BY127: 308 - اجتماعيات | BZ127: =_ِAll[[#This Row],[0]] -> 40039
A128: 40041 | B128: مجتبى بن حسن بن أحمد آل اسماعيل | C128: 1 | D128: رياضيات 1 الشعبة 3 | E128: 306 - مهارات نفسية | F128: إنجليزي 1 الشعبة 3 | G128: 307 - إنجليزي | H128: فيزياء 1 الشعبة 3 | I128: 301 - فيزياء | J128: اجتماعيات الشعبة 3 | K128: 308 - اجتماعيات | L128: عربي 1 الشعبة 3 | M128: 209 - علوم إدارية | N128: قرآن 1 الشعبة 3 | O128: 303 - إسلامية | P128: حياتية 1 الشعبة 3 | Q128: 306 - مهارات نفسية | R128: 2 | S128: حياتية 1 الشعبة 3 | T128: 306 - مهارات نفسية | U128: رياضيات 1 الشعبة 3 | V128: 306 - مهارات نفسية | W128: إنجليزي 1 الشعبة 3 | X128: 307 - إنجليزي | Y128: فيزياء 1 الشعبة 3 | Z128: 301 - فيزياء | AA128: اجتماعيات الشعبة 3 | AB128: 308 - اجتماعيات | AC128: عربي 1 الشعبة 3 | AD128: 209 - علوم إدارية | AE128: قرآن 1 الشعبة 3 | AF128: 303 - إسلامية | AG128: 3 | AH128: قرآن 1 الشعبة 3 | AI128: 303 - إسلامية | AJ128: حياتية 1 الشعبة 3 | AK128: 306 - مهارات نفسية | AL128: رياضيات 1 الشعبة 3 | AM128: 306 - مهارات نفسية | AN128: إنجليزي 1 الشعبة 3 | AO128: 307 - إنجليزي | AP128: فيزياء 1 الشعبة 3 | AQ128: 301 - فيزياء | AR128: اجتماعيات الشعبة 3 | AS128: 308 - اجتماعيات | AT128: عربي 1 الشعبة 3 | AU128: 209 - علوم إدارية | AV128: 4 | AW128: عربي 1 الشعبة 3 | AX128: 209 - علوم إدارية | AY128: قرآن 1 الشعبة 3 | AZ128: 303 - إسلامية | BA128: حياتية 1 الشعبة 3 | BB128: 306 - مهارات نفسية | BC128: رياضيات 1 الشعبة 3 | BD128: 306 - مهارات نفسية | BE128: إنجليزي 1 الشعبة 3 | BF128: 307 - إنجليزي | BG128: فيزياء 1 الشعبة 3 | BH128: 301 - فيزياء | BI128: اجتماعيات الشعبة 3 | BJ128: 308 - اجتماعيات | BK128: 5 | BL128: اجتماعيات الشعبة 3 | BM128: 308 - اجتماعيات | BN128: عربي 1 الشعبة 3 | BO128: 209 - علوم إدارية | BP128: قرآن 1 الشعبة 3 | BQ128: 303 - إسلامية | BR128: حياتية 1 الشعبة 3 | BS128: 306 - مهارات نفسية | BT128: رياضيات 1 الشعبة 3 | BU128: 306 - مهارات نفسية | BV128: إنجليزي 1 الشعبة 3 | BW128: 307 - إنجليزي | BX128: فيزياء 1 الشعبة 3 | BY128: 301 - فيزياء | BZ128: =_ِAll[[#This Row],[0]] -> 40041
A129: 40042 | B129: محمد بن مفيد بن سلمان آل حمد | C129: 1 | D129: رياضيات 1 الشعبة 3 | E129: 306 - مهارات نفسية | F129: إنجليزي 1 الشعبة 3 | G129: 307 - إنجليزي | H129: فيزياء 1 الشعبة 3 | I129: 301 - فيزياء | J129: اجتماعيات الشعبة 3 | K129: 308 - اجتماعيات | L129: عربي 1 الشعبة 3 | M129: 209 - علوم إدارية | N129: قرآن 1 الشعبة 3 | O129: 303 - إسلامية | P129: حياتية 1 الشعبة 3 | Q129: 306 - مهارات نفسية | R129: 2 | S129: حياتية 1 الشعبة 3 | T129: 306 - مهارات نفسية | U129: رياضيات 1 الشعبة 3 | V129: 306 - مهارات نفسية | W129: إنجليزي 1 الشعبة 3 | X129: 307 - إنجليزي | Y129: فيزياء 1 الشعبة 3 | Z129: 301 - فيزياء | AA129: اجتماعيات الشعبة 3 | AB129: 308 - اجتماعيات | AC129: عربي 1 الشعبة 3 | AD129: 209 - علوم إدارية | AE129: قرآن 1 الشعبة 3 | AF129: 303 - إسلامية | AG129: 3 | AH129: قرآن 1 الشعبة 3 | AI129: 303 - إسلامية | AJ129: حياتية 1 الشعبة 3 | AK129: 306 - مهارات نفسية | AL129: رياضيات 1 الشعبة 3 | AM129: 306 - مهارات نفسية | AN129: إنجليزي 1 الشعبة 3 | AO129: 307 - إنجليزي | AP129: فيزياء 1 الشعبة 3 | AQ129: 301 - فيزياء | AR129: اجتماعيات الشعبة 3 | AS129: 308 - اجتماعيات | AT129: عربي 1 الشعبة 3 | AU129: 209 - علوم إدارية | AV129: 4 | AW129: عربي 1 الشعبة 3 | AX129: 209 - علوم إدارية | AY129: قرآن 1 الشعبة 3 | AZ129: 303 - إسلامية | BA129: حياتية 1 الشعبة 3 | BB129: 306 - مهارات نفسية | BC129: رياضيات 1 الشعبة 3 | BD129: 306 - مهارات نفسية | BE129: إنجليزي 1 الشعبة 3 | BF129: 307 - إنجليزي | BG129: فيزياء 1 الشعبة 3 | BH129: 301 - فيزياء | BI129: اجتماعيات الشعبة 3 | BJ129: 308 - اجتماعيات | BK129: 5 | BL129: اجتماعيات الشعبة 3 | BM129: 308 - اجتماعيات | BN129: عربي 1 الشعبة 3 | BO129: 209 - علوم إدارية | BP129: قرآن 1 الشعبة 3 | BQ129: 303 - إسلامية | BR129: حياتية 1 الشعبة 3 | BS129: 306 - مهارات نفسية | BT129: رياضيات 1 الشعبة 3 | BU129: 306 - مهارات نفسية | BV129: إنجليزي 1 الشعبة 3 | BW129: 307 - إنجليزي | BX129: فيزياء 1 الشعبة 3 | BY129: 301 - فيزياء | BZ129: =_ِAll[[#This Row],[0]] -> 40042
A130: 40043 | B130: محمد بن سعيد بن اسماعيل آل اسماعيل | C130: 1 | D130: رياضيات 1 الشعبة 1 | E130: موهبة 1 | F130: عربي 1 الشعبة 1 | G130: موهبة 1 | H130: كيمياء 1 الشعبة 1 | I130: موهبة 1 | J130: إنجليزي 1 الشعبة 1 | K130: موهبة 1 | L130: أحياء 1 الشعبة 1 | M130: موهبة 1 | N130: حاسب 1 الشعبة 1 | O130: معمل حاسب | P130: قرآن 1 الشعبة 1 | Q130: موهبة 1 | R130: 2 | S130: قرآن 1 الشعبة 1 | T130: موهبة 1 | U130: رياضيات 1 الشعبة 1 | V130: موهبة 1 | W130: عربي 1 الشعبة 1 | X130: موهبة 1 | Y130: كيمياء 1 الشعبة 1 | Z130: موهبة 1 | AA130: إنجليزي 1 الشعبة 1 | AB130: موهبة 1 | AC130: أحياء 1 الشعبة 1 | AD130: موهبة 1 | AE130: حاسب 1 الشعبة 1 | AF130: معمل حاسب | AG130: 3 | AH130: حاسب 1 الشعبة 1 | AI130: معمل حاسب | AJ130: قرآن 1 الشعبة 1 | AK130: موهبة 1 | AL130: رياضيات 1 الشعبة 1 | AM130: موهبة 1 | AN130: عربي 1 الشعبة 1 | AO130: موهبة 1 | AP130: أحياء 1 الشعبة 1 | AQ130: موهبة 1 | AR130: إنجليزي 1 الشعبة 1 | AS130: موهبة 1 | AT130: كيمياء 1 الشعبة 1 | AU130: موهبة 1 | AV130: 4 | AW130: أحياء 1 الشعبة 1 | AX130: موهبة 1 | AY130: حاسب 1 الشعبة 1 | AZ130: معمل حاسب | BA130: قرآن 1 الشعبة 1 | BB130: موهبة 1 | BC130: رياضيات 1 الشعبة 1 | BD130: موهبة 1 | BE130: عربي 1 الشعبة 1 | BF130: موهبة 1 | BG130: كيمياء 1 الشعبة 1 | BH130: موهبة 1 | BI130: إنجليزي 1 الشعبة 1 | BJ130: موهبة 1 | BK130: 5 | BL130: إنجليزي 1 الشعبة 1 | BM130: موهبة 1 | BN130: أحياء 1 الشعبة 1 | BO130: موهبة 1 | BP130: قرآن 1 الشعبة 1 | BQ130: موهبة 1 | BR130: حاسب 1 الشعبة 1 | BS130: معمل حاسب | BT130: رياضيات 1 الشعبة 1 | BU130: موهبة 1 | BV130: عربي 1 الشعبة 1 | BW130: موهبة 1 | BX130: كيمياء 1 الشعبة 1 | BY130: موهبة 1 | BZ130: =_ِAll[[#This Row],[0]] -> 40043
A131: 40044 | B131: علي بن عبدالله بن حبيب آل خميس | C131: 1 | D131: رياضيات 1 الشعبة 1 | E131: موهبة 1 | F131: عربي 1 الشعبة 1 | G131: موهبة 1 | H131: كيمياء 1 الشعبة 1 | I131: موهبة 1 | J131: إنجليزي 1 الشعبة 1 | K131: موهبة 1 | L131: أحياء 1 الشعبة 1 | M131: موهبة 1 | N131: حاسب 1 الشعبة 1 | O131: معمل حاسب | P131: قرآن 1 الشعبة 1 | Q131: موهبة 1 | R131: 2 | S131: قرآن 1 الشعبة 1 | T131: موهبة 1 | U131: رياضيات 1 الشعبة 1 | V131: موهبة 1 | W131: عربي 1 الشعبة 1 | X131: موهبة 1 | Y131: كيمياء 1 الشعبة 1 | Z131: موهبة 1 | AA131: إنجليزي 1 الشعبة 1 | AB131: موهبة 1 | AC131: أحياء 1 الشعبة 1 | AD131: موهبة 1 | AE131: حاسب 1 الشعبة 1 | AF131: معمل حاسب | AG131: 3 | AH131: حاسب 1 الشعبة 1 | AI131: معمل حاسب | AJ131: قرآن 1 الشعبة 1 | AK131: موهبة 1 | AL131: رياضيات 1 الشعبة 1 | AM131: موهبة 1 | AN131: عربي 1 الشعبة 1 | AO131: موهبة 1 | AP131: أحياء 1 الشعبة 1 | AQ131: موهبة 1 | AR131: إنجليزي 1 الشعبة 1 | AS131: موهبة 1 | AT131: كيمياء 1 الشعبة 1 | AU131: موهبة 1 | AV131: 4 | AW131: أحياء 1 الشعبة 1 | AX131: موهبة 1 | AY131: حاسب 1 الشعبة 1 | AZ131: معمل حاسب | BA131: قرآن 1 الشعبة 1 | BB131: موهبة 1 | BC131: رياضيات 1 الشعبة 1 | BD131: موهبة 1 | BE131: عربي 1 الشعبة 1 | BF131: موهبة 1 | BG131: كيمياء 1 الشعبة 1 | BH131: موهبة 1 | BI131: إنجليزي 1 الشعبة 1 | BJ131: موهبة 1 | BK131: 5 | BL131: إنجليزي 1 الشعبة 1 | BM131: موهبة 1 | BN131: أحياء 1 الشعبة 1 | BO131: موهبة 1 | BP131: قرآن 1 الشعبة 1 | BQ131: موهبة 1 | BR131: حاسب 1 الشعبة 1 | BS131: معمل حاسب | BT131: رياضيات 1 الشعبة 1 | BU131: موهبة 1 | BV131: عربي 1 الشعبة 1 | BW131: موهبة 1 | BX131: كيمياء 1 الشعبة 1 | BY131: موهبة 1 | BZ131: =_ِAll[[#This Row],[0]] -> 40044
A132: 40045 | B132: محمد بن جاسم بن سعيد العياش | C132: 1 | D132: رياضيات 1 الشعبة 1 | E132: موهبة 1 | F132: عربي 1 الشعبة 1 | G132: موهبة 1 | H132: كيمياء 1 الشعبة 1 | I132: موهبة 1 | J132: إنجليزي 1 الشعبة 1 | K132: موهبة 1 | L132: أحياء 1 الشعبة 1 | M132: موهبة 1 | N132: حاسب 1 الشعبة 1 | O132: معمل حاسب | P132: قرآن 1 الشعبة 1 | Q132: موهبة 1 | R132: 2 | S132: قرآن 1 الشعبة 1 | T132: موهبة 1 | U132: رياضيات 1 الشعبة 1 | V132: موهبة 1 | W132: عربي 1 الشعبة 1 | X132: موهبة 1 | Y132: كيمياء 1 الشعبة 1 | Z132: موهبة 1 | AA132: إنجليزي 1 الشعبة 1 | AB132: موهبة 1 | AC132: أحياء 1 الشعبة 1 | AD132: موهبة 1 | AE132: حاسب 1 الشعبة 1 | AF132: معمل حاسب | AG132: 3 | AH132: حاسب 1 الشعبة 1 | AI132: معمل حاسب | AJ132: قرآن 1 الشعبة 1 | AK132: موهبة 1 | AL132: رياضيات 1 الشعبة 1 | AM132: موهبة 1 | AN132: عربي 1 الشعبة 1 | AO132: موهبة 1 | AP132: أحياء 1 الشعبة 1 | AQ132: موهبة 1 | AR132: إنجليزي 1 الشعبة 1 | AS132: موهبة 1 | AT132: كيمياء 1 الشعبة 1 | AU132: موهبة 1 | AV132: 4 | AW132: أحياء 1 الشعبة 1 | AX132: موهبة 1 | AY132: حاسب 1 الشعبة 1 | AZ132: معمل حاسب | BA132: قرآن 1 الشعبة 1 | BB132: موهبة 1 | BC132: رياضيات 1 الشعبة 1 | BD132: موهبة 1 | BE132: عربي 1 الشعبة 1 | BF132: موهبة 1 | BG132: كيمياء 1 الشعبة 1 | BH132: موهبة 1 | BI132: إنجليزي 1 الشعبة 1 | BJ132: موهبة 1 | BK132: 5 | BL132: إنجليزي 1 الشعبة 1 | BM132: موهبة 1 | BN132: أحياء 1 الشعبة 1 | BO132: موهبة 1 | BP132: قرآن 1 الشعبة 1 | BQ132: موهبة 1 | BR132: حاسب 1 الشعبة 1 | BS132: معمل حاسب | BT132: رياضيات 1 الشعبة 1 | BU132: موهبة 1 | BV132: عربي 1 الشعبة 1 | BW132: موهبة 1 | BX132: كيمياء 1 الشعبة 1 | BY132: موهبة 1 | BZ132: =_ِAll[[#This Row],[0]] -> 40045
A133: 40046 | B133: عبدالله بن عيسى بن حسن آل درويش | C133: 1 | D133: رياضيات 1 الشعبة 3 | E133: 306 - مهارات نفسية | F133: إنجليزي 1 الشعبة 3 | G133: 307 - إنجليزي | H133: فيزياء 1 الشعبة 3 | I133: 301 - فيزياء | J133: اجتماعيات الشعبة 3 | K133: 308 - اجتماعيات | L133: عربي 1 الشعبة 3 | M133: 209 - علوم إدارية | N133: قرآن 1 الشعبة 3 | O133: 303 - إسلامية | P133: حياتية 1 الشعبة 3 | Q133: 306 - مهارات نفسية | R133: 2 | S133: حياتية 1 الشعبة 3 | T133: 306 - مهارات نفسية | U133: رياضيات 1 الشعبة 3 | V133: 306 - مهارات نفسية | W133: إنجليزي 1 الشعبة 3 | X133: 307 - إنجليزي | Y133: فيزياء 1 الشعبة 3 | Z133: 301 - فيزياء | AA133: اجتماعيات الشعبة 3 | AB133: 308 - اجتماعيات | AC133: عربي 1 الشعبة 3 | AD133: 209 - علوم إدارية | AE133: قرآن 1 الشعبة 3 | AF133: 303 - إسلامية | AG133: 3 | AH133: قرآن 1 الشعبة 3 | AI133: 303 - إسلامية | AJ133: حياتية 1 الشعبة 3 | AK133: 306 - مهارات نفسية | AL133: رياضيات 1 الشعبة 3 | AM133: 306 - مهارات نفسية | AN133: إنجليزي 1 الشعبة 3 | AO133: 307 - إنجليزي | AP133: فيزياء 1 الشعبة 3 | AQ133: 301 - فيزياء | AR133: اجتماعيات الشعبة 3 | AS133: 308 - اجتماعيات | AT133: عربي 1 الشعبة 3 | AU133: 209 - علوم إدارية | AV133: 4 | AW133: عربي 1 الشعبة 3 | AX133: 209 - علوم إدارية | AY133: قرآن 1 الشعبة 3 | AZ133: 303 - إسلامية | BA133: حياتية 1 الشعبة 3 | BB133: 306 - مهارات نفسية | BC133: رياضيات 1 الشعبة 3 | BD133: 306 - مهارات نفسية | BE133: إنجليزي 1 الشعبة 3 | BF133: 307 - إنجليزي | BG133: فيزياء 1 الشعبة 3 | BH133: 301 - فيزياء | BI133: اجتماعيات الشعبة 3 | BJ133: 308 - اجتماعيات | BK133: 5 | BL133: اجتماعيات الشعبة 3 | BM133: 308 - اجتماعيات | BN133: عربي 1 الشعبة 3 | BO133: 209 - علوم إدارية | BP133: قرآن 1 الشعبة 3 | BQ133: 303 - إسلامية | BR133: حياتية 1 الشعبة 3 | BS133: 306 - مهارات نفسية | BT133: رياضيات 1 الشعبة 3 | BU133: 306 - مهارات نفسية | BV133: إنجليزي 1 الشعبة 3 | BW133: 307 - إنجليزي | BX133: فيزياء 1 الشعبة 3 | BY133: 301 - فيزياء | BZ133: =_ِAll[[#This Row],[0]] -> 40046
A134: 40048 | B134: عبدالله بن محمد بن عبدالله آل سالم | C134: 1 | D134: رياضيات 1 الشعبة 3 | E134: 306 - مهارات نفسية | F134: إنجليزي 1 الشعبة 3 | G134: 307 - إنجليزي | H134: فيزياء 1 الشعبة 3 | I134: 301 - فيزياء | J134: اجتماعيات الشعبة 3 | K134: 308 - اجتماعيات | L134: عربي 1 الشعبة 3 | M134: 209 - علوم إدارية | N134: قرآن 1 الشعبة 3 | O134: 303 - إسلامية | P134: حياتية 1 الشعبة 3 | Q134: 306 - مهارات نفسية | R134: 2 | S134: حياتية 1 الشعبة 3 | T134: 306 - مهارات نفسية | U134: رياضيات 1 الشعبة 3 | V134: 306 - مهارات نفسية | W134: إنجليزي 1 الشعبة 3 | X134: 307 - إنجليزي | Y134: فيزياء 1 الشعبة 3 | Z134: 301 - فيزياء | AA134: اجتماعيات الشعبة 3 | AB134: 308 - اجتماعيات | AC134: عربي 1 الشعبة 3 | AD134: 209 - علوم إدارية | AE134: قرآن 1 الشعبة 3 | AF134: 303 - إسلامية | AG134: 3 | AH134: قرآن 1 الشعبة 3 | AI134: 303 - إسلامية | AJ134: حياتية 1 الشعبة 3 | AK134: 306 - مهارات نفسية | AL134: رياضيات 1 الشعبة 3 | AM134: 306 - مهارات نفسية | AN134: إنجليزي 1 الشعبة 3 | AO134: 307 - إنجليزي | AP134: فيزياء 1 الشعبة 3 | AQ134: 301 - فيزياء | AR134: اجتماعيات الشعبة 3 | AS134: 308 - اجتماعيات | AT134: عربي 1 الشعبة 3 | AU134: 209 - علوم إدارية | AV134: 4 | AW134: عربي 1 الشعبة 3 | AX134: 209 - علوم إدارية | AY134: قرآن 1 الشعبة 3 | AZ134: 303 - إسلامية | BA134: حياتية 1 الشعبة 3 | BB134: 306 - مهارات نفسية | BC134: رياضيات 1 الشعبة 3 | BD134: 306 - مهارات نفسية | BE134: إنجليزي 1 الشعبة 3 | BF134: 307 - إنجليزي | BG134: فيزياء 1 الشعبة 3 | BH134: 301 - فيزياء | BI134: اجتماعيات الشعبة 3 | BJ134: 308 - اجتماعيات | BK134: 5 | BL134: اجتماعيات الشعبة 3 | BM134: 308 - اجتماعيات | BN134: عربي 1 الشعبة 3 | BO134: 209 - علوم إدارية | BP134: قرآن 1 الشعبة 3 | BQ134: 303 - إسلامية | BR134: حياتية 1 الشعبة 3 | BS134: 306 - مهارات نفسية | BT134: رياضيات 1 الشعبة 3 | BU134: 306 - مهارات نفسية | BV134: إنجليزي 1 الشعبة 3 | BW134: 307 - إنجليزي | BX134: فيزياء 1 الشعبة 3 | BY134: 301 - فيزياء | BZ134: =_ِAll[[#This Row],[0]] -> 40048
A135: 40049 | B135: محمد بن عبدالعزيز بن حسن آل سلام | C135: 1 | D135: رياضيات 1 الشعبة 3 | E135: 306 - مهارات نفسية | F135: إنجليزي 1 الشعبة 3 | G135: 307 - إنجليزي | H135: فيزياء 1 الشعبة 3 | I135: 301 - فيزياء | J135: اجتماعيات الشعبة 3 | K135: 308 - اجتماعيات | L135: عربي 1 الشعبة 3 | M135: 209 - علوم إدارية | N135: قرآن 1 الشعبة 3 | O135: 303 - إسلامية | P135: حياتية 1 الشعبة 3 | Q135: 306 - مهارات نفسية | R135: 2 | S135: حياتية 1 الشعبة 3 | T135: 306 - مهارات نفسية | U135: رياضيات 1 الشعبة 3 | V135: 306 - مهارات نفسية | W135: إنجليزي 1 الشعبة 3 | X135: 307 - إنجليزي | Y135: فيزياء 1 الشعبة 3 | Z135: 301 - فيزياء | AA135: اجتماعيات الشعبة 3 | AB135: 308 - اجتماعيات | AC135: عربي 1 الشعبة 3 | AD135: 209 - علوم إدارية | AE135: قرآن 1 الشعبة 3 | AF135: 303 - إسلامية | AG135: 3 | AH135: قرآن 1 الشعبة 3 | AI135: 303 - إسلامية | AJ135: حياتية 1 الشعبة 3 | AK135: 306 - مهارات نفسية | AL135: رياضيات 1 الشعبة 3 | AM135: 306 - مهارات نفسية | AN135: إنجليزي 1 الشعبة 3 | AO135: 307 - إنجليزي | AP135: فيزياء 1 الشعبة 3 | AQ135: 301 - فيزياء | AR135: اجتماعيات الشعبة 3 | AS135: 308 - اجتماعيات | AT135: عربي 1 الشعبة 3 | AU135: 209 - علوم إدارية | AV135: 4 | AW135: عربي 1 الشعبة 3 | AX135: 209 - علوم إدارية | AY135: قرآن 1 الشعبة 3 | AZ135: 303 - إسلامية | BA135: حياتية 1 الشعبة 3 | BB135: 306 - مهارات نفسية | BC135: رياضيات 1 الشعبة 3 | BD135: 306 - مهارات نفسية | BE135: إنجليزي 1 الشعبة 3 | BF135: 307 - إنجليزي | BG135: فيزياء 1 الشعبة 3 | BH135: 301 - فيزياء | BI135: اجتماعيات الشعبة 3 | BJ135: 308 - اجتماعيات | BK135: 5 | BL135: اجتماعيات الشعبة 3 | BM135: 308 - اجتماعيات | BN135: عربي 1 الشعبة 3 | BO135: 209 - علوم إدارية | BP135: قرآن 1 الشعبة 3 | BQ135: 303 - إسلامية | BR135: حياتية 1 الشعبة 3 | BS135: 306 - مهارات نفسية | BT135: رياضيات 1 الشعبة 3 | BU135: 306 - مهارات نفسية | BV135: إنجليزي 1 الشعبة 3 | BW135: 307 - إنجليزي | BX135: فيزياء 1 الشعبة 3 | BY135: 301 - فيزياء | BZ135: =_ِAll[[#This Row],[0]] -> 40049
A136: 40050 | B136: محمد بن باقر بن حسن آل سالم | C136: 1 | D136: رياضيات 1 الشعبة 1 | E136: موهبة 1 | F136: عربي 1 الشعبة 1 | G136: موهبة 1 | H136: كيمياء 1 الشعبة 1 | I136: موهبة 1 | J136: إنجليزي 1 الشعبة 1 | K136: موهبة 1 | L136: أحياء 1 الشعبة 1 | M136: موهبة 1 | N136: حاسب 1 الشعبة 1 | O136: معمل حاسب | P136: قرآن 1 الشعبة 1 | Q136: موهبة 1 | R136: 2 | S136: قرآن 1 الشعبة 1 | T136: موهبة 1 | U136: رياضيات 1 الشعبة 1 | V136: موهبة 1 | W136: عربي 1 الشعبة 1 | X136: موهبة 1 | Y136: كيمياء 1 الشعبة 1 | Z136: موهبة 1 | AA136: إنجليزي 1 الشعبة 1 | AB136: موهبة 1 | AC136: أحياء 1 الشعبة 1 | AD136: موهبة 1 | AE136: حاسب 1 الشعبة 1 | AF136: معمل حاسب | AG136: 3 | AH136: حاسب 1 الشعبة 1 | AI136: معمل حاسب | AJ136: قرآن 1 الشعبة 1 | AK136: موهبة 1 | AL136: رياضيات 1 الشعبة 1 | AM136: موهبة 1 | AN136: عربي 1 الشعبة 1 | AO136: موهبة 1 | AP136: أحياء 1 الشعبة 1 | AQ136: موهبة 1 | AR136: إنجليزي 1 الشعبة 1 | AS136: موهبة 1 | AT136: كيمياء 1 الشعبة 1 | AU136: موهبة 1 | AV136: 4 | AW136: أحياء 1 الشعبة 1 | AX136: موهبة 1 | AY136: حاسب 1 الشعبة 1 | AZ136: معمل حاسب | BA136: قرآن 1 الشعبة 1 | BB136: موهبة 1 | BC136: رياضيات 1 الشعبة 1 | BD136: موهبة 1 | BE136: عربي 1 الشعبة 1 | BF136: موهبة 1 | BG136: كيمياء 1 الشعبة 1 | BH136: موهبة 1 | BI136: إنجليزي 1 الشعبة 1 | BJ136: موهبة 1 | BK136: 5 | BL136: إنجليزي 1 الشعبة 1 | BM136: موهبة 1 | BN136: أحياء 1 الشعبة 1 | BO136: موهبة 1 | BP136: قرآن 1 الشعبة 1 | BQ136: موهبة 1 | BR136: حاسب 1 الشعبة 1 | BS136: معمل حاسب | BT136: رياضيات 1 الشعبة 1 | BU136: موهبة 1 | BV136: عربي 1 الشعبة 1 | BW136: موهبة 1 | BX136: كيمياء 1 الشعبة 1 | BY136: موهبة 1 | BZ136: =_ِAll[[#This Row],[0]] -> 40050
A137: 40051 | B137: حسن بن عباس بن عبدالله آل ذاهب | C137: 1 | D137: إنجليزي 1 الشعبة 2 | E137: 208 - إنجليزي | F137: حاسب 1 الشعبة 2 | G137: معمل حاسب | H137: أحياء 1 الشعبة 2 | I137: 212 - معمل أحياء | J137: كيمياء 1 الشعبة 2 | K137: 302 - كيمياء | L137: تفسير 1 الشعبة 2 | M137: 303 - إسلامية | N137: رياضيات 1 الشعبة 2 | O137: 310 - رياضيات | P137: عربي 1 الشعبة 2 | Q137: 204 - عربي | R137: 2 | S137: عربي 1 الشعبة 2 | T137: 204 - عربي | U137: إنجليزي 1 الشعبة 2 | V137: 208 - إنجليزي | W137: حاسب 1 الشعبة 2 | X137: معمل حاسب | Y137: أحياء 1 الشعبة 2 | Z137: 212 - معمل أحياء | AA137: كيمياء 1 الشعبة 2 | AB137: 302 - كيمياء | AC137: تفسير 1 الشعبة 2 | AD137: 303 - إسلامية | AE137: رياضيات 1 الشعبة 2 | AF137: 310 - رياضيات | AG137: 3 | AH137: رياضيات 1 الشعبة 2 | AI137: 310 - رياضيات | AJ137: عربي 1 الشعبة 2 | AK137: 204 - عربي | AL137: إنجليزي 1 الشعبة 2 | AM137: 208 - إنجليزي | AN137: حاسب 1 الشعبة 2 | AO137: معمل حاسب | AP137: كيمياء 1 الشعبة 2 | AQ137: 302 - كيمياء | AR137: أحياء 1 الشعبة 2 | AS137: 212 - معمل أحياء | AT137: تفسير 1 الشعبة 2 | AU137: 303 - إسلامية | AV137: 4 | AW137: تفسير 1 الشعبة 2 | AX137: 303 - إسلامية | AY137: رياضيات 1 الشعبة 2 | AZ137: 310 - رياضيات | BA137: عربي 1 الشعبة 2 | BB137: 204 - عربي | BC137: إنجليزي 1 الشعبة 2 | BD137: 208 - إنجليزي | BE137: حاسب 1 الشعبة 2 | BF137: معمل حاسب | BG137: أحياء 1 الشعبة 2 | BH137: 212 - معمل أحياء | BI137: كيمياء 1 الشعبة 2 | BJ137: 302 - كيمياء | BK137: 5 | BL137: كيمياء 1 الشعبة 2 | BM137: 302 - كيمياء | BN137: تفسير 1 الشعبة 2 | BO137: 303 - إسلامية | BP137: رياضيات 1 الشعبة 2 | BQ137: 310 - رياضيات | BR137: عربي 1 الشعبة 2 | BS137: 204 - عربي | BT137: إنجليزي 1 الشعبة 2 | BU137: 208 - إنجليزي | BV137: حاسب 1 الشعبة 2 | BW137: معمل حاسب | BX137: أحياء 1 الشعبة 2 | BY137: 212 - معمل أحياء | BZ137: =_ِAll[[#This Row],[0]] -> 40051
A138: 40053 | B138: محمد بن عبدالله بن مرهون العبدرب الحسن | C138: 1 | D138: عربي 1 الشعبة 4 | E138: 209 - علوم إدارية | F138: اجتماعيات الشعبة 4 | G138: 308 - اجتماعيات | H138: إنجليزي 1 الشعبة 4 | I138: 307 - إنجليزي | J138: رياضيات 1 الشعبة 4 | K138: 306 - مهارات نفسية | L138: حياتية 1 الشعبة 4 | M138: 306 - مهارات نفسية | N138: فيزياء 1 الشعبة 4 | O138: 207 - فيزياء | P138: تفسير 1 الشعبة 4 | Q138: 202 - إسلامية | R138: 2 | S138: تفسير 1 الشعبة 4 | T138: 202 - إسلامية | U138: عربي 1 الشعبة 4 | V138: 209 - علوم إدارية | W138: اجتماعيات الشعبة 4 | X138: 308 - اجتماعيات | Y138: إنجليزي 1 الشعبة 4 | Z138: 307 - إنجليزي | AA138: رياضيات 1 الشعبة 4 | AB138: 306 - مهارات نفسية | AC138: حياتية 1 الشعبة 4 | AD138: 306 - مهارات نفسية | AE138: فيزياء 1 الشعبة 4 | AF138: 207 - فيزياء | AG138: 3 | AH138: فيزياء 1 الشعبة 4 | AI138: 207 - فيزياء | AJ138: تفسير 1 الشعبة 4 | AK138: 202 - إسلامية | AL138: عربي 1 الشعبة 4 | AM138: 209 - علوم إدارية | AN138: اجتماعيات الشعبة 4 | AO138: 308 - اجتماعيات | AP138: إنجليزي 1 الشعبة 4 | AQ138: 307 - إنجليزي | AR138: رياضيات 1 الشعبة 4 | AS138: 306 - مهارات نفسية | AT138: حياتية 1 الشعبة 4 | AU138: 306 - مهارات نفسية | AV138: 4 | AW138: حياتية 1 الشعبة 4 | AX138: 306 - مهارات نفسية | AY138: فيزياء 1 الشعبة 4 | AZ138: 207 - فيزياء | BA138: تفسير 1 الشعبة 4 | BB138: 202 - إسلامية | BC138: عربي 1 الشعبة 4 | BD138: 209 - علوم إدارية | BE138: اجتماعيات الشعبة 4 | BF138: 308 - اجتماعيات | BG138: إنجليزي 1 الشعبة 4 | BH138: 307 - إنجليزي | BI138: رياضيات 1 الشعبة 4 | BJ138: 306 - مهارات نفسية | BK138: 5 | BL138: إنجليزي 1 الشعبة 4 | BM138: 307 - إنجليزي | BN138: رياضيات 1 الشعبة 4 | BO138: 306 - مهارات نفسية | BP138: فيزياء 1 الشعبة 4 | BQ138: 207 - فيزياء | BR138: تفسير 1 الشعبة 4 | BS138: 202 - إسلامية | BT138: عربي 1 الشعبة 4 | BU138: 209 - علوم إدارية | BV138: حياتية 1 الشعبة 4 | BW138: 306 - مهارات نفسية | BX138: اجتماعيات الشعبة 4 | BY138: 308 - اجتماعيات | BZ138: =_ِAll[[#This Row],[0]] -> 40053
A139: 40054 | B139: حيدر بن علي بن حسن آل درويش | C139: 1 | D139: عربي 1 الشعبة 4 | E139: 209 - علوم إدارية | F139: اجتماعيات الشعبة 4 | G139: 308 - اجتماعيات | H139: إنجليزي 1 الشعبة 4 | I139: 307 - إنجليزي | J139: رياضيات 1 الشعبة 4 | K139: 306 - مهارات نفسية | L139: حياتية 1 الشعبة 4 | M139: 306 - مهارات نفسية | N139: فيزياء 1 الشعبة 4 | O139: 207 - فيزياء | P139: تفسير 1 الشعبة 4 | Q139: 202 - إسلامية | R139: 2 | S139: تفسير 1 الشعبة 4 | T139: 202 - إسلامية | U139: عربي 1 الشعبة 4 | V139: 209 - علوم إدارية | W139: اجتماعيات الشعبة 4 | X139: 308 - اجتماعيات | Y139: إنجليزي 1 الشعبة 4 | Z139: 307 - إنجليزي | AA139: رياضيات 1 الشعبة 4 | AB139: 306 - مهارات نفسية | AC139: حياتية 1 الشعبة 4 | AD139: 306 - مهارات نفسية | AE139: فيزياء 1 الشعبة 4 | AF139: 207 - فيزياء | AG139: 3 | AH139: فيزياء 1 الشعبة 4 | AI139: 207 - فيزياء | AJ139: تفسير 1 الشعبة 4 | AK139: 202 - إسلامية | AL139: عربي 1 الشعبة 4 | AM139: 209 - علوم إدارية | AN139: اجتماعيات الشعبة 4 | AO139: 308 - اجتماعيات | AP139: إنجليزي 1 الشعبة 4 | AQ139: 307 - إنجليزي | AR139: رياضيات 1 الشعبة 4 | AS139: 306 - مهارات نفسية | AT139: حياتية 1 الشعبة 4 | AU139: 306 - مهارات نفسية | AV139: 4 | AW139: حياتية 1 الشعبة 4 | AX139: 306 - مهارات نفسية | AY139: فيزياء 1 الشعبة 4 | AZ139: 207 - فيزياء | BA139: تفسير 1 الشعبة 4 | BB139: 202 - إسلامية | BC139: عربي 1 الشعبة 4 | BD139: 209 - علوم إدارية | BE139: اجتماعيات الشعبة 4 | BF139: 308 - اجتماعيات | BG139: إنجليزي 1 الشعبة 4 | BH139: 307 - إنجليزي | BI139: رياضيات 1 الشعبة 4 | BJ139: 306 - مهارات نفسية | BK139: 5 | BL139: إنجليزي 1 الشعبة 4 | BM139: 307 - إنجليزي | BN139: رياضيات 1 الشعبة 4 | BO139: 306 - مهارات نفسية | BP139: فيزياء 1 الشعبة 4 | BQ139: 207 - فيزياء | BR139: تفسير 1 الشعبة 4 | BS139: 202 - إسلامية | BT139: عربي 1 الشعبة 4 | BU139: 209 - علوم إدارية | BV139: حياتية 1 الشعبة 4 | BW139: 306 - مهارات نفسية | BX139: اجتماعيات الشعبة 4 | BY139: 308 - اجتماعيات | BZ139: =_ِAll[[#This Row],[0]] -> 40054
A140: 40055 | B140: حسين بن رضا بن حبيب آل سعيد | C140: 1 | D140: رياضيات 1 الشعبة 3 | E140: 306 - مهارات نفسية | F140: إنجليزي 1 الشعبة 3 | G140: 307 - إنجليزي | H140: فيزياء 1 الشعبة 3 | I140: 301 - فيزياء | J140: اجتماعيات الشعبة 3 | K140: 308 - اجتماعيات | L140: عربي 1 الشعبة 3 | M140: 209 - علوم إدارية | N140: قرآن 1 الشعبة 3 | O140: 303 - إسلامية | P140: حياتية 1 الشعبة 3 | Q140: 306 - مهارات نفسية | R140: 2 | S140: حياتية 1 الشعبة 3 | T140: 306 - مهارات نفسية | U140: رياضيات 1 الشعبة 3 | V140: 306 - مهارات نفسية | W140: إنجليزي 1 الشعبة 3 | X140: 307 - إنجليزي | Y140: فيزياء 1 الشعبة 3 | Z140: 301 - فيزياء | AA140: اجتماعيات الشعبة 3 | AB140: 308 - اجتماعيات | AC140: عربي 1 الشعبة 3 | AD140: 209 - علوم إدارية | AE140: قرآن 1 الشعبة 3 | AF140: 303 - إسلامية | AG140: 3 | AH140: قرآن 1 الشعبة 3 | AI140: 303 - إسلامية | AJ140: حياتية 1 الشعبة 3 | AK140: 306 - مهارات نفسية | AL140: رياضيات 1 الشعبة 3 | AM140: 306 - مهارات نفسية | AN140: إنجليزي 1 الشعبة 3 | AO140: 307 - إنجليزي | AP140: فيزياء 1 الشعبة 3 | AQ140: 301 - فيزياء | AR140: اجتماعيات الشعبة 3 | AS140: 308 - اجتماعيات | AT140: عربي 1 الشعبة 3 | AU140: 209 - علوم إدارية | AV140: 4 | AW140: عربي 1 الشعبة 3 | AX140: 209 - علوم إدارية | AY140: قرآن 1 الشعبة 3 | AZ140: 303 - إسلامية | BA140: حياتية 1 الشعبة 3 | BB140: 306 - مهارات نفسية | BC140: رياضيات 1 الشعبة 3 | BD140: 306 - مهارات نفسية | BE140: إنجليزي 1 الشعبة 3 | BF140: 307 - إنجليزي | BG140: فيزياء 1 الشعبة 3 | BH140: 301 - فيزياء | BI140: اجتماعيات الشعبة 3 | BJ140: 308 - اجتماعيات | BK140: 5 | BL140: اجتماعيات الشعبة 3 | BM140: 308 - اجتماعيات | BN140: عربي 1 الشعبة 3 | BO140: 209 - علوم إدارية | BP140: قرآن 1 الشعبة 3 | BQ140: 303 - إسلامية | BR140: حياتية 1 الشعبة 3 | BS140: 306 - مهارات نفسية | BT140: رياضيات 1 الشعبة 3 | BU140: 306 - مهارات نفسية | BV140: إنجليزي 1 الشعبة 3 | BW140: 307 - إنجليزي | BX140: فيزياء 1 الشعبة 3 | BY140: 301 - فيزياء | BZ140: =_ِAll[[#This Row],[0]] -> 40055
A141: 40056 | B141: أحمد بن مصطفى بن أحمد المرهون | C141: 1 | D141: رياضيات 1 الشعبة 3 | E141: 306 - مهارات نفسية | F141: إنجليزي 1 الشعبة 3 | G141: 307 - إنجليزي | H141: فيزياء 1 الشعبة 3 | I141: 301 - فيزياء | J141: اجتماعيات الشعبة 3 | K141: 308 - اجتماعيات | L141: عربي 1 الشعبة 3 | M141: 209 - علوم إدارية | N141: قرآن 1 الشعبة 3 | O141: 303 - إسلامية | P141: حياتية 1 الشعبة 3 | Q141: 306 - مهارات نفسية | R141: 2 | S141: حياتية 1 الشعبة 3 | T141: 306 - مهارات نفسية | U141: رياضيات 1 الشعبة 3 | V141: 306 - مهارات نفسية | W141: إنجليزي 1 الشعبة 3 | X141: 307 - إنجليزي | Y141: فيزياء 1 الشعبة 3 | Z141: 301 - فيزياء | AA141: اجتماعيات الشعبة 3 | AB141: 308 - اجتماعيات | AC141: عربي 1 الشعبة 3 | AD141: 209 - علوم إدارية | AE141: قرآن 1 الشعبة 3 | AF141: 303 - إسلامية | AG141: 3 | AH141: قرآن 1 الشعبة 3 | AI141: 303 - إسلامية | AJ141: حياتية 1 الشعبة 3 | AK141: 306 - مهارات نفسية | AL141: رياضيات 1 الشعبة 3 | AM141: 306 - مهارات نفسية | AN141: إنجليزي 1 الشعبة 3 | AO141: 307 - إنجليزي | AP141: فيزياء 1 الشعبة 3 | AQ141: 301 - فيزياء | AR141: اجتماعيات الشعبة 3 | AS141: 308 - اجتماعيات | AT141: عربي 1 الشعبة 3 | AU141: 209 - علوم إدارية | AV141: 4 | AW141: عربي 1 الشعبة 3 | AX141: 209 - علوم إدارية | AY141: قرآن 1 الشعبة 3 | AZ141: 303 - إسلامية | BA141: حياتية 1 الشعبة 3 | BB141: 306 - مهارات نفسية | BC141: رياضيات 1 الشعبة 3 | BD141: 306 - مهارات نفسية | BE141: إنجليزي 1 الشعبة 3 | BF141: 307 - إنجليزي | BG141: فيزياء 1 الشعبة 3 | BH141: 301 - فيزياء | BI141: اجتماعيات الشعبة 3 | BJ141: 308 - اجتماعيات | BK141: 5 | BL141: اجتماعيات الشعبة 3 | BM141: 308 - اجتماعيات | BN141: عربي 1 الشعبة 3 | BO141: 209 - علوم إدارية | BP141: قرآن 1 الشعبة 3 | BQ141: 303 - إسلامية | BR141: حياتية 1 الشعبة 3 | BS141: 306 - مهارات نفسية | BT141: رياضيات 1 الشعبة 3 | BU141: 306 - مهارات نفسية | BV141: إنجليزي 1 الشعبة 3 | BW141: 307 - إنجليزي | BX141: فيزياء 1 الشعبة 3 | BY141: 301 - فيزياء | BZ141: =_ِAll[[#This Row],[0]] -> 40056
A142: 40058 | B142: علي بن عيسى بن مكي آل عبدالوهاب | C142: 1 | D142: رياضيات 1 الشعبة 3 | E142: 306 - مهارات نفسية | F142: إنجليزي 1 الشعبة 3 | G142: 307 - إنجليزي | H142: فيزياء 1 الشعبة 3 | I142: 301 - فيزياء | J142: اجتماعيات الشعبة 3 | K142: 308 - اجتماعيات | L142: عربي 1 الشعبة 3 | M142: 209 - علوم إدارية | N142: قرآن 1 الشعبة 3 | O142: 303 - إسلامية | P142: حياتية 1 الشعبة 3 | Q142: 306 - مهارات نفسية | R142: 2 | S142: حياتية 1 الشعبة 3 | T142: 306 - مهارات نفسية | U142: رياضيات 1 الشعبة 3 | V142: 306 - مهارات نفسية | W142: إنجليزي 1 الشعبة 3 | X142: 307 - إنجليزي | Y142: فيزياء 1 الشعبة 3 | Z142: 301 - فيزياء | AA142: اجتماعيات الشعبة 3 | AB142: 308 - اجتماعيات | AC142: عربي 1 الشعبة 3 | AD142: 209 - علوم إدارية | AE142: قرآن 1 الشعبة 3 | AF142: 303 - إسلامية | AG142: 3 | AH142: قرآن 1 الشعبة 3 | AI142: 303 - إسلامية | AJ142: حياتية 1 الشعبة 3 | AK142: 306 - مهارات نفسية | AL142: رياضيات 1 الشعبة 3 | AM142: 306 - مهارات نفسية | AN142: إنجليزي 1 الشعبة 3 | AO142: 307 - إنجليزي | AP142: فيزياء 1 الشعبة 3 | AQ142: 301 - فيزياء | AR142: اجتماعيات الشعبة 3 | AS142: 308 - اجتماعيات | AT142: عربي 1 الشعبة 3 | AU142: 209 - علوم إدارية | AV142: 4 | AW142: عربي 1 الشعبة 3 | AX142: 209 - علوم إدارية | AY142: قرآن 1 الشعبة 3 | AZ142: 303 - إسلامية | BA142: حياتية 1 الشعبة 3 | BB142: 306 - مهارات نفسية | BC142: رياضيات 1 الشعبة 3 | BD142: 306 - مهارات نفسية | BE142: إنجليزي 1 الشعبة 3 | BF142: 307 - إنجليزي | BG142: فيزياء 1 الشعبة 3 | BH142: 301 - فيزياء | BI142: اجتماعيات الشعبة 3 | BJ142: 308 - اجتماعيات | BK142: 5 | BL142: اجتماعيات الشعبة 3 | BM142: 308 - اجتماعيات | BN142: عربي 1 الشعبة 3 | BO142: 209 - علوم إدارية | BP142: قرآن 1 الشعبة 3 | BQ142: 303 - إسلامية | BR142: حياتية 1 الشعبة 3 | BS142: 306 - مهارات نفسية | BT142: رياضيات 1 الشعبة 3 | BU142: 306 - مهارات نفسية | BV142: إنجليزي 1 الشعبة 3 | BW142: 307 - إنجليزي | BX142: فيزياء 1 الشعبة 3 | BY142: 301 - فيزياء | BZ142: =_ِAll[[#This Row],[0]] -> 40058
A143: 40059 | B143: علي بن محمد بن عبدالعلي آل نصيف | C143: 1 | D143: رياضيات 1 الشعبة 1 | E143: موهبة 1 | F143: عربي 1 الشعبة 1 | G143: موهبة 1 | H143: كيمياء 1 الشعبة 1 | I143: موهبة 1 | J143: إنجليزي 1 الشعبة 1 | K143: موهبة 1 | L143: أحياء 1 الشعبة 1 | M143: موهبة 1 | N143: حاسب 1 الشعبة 1 | O143: معمل حاسب | P143: قرآن 1 الشعبة 1 | Q143: موهبة 1 | R143: 2 | S143: قرآن 1 الشعبة 1 | T143: موهبة 1 | U143: رياضيات 1 الشعبة 1 | V143: موهبة 1 | W143: عربي 1 الشعبة 1 | X143: موهبة 1 | Y143: كيمياء 1 الشعبة 1 | Z143: موهبة 1 | AA143: إنجليزي 1 الشعبة 1 | AB143: موهبة 1 | AC143: أحياء 1 الشعبة 1 | AD143: موهبة 1 | AE143: حاسب 1 الشعبة 1 | AF143: معمل حاسب | AG143: 3 | AH143: حاسب 1 الشعبة 1 | AI143: معمل حاسب | AJ143: قرآن 1 الشعبة 1 | AK143: موهبة 1 | AL143: رياضيات 1 الشعبة 1 | AM143: موهبة 1 | AN143: عربي 1 الشعبة 1 | AO143: موهبة 1 | AP143: أحياء 1 الشعبة 1 | AQ143: موهبة 1 | AR143: إنجليزي 1 الشعبة 1 | AS143: موهبة 1 | AT143: كيمياء 1 الشعبة 1 | AU143: موهبة 1 | AV143: 4 | AW143: أحياء 1 الشعبة 1 | AX143: موهبة 1 | AY143: حاسب 1 الشعبة 1 | AZ143: معمل حاسب | BA143: قرآن 1 الشعبة 1 | BB143: موهبة 1 | BC143: رياضيات 1 الشعبة 1 | BD143: موهبة 1 | BE143: عربي 1 الشعبة 1 | BF143: موهبة 1 | BG143: كيمياء 1 الشعبة 1 | BH143: موهبة 1 | BI143: إنجليزي 1 الشعبة 1 | BJ143: موهبة 1 | BK143: 5 | BL143: إنجليزي 1 الشعبة 1 | BM143: موهبة 1 | BN143: أحياء 1 الشعبة 1 | BO143: موهبة 1 | BP143: قرآن 1 الشعبة 1 | BQ143: موهبة 1 | BR143: حاسب 1 الشعبة 1 | BS143: معمل حاسب | BT143: رياضيات 1 الشعبة 1 | BU143: موهبة 1 | BV143: عربي 1 الشعبة 1 | BW143: موهبة 1 | BX143: كيمياء 1 الشعبة 1 | BY143: موهبة 1 | BZ143: =_ِAll[[#This Row],[0]] -> 40059
A144: 40060 | B144: حسين بن عدنان بن حسن الشاخوري | C144: 1 | D144: عربي 1 الشعبة 4 | E144: 209 - علوم إدارية | F144: اجتماعيات الشعبة 4 | G144: 308 - اجتماعيات | H144: إنجليزي 1 الشعبة 4 | I144: 307 - إنجليزي | J144: رياضيات 1 الشعبة 4 | K144: 306 - مهارات نفسية | L144: حياتية 1 الشعبة 4 | M144: 306 - مهارات نفسية | N144: فيزياء 1 الشعبة 4 | O144: 207 - فيزياء | P144: تفسير 1 الشعبة 4 | Q144: 202 - إسلامية | R144: 2 | S144: تفسير 1 الشعبة 4 | T144: 202 - إسلامية | U144: عربي 1 الشعبة 4 | V144: 209 - علوم إدارية | W144: اجتماعيات الشعبة 4 | X144: 308 - اجتماعيات | Y144: إنجليزي 1 الشعبة 4 | Z144: 307 - إنجليزي | AA144: رياضيات 1 الشعبة 4 | AB144: 306 - مهارات نفسية | AC144: حياتية 1 الشعبة 4 | AD144: 306 - مهارات نفسية | AE144: فيزياء 1 الشعبة 4 | AF144: 207 - فيزياء | AG144: 3 | AH144: فيزياء 1 الشعبة 4 | AI144: 207 - فيزياء | AJ144: تفسير 1 الشعبة 4 | AK144: 202 - إسلامية | AL144: عربي 1 الشعبة 4 | AM144: 209 - علوم إدارية | AN144: اجتماعيات الشعبة 4 | AO144: 308 - اجتماعيات | AP144: إنجليزي 1 الشعبة 4 | AQ144: 307 - إنجليزي | AR144: رياضيات 1 الشعبة 4 | AS144: 306 - مهارات نفسية | AT144: حياتية 1 الشعبة 4 | AU144: 306 - مهارات نفسية | AV144: 4 | AW144: حياتية 1 الشعبة 4 | AX144: 306 - مهارات نفسية | AY144: فيزياء 1 الشعبة 4 | AZ144: 207 - فيزياء | BA144: تفسير 1 الشعبة 4 | BB144: 202 - إسلامية | BC144: عربي 1 الشعبة 4 | BD144: 209 - علوم إدارية | BE144: اجتماعيات الشعبة 4 | BF144: 308 - اجتماعيات | BG144: إنجليزي 1 الشعبة 4 | BH144: 307 - إنجليزي | BI144: رياضيات 1 الشعبة 4 | BJ144: 306 - مهارات نفسية | BK144: 5 | BL144: إنجليزي 1 الشعبة 4 | BM144: 307 - إنجليزي | BN144: رياضيات 1 الشعبة 4 | BO144: 306 - مهارات نفسية | BP144: فيزياء 1 الشعبة 4 | BQ144: 207 - فيزياء | BR144: تفسير 1 الشعبة 4 | BS144: 202 - إسلامية | BT144: عربي 1 الشعبة 4 | BU144: 209 - علوم إدارية | BV144: حياتية 1 الشعبة 4 | BW144: 306 - مهارات نفسية | BX144: اجتماعيات الشعبة 4 | BY144: 308 - اجتماعيات | BZ144: =_ِAll[[#This Row],[0]] -> 40060
A145: 40064 | B145: أحمد بن صالح بن علي آل أحمد | C145: 1 | D145: إنجليزي 1 الشعبة 2 | E145: 208 - إنجليزي | F145: حاسب 1 الشعبة 2 | G145: معمل حاسب | H145: أحياء 1 الشعبة 2 | I145: 212 - معمل أحياء | J145: كيمياء 1 الشعبة 2 | K145: 302 - كيمياء | L145: تفسير 1 الشعبة 2 | M145: 303 - إسلامية | N145: رياضيات 1 الشعبة 2 | O145: 310 - رياضيات | P145: عربي 1 الشعبة 2 | Q145: 204 - عربي | R145: 2 | S145: عربي 1 الشعبة 2 | T145: 204 - عربي | U145: إنجليزي 1 الشعبة 2 | V145: 208 - إنجليزي | W145: حاسب 1 الشعبة 2 | X145: معمل حاسب | Y145: أحياء 1 الشعبة 2 | Z145: 212 - معمل أحياء | AA145: كيمياء 1 الشعبة 2 | AB145: 302 - كيمياء | AC145: تفسير 1 الشعبة 2 | AD145: 303 - إسلامية | AE145: رياضيات 1 الشعبة 2 | AF145: 310 - رياضيات | AG145: 3 | AH145: رياضيات 1 الشعبة 2 | AI145: 310 - رياضيات | AJ145: عربي 1 الشعبة 2 | AK145: 204 - عربي | AL145: إنجليزي 1 الشعبة 2 | AM145: 208 - إنجليزي | AN145: حاسب 1 الشعبة 2 | AO145: معمل حاسب | AP145: كيمياء 1 الشعبة 2 | AQ145: 302 - كيمياء | AR145: أحياء 1 الشعبة 2 | AS145: 212 - معمل أحياء | AT145: تفسير 1 الشعبة 2 | AU145: 303 - إسلامية | AV145: 4 | AW145: تفسير 1 الشعبة 2 | AX145: 303 - إسلامية | AY145: رياضيات 1 الشعبة 2 | AZ145: 310 - رياضيات | BA145: عربي 1 الشعبة 2 | BB145: 204 - عربي | BC145: إنجليزي 1 الشعبة 2 | BD145: 208 - إنجليزي | BE145: حاسب 1 الشعبة 2 | BF145: معمل حاسب | BG145: أحياء 1 الشعبة 2 | BH145: 212 - معمل أحياء | BI145: كيمياء 1 الشعبة 2 | BJ145: 302 - كيمياء | BK145: 5 | BL145: كيمياء 1 الشعبة 2 | BM145: 302 - كيمياء | BN145: تفسير 1 الشعبة 2 | BO145: 303 - إسلامية | BP145: رياضيات 1 الشعبة 2 | BQ145: 310 - رياضيات | BR145: عربي 1 الشعبة 2 | BS145: 204 - عربي | BT145: إنجليزي 1 الشعبة 2 | BU145: 208 - إنجليزي | BV145: حاسب 1 الشعبة 2 | BW145: معمل حاسب | BX145: أحياء 1 الشعبة 2 | BY145: 212 - معمل أحياء | BZ145: =_ِAll[[#This Row],[0]] -> 40064
A146: 40066 | B146: عبدالله بن جعفر بن عبدالله آل سالم | C146: 1 | D146: إنجليزي 1 الشعبة 2 | E146: 208 - إنجليزي | F146: حاسب 1 الشعبة 2 | G146: معمل حاسب | H146: أحياء 1 الشعبة 2 | I146: 212 - معمل أحياء | J146: كيمياء 1 الشعبة 2 | K146: 302 - كيمياء | L146: تفسير 1 الشعبة 2 | M146: 303 - إسلامية | N146: رياضيات 1 الشعبة 2 | O146: 310 - رياضيات | P146: عربي 1 الشعبة 2 | Q146: 204 - عربي | R146: 2 | S146: عربي 1 الشعبة 2 | T146: 204 - عربي | U146: إنجليزي 1 الشعبة 2 | V146: 208 - إنجليزي | W146: حاسب 1 الشعبة 2 | X146: معمل حاسب | Y146: أحياء 1 الشعبة 2 | Z146: 212 - معمل أحياء | AA146: كيمياء 1 الشعبة 2 | AB146: 302 - كيمياء | AC146: تفسير 1 الشعبة 2 | AD146: 303 - إسلامية | AE146: رياضيات 1 الشعبة 2 | AF146: 310 - رياضيات | AG146: 3 | AH146: رياضيات 1 الشعبة 2 | AI146: 310 - رياضيات | AJ146: عربي 1 الشعبة 2 | AK146: 204 - عربي | AL146: إنجليزي 1 الشعبة 2 | AM146: 208 - إنجليزي | AN146: حاسب 1 الشعبة 2 | AO146: معمل حاسب | AP146: كيمياء 1 الشعبة 2 | AQ146: 302 - كيمياء | AR146: أحياء 1 الشعبة 2 | AS146: 212 - معمل أحياء | AT146: تفسير 1 الشعبة 2 | AU146: 303 - إسلامية | AV146: 4 | AW146: تفسير 1 الشعبة 2 | AX146: 303 - إسلامية | AY146: رياضيات 1 الشعبة 2 | AZ146: 310 - رياضيات | BA146: عربي 1 الشعبة 2 | BB146: 204 - عربي | BC146: إنجليزي 1 الشعبة 2 | BD146: 208 - إنجليزي | BE146: حاسب 1 الشعبة 2 | BF146: معمل حاسب | BG146: أحياء 1 الشعبة 2 | BH146: 212 - معمل أحياء | BI146: كيمياء 1 الشعبة 2 | BJ146: 302 - كيمياء | BK146: 5 | BL146: كيمياء 1 الشعبة 2 | BM146: 302 - كيمياء | BN146: تفسير 1 الشعبة 2 | BO146: 303 - إسلامية | BP146: رياضيات 1 الشعبة 2 | BQ146: 310 - رياضيات | BR146: عربي 1 الشعبة 2 | BS146: 204 - عربي | BT146: إنجليزي 1 الشعبة 2 | BU146: 208 - إنجليزي | BV146: حاسب 1 الشعبة 2 | BW146: معمل حاسب | BX146: أحياء 1 الشعبة 2 | BY146: 212 - معمل أحياء | BZ146: =_ِAll[[#This Row],[0]] -> 40066
A147: 40067 | B147: حسين بن تركي بن سعود حمود | C147: 1 | D147: عربي 1 الشعبة 4 | E147: 209 - علوم إدارية | F147: اجتماعيات الشعبة 4 | G147: 308 - اجتماعيات | H147: إنجليزي 1 الشعبة 4 | I147: 307 - إنجليزي | J147: رياضيات 1 الشعبة 4 | K147: 306 - مهارات نفسية | L147: حياتية 1 الشعبة 4 | M147: 306 - مهارات نفسية | N147: فيزياء 1 الشعبة 4 | O147: 207 - فيزياء | P147: تفسير 1 الشعبة 4 | Q147: 202 - إسلامية | R147: 2 | S147: تفسير 1 الشعبة 4 | T147: 202 - إسلامية | U147: عربي 1 الشعبة 4 | V147: 209 - علوم إدارية | W147: اجتماعيات الشعبة 4 | X147: 308 - اجتماعيات | Y147: إنجليزي 1 الشعبة 4 | Z147: 307 - إنجليزي | AA147: رياضيات 1 الشعبة 4 | AB147: 306 - مهارات نفسية | AC147: حياتية 1 الشعبة 4 | AD147: 306 - مهارات نفسية | AE147: فيزياء 1 الشعبة 4 | AF147: 207 - فيزياء | AG147: 3 | AH147: فيزياء 1 الشعبة 4 | AI147: 207 - فيزياء | AJ147: تفسير 1 الشعبة 4 | AK147: 202 - إسلامية | AL147: عربي 1 الشعبة 4 | AM147: 209 - علوم إدارية | AN147: اجتماعيات الشعبة 4 | AO147: 308 - اجتماعيات | AP147: إنجليزي 1 الشعبة 4 | AQ147: 307 - إنجليزي | AR147: رياضيات 1 الشعبة 4 | AS147: 306 - مهارات نفسية | AT147: حياتية 1 الشعبة 4 | AU147: 306 - مهارات نفسية | AV147: 4 | AW147: حياتية 1 الشعبة 4 | AX147: 306 - مهارات نفسية | AY147: فيزياء 1 الشعبة 4 | AZ147: 207 - فيزياء | BA147: تفسير 1 الشعبة 4 | BB147: 202 - إسلامية | BC147: عربي 1 الشعبة 4 | BD147: 209 - علوم إدارية | BE147: اجتماعيات الشعبة 4 | BF147: 308 - اجتماعيات | BG147: إنجليزي 1 الشعبة 4 | BH147: 307 - إنجليزي | BI147: رياضيات 1 الشعبة 4 | BJ147: 306 - مهارات نفسية | BK147: 5 | BL147: إنجليزي 1 الشعبة 4 | BM147: 307 - إنجليزي | BN147: رياضيات 1 الشعبة 4 | BO147: 306 - مهارات نفسية | BP147: فيزياء 1 الشعبة 4 | BQ147: 207 - فيزياء | BR147: تفسير 1 الشعبة 4 | BS147: 202 - إسلامية | BT147: عربي 1 الشعبة 4 | BU147: 209 - علوم إدارية | BV147: حياتية 1 الشعبة 4 | BW147: 306 - مهارات نفسية | BX147: اجتماعيات الشعبة 4 | BY147: 308 - اجتماعيات | BZ147: =_ِAll[[#This Row],[0]] -> 40067
A148: 40068 | B148: عزيز بن عبدالحكيم بن علي آل محفوظ | C148: 1 | D148: إنجليزي 1 الشعبة 2 | E148: 208 - إنجليزي | F148: حاسب 1 الشعبة 2 | G148: معمل حاسب | H148: أحياء 1 الشعبة 2 | I148: 212 - معمل أحياء | J148: كيمياء 1 الشعبة 2 | K148: 302 - كيمياء | L148: تفسير 1 الشعبة 2 | M148: 303 - إسلامية | N148: رياضيات 1 الشعبة 2 | O148: 310 - رياضيات | P148: عربي 1 الشعبة 2 | Q148: 204 - عربي | R148: 2 | S148: عربي 1 الشعبة 2 | T148: 204 - عربي | U148: إنجليزي 1 الشعبة 2 | V148: 208 - إنجليزي | W148: حاسب 1 الشعبة 2 | X148: معمل حاسب | Y148: أحياء 1 الشعبة 2 | Z148: 212 - معمل أحياء | AA148: كيمياء 1 الشعبة 2 | AB148: 302 - كيمياء | AC148: تفسير 1 الشعبة 2 | AD148: 303 - إسلامية | AE148: رياضيات 1 الشعبة 2 | AF148: 310 - رياضيات | AG148: 3 | AH148: رياضيات 1 الشعبة 2 | AI148: 310 - رياضيات | AJ148: عربي 1 الشعبة 2 | AK148: 204 - عربي | AL148: إنجليزي 1 الشعبة 2 | AM148: 208 - إنجليزي | AN148: حاسب 1 الشعبة 2 | AO148: معمل حاسب | AP148: كيمياء 1 الشعبة 2 | AQ148: 302 - كيمياء | AR148: أحياء 1 الشعبة 2 | AS148: 212 - معمل أحياء | AT148: تفسير 1 الشعبة 2 | AU148: 303 - إسلامية | AV148: 4 | AW148: تفسير 1 الشعبة 2 | AX148: 303 - إسلامية | AY148: رياضيات 1 الشعبة 2 | AZ148: 310 - رياضيات | BA148: عربي 1 الشعبة 2 | BB148: 204 - عربي | BC148: إنجليزي 1 الشعبة 2 | BD148: 208 - إنجليزي | BE148: حاسب 1 الشعبة 2 | BF148: معمل حاسب | BG148: أحياء 1 الشعبة 2 | BH148: 212 - معمل أحياء | BI148: كيمياء 1 الشعبة 2 | BJ148: 302 - كيمياء | BK148: 5 | BL148: كيمياء 1 الشعبة 2 | BM148: 302 - كيمياء | BN148: تفسير 1 الشعبة 2 | BO148: 303 - إسلامية | BP148: رياضيات 1 الشعبة 2 | BQ148: 310 - رياضيات | BR148: عربي 1 الشعبة 2 | BS148: 204 - عربي | BT148: إنجليزي 1 الشعبة 2 | BU148: 208 - إنجليزي | BV148: حاسب 1 الشعبة 2 | BW148: معمل حاسب | BX148: أحياء 1 الشعبة 2 | BY148: 212 - معمل أحياء | BZ148: =_ِAll[[#This Row],[0]] -> 40068
A149: 40069 | B149: أحمد بن منصور بن عبدالله آل خواهر | C149: 1 | D149: عربي 1 الشعبة 4 | E149: 209 - علوم إدارية | F149: اجتماعيات الشعبة 4 | G149: 308 - اجتماعيات | H149: إنجليزي 1 الشعبة 4 | I149: 307 - إنجليزي | J149: رياضيات 1 الشعبة 4 | K149: 306 - مهارات نفسية | L149: حياتية 1 الشعبة 4 | M149: 306 - مهارات نفسية | N149: فيزياء 1 الشعبة 4 | O149: 207 - فيزياء | P149: تفسير 1 الشعبة 4 | Q149: 202 - إسلامية | R149: 2 | S149: تفسير 1 الشعبة 4 | T149: 202 - إسلامية | U149: عربي 1 الشعبة 4 | V149: 209 - علوم إدارية | W149: اجتماعيات الشعبة 4 | X149: 308 - اجتماعيات | Y149: إنجليزي 1 الشعبة 4 | Z149: 307 - إنجليزي | AA149: رياضيات 1 الشعبة 4 | AB149: 306 - مهارات نفسية | AC149: حياتية 1 الشعبة 4 | AD149: 306 - مهارات نفسية | AE149: فيزياء 1 الشعبة 4 | AF149: 207 - فيزياء | AG149: 3 | AH149: فيزياء 1 الشعبة 4 | AI149: 207 - فيزياء | AJ149: تفسير 1 الشعبة 4 | AK149: 202 - إسلامية | AL149: عربي 1 الشعبة 4 | AM149: 209 - علوم إدارية | AN149: اجتماعيات الشعبة 4 | AO149: 308 - اجتماعيات | AP149: إنجليزي 1 الشعبة 4 | AQ149: 307 - إنجليزي | AR149: رياضيات 1 الشعبة 4 | AS149: 306 - مهارات نفسية | AT149: حياتية 1 الشعبة 4 | AU149: 306 - مهارات نفسية | AV149: 4 | AW149: حياتية 1 الشعبة 4 | AX149: 306 - مهارات نفسية | AY149: فيزياء 1 الشعبة 4 | AZ149: 207 - فيزياء | BA149: تفسير 1 الشعبة 4 | BB149: 202 - إسلامية | BC149: عربي 1 الشعبة 4 | BD149: 209 - علوم إدارية | BE149: اجتماعيات الشعبة 4 | BF149: 308 - اجتماعيات | BG149: إنجليزي 1 الشعبة 4 | BH149: 307 - إنجليزي | BI149: رياضيات 1 الشعبة 4 | BJ149: 306 - مهارات نفسية | BK149: 5 | BL149: إنجليزي 1 الشعبة 4 | BM149: 307 - إنجليزي | BN149: رياضيات 1 الشعبة 4 | BO149: 306 - مهارات نفسية | BP149: فيزياء 1 الشعبة 4 | BQ149: 207 - فيزياء | BR149: تفسير 1 الشعبة 4 | BS149: 202 - إسلامية | BT149: عربي 1 الشعبة 4 | BU149: 209 - علوم إدارية | BV149: حياتية 1 الشعبة 4 | BW149: 306 - مهارات نفسية | BX149: اجتماعيات الشعبة 4 | BY149: 308 - اجتماعيات | BZ149: =_ِAll[[#This Row],[0]] -> 40069
A150: 40072 | B150: سعيد بن عبد العزيز بن سعيد الشوملي | C150: 1 | D150: رياضيات 1 الشعبة 1 | E150: موهبة 1 | F150: عربي 1 الشعبة 1 | G150: موهبة 1 | H150: كيمياء 1 الشعبة 1 | I150: موهبة 1 | J150: إنجليزي 1 الشعبة 1 | K150: موهبة 1 | L150: أحياء 1 الشعبة 1 | M150: موهبة 1 | N150: حاسب 1 الشعبة 1 | O150: معمل حاسب | P150: قرآن 1 الشعبة 1 | Q150: موهبة 1 | R150: 2 | S150: قرآن 1 الشعبة 1 | T150: موهبة 1 | U150: رياضيات 1 الشعبة 1 | V150: موهبة 1 | W150: عربي 1 الشعبة 1 | X150: موهبة 1 | Y150: كيمياء 1 الشعبة 1 | Z150: موهبة 1 | AA150: إنجليزي 1 الشعبة 1 | AB150: موهبة 1 | AC150: أحياء 1 الشعبة 1 | AD150: موهبة 1 | AE150: حاسب 1 الشعبة 1 | AF150: معمل حاسب | AG150: 3 | AH150: حاسب 1 الشعبة 1 | AI150: معمل حاسب | AJ150: قرآن 1 الشعبة 1 | AK150: موهبة 1 | AL150: رياضيات 1 الشعبة 1 | AM150: موهبة 1 | AN150: عربي 1 الشعبة 1 | AO150: موهبة 1 | AP150: أحياء 1 الشعبة 1 | AQ150: موهبة 1 | AR150: إنجليزي 1 الشعبة 1 | AS150: موهبة 1 | AT150: كيمياء 1 الشعبة 1 | AU150: موهبة 1 | AV150: 4 | AW150: أحياء 1 الشعبة 1 | AX150: موهبة 1 | AY150: حاسب 1 الشعبة 1 | AZ150: معمل حاسب | BA150: قرآن 1 الشعبة 1 | BB150: موهبة 1 | BC150: رياضيات 1 الشعبة 1 | BD150: موهبة 1 | BE150: عربي 1 الشعبة 1 | BF150: موهبة 1 | BG150: كيمياء 1 الشعبة 1 | BH150: موهبة 1 | BI150: إنجليزي 1 الشعبة 1 | BJ150: موهبة 1 | BK150: 5 | BL150: إنجليزي 1 الشعبة 1 | BM150: موهبة 1 | BN150: أحياء 1 الشعبة 1 | BO150: موهبة 1 | BP150: قرآن 1 الشعبة 1 | BQ150: موهبة 1 | BR150: حاسب 1 الشعبة 1 | BS150: معمل حاسب | BT150: رياضيات 1 الشعبة 1 | BU150: موهبة 1 | BV150: عربي 1 الشعبة 1 | BW150: موهبة 1 | BX150: كيمياء 1 الشعبة 1 | BY150: موهبة 1 | BZ150: =_ِAll[[#This Row],[0]] -> 40072
A151: 40073 | B151: علي بن محمد بن علي آل محفوظ | C151: 1 | D151: رياضيات 1 الشعبة 3 | E151: 306 - مهارات نفسية | F151: إنجليزي 1 الشعبة 3 | G151: 307 - إنجليزي | H151: فيزياء 1 الشعبة 3 | I151: 301 - فيزياء | J151: اجتماعيات الشعبة 3 | K151: 308 - اجتماعيات | L151: عربي 1 الشعبة 3 | M151: 209 - علوم إدارية | N151: قرآن 1 الشعبة 3 | O151: 303 - إسلامية | P151: حياتية 1 الشعبة 3 | Q151: 306 - مهارات نفسية | R151: 2 | S151: حياتية 1 الشعبة 3 | T151: 306 - مهارات نفسية | U151: رياضيات 1 الشعبة 3 | V151: 306 - مهارات نفسية | W151: إنجليزي 1 الشعبة 3 | X151: 307 - إنجليزي | Y151: فيزياء 1 الشعبة 3 | Z151: 301 - فيزياء | AA151: اجتماعيات الشعبة 3 | AB151: 308 - اجتماعيات | AC151: عربي 1 الشعبة 3 | AD151: 209 - علوم إدارية | AE151: قرآن 1 الشعبة 3 | AF151: 303 - إسلامية | AG151: 3 | AH151: قرآن 1 الشعبة 3 | AI151: 303 - إسلامية | AJ151: حياتية 1 الشعبة 3 | AK151: 306 - مهارات نفسية | AL151: رياضيات 1 الشعبة 3 | AM151: 306 - مهارات نفسية | AN151: إنجليزي 1 الشعبة 3 | AO151: 307 - إنجليزي | AP151: فيزياء 1 الشعبة 3 | AQ151: 301 - فيزياء | AR151: اجتماعيات الشعبة 3 | AS151: 308 - اجتماعيات | AT151: عربي 1 الشعبة 3 | AU151: 209 - علوم إدارية | AV151: 4 | AW151: عربي 1 الشعبة 3 | AX151: 209 - علوم إدارية | AY151: قرآن 1 الشعبة 3 | AZ151: 303 - إسلامية | BA151: حياتية 1 الشعبة 3 | BB151: 306 - مهارات نفسية | BC151: رياضيات 1 الشعبة 3 | BD151: 306 - مهارات نفسية | BE151: إنجليزي 1 الشعبة 3 | BF151: 307 - إنجليزي | BG151: فيزياء 1 الشعبة 3 | BH151: 301 - فيزياء | BI151: اجتماعيات الشعبة 3 | BJ151: 308 - اجتماعيات | BK151: 5 | BL151: اجتماعيات الشعبة 3 | BM151: 308 - اجتماعيات | BN151: عربي 1 الشعبة 3 | BO151: 209 - علوم إدارية | BP151: قرآن 1 الشعبة 3 | BQ151: 303 - إسلامية | BR151: حياتية 1 الشعبة 3 | BS151: 306 - مهارات نفسية | BT151: رياضيات 1 الشعبة 3 | BU151: 306 - مهارات نفسية | BV151: إنجليزي 1 الشعبة 3 | BW151: 307 - إنجليزي | BX151: فيزياء 1 الشعبة 3 | BY151: 301 - فيزياء | BZ151: =_ِAll[[#This Row],[0]] -> 40073
A152: 40074 | B152: حسن بن إبراهيم بن سعيد العياش | C152: 1 | D152: عربي 1 الشعبة 4 | E152: 209 - علوم إدارية | F152: اجتماعيات الشعبة 4 | G152: 308 - اجتماعيات | H152: إنجليزي 1 الشعبة 4 | I152: 307 - إنجليزي | J152: رياضيات 1 الشعبة 4 | K152: 306 - مهارات نفسية | L152: حياتية 1 الشعبة 4 | M152: 306 - مهارات نفسية | N152: فيزياء 1 الشعبة 4 | O152: 207 - فيزياء | P152: تفسير 1 الشعبة 4 | Q152: 202 - إسلامية | R152: 2 | S152: تفسير 1 الشعبة 4 | T152: 202 - إسلامية | U152: عربي 1 الشعبة 4 | V152: 209 - علوم إدارية | W152: اجتماعيات الشعبة 4 | X152: 308 - اجتماعيات | Y152: إنجليزي 1 الشعبة 4 | Z152: 307 - إنجليزي | AA152: رياضيات 1 الشعبة 4 | AB152: 306 - مهارات نفسية | AC152: حياتية 1 الشعبة 4 | AD152: 306 - مهارات نفسية | AE152: فيزياء 1 الشعبة 4 | AF152: 207 - فيزياء | AG152: 3 | AH152: فيزياء 1 الشعبة 4 | AI152: 207 - فيزياء | AJ152: تفسير 1 الشعبة 4 | AK152: 202 - إسلامية | AL152: عربي 1 الشعبة 4 | AM152: 209 - علوم إدارية | AN152: اجتماعيات الشعبة 4 | AO152: 308 - اجتماعيات | AP152: إنجليزي 1 الشعبة 4 | AQ152: 307 - إنجليزي | AR152: رياضيات 1 الشعبة 4 | AS152: 306 - مهارات نفسية | AT152: حياتية 1 الشعبة 4 | AU152: 306 - مهارات نفسية | AV152: 4 | AW152: حياتية 1 الشعبة 4 | AX152: 306 - مهارات نفسية | AY152: فيزياء 1 الشعبة 4 | AZ152: 207 - فيزياء | BA152: تفسير 1 الشعبة 4 | BB152: 202 - إسلامية | BC152: عربي 1 الشعبة 4 | BD152: 209 - علوم إدارية | BE152: اجتماعيات الشعبة 4 | BF152: 308 - اجتماعيات | BG152: إنجليزي 1 الشعبة 4 | BH152: 307 - إنجليزي | BI152: رياضيات 1 الشعبة 4 | BJ152: 306 - مهارات نفسية | BK152: 5 | BL152: إنجليزي 1 الشعبة 4 | BM152: 307 - إنجليزي | BN152: رياضيات 1 الشعبة 4 | BO152: 306 - مهارات نفسية | BP152: فيزياء 1 الشعبة 4 | BQ152: 207 - فيزياء | BR152: تفسير 1 الشعبة 4 | BS152: 202 - إسلامية | BT152: عربي 1 الشعبة 4 | BU152: 209 - علوم إدارية | BV152: حياتية 1 الشعبة 4 | BW152: 306 - مهارات نفسية | BX152: اجتماعيات الشعبة 4 | BY152: 308 - اجتماعيات | BZ152: =_ِAll[[#This Row],[0]] -> 40074
A153: 40075 | B153: محمد بن سعيد بن محمد آل محفوظ | C153: 1 | D153: إنجليزي 1 الشعبة 2 | E153: 208 - إنجليزي | F153: حاسب 1 الشعبة 2 | G153: معمل حاسب | H153: أحياء 1 الشعبة 2 | I153: 212 - معمل أحياء | J153: كيمياء 1 الشعبة 2 | K153: 302 - كيمياء | L153: تفسير 1 الشعبة 2 | M153: 303 - إسلامية | N153: رياضيات 1 الشعبة 2 | O153: 310 - رياضيات | P153: عربي 1 الشعبة 2 | Q153: 204 - عربي | R153: 2 | S153: عربي 1 الشعبة 2 | T153: 204 - عربي | U153: إنجليزي 1 الشعبة 2 | V153: 208 - إنجليزي | W153: حاسب 1 الشعبة 2 | X153: معمل حاسب | Y153: أحياء 1 الشعبة 2 | Z153: 212 - معمل أحياء | AA153: كيمياء 1 الشعبة 2 | AB153: 302 - كيمياء | AC153: تفسير 1 الشعبة 2 | AD153: 303 - إسلامية | AE153: رياضيات 1 الشعبة 2 | AF153: 310 - رياضيات | AG153: 3 | AH153: رياضيات 1 الشعبة 2 | AI153: 310 - رياضيات | AJ153: عربي 1 الشعبة 2 | AK153: 204 - عربي | AL153: إنجليزي 1 الشعبة 2 | AM153: 208 - إنجليزي | AN153: حاسب 1 الشعبة 2 | AO153: معمل حاسب | AP153: كيمياء 1 الشعبة 2 | AQ153: 302 - كيمياء | AR153: أحياء 1 الشعبة 2 | AS153: 212 - معمل أحياء | AT153: تفسير 1 الشعبة 2 | AU153: 303 - إسلامية | AV153: 4 | AW153: تفسير 1 الشعبة 2 | AX153: 303 - إسلامية | AY153: رياضيات 1 الشعبة 2 | AZ153: 310 - رياضيات | BA153: عربي 1 الشعبة 2 | BB153: 204 - عربي | BC153: إنجليزي 1 الشعبة 2 | BD153: 208 - إنجليزي | BE153: حاسب 1 الشعبة 2 | BF153: معمل حاسب | BG153: أحياء 1 الشعبة 2 | BH153: 212 - معمل أحياء | BI153: كيمياء 1 الشعبة 2 | BJ153: 302 - كيمياء | BK153: 5 | BL153: كيمياء 1 الشعبة 2 | BM153: 302 - كيمياء | BN153: تفسير 1 الشعبة 2 | BO153: 303 - إسلامية | BP153: رياضيات 1 الشعبة 2 | BQ153: 310 - رياضيات | BR153: عربي 1 الشعبة 2 | BS153: 204 - عربي | BT153: إنجليزي 1 الشعبة 2 | BU153: 208 - إنجليزي | BV153: حاسب 1 الشعبة 2 | BW153: معمل حاسب | BX153: أحياء 1 الشعبة 2 | BY153: 212 - معمل أحياء | BZ153: =_ِAll[[#This Row],[0]] -> 40075
A154: 40076 | B154: سجاد بن إبراهيم بن عبدالغني المغاسله | C154: 1 | D154: عربي 1 الشعبة 4 | E154: 209 - علوم إدارية | F154: اجتماعيات الشعبة 4 | G154: 308 - اجتماعيات | H154: إنجليزي 1 الشعبة 4 | I154: 307 - إنجليزي | J154: رياضيات 1 الشعبة 4 | K154: 306 - مهارات نفسية | L154: حياتية 1 الشعبة 4 | M154: 306 - مهارات نفسية | N154: فيزياء 1 الشعبة 4 | O154: 207 - فيزياء | P154: تفسير 1 الشعبة 4 | Q154: 202 - إسلامية | R154: 2 | S154: تفسير 1 الشعبة 4 | T154: 202 - إسلامية | U154: عربي 1 الشعبة 4 | V154: 209 - علوم إدارية | W154: اجتماعيات الشعبة 4 | X154: 308 - اجتماعيات | Y154: إنجليزي 1 الشعبة 4 | Z154: 307 - إنجليزي | AA154: رياضيات 1 الشعبة 4 | AB154: 306 - مهارات نفسية | AC154: حياتية 1 الشعبة 4 | AD154: 306 - مهارات نفسية | AE154: فيزياء 1 الشعبة 4 | AF154: 207 - فيزياء | AG154: 3 | AH154: فيزياء 1 الشعبة 4 | AI154: 207 - فيزياء | AJ154: تفسير 1 الشعبة 4 | AK154: 202 - إسلامية | AL154: عربي 1 الشعبة 4 | AM154: 209 - علوم إدارية | AN154: اجتماعيات الشعبة 4 | AO154: 308 - اجتماعيات | AP154: إنجليزي 1 الشعبة 4 | AQ154: 307 - إنجليزي | AR154: رياضيات 1 الشعبة 4 | AS154: 306 - مهارات نفسية | AT154: حياتية 1 الشعبة 4 | AU154: 306 - مهارات نفسية | AV154: 4 | AW154: حياتية 1 الشعبة 4 | AX154: 306 - مهارات نفسية | AY154: فيزياء 1 الشعبة 4 | AZ154: 207 - فيزياء | BA154: تفسير 1 الشعبة 4 | BB154: 202 - إسلامية | BC154: عربي 1 الشعبة 4 | BD154: 209 - علوم إدارية | BE154: اجتماعيات الشعبة 4 | BF154: 308 - اجتماعيات | BG154: إنجليزي 1 الشعبة 4 | BH154: 307 - إنجليزي | BI154: رياضيات 1 الشعبة 4 | BJ154: 306 - مهارات نفسية | BK154: 5 | BL154: إنجليزي 1 الشعبة 4 | BM154: 307 - إنجليزي | BN154: رياضيات 1 الشعبة 4 | BO154: 306 - مهارات نفسية | BP154: فيزياء 1 الشعبة 4 | BQ154: 207 - فيزياء | BR154: تفسير 1 الشعبة 4 | BS154: 202 - إسلامية | BT154: عربي 1 الشعبة 4 | BU154: 209 - علوم إدارية | BV154: حياتية 1 الشعبة 4 | BW154: 306 - مهارات نفسية | BX154: اجتماعيات الشعبة 4 | BY154: 308 - اجتماعيات | BZ154: =_ِAll[[#This Row],[0]] -> 40076
A155: 40077 | B155: أحمد بن أنور بن علي العشوي | C155: 1 | D155: إنجليزي 1 الشعبة 2 | E155: 208 - إنجليزي | F155: حاسب 1 الشعبة 2 | G155: معمل حاسب | H155: أحياء 1 الشعبة 2 | I155: 212 - معمل أحياء | J155: كيمياء 1 الشعبة 2 | K155: 302 - كيمياء | L155: تفسير 1 الشعبة 2 | M155: 303 - إسلامية | N155: رياضيات 1 الشعبة 2 | O155: 310 - رياضيات | P155: عربي 1 الشعبة 2 | Q155: 204 - عربي | R155: 2 | S155: عربي 1 الشعبة 2 | T155: 204 - عربي | U155: إنجليزي 1 الشعبة 2 | V155: 208 - إنجليزي | W155: حاسب 1 الشعبة 2 | X155: معمل حاسب | Y155: أحياء 1 الشعبة 2 | Z155: 212 - معمل أحياء | AA155: كيمياء 1 الشعبة 2 | AB155: 302 - كيمياء | AC155: تفسير 1 الشعبة 2 | AD155: 303 - إسلامية | AE155: رياضيات 1 الشعبة 2 | AF155: 310 - رياضيات | AG155: 3 | AH155: رياضيات 1 الشعبة 2 | AI155: 310 - رياضيات | AJ155: عربي 1 الشعبة 2 | AK155: 204 - عربي | AL155: إنجليزي 1 الشعبة 2 | AM155: 208 - إنجليزي | AN155: حاسب 1 الشعبة 2 | AO155: معمل حاسب | AP155: كيمياء 1 الشعبة 2 | AQ155: 302 - كيمياء | AR155: أحياء 1 الشعبة 2 | AS155: 212 - معمل أحياء | AT155: تفسير 1 الشعبة 2 | AU155: 303 - إسلامية | AV155: 4 | AW155: تفسير 1 الشعبة 2 | AX155: 303 - إسلامية | AY155: رياضيات 1 الشعبة 2 | AZ155: 310 - رياضيات | BA155: عربي 1 الشعبة 2 | BB155: 204 - عربي | BC155: إنجليزي 1 الشعبة 2 | BD155: 208 - إنجليزي | BE155: حاسب 1 الشعبة 2 | BF155: معمل حاسب | BG155: أحياء 1 الشعبة 2 | BH155: 212 - معمل أحياء | BI155: كيمياء 1 الشعبة 2 | BJ155: 302 - كيمياء | BK155: 5 | BL155: كيمياء 1 الشعبة 2 | BM155: 302 - كيمياء | BN155: تفسير 1 الشعبة 2 | BO155: 303 - إسلامية | BP155: رياضيات 1 الشعبة 2 | BQ155: 310 - رياضيات | BR155: عربي 1 الشعبة 2 | BS155: 204 - عربي | BT155: إنجليزي 1 الشعبة 2 | BU155: 208 - إنجليزي | BV155: حاسب 1 الشعبة 2 | BW155: معمل حاسب | BX155: أحياء 1 الشعبة 2 | BY155: 212 - معمل أحياء | BZ155: =_ِAll[[#This Row],[0]] -> 40077
A156: 40078 | B156: أحمد بن عيسى بن علي القنيص | C156: 1 | D156: عربي 1 الشعبة 4 | E156: 209 - علوم إدارية | F156: اجتماعيات الشعبة 4 | G156: 308 - اجتماعيات | H156: إنجليزي 1 الشعبة 4 | I156: 307 - إنجليزي | J156: رياضيات 1 الشعبة 4 | K156: 306 - مهارات نفسية | L156: حياتية 1 الشعبة 4 | M156: 306 - مهارات نفسية | N156: فيزياء 1 الشعبة 4 | O156: 207 - فيزياء | P156: تفسير 1 الشعبة 4 | Q156: 202 - إسلامية | R156: 2 | S156: تفسير 1 الشعبة 4 | T156: 202 - إسلامية | U156: عربي 1 الشعبة 4 | V156: 209 - علوم إدارية | W156: اجتماعيات الشعبة 4 | X156: 308 - اجتماعيات | Y156: إنجليزي 1 الشعبة 4 | Z156: 307 - إنجليزي | AA156: رياضيات 1 الشعبة 4 | AB156: 306 - مهارات نفسية | AC156: حياتية 1 الشعبة 4 | AD156: 306 - مهارات نفسية | AE156: فيزياء 1 الشعبة 4 | AF156: 207 - فيزياء | AG156: 3 | AH156: فيزياء 1 الشعبة 4 | AI156: 207 - فيزياء | AJ156: تفسير 1 الشعبة 4 | AK156: 202 - إسلامية | AL156: عربي 1 الشعبة 4 | AM156: 209 - علوم إدارية | AN156: اجتماعيات الشعبة 4 | AO156: 308 - اجتماعيات | AP156: إنجليزي 1 الشعبة 4 | AQ156: 307 - إنجليزي | AR156: رياضيات 1 الشعبة 4 | AS156: 306 - مهارات نفسية | AT156: حياتية 1 الشعبة 4 | AU156: 306 - مهارات نفسية | AV156: 4 | AW156: حياتية 1 الشعبة 4 | AX156: 306 - مهارات نفسية | AY156: فيزياء 1 الشعبة 4 | AZ156: 207 - فيزياء | BA156: تفسير 1 الشعبة 4 | BB156: 202 - إسلامية | BC156: عربي 1 الشعبة 4 | BD156: 209 - علوم إدارية | BE156: اجتماعيات الشعبة 4 | BF156: 308 - اجتماعيات | BG156: إنجليزي 1 الشعبة 4 | BH156: 307 - إنجليزي | BI156: رياضيات 1 الشعبة 4 | BJ156: 306 - مهارات نفسية | BK156: 5 | BL156: إنجليزي 1 الشعبة 4 | BM156: 307 - إنجليزي | BN156: رياضيات 1 الشعبة 4 | BO156: 306 - مهارات نفسية | BP156: فيزياء 1 الشعبة 4 | BQ156: 207 - فيزياء | BR156: تفسير 1 الشعبة 4 | BS156: 202 - إسلامية | BT156: عربي 1 الشعبة 4 | BU156: 209 - علوم إدارية | BV156: حياتية 1 الشعبة 4 | BW156: 306 - مهارات نفسية | BX156: اجتماعيات الشعبة 4 | BY156: 308 - اجتماعيات | BZ156: =_ِAll[[#This Row],[0]] -> 40078
A157: 40079 | B157: علي بن أحمد بن منصور الموسى | C157: 1 | D157: إنجليزي 1 الشعبة 2 | E157: 208 - إنجليزي | F157: حاسب 1 الشعبة 2 | G157: معمل حاسب | H157: أحياء 1 الشعبة 2 | I157: 212 - معمل أحياء | J157: كيمياء 1 الشعبة 2 | K157: 302 - كيمياء | L157: تفسير 1 الشعبة 2 | M157: 303 - إسلامية | N157: رياضيات 1 الشعبة 2 | O157: 310 - رياضيات | P157: عربي 1 الشعبة 2 | Q157: 204 - عربي | R157: 2 | S157: عربي 1 الشعبة 2 | T157: 204 - عربي | U157: إنجليزي 1 الشعبة 2 | V157: 208 - إنجليزي | W157: حاسب 1 الشعبة 2 | X157: معمل حاسب | Y157: أحياء 1 الشعبة 2 | Z157: 212 - معمل أحياء | AA157: كيمياء 1 الشعبة 2 | AB157: 302 - كيمياء | AC157: تفسير 1 الشعبة 2 | AD157: 303 - إسلامية | AE157: رياضيات 1 الشعبة 2 | AF157: 310 - رياضيات | AG157: 3 | AH157: رياضيات 1 الشعبة 2 | AI157: 310 - رياضيات | AJ157: عربي 1 الشعبة 2 | AK157: 204 - عربي | AL157: إنجليزي 1 الشعبة 2 | AM157: 208 - إنجليزي | AN157: حاسب 1 الشعبة 2 | AO157: معمل حاسب | AP157: كيمياء 1 الشعبة 2 | AQ157: 302 - كيمياء | AR157: أحياء 1 الشعبة 2 | AS157: 212 - معمل أحياء | AT157: تفسير 1 الشعبة 2 | AU157: 303 - إسلامية | AV157: 4 | AW157: تفسير 1 الشعبة 2 | AX157: 303 - إسلامية | AY157: رياضيات 1 الشعبة 2 | AZ157: 310 - رياضيات | BA157: عربي 1 الشعبة 2 | BB157: 204 - عربي | BC157: إنجليزي 1 الشعبة 2 | BD157: 208 - إنجليزي | BE157: حاسب 1 الشعبة 2 | BF157: معمل حاسب | BG157: أحياء 1 الشعبة 2 | BH157: 212 - معمل أحياء | BI157: كيمياء 1 الشعبة 2 | BJ157: 302 - كيمياء | BK157: 5 | BL157: كيمياء 1 الشعبة 2 | BM157: 302 - كيمياء | BN157: تفسير 1 الشعبة 2 | BO157: 303 - إسلامية | BP157: رياضيات 1 الشعبة 2 | BQ157: 310 - رياضيات | BR157: عربي 1 الشعبة 2 | BS157: 204 - عربي | BT157: إنجليزي 1 الشعبة 2 | BU157: 208 - إنجليزي | BV157: حاسب 1 الشعبة 2 | BW157: معمل حاسب | BX157: أحياء 1 الشعبة 2 | BY157: 212 - معمل أحياء | BZ157: =_ِAll[[#This Row],[0]] -> 40079
A158: 40080 | B158: عبدالله بن بشير بن مهدي عبدربه | C158: 1 | D158: إنجليزي 1 الشعبة 2 | E158: 208 - إنجليزي | F158: حاسب 1 الشعبة 2 | G158: معمل حاسب | H158: أحياء 1 الشعبة 2 | I158: 212 - معمل أحياء | J158: كيمياء 1 الشعبة 2 | K158: 302 - كيمياء | L158: تفسير 1 الشعبة 2 | M158: 303 - إسلامية | N158: رياضيات 1 الشعبة 2 | O158: 310 - رياضيات | P158: عربي 1 الشعبة 2 | Q158: 204 - عربي | R158: 2 | S158: عربي 1 الشعبة 2 | T158: 204 - عربي | U158: إنجليزي 1 الشعبة 2 | V158: 208 - إنجليزي | W158: حاسب 1 الشعبة 2 | X158: معمل حاسب | Y158: أحياء 1 الشعبة 2 | Z158: 212 - معمل أحياء | AA158: كيمياء 1 الشعبة 2 | AB158: 302 - كيمياء | AC158: تفسير 1 الشعبة 2 | AD158: 303 - إسلامية | AE158: رياضيات 1 الشعبة 2 | AF158: 310 - رياضيات | AG158: 3 | AH158: رياضيات 1 الشعبة 2 | AI158: 310 - رياضيات | AJ158: عربي 1 الشعبة 2 | AK158: 204 - عربي | AL158: إنجليزي 1 الشعبة 2 | AM158: 208 - إنجليزي | AN158: حاسب 1 الشعبة 2 | AO158: معمل حاسب | AP158: كيمياء 1 الشعبة 2 | AQ158: 302 - كيمياء | AR158: أحياء 1 الشعبة 2 | AS158: 212 - معمل أحياء | AT158: تفسير 1 الشعبة 2 | AU158: 303 - إسلامية | AV158: 4 | AW158: تفسير 1 الشعبة 2 | AX158: 303 - إسلامية | AY158: رياضيات 1 الشعبة 2 | AZ158: 310 - رياضيات | BA158: عربي 1 الشعبة 2 | BB158: 204 - عربي | BC158: إنجليزي 1 الشعبة 2 | BD158: 208 - إنجليزي | BE158: حاسب 1 الشعبة 2 | BF158: معمل حاسب | BG158: أحياء 1 الشعبة 2 | BH158: 212 - معمل أحياء | BI158: كيمياء 1 الشعبة 2 | BJ158: 302 - كيمياء | BK158: 5 | BL158: كيمياء 1 الشعبة 2 | BM158: 302 - كيمياء | BN158: تفسير 1 الشعبة 2 | BO158: 303 - إسلامية | BP158: رياضيات 1 الشعبة 2 | BQ158: 310 - رياضيات | BR158: عربي 1 الشعبة 2 | BS158: 204 - عربي | BT158: إنجليزي 1 الشعبة 2 | BU158: 208 - إنجليزي | BV158: حاسب 1 الشعبة 2 | BW158: معمل حاسب | BX158: أحياء 1 الشعبة 2 | BY158: 212 - معمل أحياء | BZ158: =_ِAll[[#This Row],[0]] -> 40080
A159: 40082 | B159: علي بن مصطفى بن محمد شوقي سنبل | C159: 1 | D159: رياضيات 1 الشعبة 3 | E159: 306 - مهارات نفسية | F159: إنجليزي 1 الشعبة 3 | G159: 307 - إنجليزي | H159: فيزياء 1 الشعبة 3 | I159: 301 - فيزياء | J159: اجتماعيات الشعبة 3 | K159: 308 - اجتماعيات | L159: عربي 1 الشعبة 3 | M159: 209 - علوم إدارية | N159: قرآن 1 الشعبة 3 | O159: 303 - إسلامية | P159: حياتية 1 الشعبة 3 | Q159: 306 - مهارات نفسية | R159: 2 | S159: حياتية 1 الشعبة 3 | T159: 306 - مهارات نفسية | U159: رياضيات 1 الشعبة 3 | V159: 306 - مهارات نفسية | W159: إنجليزي 1 الشعبة 3 | X159: 307 - إنجليزي | Y159: فيزياء 1 الشعبة 3 | Z159: 301 - فيزياء | AA159: اجتماعيات الشعبة 3 | AB159: 308 - اجتماعيات | AC159: عربي 1 الشعبة 3 | AD159: 209 - علوم إدارية | AE159: قرآن 1 الشعبة 3 | AF159: 303 - إسلامية | AG159: 3 | AH159: قرآن 1 الشعبة 3 | AI159: 303 - إسلامية | AJ159: حياتية 1 الشعبة 3 | AK159: 306 - مهارات نفسية | AL159: رياضيات 1 الشعبة 3 | AM159: 306 - مهارات نفسية | AN159: إنجليزي 1 الشعبة 3 | AO159: 307 - إنجليزي | AP159: فيزياء 1 الشعبة 3 | AQ159: 301 - فيزياء | AR159: اجتماعيات الشعبة 3 | AS159: 308 - اجتماعيات | AT159: عربي 1 الشعبة 3 | AU159: 209 - علوم إدارية | AV159: 4 | AW159: عربي 1 الشعبة 3 | AX159: 209 - علوم إدارية | AY159: قرآن 1 الشعبة 3 | AZ159: 303 - إسلامية | BA159: حياتية 1 الشعبة 3 | BB159: 306 - مهارات نفسية | BC159: رياضيات 1 الشعبة 3 | BD159: 306 - مهارات نفسية | BE159: إنجليزي 1 الشعبة 3 | BF159: 307 - إنجليزي | BG159: فيزياء 1 الشعبة 3 | BH159: 301 - فيزياء | BI159: اجتماعيات الشعبة 3 | BJ159: 308 - اجتماعيات | BK159: 5 | BL159: اجتماعيات الشعبة 3 | BM159: 308 - اجتماعيات | BN159: عربي 1 الشعبة 3 | BO159: 209 - علوم إدارية | BP159: قرآن 1 الشعبة 3 | BQ159: 303 - إسلامية | BR159: حياتية 1 الشعبة 3 | BS159: 306 - مهارات نفسية | BT159: رياضيات 1 الشعبة 3 | BU159: 306 - مهارات نفسية | BV159: إنجليزي 1 الشعبة 3 | BW159: 307 - إنجليزي | BX159: فيزياء 1 الشعبة 3 | BY159: 301 - فيزياء | BZ159: =_ِAll[[#This Row],[0]] -> 40082
A160: 40083 | B160: أحمد بن مصطفى بن أحمد آل قنيص | C160: 1 | D160: رياضيات 1 الشعبة 3 | E160: 306 - مهارات نفسية | F160: إنجليزي 1 الشعبة 3 | G160: 307 - إنجليزي | H160: فيزياء 1 الشعبة 3 | I160: 301 - فيزياء | J160: اجتماعيات الشعبة 3 | K160: 308 - اجتماعيات | L160: عربي 1 الشعبة 3 | M160: 209 - علوم إدارية | N160: قرآن 1 الشعبة 3 | O160: 303 - إسلامية | P160: حياتية 1 الشعبة 3 | Q160: 306 - مهارات نفسية | R160: 2 | S160: حياتية 1 الشعبة 3 | T160: 306 - مهارات نفسية | U160: رياضيات 1 الشعبة 3 | V160: 306 - مهارات نفسية | W160: إنجليزي 1 الشعبة 3 | X160: 307 - إنجليزي | Y160: فيزياء 1 الشعبة 3 | Z160: 301 - فيزياء | AA160: اجتماعيات الشعبة 3 | AB160: 308 - اجتماعيات | AC160: عربي 1 الشعبة 3 | AD160: 209 - علوم إدارية | AE160: قرآن 1 الشعبة 3 | AF160: 303 - إسلامية | AG160: 3 | AH160: قرآن 1 الشعبة 3 | AI160: 303 - إسلامية | AJ160: حياتية 1 الشعبة 3 | AK160: 306 - مهارات نفسية | AL160: رياضيات 1 الشعبة 3 | AM160: 306 - مهارات نفسية | AN160: إنجليزي 1 الشعبة 3 | AO160: 307 - إنجليزي | AP160: فيزياء 1 الشعبة 3 | AQ160: 301 - فيزياء | AR160: اجتماعيات الشعبة 3 | AS160: 308 - اجتماعيات | AT160: عربي 1 الشعبة 3 | AU160: 209 - علوم إدارية | AV160: 4 | AW160: عربي 1 الشعبة 3 | AX160: 209 - علوم إدارية | AY160: قرآن 1 الشعبة 3 | AZ160: 303 - إسلامية | BA160: حياتية 1 الشعبة 3 | BB160: 306 - مهارات نفسية | BC160: رياضيات 1 الشعبة 3 | BD160: 306 - مهارات نفسية | BE160: إنجليزي 1 الشعبة 3 | BF160: 307 - إنجليزي | BG160: فيزياء 1 الشعبة 3 | BH160: 301 - فيزياء | BI160: اجتماعيات الشعبة 3 | BJ160: 308 - اجتماعيات | BK160: 5 | BL160: اجتماعيات الشعبة 3 | BM160: 308 - اجتماعيات | BN160: عربي 1 الشعبة 3 | BO160: 209 - علوم إدارية | BP160: قرآن 1 الشعبة 3 | BQ160: 303 - إسلامية | BR160: حياتية 1 الشعبة 3 | BS160: 306 - مهارات نفسية | BT160: رياضيات 1 الشعبة 3 | BU160: 306 - مهارات نفسية | BV160: إنجليزي 1 الشعبة 3 | BW160: 307 - إنجليزي | BX160: فيزياء 1 الشعبة 3 | BY160: 301 - فيزياء | BZ160: =_ِAll[[#This Row],[0]] -> 40083
A161: 40084 | B161: محمد بن إبراهيم بن محمد اليوسف | C161: 1 | D161: إنجليزي 1 الشعبة 2 | E161: 208 - إنجليزي | F161: حاسب 1 الشعبة 2 | G161: معمل حاسب | H161: أحياء 1 الشعبة 2 | I161: 212 - معمل أحياء | J161: كيمياء 1 الشعبة 2 | K161: 302 - كيمياء | L161: تفسير 1 الشعبة 2 | M161: 303 - إسلامية | N161: رياضيات 1 الشعبة 2 | O161: 310 - رياضيات | P161: عربي 1 الشعبة 2 | Q161: 204 - عربي | R161: 2 | S161: عربي 1 الشعبة 2 | T161: 204 - عربي | U161: إنجليزي 1 الشعبة 2 | V161: 208 - إنجليزي | W161: حاسب 1 الشعبة 2 | X161: معمل حاسب | Y161: أحياء 1 الشعبة 2 | Z161: 212 - معمل أحياء | AA161: كيمياء 1 الشعبة 2 | AB161: 302 - كيمياء | AC161: تفسير 1 الشعبة 2 | AD161: 303 - إسلامية | AE161: رياضيات 1 الشعبة 2 | AF161: 310 - رياضيات | AG161: 3 | AH161: رياضيات 1 الشعبة 2 | AI161: 310 - رياضيات | AJ161: عربي 1 الشعبة 2 | AK161: 204 - عربي | AL161: إنجليزي 1 الشعبة 2 | AM161: 208 - إنجليزي | AN161: حاسب 1 الشعبة 2 | AO161: معمل حاسب | AP161: كيمياء 1 الشعبة 2 | AQ161: 302 - كيمياء | AR161: أحياء 1 الشعبة 2 | AS161: 212 - معمل أحياء | AT161: تفسير 1 الشعبة 2 | AU161: 303 - إسلامية | AV161: 4 | AW161: تفسير 1 الشعبة 2 | AX161: 303 - إسلامية | AY161: رياضيات 1 الشعبة 2 | AZ161: 310 - رياضيات | BA161: عربي 1 الشعبة 2 | BB161: 204 - عربي | BC161: إنجليزي 1 الشعبة 2 | BD161: 208 - إنجليزي | BE161: حاسب 1 الشعبة 2 | BF161: معمل حاسب | BG161: أحياء 1 الشعبة 2 | BH161: 212 - معمل أحياء | BI161: كيمياء 1 الشعبة 2 | BJ161: 302 - كيمياء | BK161: 5 | BL161: كيمياء 1 الشعبة 2 | BM161: 302 - كيمياء | BN161: تفسير 1 الشعبة 2 | BO161: 303 - إسلامية | BP161: رياضيات 1 الشعبة 2 | BQ161: 310 - رياضيات | BR161: عربي 1 الشعبة 2 | BS161: 204 - عربي | BT161: إنجليزي 1 الشعبة 2 | BU161: 208 - إنجليزي | BV161: حاسب 1 الشعبة 2 | BW161: معمل حاسب | BX161: أحياء 1 الشعبة 2 | BY161: 212 - معمل أحياء | BZ161: =_ِAll[[#This Row],[0]] -> 40084
A162: 40085 | B162: منير بن علي بن احمد آل خواهر | C162: 1 | D162: إنجليزي 1 الشعبة 2 | E162: 208 - إنجليزي | F162: حاسب 1 الشعبة 2 | G162: معمل حاسب | H162: أحياء 1 الشعبة 2 | I162: 212 - معمل أحياء | J162: كيمياء 1 الشعبة 2 | K162: 302 - كيمياء | L162: تفسير 1 الشعبة 2 | M162: 303 - إسلامية | N162: رياضيات 1 الشعبة 2 | O162: 310 - رياضيات | P162: عربي 1 الشعبة 2 | Q162: 204 - عربي | R162: 2 | S162: عربي 1 الشعبة 2 | T162: 204 - عربي | U162: إنجليزي 1 الشعبة 2 | V162: 208 - إنجليزي | W162: حاسب 1 الشعبة 2 | X162: معمل حاسب | Y162: أحياء 1 الشعبة 2 | Z162: 212 - معمل أحياء | AA162: كيمياء 1 الشعبة 2 | AB162: 302 - كيمياء | AC162: تفسير 1 الشعبة 2 | AD162: 303 - إسلامية | AE162: رياضيات 1 الشعبة 2 | AF162: 310 - رياضيات | AG162: 3 | AH162: رياضيات 1 الشعبة 2 | AI162: 310 - رياضيات | AJ162: عربي 1 الشعبة 2 | AK162: 204 - عربي | AL162: إنجليزي 1 الشعبة 2 | AM162: 208 - إنجليزي | AN162: حاسب 1 الشعبة 2 | AO162: معمل حاسب | AP162: كيمياء 1 الشعبة 2 | AQ162: 302 - كيمياء | AR162: أحياء 1 الشعبة 2 | AS162: 212 - معمل أحياء | AT162: تفسير 1 الشعبة 2 | AU162: 303 - إسلامية | AV162: 4 | AW162: تفسير 1 الشعبة 2 | AX162: 303 - إسلامية | AY162: رياضيات 1 الشعبة 2 | AZ162: 310 - رياضيات | BA162: عربي 1 الشعبة 2 | BB162: 204 - عربي | BC162: إنجليزي 1 الشعبة 2 | BD162: 208 - إنجليزي | BE162: حاسب 1 الشعبة 2 | BF162: معمل حاسب | BG162: أحياء 1 الشعبة 2 | BH162: 212 - معمل أحياء | BI162: كيمياء 1 الشعبة 2 | BJ162: 302 - كيمياء | BK162: 5 | BL162: كيمياء 1 الشعبة 2 | BM162: 302 - كيمياء | BN162: تفسير 1 الشعبة 2 | BO162: 303 - إسلامية | BP162: رياضيات 1 الشعبة 2 | BQ162: 310 - رياضيات | BR162: عربي 1 الشعبة 2 | BS162: 204 - عربي | BT162: إنجليزي 1 الشعبة 2 | BU162: 208 - إنجليزي | BV162: حاسب 1 الشعبة 2 | BW162: معمل حاسب | BX162: أحياء 1 الشعبة 2 | BY162: 212 - معمل أحياء | BZ162: =_ِAll[[#This Row],[0]] -> 40085
A163: 40086 | B163: حيدر بن إبراهيم بن أحمد آل خواهر | C163: 1 | D163: عربي 1 الشعبة 4 | E163: 209 - علوم إدارية | F163: اجتماعيات الشعبة 4 | G163: 308 - اجتماعيات | H163: إنجليزي 1 الشعبة 4 | I163: 307 - إنجليزي | J163: رياضيات 1 الشعبة 4 | K163: 306 - مهارات نفسية | L163: حياتية 1 الشعبة 4 | M163: 306 - مهارات نفسية | N163: فيزياء 1 الشعبة 4 | O163: 207 - فيزياء | P163: تفسير 1 الشعبة 4 | Q163: 202 - إسلامية | R163: 2 | S163: تفسير 1 الشعبة 4 | T163: 202 - إسلامية | U163: عربي 1 الشعبة 4 | V163: 209 - علوم إدارية | W163: اجتماعيات الشعبة 4 | X163: 308 - اجتماعيات | Y163: إنجليزي 1 الشعبة 4 | Z163: 307 - إنجليزي | AA163: رياضيات 1 الشعبة 4 | AB163: 306 - مهارات نفسية | AC163: حياتية 1 الشعبة 4 | AD163: 306 - مهارات نفسية | AE163: فيزياء 1 الشعبة 4 | AF163: 207 - فيزياء | AG163: 3 | AH163: فيزياء 1 الشعبة 4 | AI163: 207 - فيزياء | AJ163: تفسير 1 الشعبة 4 | AK163: 202 - إسلامية | AL163: عربي 1 الشعبة 4 | AM163: 209 - علوم إدارية | AN163: اجتماعيات الشعبة 4 | AO163: 308 - اجتماعيات | AP163: إنجليزي 1 الشعبة 4 | AQ163: 307 - إنجليزي | AR163: رياضيات 1 الشعبة 4 | AS163: 306 - مهارات نفسية | AT163: حياتية 1 الشعبة 4 | AU163: 306 - مهارات نفسية | AV163: 4 | AW163: حياتية 1 الشعبة 4 | AX163: 306 - مهارات نفسية | AY163: فيزياء 1 الشعبة 4 | AZ163: 207 - فيزياء | BA163: تفسير 1 الشعبة 4 | BB163: 202 - إسلامية | BC163: عربي 1 الشعبة 4 | BD163: 209 - علوم إدارية | BE163: اجتماعيات الشعبة 4 | BF163: 308 - اجتماعيات | BG163: إنجليزي 1 الشعبة 4 | BH163: 307 - إنجليزي | BI163: رياضيات 1 الشعبة 4 | BJ163: 306 - مهارات نفسية | BK163: 5 | BL163: إنجليزي 1 الشعبة 4 | BM163: 307 - إنجليزي | BN163: رياضيات 1 الشعبة 4 | BO163: 306 - مهارات نفسية | BP163: فيزياء 1 الشعبة 4 | BQ163: 207 - فيزياء | BR163: تفسير 1 الشعبة 4 | BS163: 202 - إسلامية | BT163: عربي 1 الشعبة 4 | BU163: 209 - علوم إدارية | BV163: حياتية 1 الشعبة 4 | BW163: 306 - مهارات نفسية | BX163: اجتماعيات الشعبة 4 | BY163: 308 - اجتماعيات | BZ163: =_ِAll[[#This Row],[0]] -> 40086
A164: 40087 | B164: أحمد بن إبراهيم بن علي آل عبدرب الرسول | C164: 1 | D164: عربي 1 الشعبة 4 | E164: 209 - علوم إدارية | F164: اجتماعيات الشعبة 4 | G164: 308 - اجتماعيات | H164: إنجليزي 1 الشعبة 4 | I164: 307 - إنجليزي | J164: رياضيات 1 الشعبة 4 | K164: 306 - مهارات نفسية | L164: حياتية 1 الشعبة 4 | M164: 306 - مهارات نفسية | N164: فيزياء 1 الشعبة 4 | O164: 207 - فيزياء | P164: تفسير 1 الشعبة 4 | Q164: 202 - إسلامية | R164: 2 | S164: تفسير 1 الشعبة 4 | T164: 202 - إسلامية | U164: عربي 1 الشعبة 4 | V164: 209 - علوم إدارية | W164: اجتماعيات الشعبة 4 | X164: 308 - اجتماعيات | Y164: إنجليزي 1 الشعبة 4 | Z164: 307 - إنجليزي | AA164: رياضيات 1 الشعبة 4 | AB164: 306 - مهارات نفسية | AC164: حياتية 1 الشعبة 4 | AD164: 306 - مهارات نفسية | AE164: فيزياء 1 الشعبة 4 | AF164: 207 - فيزياء | AG164: 3 | AH164: فيزياء 1 الشعبة 4 | AI164: 207 - فيزياء | AJ164: تفسير 1 الشعبة 4 | AK164: 202 - إسلامية | AL164: عربي 1 الشعبة 4 | AM164: 209 - علوم إدارية | AN164: اجتماعيات الشعبة 4 | AO164: 308 - اجتماعيات | AP164: إنجليزي 1 الشعبة 4 | AQ164: 307 - إنجليزي | AR164: رياضيات 1 الشعبة 4 | AS164: 306 - مهارات نفسية | AT164: حياتية 1 الشعبة 4 | AU164: 306 - مهارات نفسية | AV164: 4 | AW164: حياتية 1 الشعبة 4 | AX164: 306 - مهارات نفسية | AY164: فيزياء 1 الشعبة 4 | AZ164: 207 - فيزياء | BA164: تفسير 1 الشعبة 4 | BB164: 202 - إسلامية | BC164: عربي 1 الشعبة 4 | BD164: 209 - علوم إدارية | BE164: اجتماعيات الشعبة 4 | BF164: 308 - اجتماعيات | BG164: إنجليزي 1 الشعبة 4 | BH164: 307 - إنجليزي | BI164: رياضيات 1 الشعبة 4 | BJ164: 306 - مهارات نفسية | BK164: 5 | BL164: إنجليزي 1 الشعبة 4 | BM164: 307 - إنجليزي | BN164: رياضيات 1 الشعبة 4 | BO164: 306 - مهارات نفسية | BP164: فيزياء 1 الشعبة 4 | BQ164: 207 - فيزياء | BR164: تفسير 1 الشعبة 4 | BS164: 202 - إسلامية | BT164: عربي 1 الشعبة 4 | BU164: 209 - علوم إدارية | BV164: حياتية 1 الشعبة 4 | BW164: 306 - مهارات نفسية | BX164: اجتماعيات الشعبة 4 | BY164: 308 - اجتماعيات | BZ164: =_ِAll[[#This Row],[0]] -> 40087
A165: 40088 | B165: رضا بن محمد بن حسن الأشرم | C165: 1 | D165: عربي 1 الشعبة 4 | E165: 209 - علوم إدارية | F165: اجتماعيات الشعبة 4 | G165: 308 - اجتماعيات | H165: إنجليزي 1 الشعبة 4 | I165: 307 - إنجليزي | J165: رياضيات 1 الشعبة 4 | K165: 306 - مهارات نفسية | L165: حياتية 1 الشعبة 4 | M165: 306 - مهارات نفسية | N165: فيزياء 1 الشعبة 4 | O165: 207 - فيزياء | P165: تفسير 1 الشعبة 4 | Q165: 202 - إسلامية | R165: 2 | S165: تفسير 1 الشعبة 4 | T165: 202 - إسلامية | U165: عربي 1 الشعبة 4 | V165: 209 - علوم إدارية | W165: اجتماعيات الشعبة 4 | X165: 308 - اجتماعيات | Y165: إنجليزي 1 الشعبة 4 | Z165: 307 - إنجليزي | AA165: رياضيات 1 الشعبة 4 | AB165: 306 - مهارات نفسية | AC165: حياتية 1 الشعبة 4 | AD165: 306 - مهارات نفسية | AE165: فيزياء 1 الشعبة 4 | AF165: 207 - فيزياء | AG165: 3 | AH165: فيزياء 1 الشعبة 4 | AI165: 207 - فيزياء | AJ165: تفسير 1 الشعبة 4 | AK165: 202 - إسلامية | AL165: عربي 1 الشعبة 4 | AM165: 209 - علوم إدارية | AN165: اجتماعيات الشعبة 4 | AO165: 308 - اجتماعيات | AP165: إنجليزي 1 الشعبة 4 | AQ165: 307 - إنجليزي | AR165: رياضيات 1 الشعبة 4 | AS165: 306 - مهارات نفسية | AT165: حياتية 1 الشعبة 4 | AU165: 306 - مهارات نفسية | AV165: 4 | AW165: حياتية 1 الشعبة 4 | AX165: 306 - مهارات نفسية | AY165: فيزياء 1 الشعبة 4 | AZ165: 207 - فيزياء | BA165: تفسير 1 الشعبة 4 | BB165: 202 - إسلامية | BC165: عربي 1 الشعبة 4 | BD165: 209 - علوم إدارية | BE165: اجتماعيات الشعبة 4 | BF165: 308 - اجتماعيات | BG165: إنجليزي 1 الشعبة 4 | BH165: 307 - إنجليزي | BI165: رياضيات 1 الشعبة 4 | BJ165: 306 - مهارات نفسية | BK165: 5 | BL165: إنجليزي 1 الشعبة 4 | BM165: 307 - إنجليزي | BN165: رياضيات 1 الشعبة 4 | BO165: 306 - مهارات نفسية | BP165: فيزياء 1 الشعبة 4 | BQ165: 207 - فيزياء | BR165: تفسير 1 الشعبة 4 | BS165: 202 - إسلامية | BT165: عربي 1 الشعبة 4 | BU165: 209 - علوم إدارية | BV165: حياتية 1 الشعبة 4 | BW165: 306 - مهارات نفسية | BX165: اجتماعيات الشعبة 4 | BY165: 308 - اجتماعيات | BZ165: =_ِAll[[#This Row],[0]] -> 40088
A166: 40089 | B166: صادق بن عبدالله بن حسن آل زايد | C166: 1 | D166: عربي 1 الشعبة 4 | E166: 209 - علوم إدارية | F166: اجتماعيات الشعبة 4 | G166: 308 - اجتماعيات | H166: إنجليزي 1 الشعبة 4 | I166: 307 - إنجليزي | J166: رياضيات 1 الشعبة 4 | K166: 306 - مهارات نفسية | L166: حياتية 1 الشعبة 4 | M166: 306 - مهارات نفسية | N166: فيزياء 1 الشعبة 4 | O166: 207 - فيزياء | P166: تفسير 1 الشعبة 4 | Q166: 202 - إسلامية | R166: 2 | S166: تفسير 1 الشعبة 4 | T166: 202 - إسلامية | U166: عربي 1 الشعبة 4 | V166: 209 - علوم إدارية | W166: اجتماعيات الشعبة 4 | X166: 308 - اجتماعيات | Y166: إنجليزي 1 الشعبة 4 | Z166: 307 - إنجليزي | AA166: رياضيات 1 الشعبة 4 | AB166: 306 - مهارات نفسية | AC166: حياتية 1 الشعبة 4 | AD166: 306 - مهارات نفسية | AE166: فيزياء 1 الشعبة 4 | AF166: 207 - فيزياء | AG166: 3 | AH166: فيزياء 1 الشعبة 4 | AI166: 207 - فيزياء | AJ166: تفسير 1 الشعبة 4 | AK166: 202 - إسلامية | AL166: عربي 1 الشعبة 4 | AM166: 209 - علوم إدارية | AN166: اجتماعيات الشعبة 4 | AO166: 308 - اجتماعيات | AP166: إنجليزي 1 الشعبة 4 | AQ166: 307 - إنجليزي | AR166: رياضيات 1 الشعبة 4 | AS166: 306 - مهارات نفسية | AT166: حياتية 1 الشعبة 4 | AU166: 306 - مهارات نفسية | AV166: 4 | AW166: حياتية 1 الشعبة 4 | AX166: 306 - مهارات نفسية | AY166: فيزياء 1 الشعبة 4 | AZ166: 207 - فيزياء | BA166: تفسير 1 الشعبة 4 | BB166: 202 - إسلامية | BC166: عربي 1 الشعبة 4 | BD166: 209 - علوم إدارية | BE166: اجتماعيات الشعبة 4 | BF166: 308 - اجتماعيات | BG166: إنجليزي 1 الشعبة 4 | BH166: 307 - إنجليزي | BI166: رياضيات 1 الشعبة 4 | BJ166: 306 - مهارات نفسية | BK166: 5 | BL166: إنجليزي 1 الشعبة 4 | BM166: 307 - إنجليزي | BN166: رياضيات 1 الشعبة 4 | BO166: 306 - مهارات نفسية | BP166: فيزياء 1 الشعبة 4 | BQ166: 207 - فيزياء | BR166: تفسير 1 الشعبة 4 | BS166: 202 - إسلامية | BT166: عربي 1 الشعبة 4 | BU166: 209 - علوم إدارية | BV166: حياتية 1 الشعبة 4 | BW166: 306 - مهارات نفسية | BX166: اجتماعيات الشعبة 4 | BY166: 308 - اجتماعيات | BZ166: =_ِAll[[#This Row],[0]] -> 40089
A167: 40091 | B167: محمد بن ابراهيم بن مسلم آل دخيل | C167: 1 | D167: عربي 1 الشعبة 4 | E167: 209 - علوم إدارية | F167: اجتماعيات الشعبة 4 | G167: 308 - اجتماعيات | H167: إنجليزي 1 الشعبة 4 | I167: 307 - إنجليزي | J167: رياضيات 1 الشعبة 4 | K167: 306 - مهارات نفسية | L167: حياتية 1 الشعبة 4 | M167: 306 - مهارات نفسية | N167: فيزياء 1 الشعبة 4 | O167: 207 - فيزياء | P167: تفسير 1 الشعبة 4 | Q167: 202 - إسلامية | R167: 2 | S167: تفسير 1 الشعبة 4 | T167: 202 - إسلامية | U167: عربي 1 الشعبة 4 | V167: 209 - علوم إدارية | W167: اجتماعيات الشعبة 4 | X167: 308 - اجتماعيات | Y167: إنجليزي 1 الشعبة 4 | Z167: 307 - إنجليزي | AA167: رياضيات 1 الشعبة 4 | AB167: 306 - مهارات نفسية | AC167: حياتية 1 الشعبة 4 | AD167: 306 - مهارات نفسية | AE167: فيزياء 1 الشعبة 4 | AF167: 207 - فيزياء | AG167: 3 | AH167: فيزياء 1 الشعبة 4 | AI167: 207 - فيزياء | AJ167: تفسير 1 الشعبة 4 | AK167: 202 - إسلامية | AL167: عربي 1 الشعبة 4 | AM167: 209 - علوم إدارية | AN167: اجتماعيات الشعبة 4 | AO167: 308 - اجتماعيات | AP167: إنجليزي 1 الشعبة 4 | AQ167: 307 - إنجليزي | AR167: رياضيات 1 الشعبة 4 | AS167: 306 - مهارات نفسية | AT167: حياتية 1 الشعبة 4 | AU167: 306 - مهارات نفسية | AV167: 4 | AW167: حياتية 1 الشعبة 4 | AX167: 306 - مهارات نفسية | AY167: فيزياء 1 الشعبة 4 | AZ167: 207 - فيزياء | BA167: تفسير 1 الشعبة 4 | BB167: 202 - إسلامية | BC167: عربي 1 الشعبة 4 | BD167: 209 - علوم إدارية | BE167: اجتماعيات الشعبة 4 | BF167: 308 - اجتماعيات | BG167: إنجليزي 1 الشعبة 4 | BH167: 307 - إنجليزي | BI167: رياضيات 1 الشعبة 4 | BJ167: 306 - مهارات نفسية | BK167: 5 | BL167: إنجليزي 1 الشعبة 4 | BM167: 307 - إنجليزي | BN167: رياضيات 1 الشعبة 4 | BO167: 306 - مهارات نفسية | BP167: فيزياء 1 الشعبة 4 | BQ167: 207 - فيزياء | BR167: تفسير 1 الشعبة 4 | BS167: 202 - إسلامية | BT167: عربي 1 الشعبة 4 | BU167: 209 - علوم إدارية | BV167: حياتية 1 الشعبة 4 | BW167: 306 - مهارات نفسية | BX167: اجتماعيات الشعبة 4 | BY167: 308 - اجتماعيات | BZ167: =_ِAll[[#This Row],[0]] -> 40091
A168: 40092 | B168: ابراهيم بن عبدالوهاب بن ابراهيم الفضل | C168: 1 | D168: إنجليزي 1 الشعبة 2 | E168: 208 - إنجليزي | F168: حاسب 1 الشعبة 2 | G168: معمل حاسب | H168: أحياء 1 الشعبة 2 | I168: 212 - معمل أحياء | J168: كيمياء 1 الشعبة 2 | K168: 302 - كيمياء | L168: تفسير 1 الشعبة 2 | M168: 303 - إسلامية | N168: رياضيات 1 الشعبة 2 | O168: 310 - رياضيات | P168: عربي 1 الشعبة 2 | Q168: 204 - عربي | R168: 2 | S168: عربي 1 الشعبة 2 | T168: 204 - عربي | U168: إنجليزي 1 الشعبة 2 | V168: 208 - إنجليزي | W168: حاسب 1 الشعبة 2 | X168: معمل حاسب | Y168: أحياء 1 الشعبة 2 | Z168: 212 - معمل أحياء | AA168: كيمياء 1 الشعبة 2 | AB168: 302 - كيمياء | AC168: تفسير 1 الشعبة 2 | AD168: 303 - إسلامية | AE168: رياضيات 1 الشعبة 2 | AF168: 310 - رياضيات | AG168: 3 | AH168: رياضيات 1 الشعبة 2 | AI168: 310 - رياضيات | AJ168: عربي 1 الشعبة 2 | AK168: 204 - عربي | AL168: إنجليزي 1 الشعبة 2 | AM168: 208 - إنجليزي | AN168: حاسب 1 الشعبة 2 | AO168: معمل حاسب | AP168: كيمياء 1 الشعبة 2 | AQ168: 302 - كيمياء | AR168: أحياء 1 الشعبة 2 | AS168: 212 - معمل أحياء | AT168: تفسير 1 الشعبة 2 | AU168: 303 - إسلامية | AV168: 4 | AW168: تفسير 1 الشعبة 2 | AX168: 303 - إسلامية | AY168: رياضيات 1 الشعبة 2 | AZ168: 310 - رياضيات | BA168: عربي 1 الشعبة 2 | BB168: 204 - عربي | BC168: إنجليزي 1 الشعبة 2 | BD168: 208 - إنجليزي | BE168: حاسب 1 الشعبة 2 | BF168: معمل حاسب | BG168: أحياء 1 الشعبة 2 | BH168: 212 - معمل أحياء | BI168: كيمياء 1 الشعبة 2 | BJ168: 302 - كيمياء | BK168: 5 | BL168: كيمياء 1 الشعبة 2 | BM168: 302 - كيمياء | BN168: تفسير 1 الشعبة 2 | BO168: 303 - إسلامية | BP168: رياضيات 1 الشعبة 2 | BQ168: 310 - رياضيات | BR168: عربي 1 الشعبة 2 | BS168: 204 - عربي | BT168: إنجليزي 1 الشعبة 2 | BU168: 208 - إنجليزي | BV168: حاسب 1 الشعبة 2 | BW168: معمل حاسب | BX168: أحياء 1 الشعبة 2 | BY168: 212 - معمل أحياء | BZ168: =_ِAll[[#This Row],[0]] -> 40092
A169: 40093 | B169: مازن بن صالح بن سليمان العنابس القحطاني | C169: 1 | D169: عربي 1 الشعبة 4 | E169: 209 - علوم إدارية | F169: اجتماعيات الشعبة 4 | G169: 308 - اجتماعيات | H169: إنجليزي 1 الشعبة 4 | I169: 307 - إنجليزي | J169: رياضيات 1 الشعبة 4 | K169: 306 - مهارات نفسية | L169: حياتية 1 الشعبة 4 | M169: 306 - مهارات نفسية | N169: فيزياء 1 الشعبة 4 | O169: 207 - فيزياء | P169: تفسير 1 الشعبة 4 | Q169: 202 - إسلامية | R169: 2 | S169: تفسير 1 الشعبة 4 | T169: 202 - إسلامية | U169: عربي 1 الشعبة 4 | V169: 209 - علوم إدارية | W169: اجتماعيات الشعبة 4 | X169: 308 - اجتماعيات | Y169: إنجليزي 1 الشعبة 4 | Z169: 307 - إنجليزي | AA169: رياضيات 1 الشعبة 4 | AB169: 306 - مهارات نفسية | AC169: حياتية 1 الشعبة 4 | AD169: 306 - مهارات نفسية | AE169: فيزياء 1 الشعبة 4 | AF169: 207 - فيزياء | AG169: 3 | AH169: فيزياء 1 الشعبة 4 | AI169: 207 - فيزياء | AJ169: تفسير 1 الشعبة 4 | AK169: 202 - إسلامية | AL169: عربي 1 الشعبة 4 | AM169: 209 - علوم إدارية | AN169: اجتماعيات الشعبة 4 | AO169: 308 - اجتماعيات | AP169: إنجليزي 1 الشعبة 4 | AQ169: 307 - إنجليزي | AR169: رياضيات 1 الشعبة 4 | AS169: 306 - مهارات نفسية | AT169: حياتية 1 الشعبة 4 | AU169: 306 - مهارات نفسية | AV169: 4 | AW169: حياتية 1 الشعبة 4 | AX169: 306 - مهارات نفسية | AY169: فيزياء 1 الشعبة 4 | AZ169: 207 - فيزياء | BA169: تفسير 1 الشعبة 4 | BB169: 202 - إسلامية | BC169: عربي 1 الشعبة 4 | BD169: 209 - علوم إدارية | BE169: اجتماعيات الشعبة 4 | BF169: 308 - اجتماعيات | BG169: إنجليزي 1 الشعبة 4 | BH169: 307 - إنجليزي | BI169: رياضيات 1 الشعبة 4 | BJ169: 306 - مهارات نفسية | BK169: 5 | BL169: إنجليزي 1 الشعبة 4 | BM169: 307 - إنجليزي | BN169: رياضيات 1 الشعبة 4 | BO169: 306 - مهارات نفسية | BP169: فيزياء 1 الشعبة 4 | BQ169: 207 - فيزياء | BR169: تفسير 1 الشعبة 4 | BS169: 202 - إسلامية | BT169: عربي 1 الشعبة 4 | BU169: 209 - علوم إدارية | BV169: حياتية 1 الشعبة 4 | BW169: 306 - مهارات نفسية | BX169: اجتماعيات الشعبة 4 | BY169: 308 - اجتماعيات | BZ169: =_ِAll[[#This Row],[0]] -> 40093
A170: 40094 | B170: ابراهيم بن حسين بن عبدالله آل ذاهب | C170: 1 | D170: عربي 1 الشعبة 4 | E170: 209 - علوم إدارية | F170: اجتماعيات الشعبة 4 | G170: 308 - اجتماعيات | H170: إنجليزي 1 الشعبة 4 | I170: 307 - إنجليزي | J170: رياضيات 1 الشعبة 4 | K170: 306 - مهارات نفسية | L170: حياتية 1 الشعبة 4 | M170: 306 - مهارات نفسية | N170: فيزياء 1 الشعبة 4 | O170: 207 - فيزياء | P170: تفسير 1 الشعبة 4 | Q170: 202 - إسلامية | R170: 2 | S170: تفسير 1 الشعبة 4 | T170: 202 - إسلامية | U170: عربي 1 الشعبة 4 | V170: 209 - علوم إدارية | W170: اجتماعيات الشعبة 4 | X170: 308 - اجتماعيات | Y170: إنجليزي 1 الشعبة 4 | Z170: 307 - إنجليزي | AA170: رياضيات 1 الشعبة 4 | AB170: 306 - مهارات نفسية | AC170: حياتية 1 الشعبة 4 | AD170: 306 - مهارات نفسية | AE170: فيزياء 1 الشعبة 4 | AF170: 207 - فيزياء | AG170: 3 | AH170: فيزياء 1 الشعبة 4 | AI170: 207 - فيزياء | AJ170: تفسير 1 الشعبة 4 | AK170: 202 - إسلامية | AL170: عربي 1 الشعبة 4 | AM170: 209 - علوم إدارية | AN170: اجتماعيات الشعبة 4 | AO170: 308 - اجتماعيات | AP170: إنجليزي 1 الشعبة 4 | AQ170: 307 - إنجليزي | AR170: رياضيات 1 الشعبة 4 | AS170: 306 - مهارات نفسية | AT170: حياتية 1 الشعبة 4 | AU170: 306 - مهارات نفسية | AV170: 4 | AW170: حياتية 1 الشعبة 4 | AX170: 306 - مهارات نفسية | AY170: فيزياء 1 الشعبة 4 | AZ170: 207 - فيزياء | BA170: تفسير 1 الشعبة 4 | BB170: 202 - إسلامية | BC170: عربي 1 الشعبة 4 | BD170: 209 - علوم إدارية | BE170: اجتماعيات الشعبة 4 | BF170: 308 - اجتماعيات | BG170: إنجليزي 1 الشعبة 4 | BH170: 307 - إنجليزي | BI170: رياضيات 1 الشعبة 4 | BJ170: 306 - مهارات نفسية | BK170: 5 | BL170: إنجليزي 1 الشعبة 4 | BM170: 307 - إنجليزي | BN170: رياضيات 1 الشعبة 4 | BO170: 306 - مهارات نفسية | BP170: فيزياء 1 الشعبة 4 | BQ170: 207 - فيزياء | BR170: تفسير 1 الشعبة 4 | BS170: 202 - إسلامية | BT170: عربي 1 الشعبة 4 | BU170: 209 - علوم إدارية | BV170: حياتية 1 الشعبة 4 | BW170: 306 - مهارات نفسية | BX170: اجتماعيات الشعبة 4 | BY170: 308 - اجتماعيات | BZ170: =_ِAll[[#This Row],[0]] -> 40094
